Workbook

Sheet To_Do (hidden)
B1: Passwort für Sperren | C1: neinnein
B2: 1.) | C2: Nicht ausgeblendete Seiten: 0, 1, 2, 3, 4, Tippformular, Meine Tipps, Quicktipp, Mein Quicktipp, AGB, Read Me, Ende | D2: Ausgeblendet: alle anderen
B3: 2.) | C3: Gesperrte Seiten: wie 1.) außer Mein Quicktipp und Ende | D3: Nicht gesperrt: alle anderen
B4: 3.) | C4: Punktesystem prüfen / festlegen | D4: ggf. in den "AGB" und im "Read_Me" korrigieren | E4: erledigt
B5: 4.) | C5: AGB und Read_Me generell überarbeiten | E5: Erledigt
B6: 5.) | C6: Buttons mit Verlinkung zu Forum und Homepage auf allen sichtbaren Seiten einbauen
B7: 6.) | C7: Auf Tauglichkeit für Apple und ältere Excel-Versionen testen
B8: 7.) | C8: Feld für Statement ans Ende des Tippformulars | D8: OK-Button erst freischalten, wenn alle Tipps und das Statement ausgefüllt sind?
B9: 8.) | C9: Logo austauschen | E9: Erledigt
B10: 9.) | C10: Seite "Modus" aktualisieren. Dann Spielplan GENAU!!! prüfen (mit Modus checken) | D10: Einordnung der besten Drittplatzierten hat sich geändert!!! | E10: Erledigt | F10: Testen
B11: 10.) | C11: Anzeige der Reihung der Drittplatzierten Manchmal #NV, manchmal " " Anzeige, obwohl Gruppe F nicht getippt | E11: Erledigt | F11: Testen
B12: 11.) | C12: Anordnung Tippformular (KO-Phase unter die Gruppen, nicht daneben) | D12: v.a. für kleinere Bilschirme notwendig | E12: keine Zeit
B13: 12.) | C13: am 01.04.2020: "Gen-Tab" und "Gen-Tab_Quick" ergänzen Eingabe der restl. Länder in Blatt "1" löschen | E13: erledigt
B14: 13.) | C14: Gen-Tab: Nationenreihung (Schlussreihung der European Qualifiers) kontrollieren | E14: erledigt

Sheet Teilnehmer_2018 (hidden)
A1: Lf-Nr. | B1: Name | C1: Vorname | D1: Verkettet | E1: Titel | F1: Anrede | H1: Alter | I1: Tipp | J1: Bezahlt | K1: Untergruppe 1 Friend of… | L1: Untergruppe 2 | M1: Untergruppe 3 | N1: Mail-Adresse
I2: =COUNTIF(I3:I999,"ja") -> 0 | J2: =COUNTIF(J3:J999,"ja") -> 0
A3: 1 | B3: Ahornegger | C3: Hartwig | D3: =CONCATENATE(B3," ",C3) -> Ahornegger Hartwig | E3: Mag. | F3: Herr | G3: =IF(AND(D3='1'!$H$8,Teilnehmer_2018!H3>0),1,0) -> 0 | H3: 38 | K3: UNIQA
A4: 2 | B4: Angerer | C4: Eduard | D4: Angerer Eduard | E4: Ing. | F4: Herr | G4: =IF(AND(D4='1'!$H$8,Teilnehmer_2018!H4>0),1,0) -> 0 | H4: 59 | K4: Gerhard | N4: eduard.angerer@gmail.com
A5: 3 | B5: Bachler | C5: Gernot | D5: Bachler Gernot | F5: Herr | G5: =IF(AND(D5='1'!$H$8,Teilnehmer_2018!H5>0),1,0) -> 0 | H5: 35 | K5: Clemens | L5: Krone | N5: gernot.bachler@kronenzeiting.at
A6: 4 | B6: Bari | C6: Alexander | D6: Bari Alexander | E6: MA | F6: Herr | G6: =IF(AND(D6='1'!$H$8,Teilnehmer_2018!H6>0),1,0) -> 0 | H6: 40 | K6: Xandi | N6: a.bari@iubh-dualesstudium.at
A7: 5 | B7: Bauhofer | C7: Roland | D7: Bauhofer Roland | F7: Herr | G7: =IF(AND(D7='1'!$H$8,Teilnehmer_2018!H7>0),1,0) -> 0 | H7: 48 | K7: Xandi | N7: roland.bauhofer@gmail.com
A8: 6 | B8: Benesch | C8: Markus | D8: Benesch Markus | F8: Herr | G8: =IF(AND(D8='1'!$H$8,Teilnehmer_2018!H8>0),1,0) -> 0 | H8: 48 | K8: Xandi | N8: markus.benesch@chello.at
A9: 7 | B9: Biely | C9: Nikolaus | D9: Biely Nikolaus | F9: Herr | G9: =IF(AND(D9='1'!$H$8,Teilnehmer_2018!H9>0),1,0) -> 0 | H9: 47 | K9: Michi | L9: Xandi | N9: nikolaus@biely.at
A10: 8 | B10: Böhm | C10: Olivera | D10: Böhm Olivera | E10: MSc | F10: Frau | G10: =IF(AND(D10='1'!$H$8,Teilnehmer_2018!H10>0),1,0) -> 0 | H10: 46 | K10: UNIQA | N10: olivera.boehm@uniqa.at
A11: 9 | B11: Bortenschlager | C11: Rainer | D11: Bortenschlager Rainer | F11: Herr | G11: =IF(AND(D11='1'!$H$8,Teilnehmer_2018!H11>0),1,0) -> 0 | H11: 44 | K11: Clemens | L11: Krone | N11: rainer.bortenschlager@kronenzeitung.at
A12: 10 | B12: Brockmann | C12: Olaf | D12: Brockmann Olaf | F12: Herr | G12: =IF(AND(D12='1'!$H$8,Teilnehmer_2018!H12>0),1,0) -> 0 | H12: 68 | K12: Krone | N12: olaf.brockmann@gmx.at
A13: 11 | B13: Capella | C13: Flip | D13: Capella Flip | F13: Herr | G13: =IF(AND(D13='1'!$H$8,Teilnehmer_2018!H13>0),1,0) -> 0 | H13: 46 | K13: Energy | N13: flip@energy.at
A14: 12 | B14: Divos | C14: Roland | D14: Divos Roland | F14: Herr | G14: =IF(AND(D14='1'!$H$8,Teilnehmer_2018!H14>0),1,0) -> 0 | H14: 43 | K14: Xandi | N14: roland.divos@contentgarden.at
A15: 13 | B15: Domingo | C15: Stephanie-Joy | D15: Domingo Stephanie-Joy | F15: Frau | G15: =IF(AND(D15='1'!$H$8,Teilnehmer_2018!H15>0),1,0) -> 0 | H15: 38 | K15: Energy | N15: j.domingo@energy.at
A16: 14 | B16: Dorner | C16: Stefan | D16: Dorner Stefan | F16: Herr | G16: =IF(AND(D16='1'!$H$8,Teilnehmer_2018!H16>0),1,0) -> 0 | H16: 46 | K16: Gerhard | L16: UNIQA | N16: dornerstephan@gmail.com
A17: 15 | B17: Drapela | C17: Johannes | D17: Drapela Johannes | F17: Herr | G17: =IF(AND(D17='1'!$H$8,Teilnehmer_2018!H17>0),1,0) -> 0 | H17: 39 | K17: Energy | N17: J.Drapela@oe24.at
A18: 16 | B18: Eckert | C18: Marion | D18: Eckert Marion | F18: Frau | G18: =IF(AND(D18='1'!$H$8,Teilnehmer_2018!H18>0),1,0) -> 0 | H18: 36 | K18: Family | N18: marion.eckert@gmx.at
A19: 17 | B19: Egger | C19: Bernhard | D19: Egger Bernhard | F19: Herr | G19: =IF(AND(D19='1'!$H$8,Teilnehmer_2018!H19>0),1,0) -> 0 | H19: 38 | K19: Energy | N19: b.egger@energy.at
A20: 18 | B20: Enderle | C20: Gerald | D20: Enderle Gerald | E20: Mag. | F20: Herr | G20: =IF(AND(D20='1'!$H$8,Teilnehmer_2018!H20>0),1,0) -> 0 | H20: 50 | K20: Xandi | N20: Gerald.Enderle@allianz.at
A21: 19 | B21: Esmaeilzadeh | C21: Ray | D21: Esmaeilzadeh Ray | F21: Herr | G21: =IF(AND(D21='1'!$H$8,Teilnehmer_2018!H21>0),1,0) -> 0 | H21: 40 | K21: Energy | N21: ray@energy.at
A22: 20 | B22: Farsky | C22: Clara | D22: Farsky Clara | E22: Mag. | F22: Frau | G22: =IF(AND(D22='1'!$H$8,Teilnehmer_2018!H22>0),1,0) -> 0 | H22: 30 | K22: M-C | N22: clara-farsky@hotmail.com
A23: 21 | B23: Fassmann | C23: Walter | D23: Fassmann Walter | F23: Herr | G23: =IF(AND(D23='1'!$H$8,Teilnehmer_2018!H23>0),1,0) -> 0 | H23: 49 | K23: Xandi | N23: walter.fassmann@aon.at
A24: 22 | B24: Fischer | C24: Gerhard | D24: Fischer Gerhard | E24: Ing. | F24: Herr | G24: =IF(AND(D24='1'!$H$8,Teilnehmer_2018!H24>0),1,0) -> 0 | H24: 56 | K24: UNIQA | N24: flossi.fischer@gmail.com
A25: 23 | B25: Flores | C25: Sergio | D25: Flores Sergio | F25: Herr | G25: =IF(AND(D25='1'!$H$8,Teilnehmer_2018!H25>0),1,0) -> 0 | H25: 38 | K25: Xandi | N25: sergio@sergioflores.at
A26: 24 | B26: Früchtl | C26: Rene | D26: Früchtl Rene | F26: Herr | G26: =IF(AND(D26='1'!$H$8,Teilnehmer_2018!H26>0),1,0) -> 0 | H26: 59 | K26: Gerhard | L26: UNIQA | N26: rene.fruechtl@uniqa.at
A27: 25 | B27: Führer | C27: Axel | D27: Führer Axel | F27: Herr | G27: =IF(AND(D27='1'!$H$8,Teilnehmer_2018!H27>0),1,0) -> 0 | H27: 35 | K27: Clemens | N27: fuehrer.axel@meduniwien.ac.at
A28: 26 | B28: Gabner | C28: Robert | D28: Gabner Robert | F28: Herr | G28: =IF(AND(D28='1'!$H$8,Teilnehmer_2018!H28>0),1,0) -> 0 | H28: 33 | K28: Energy | N28: R.Struhacek@energy.at
A29: 27 | B29: Gansterer | C29: Manfred | D29: Gansterer Manfred | F29: Herr | G29: =IF(AND(D29='1'!$H$8,Teilnehmer_2018!H29>0),1,0) -> 0 | H29: 50 | K29: Xandi | N29: mgansterer@gmx.at
A30: 28 | B30: Gesselbauer | C30: Michael | D30: Gesselbauer Michael | F30: Herr | G30: =IF(AND(D30='1'!$H$8,Teilnehmer_2018!H30>0),1,0) -> 0 | H30: 43 | K30: Michi | N30: michael.gesselbauer@vav´.at
A31: 29 | B31: Gneist | C31: Christian | D31: Gneist Christian | F31: Herr | G31: =IF(AND(D31='1'!$H$8,Teilnehmer_2018!H31>0),1,0) -> 0 | H31: 41 | K31: Xandi | N31: grisuchg@gmx.at
A32: 30 | B32: Griesl | C32: Erwin | D32: Griesl Erwin | E32: MAS | F32: Herr | G32: =IF(AND(D32='1'!$H$8,Teilnehmer_2018!H32>0),1,0) -> 0 | H32: 57 | K32: UNIQA | N32: erwin.griesl@uniqa.at
A33: 31 | B33: Gröger | C33: Florian | D33: Gröger Florian | F33: Herr | G33: =IF(AND(D33='1'!$H$8,Teilnehmer_2018!H33>0),1,0) -> 0 | H33: 40 | K33: Clemens | L33: Krone | N33: florian.groeger@kronenzeitung.at
A34: 32 | B34: Hala | C34: Simon | D34: Hala Simon | F34: Herr | G34: =IF(AND(D34='1'!$H$8,Teilnehmer_2018!H34>0),1,0) -> 0 | H34: 32 | K34: Energy | N34: simon.hala@gmx.at
A35: 33 | B35: Haller | C35: Erich | D35: =CONCATENATE(B35," ",C35) -> Haller Erich | E35: Mag.(FH) | F35: Herr | G35: =IF(AND(D35='1'!$H$8,Teilnehmer_2018!H35>0),1,0) -> 0 | H35: 44 | K35: Xandi | N35: ejh76@gmx.at
A36: 34 | B36: Hobiger | C36: Matthias | D36: Hobiger Matthias | F36: Herr | G36: =IF(AND(D36='1'!$H$8,Teilnehmer_2018!H36>0),1,0) -> 0 | H36: 37 | K36: Energy | N36: matthias@hobiger.cc
A37: 35 | B37: Hochreiter | C37: Jakob | D37: Hochreiter Jakob | F37: Herr | G37: =IF(AND(D37='1'!$H$8,Teilnehmer_2018!H37>0),1,0) -> 0 | H37: 29 | K37: Family | N37: jakob.hochreiter@gmail.com
A38: 36 | B38: Hofegger | C38: Michael | D38: Hofegger Michael | E38: Mag. | F38: Herr | G38: =IF(AND(D38='1'!$H$8,Teilnehmer_2018!H38>0),1,0) -> 0 | H38: 40 | K38: Xandi | N38: m.hofegger@live.com
A39: 37 | B39: Holub | C39: Isabella | D39: Holub Isabella | E39: Dr. | F39: Frau | G39: =IF(AND(D39='1'!$H$8,Teilnehmer_2018!H39>0),1,0) -> 0 | H39: 42 | K39: Family | N39: isabella.holub@gmx.at
A40: 38 | B40: Holub-Wagner | C40: Florian | D40: Holub-Wagner Florian | F40: Herr | G40: =IF(AND(D40='1'!$H$8,Teilnehmer_2018!H40>0),1,0) -> 0 | H40: 3 | K40: Family | N40: wagner@notar1190.at
A41: 39 | B41: Holub-Wagner | C41: Paulina | D41: Holub-Wagner Paulina | F41: Frau | G41: =IF(AND(D41='1'!$H$8,Teilnehmer_2018!H41>0),1,0) -> 0 | H41: 6 | K41: Family | N41: isabella.holub@gmx.at
A42: 40 | B42: Horak | C42: Evelyn | D42: Horak Evelyn | F42: Frau | G42: =IF(AND(D42='1'!$H$8,Teilnehmer_2018!H42>0),1,0) -> 0 | H42: 39 | K42: Energy | N42: evelyn@energy.at
A43: 41 | B43: Hördler | C43: Tim | D43: Hördler Tim | F43: Herr | G43: =IF(AND(D43='1'!$H$8,Teilnehmer_2018!H43>0),1,0) -> 0 | H43: 20 | K43: Michi | N43: tim_hoerdler@yahoo.de
A44: 42 | B44: Jelencsits | C44: Thomas | D44: Jelencsits Thomas | F44: Herr | G44: =IF(AND(D44='1'!$H$8,Teilnehmer_2018!H44>0),1,0) -> 0 | H44: 51 | K44: UNIQA | N44: thomas.jelencsits@chello.at
A45: 43 | B45: Joklik | C45: Andreas | D45: Joklik Andreas | E45: Dr. | F45: Herr | G45: =IF(AND(D45='1'!$H$8,Teilnehmer_2018!H45>0),1,0) -> 0 | H45: 44 | K45: Michi | N45: joklik@adjokat.at
A46: 44 | B46: Kasmer | C46: Metin | D46: Kasmer Metin | F46: Herr | G46: =IF(AND(D46='1'!$H$8,Teilnehmer_2018!H46>0),1,0) -> 0 | H46: 35 | K46: Energy | N46: m.kasmer@mnf.at
A47: 45 | B47: Kaufmann | C47: Matthias | D47: Kaufmann Matthias | F47: Herr | G47: =IF(AND(D47='1'!$H$8,Teilnehmer_2018!H47>0),1,0) -> 0 | H47: 56 | K47: Gerhard | N47: matthias.kaufmann@tecdent.at
A48: 46 | B48: Keil | C48: Benedikt | D48: Keil Benedikt | F48: Herr | G48: =IF(AND(D48='1'!$H$8,Teilnehmer_2018!H48>0),1,0) -> 0 | H48: 30 | K48: Clemens | N48: benedikt.keil@gmx.at
A49: 47 | B49: Kersten | C49: Leopold | D49: Kersten Leopold | F49: Herr | G49: =IF(AND(D49='1'!$H$8,Teilnehmer_2018!H49>0),1,0) -> 0 | H49: 75 | K49: Gerhard | L49: UNIQA | N49: leopold.kersten@chello.at
A50: 48 | B50: Kiener | C50: Michael | D50: Kiener Michael | E50: DI | F50: Herr | G50: =IF(AND(D50='1'!$H$8,Teilnehmer_2018!H50>0),1,0) -> 0 | H50: 41 | K50: Xandi | N50: michael@kienerconsult.at
A51: 49 | B51: Klein | C51: Christine | D51: Klein Christine | F51: Frau | G51: =IF(AND(D51='1'!$H$8,Teilnehmer_2018!H51>0),1,0) -> 0 | H51: 48 | K51: UNIQA | N51: sv.gerhardklein@gmail.com
A52: 50 | B52: Klein | C52: Gerhard | D52: Klein Gerhard | F52: Herr | G52: =IF(AND(D52='1'!$H$8,Teilnehmer_2018!H52>0),1,0) -> 0 | H52: 53 | K52: Gerhard | L52: UNIQA | N52: gerhard.klein@uniqa.at
A53: 51 | B53: Knechtsberger | C53: Alexander | D53: Knechtsberger Alexander | E53: Mag.Dr. | F53: Herr | G53: =IF(AND(D53='1'!$H$8,Teilnehmer_2018!H53>0),1,0) -> 0 | H53: 53 | K53: Xandi | N53: alexander.knechtsberger@doclx-holding.com
A54: 52 | B54: Kogler | C54: Gerhard | D54: Kogler Gerhard | E54: Dr. | F54: Herr | G54: =IF(AND(D54='1'!$H$8,Teilnehmer_2018!H54>0),1,0) -> 0 | H54: 69 | K54: Gerhard | N54: ger.kogler@gmail.com
A55: 53 | B55: Kogler | C55: Michael | D55: Kogler Michael | E55: BA | F55: Herr | G55: =IF(AND(D55='1'!$H$8,Teilnehmer_2018!H55>0),1,0) -> 0 | H55: 27 | K55: UNIQA | N55: michael.kogler@uniqa.at
A56: 54 | B56: Krammer | C56: Leopold | D56: Krammer Leopold | E56: Dr. | F56: Herr | G56: =IF(AND(D56='1'!$H$8,Teilnehmer_2018!H56>0),1,0) -> 0 | H56: 61 | K56: UNIQA | N56: leopold.krammer@uniqa.at
A57: 55 | B57: Loibl | C57: Alexander | D57: Loibl Alexander | F57: Herr | G57: =IF(AND(D57='1'!$H$8,Teilnehmer_2018!H57>0),1,0) -> 0 | H57: 20 | K57: Family | N57: hannes@dulas.at
A58: 56 | B58: Loibl | C58: Johannes | D58: Loibl Johannes | F58: Herr | G58: =IF(AND(D58='1'!$H$8,Teilnehmer_2018!H58>0),1,0) -> 0 | H58: 54 | K58: Family | N58: hannes@dulas.at
A59: 57 | B59: Maly | C59: Andrea | D59: Maly Andrea | F59: Frau | G59: =IF(AND(D59='1'!$H$8,Teilnehmer_2018!H59>0),1,0) -> 0 | H59: 61 | K59: UNIQA | N59: andrea.maly@uniqa.at
A60: 58 | B60: Mang | C60: Florian | D60: Mang Florian | F60: Herr | G60: =IF(AND(D60='1'!$H$8,Teilnehmer_2018!H60>0),1,0) -> 0 | H60: 45 | K60: Xandi | N60: florian.mang@jti.com
A61: 59 | B61: Marboe | C61: Tobias | D61: Marboe Tobias | F61: Herr | G61: =IF(AND(D61='1'!$H$8,Teilnehmer_2018!H61>0),1,0) -> 0 | H61: 31 | K61: M-C | N61: tobias_marboe@hotmail.com
A62: 60 | B62: Mattes | C62: Christoph | D62: Mattes Christoph | F62: Herr | G62: =IF(AND(D62='1'!$H$8,Teilnehmer_2018!H62>0),1,0) -> 0 | H62: 57 | K62: UNIQA | N62: christoph.mattes@uniqa.at
A63: 61 | B63: Mazan | C63: Patrick | D63: Mazan Patrick | F63: Herr | G63: =IF(AND(D63='1'!$H$8,Teilnehmer_2018!H63>0),1,0) -> 0 | H63: 27 | K63: Energy | N63: p.mazan@energy.at
A64: 62 | B64: Medina-Bravo | C64: Marco | D64: Medina-Bravo Marco | F64: Herr | G64: =IF(AND(D64='1'!$H$8,Teilnehmer_2018!H64>0),1,0) -> 0 | H64: 1 | K64: Energy | N64: mmedinabravo@me.com
A65: 63 | B65: Medina-Bravo | C65: Simone | D65: Medina-Bravo Simone | F65: Frau | G65: =IF(AND(D65='1'!$H$8,Teilnehmer_2018!H65>0),1,0) -> 0 | H65: 28 | K65: Energy | N65: smedinabravo@me.com
A66: 64 | B66: Medlitsch | C66: Rudolf | D66: Medlitsch Rudolf | F66: Herr | G66: =IF(AND(D66='1'!$H$8,Teilnehmer_2018!H66>0),1,0) -> 0 | H66: 61 | K66: UNIQA | L66: Gerhard | N66: rudolf59@gmx.at
A67: 65 | B67: Millonig | C67: Max | D67: =CONCATENATE(B67," ",C67) -> Millonig Max | F67: Herr | G67: =IF(AND(D67='1'!$H$8,Teilnehmer_2018!H67>0),1,0) -> 0 | H67: 1 | K67: M-C | N67: max.millonig@gmail.com
A68: 66 | B68: Mödl | C68: Matze | D68: Mödl Matze | F68: Herr | G68: =IF(AND(D68='1'!$H$8,Teilnehmer_2018!H68>0),1,0) -> 0 | H68: 1 | K68: Clemens | L68: Krone | N68: matthias.moedl@kronenzeitung.at
A69: 67 | B69: Mohammad | C69: Zariyan | D69: Mohammad Zariyan | E69: Mag. | F69: Herr | G69: =IF(AND(D69='1'!$H$8,Teilnehmer_2018!H69>0),1,0) -> 0 | H69: 1 | K69: Xandi | N69: zariyan.mohammad@synermed.at
A70: 68 | B70: Muttenthaler | C70: Patrick | D70: Muttenthaler Patrick | E70: ? | F70: Herr | G70: =IF(AND(D70='1'!$H$8,Teilnehmer_2018!H70>0),1,0) -> 0 | H70: 34 | K70: Energy | N70: pmuttentha@hotmail.com
A71: 69 | B71: Natschläger | C71: Martin | D71: Natschläger Martin | F71: Herr | G71: =IF(AND(D71='1'!$H$8,Teilnehmer_2018!H71>0),1,0) -> 0 | H71: 45 | K71: Energy | N71: mnatschlager@gmail.com
A72: 70 | B72: Noga | C72: Lukas | D72: Noga Lukas | F72: Herr | G72: =IF(AND(D72='1'!$H$8,Teilnehmer_2018!H72>0),1,0) -> 0 | H72: 1 | K72: UNIQA | N72: lukas.noga@uniqa.at
A73: 71 | B73: Piticev | C73: Kevin | D73: Piticev Kevin | F73: Herr | G73: =IF(AND(D73='1'!$H$8,Teilnehmer_2018!H73>0),1,0) -> 0 | H73: 1 | K73: Energy | N73: k.piticev@energy.at
A74: 72 | B74: Prewein | C74: Norbert | D74: Prewein Norbert | E74: MAS | F74: Herr | G74: =IF(AND(D74='1'!$H$8,Teilnehmer_2018!H74>0),1,0) -> 0 | H74: 1 | K74: Xandi | N74: norbert.prewein@allianz.at
A75: 73 | B75: Priglinger | C75: Markus | D75: Priglinger Markus | F75: Herr | G75: =IF(AND(D75='1'!$H$8,Teilnehmer_2018!H75>0),1,0) -> 0 | H75: 24 | K75: Gerhard | N75: priglinger.markus@hotmail.com
A76: 74 | B76: Rabl | C76: Christoph | D76: Rabl Christoph | F76: Herr | G76: =IF(AND(D76='1'!$H$8,Teilnehmer_2018!H76>0),1,0) -> 0 | H76: 30 | K76: Xandi | N76: christoph.rabl@inode.at
A77: 75 | B77: Raith | C77: Alexander | D77: Raith Alexander | F77: Herr | G77: =IF(AND(D77='1'!$H$8,Teilnehmer_2018!H77>0),1,0) -> 0 | H77: 34 | K77: Gerhard | N77: alexander.raith@gmx.at
A78: 76 | B78: Raith | C78: Babsi | D78: Raith Babsi | F78: Frau | G78: =IF(AND(D78='1'!$H$8,Teilnehmer_2018!H78>0),1,0) -> 0 | H78: 1 | K78: Gerhard | N78: barbara.raith@gmx.at
A79: 77 | B79: Raith | C79: Julia | D79: Raith Julia | F79: Frau | G79: =IF(AND(D79='1'!$H$8,Teilnehmer_2018!H79>0),1,0) -> 0 | H79: 35 | K79: Gerhard | N79: julia.raith@gmx.at
A80: 78 | B80: Raith | C80: Leopold | D80: Raith Leopold | F80: Herr | G80: =IF(AND(D80='1'!$H$8,Teilnehmer_2018!H80>0),1,0) -> 0 | H80: 65 | K80: Gerhard | N80: leopold.raith@gmx.at
A81: 79 | B81: Raith | C81: Ursula | D81: Raith Ursula | F81: Frau | G81: =IF(AND(D81='1'!$H$8,Teilnehmer_2018!H81>0),1,0) -> 0 | H81: 64 | K81: Gerhard | N81: ursula.raith@gmx.at
A82: 80 | B82: Rathmayr | C82: Bernhard | D82: Rathmayr Bernhard | F82: Herr | G82: =IF(AND(D82='1'!$H$8,Teilnehmer_2018!H82>0),1,0) -> 0 | H82: 40 | K82: Energy | N82: bernhard@rathmayr.org
A83: 81 | B83: Regitnig | C83: Horst | D83: Regitnig Horst | E83: Dr. | F83: Herr | G83: =IF(AND(D83='1'!$H$8,Teilnehmer_2018!H83>0),1,0) -> 0 | H83: 1 | K83: UNIQA | N83: regi.power@aon.at
A84: 82 | B84: Reimond | C84: Nicolai | D84: Reimond Nicolai | F84: Herr | G84: =IF(AND(D84='1'!$H$8,Teilnehmer_2018!H84>0),1,0) -> 0 | H84: 1 | K84: Energy | N84: reimond.nicolai@chello.at
A85: 83 | B85: Rivic | C85: Petar | D85: Rivic Petar | F85: Herr | G85: =IF(AND(D85='1'!$H$8,Teilnehmer_2018!H85>0),1,0) -> 0 | H85: 1 | K85: Energy | N85: petar.rivic@gmail.com
A86: 84 | B86: Rohrer | C86: Matthias | D86: Rohrer Matthias | F86: Herr | G86: =IF(AND(D86='1'!$H$8,Teilnehmer_2018!H86>0),1,0) -> 0 | H86: 67 | K86: UNIQA | N86: matthias.rohrer@uniqa.at
A87: 85 | B87: Rotter | C87: Wolfgang | D87: Rotter Wolfgang | F87: Herr | G87: =IF(AND(D87='1'!$H$8,Teilnehmer_2018!H87>0),1,0) -> 0 | H87: 48 | K87: Xandi | N87: wr@rotterundrotter.at
A88: 86 | B88: Saatzer | C88: Sascha | D88: Saatzer Sascha | F88: Herr | G88: =IF(AND(D88='1'!$H$8,Teilnehmer_2018!H88>0),1,0) -> 0 | H88: 53 | K88: Gerhard | L88: UNIQA | N88: sascha.saatzer@gmx.at
A89: 87 | B89: Sack | C89: Martin | D89: Sack Martin | F89: Herr | G89: =IF(AND(D89='1'!$H$8,Teilnehmer_2018!H89>0),1,0) -> 0 | H89: 1 | K89: UNIQA | N89: martin.sack@outlook.com
A90: 88 | B90: Schrattenecker | C90: Emil | D90: Schrattenecker Emil | F90: Herr | G90: =IF(AND(D90='1'!$H$8,Teilnehmer_2018!H90>0),1,0) -> 0 | H90: 17 | K90: M-C | N90: emilemail@gmx.at
A91: 89 | B91: Schrattenecker | C91: Johann | D91: Schrattenecker Johann | F91: Herr | G91: =IF(AND(D91='1'!$H$8,Teilnehmer_2018!H91>0),1,0) -> 0 | H91: 21 | K91: M-C | N91: johann.schratti@gmail.com
A92: 90 | B92: Schrenk | C92: Robert | D92: Schrenk Robert | E92: Ing. | F92: Herr | G92: =IF(AND(D92='1'!$H$8,Teilnehmer_2018!H92>0),1,0) -> 0 | H92: 54 | K92: UNIQA | N92: robert.schrenk@uniqa.at
A93: 91 | B93: Seifi | C93: Behdad | D93: Seifi Behdad | F93: Herr | G93: =IF(AND(D93='1'!$H$8,Teilnehmer_2018!H93>0),1,0) -> 0 | H93: 24 | K93: UNIQA | N93: behrooz.seifi@uniqa.at
A94: 92 | B94: Seifi | C94: Behnoud | D94: Seifi Behnoud | F94: Herr | G94: =IF(AND(D94='1'!$H$8,Teilnehmer_2018!H94>0),1,0) -> 0 | H94: 36 | K94: UNIQA | N94: behrooz.seifi@uniqa.at
A95: 93 | B95: Seifi | C95: Behrooz | D95: Seifi Behrooz | F95: Herr | G95: =IF(AND(D95='1'!$H$8,Teilnehmer_2018!H95>0),1,0) -> 0 | H95: 63 | K95: UNIQA | N95: behrooz.seifi@uniqa.at
A96: 94 | B96: Sen | C96: Serkan | D96: Sen Serkan | F96: Herr | G96: =IF(AND(D96='1'!$H$8,Teilnehmer_2018!H96>0),1,0) -> 0 | H96: 30 | K96: Xandi | N96: s.sen@mnf.at
A97: 95 | B97: Sirucek | C97: Gerhard | D97: Sirucek Gerhard | E97: Ing. | F97: Herr | G97: =IF(AND(D97='1'!$H$8,Teilnehmer_2018!H97>0),1,0) -> 0 | H97: 57 | K97: UNIQA | N97: gerhard.sirucek@uniqa.at
A98: 96 | B98: Skorsch | C98: Alexander | D98: =CONCATENATE(B98," ",C98) -> Skorsch Alexander | F98: Herr | G98: =IF(AND(D98='1'!$H$8,Teilnehmer_2018!H98>0),1,0) -> 0 | H98: 1 | K98: Energy | N98: skorsch.alex@hotmail.com
A99: 97 | B99: Soysal | C99: Asim | D99: Soysal Asim | F99: Herr | G99: =IF(AND(D99='1'!$H$8,Teilnehmer_2018!H99>0),1,0) -> 0 | H99: 53 | K99: Michi | N99: asim@soysal.de
A100: 98 | B100: Spandl | C100: Christian | D100: Spandl Christian | F100: Herr | G100: =IF(AND(D100='1'!$H$8,Teilnehmer_2018!H100>0),1,0) -> 0 | H100: 1 | K100: Xandi | N100: christian.spandl@bawagpsk.com
A101: 99 | B101: Staribacher | C101: Michael | D101: Staribacher Michael | F101: Herr | G101: =IF(AND(D101='1'!$H$8,Teilnehmer_2018!H101>0),1,0) -> 0 | H101: 43 | K101: Xandi | N101: stari@gmx.at
A102: 100 | B102: Stockinger | C102: Harald | D102: Stockinger Harald | E102: Dr. | F102: Herr | G102: =IF(AND(D102='1'!$H$8,Teilnehmer_2018!H102>0),1,0) -> 0 | H102: 49 | K102: Michi | N102: harald.stockinger@kabsi.at
A103: 101 | B103: Stockinger | C103: Herwig | D103: Stockinger Herwig | F103: Herr | G103: =IF(AND(D103='1'!$H$8,Teilnehmer_2018!H103>0),1,0) -> 0 | H103: 18 | K103: Michi | N103: herwig.stockinger@kabsi.at
A104: 102 | B104: Stockinger | C104: Markus | D104: Stockinger Markus | F104: Herr | G104: =IF(AND(D104='1'!$H$8,Teilnehmer_2018!H104>0),1,0) -> 0 | H104: 1 | K104: Michi | N104: markus.stockinger@kabsi.at
A105: 103 | B105: Stockinger | C105: Michael | D105: Stockinger Michael | E105: Mag. | F105: Herr | G105: =IF(AND(D105='1'!$H$8,Teilnehmer_2018!H105>0),1,0) -> 0 | H105: 47 | K105: Michi | N105: michael_stockinger@yahoo.de
A106: 104 | B106: Struhacek | C106: Raimund | D106: Struhacek Raimund | F106: Herr | G106: =IF(AND(D106='1'!$H$8,Teilnehmer_2018!H106>0),1,0) -> 0 | H106: 35 | K106: Energy | N106: R.Struhacek@energy.at
A107: 105 | B107: Szoka | C107: Martin | D107: Szoka Martin | E107: ? | F107: Herr | G107: =IF(AND(D107='1'!$H$8,Teilnehmer_2018!H107>0),1,0) -> 0 | H107: 47 | K107: Xandi | N107: martin.szoka@justiz.gv.at
A108: 106 | B108: Tang | C108: Christian | D108: Tang Christian | F108: Herr | G108: =IF(AND(D108='1'!$H$8,Teilnehmer_2018!H108>0),1,0) -> 0 | H108: 38 | K108: Energy | N108: c.tang@energy.at
A109: 107 | B109: Tröster | C109: Christian | D109: Tröster Christian | F109: Herr | G109: =IF(AND(D109='1'!$H$8,Teilnehmer_2018!H109>0),1,0) -> 0 | H109: 59 | K109: UNIQA | N109: christiantroester01@yahoo.de
A110: 108 | B110: Unterassinger | C110: Mario | D110: Unterassinger Mario | F110: Herr | G110: =IF(AND(D110='1'!$H$8,Teilnehmer_2018!H110>0),1,0) -> 0 | H110: 1 | K110: Gerhard | L110: UNIQA | N110: mario.unterassinger@uniqa.at
A111: 109 | B111: Urbanek | C111: Georg | D111: Urbanek Georg | F111: Herr | G111: =IF(AND(D111='1'!$H$8,Teilnehmer_2018!H111>0),1,0) -> 0 | H111: 1 | K111: Gerhard | L111: Michi | N111: georg.urbanek@gmx.at
A112: 110 | B112: Varadin | C112: Boris | D112: Varadin Boris | F112: Herr | G112: =IF(AND(D112='1'!$H$8,Teilnehmer_2018!H112>0),1,0) -> 0 | H112: 1 | K112: Family | N112: dejana.varadin@echo.at
A113: 111 | B113: Varadin | C113: Dejana | D113: Varadin Dejana | F113: Frau | G113: =IF(AND(D113='1'!$H$8,Teilnehmer_2018!H113>0),1,0) -> 0 | H113: 34 | K113: Family | N113: dejana.varadin@echo.at
A114: 112 | B114: Varadin | C114: Mario | D114: Varadin Mario | F114: Herr | G114: =IF(AND(D114='1'!$H$8,Teilnehmer_2018!H114>0),1,0) -> 0 | H114: 1 | K114: Family | N114: mario.varadin@uniqa.at
A115: 113 | B115: Wagner | C115: Alexander | D115: Wagner Alexander | F115: Herr | G115: =IF(AND(D115='1'!$H$8,Teilnehmer_2018!H115>0),1,0) -> 0 | H115: 41 | K115: Family | L115: Energy | M115: Xandi | N115: alexander@wagner-cup.eu
A116: 114 | B116: Wagner | C116: Clemens | D116: Wagner Clemens | E116: Mag. | F116: Herr | G116: =IF(AND(D116='1'!$H$8,Teilnehmer_2018!H116>0),1,0) -> 0 | H116: 34 | K116: Family | N116: wagner.clemens@gmx.at
A117: 115 | B117: Wagner | C117: Gerhard | D117: =CONCATENATE(B117," ",C117) -> Wagner Gerhard | E117: Dr. | F117: Herr | G117: =IF(AND(D117='1'!$H$8,Teilnehmer_2018!H117>0),1,0) -> 0 | H117: 63 | K117: Family | L117: UNIQA | M117: Gerhard | N117: gerhard@wagner-cup.eu
A118: 116 | B118: Wagner | C118: Marie-Catherine | D118: Wagner Marie-Catherine | E118: Mag. | F118: Frau | G118: =IF(AND(D118='1'!$H$8,Teilnehmer_2018!H118>0),1,0) -> 0 | H118: 30 | K118: Family | N118: mariecatherinewagner@hotmail.com
A119: 117 | B119: Wagner | C119: Michael | D119: Wagner Michael | E119: Dr. | F119: Herr | G119: =IF(AND(D119='1'!$H$8,Teilnehmer_2018!H119>0),1,0) -> 0 | H119: 52 | K119: Family | N119: wagner@notar1190.at
A120: 118 | B120: Wagner | C120: Olivia | D120: Wagner Olivia | F120: Frau | G120: =IF(AND(D120='1'!$H$8,Teilnehmer_2018!H120>0),1,0) -> 0 | H120: 3 | K120: Family | N120: clemens.wagner1@wu.ac.at
A121: 119 | B121: Wagner | C121: Susi | D121: Wagner Susi | E121: Dr. | F121: Frau | G121: =IF(AND(D121='1'!$H$8,Teilnehmer_2018!H121>0),1,0) -> 0 | H121: 66 | K121: Family | N121: susanne.wagner@gmx.at
A122: 120 | B122: Weigl | C122: Marcel | D122: Weigl Marcel | F122: Herr | G122: =IF(AND(D122='1'!$H$8,Teilnehmer_2018!H122>0),1,0) -> 0 | H122: 1 | K122: Xandi | N122: weigl@racketlon.at
A123: 121 | B123: Weinhappl | C123: Lukas | D123: Weinhappl Lukas | F123: Herr | G123: =IF(AND(D123='1'!$H$8,Teilnehmer_2018!H123>0),1,0) -> 0 | H123: 1 | K123: Energy | N123: luweinhappl@icloud.com
A124: 122 | B124: Weinhappl | C124: Martin | D124: Weinhappl Martin | F124: Herr | G124: =IF(AND(D124='1'!$H$8,Teilnehmer_2018!H124>0),1,0) -> 0 | H124: 1 | K124: Energy | N124: martin.weinhappl@icloud.com
A125: 123 | B125: Weinhappl | C125: Paul | D125: Weinhappl Paul | F125: Herr | G125: =IF(AND(D125='1'!$H$8,Teilnehmer_2018!H125>0),1,0) -> 0 | H125: 1 | K125: Energy | N125: paulweinhappl@icloud.com
A126: 124 | B126: Weinhappl | C126: Petra | D126: Weinhappl Petra | F126: Frau | G126: =IF(AND(D126='1'!$H$8,Teilnehmer_2018!H126>0),1,0) -> 0 | H126: 48 | K126: Energy | N126: p.weinhappl@energy.at
A127: 125 | B127: Wertheim | C127: Daniel | D127: Wertheim Daniel | F127: Herr | G127: =IF(AND(D127='1'!$H$8,Teilnehmer_2018!H127>0),1,0) -> 0 | H127: 1 | K127: Energy | N127: D.Wertheim@energy.at
A128: 126 | B128: Zavarsky | C128: Clemens | D128: Zavarsky Clemens | F128: Herr | G128: =IF(AND(D128='1'!$H$8,Teilnehmer_2018!H128>0),1,0) -> 0 | H128: 1 | K128: Clemens | L128: Krone | N128: clemens.zavarsky@kronenzeitung.at
A129: 127 | B129: Zechner | C129: Matthias | D129: Zechner Matthias | F129: Herr | G129: =IF(AND(D129='1'!$H$8,Teilnehmer_2018!H129>0),1,0) -> 0 | H129: 1 | K129: UNIQA | N129: matthias.zechner@uniqa.at
A130: 128 | B130: Egger | C130: Andy | D130: =CONCATENATE(B130," ",C130) -> Egger Andy | F130: Herr | G130: =IF(AND(D130='1'!$H$8,Teilnehmer_2018!H130>0),1,0) -> 0 | H130: 1 | K130: Family
A131: 129 | B131: Egger | C131: Andrés | D131: Egger Andrés | F131: Herr | G131: =IF(AND(D131='1'!$H$8,Teilnehmer_2018!H131>0),1,0) -> 0 | H131: 1 | K131: Family
A132: 130 | B132: Tolic | C132: Mihael | D132: Tolic Mihael | F132: Herr | G132: =IF(AND(D132='1'!$H$8,Teilnehmer_2018!H132>0),1,0) -> 0 | H132: 1 | K132: Energy
A133: 131 | B133: Tippl | C133: Michael | D133: Tippl Michael | F133: Herr | G133: =IF(AND(D133='1'!$H$8,Teilnehmer_2018!H133>0),1,0) -> 0 | H133: 1 | K133: Xandi | N133: m.tippl@radiomax.at
A134: 132 | B134: Wüttrich | C134: Philipp | D134: Wüttrich Philipp | F134: Herr | G134: =IF(AND(D134='1'!$H$8,Teilnehmer_2018!H134>0),1,0) -> 0 | H134: 1 | K134: Clemens
A135: 133 | B135: Wagner | C135: Emilie | D135: Wagner Emilie | F135: Frau | G135: =IF(AND(D135='1'!$H$8,Teilnehmer_2018!H135>0),1,0) -> 0 | H135: 2 | K135: Family
A136: 134 | B136: Wagner | C136: Victoria | D136: Wagner Victoria | F136: Frau | G136: =IF(AND(D136='1'!$H$8,Teilnehmer_2018!H136>0),1,0) -> 0 | H136: 0 | K136: Family
A137: 135 | B137: Hochreiter-Wagner | C137: Liliane | D137: Hochreiter-Wagner Liliane | F137: Frau | G137: =IF(AND(D137='1'!$H$8,Teilnehmer_2018!H137>0),1,0) -> 0 | H137: 1 | K137: Family

Sheet 0

Sheet 1
B2: Herzlich willkommen beim Wagner-Cup 2020
B4: Bevor's losgeht, brauchen wir noch ein paar Infos:
B6: Vorname | E6: =LEN(C6) -> 0 | F6: =IF(E6=0,"Bitte ausfüllen","") -> Bitte ausfüllen | G6: =IF(F6="",0,1) -> 1 | H6: =PROPER(C6) -> 
B7: Nachname | E7: =LEN(C7) -> 0 | F7: =IF(E7=0,"Bitte ausfüllen","") -> Bitte ausfüllen | G7: =IF(F7="",0,1) -> 1 | H7: =PROPER(C7) -> 
B8: E-Mail | C8: =IF(I8=1,VLOOKUP(H8,Teilnehmer_2018!D:N,11,0),"") ->  | E8: =LEN(C8) -> 0 | F8: =IF(E8=0,"Bitte ausfüllen","") -> Bitte ausfüllen | G8: =IF(F8="",0,1) -> 1 | H8: =CONCATENATE(H7," ",H6) ->  | I8: =COUNTIF(Teilnehmer_2018!D:D,H8) -> 0
B9: Alter | C9: =IF(I8=1,VLOOKUP(H8,Teilnehmer_2018!D:N,5,0),"") ->  | E9: =LEN(C9) -> 0 | F9: =IF(C9="","Bitte verraten Sie uns Ihr Alter",IF(C9<6,"Eltern haften für ihre Kinder",IF(AND(C9>99,C9<125),"In Ihrem Alter sollten Sie weniger Aufregendes machen",IF(C9>124,"Seeeehhhhr witzig!","")))) -> Bitte verraten Sie uns Ihr Alter | G9: =IF(F9="",0,1) -> 1
B10: Mein Statement zur EM, zum Wagner-Cup, zur Weltlage, zum Fernsehprogramm, oder was mich sonst gerade bewegt | E10: =LEN(C10) -> 0 | F10: =IF(E10=0,"Was ganz einfach einmal gesagt werden muss...",IF(E10<4,"Mehr haben Sie nicht zu sagen?","")) -> Was ganz einfach einmal gesagt werden muss... | G10: =IF(F10="",0,1) -> 1
G11: =SUM(G6:G10) -> 5
C14: Bitte füllen Sie die Felder korrekt aus. Danach öffnet sich der Link zur nächsten Seite. Nachträgliche Korrekturen sind nicht mehr möglich.
C16: Ihre Angaben werden samt Ihren Tipps streng vertraulich auf unserer Homepage veröffentlicht

Sheet 2
B2: Herzlich willkommen beim Wagner-Cup 2020
B4: Und noch etwas:
B5: Das Teilnehmerfeld des Wagner-Cups setzt sich aus verschiedensten Gruppen zusammen. Freunde und Arbeitskollegen der diversen Mitglieder des Wagner-Clans ergeben eine bunte Mischung unterschiedlichster Charaktere aus allen Altersschichten beiderlei Geschlechts.
B6: Beim Wagner-Cup geht es bekanntlich um viel mehr, als nur den Geldeinsatz. Wer hier teilnimmt, setzt seine Reputation als Fußball-FachmannIn auf’s Spiel!!!
B7: Damit sich jeder mit seinen unmittelbaren Gegnern messen kann, werden wir neben der Gesamtauswertung (in der es um den Pott geht), Gruppen zusammenfassen. Kriterien für die Gruppeneinteilung sind: • Bekanntschaft mit einem Mitglied der Familie Wagner (z.B. Friends of Gerhard oder Friends of Michi) • Arbeitsplatz • Geschlecht • Zuag‘raste • ... In diesem Zusammenhang zwingt uns die Abhängigkeit von einzelnen ehrenamtlich tätigen Co-Organisatoren zu folgender Klarstellung: Die Verwaltung und Auswertung dieser Gruppen erfordert vor allem bei der laufenden Aktualisierung der Homepage einigen Aufwand. Da unser Web-Master auch diesmal nicht überredet werden konnte, sich für die Dauer der EM Urlaub zu nehmen, ersuchen wir schon jetzt um Verständnis, dass wir Sonderwünsche nicht berücksichtigen können.
B8: Kriterien für die Gruppeneinteilung sind z.B.:
B9: • Bekanntschaft mit einem Mitglied der Familie Wagner (z.B. Friends of Gerhard oder Friends of Michi) • Arbeitsplatz • Geschlecht • Zuag‘raste • …
B10: In diesem Zusammenhang zwingt uns die Abhängigkeit von einzelnen ehrenamtlich tätigen Co-Organisatoren zu folgender Klarstellung: Die Verwaltung und Auswertung dieser Gruppen erfordert vor allem bei der laufenden Aktualisierung der Homepage einigen Aufwand. Da unser Web-Master auch diesmal nicht überredet werden konnte, sich für die Dauer der EM Urlaub zu nehmen, ersuchen wir schon jetzt um Verständnis, dass wir Sonderwünsche nicht berücksichtigen können.

Sheet 3
B2: Herzlich willkommen beim Wagner-Cup 2020
B4: Zum Schluss noch eine wichtige Bitte
B6: Wagner-Cup-Compliance
B7: In Zeiten von Twitbook, LinkedSpace, MyFaceTube und sonstigen "sozialen" Datensammlungs- und Neuigkeitenverbreitungssystemen ist es nicht nur verlockend, sondern auch verdammt einfach, unser kleines, feines Spielchen einem größeren Publikumskreis bekannt zu machen.
B8: Das ist aber nicht unser Ziel. Der Wagner-Cup soll überschaubar bleiben und vor allem Spass machen. Wir wollen uns weder zu Datenbankspezialisten weiterbilden, noch um eine Glücksspiel-Konzession bewerben. Wir sehen uns als Gastgeber einer virtuellen Party – und nicht als Organisatoren eines Flashmobs.
B9: Aus diesem Grund haben wir auch diesmal auf TV- und Radio-Spots sowie Zeitungsinserate verzichtet.
B10: Und deshalb steht auch in den Spielregeln, dass nur unsere Freunde und Bekannten teilnahme- berechtigt sind.
B11: Daher an dieser Stelle der dringende Appell:
B12: - Keine Tweets
B13: - Keine Facebook-Einladungen
B14: - Kein Viral Marketing
B15: - Keine Buschtrommeln
B16: - Und auch keine Einladungen an Fremde ohne vorherige Rücksprache mit uns
B17: Danke für Euer Verständnis!

Sheet 4

Sheet Read_Me
B7: 1 | C7: Tipp-Formular
C8: Das Tipp-Formular muss unbedingt vollständig ausgefüllt und mit dem OK-Button bestätigt werden - sonst wird's nichts mit der Teilnahme am Wagner-Cup.
C9: Solange der OK-Button nicht gedrückt wurde, können die Tipps zwischengespeichert werden bzw. jederzeit verändert werden
C10: Mit dem OK-Button werden die Tipps "fixiert", d.h. danach ist eine Änderung der Tipps nicht mehr möglich. Es bleibt dann nur mehr die Möglichkeit, das Formular nochmals von der Homepage herunterzuladen und von vorne zu beginnen.
B12: 2 | C12: Punktesystem
C13: Das Punktesystem bleibt im Wesentlichen unverändert. Lediglich die Bonuspunkte welche für erratene Überraschungen vergeben werden, wurden etwas angepasst. Details sind in den AGB und auf der Website nachzulesen. Grundsätzlich wird es auch weiterhin extrem wichtig sein, den Europameister zu erraten, um den Wagner-Cup zu gewinnen. Falls aber zB. jemand als einziger errät, dass Finnland im Finale steht, kann er sich damit in der Rangliste auch dann weit nach vorne katapultieren, wenn seine sonstigen Tipps wenig treffsicher sind.
B15: 3 | C15: Quick-Tipp
C16: Für besonders Bequeme (oder Ahnungslose) gibt es wieder die Möglichkeit, mit einem einzigen Click den gesamten EM-Verlauf zu tippen. Man kann 10,- Euro aber auch sinnvoller verwenden...
B18: 4 | C18: Einsenden
C19: Wenn Sie Ihre Tipps fertig und mit "OK" bestätigt haben, speichern Sie das ganze bitte unter Ihrem Namen. Die Dateiendung vergibt Excel automatisch.
C20: Eingabe Nachname-Vorname wird gespeichert als Nachname-Vorname.xlsm
C21: und senden es an eine der folgenden Adressen:
C22: gerhard@wagner-cup.eu
C23: alexander@wagner-cup.eu
C24: clemens@wagner-cup.eu
B26: 5 | C26: Wetteinsatz
C27: Der Einsatz beträgt EUR 10,-- und ist vor Beginn der EM entweder einem der Organisatoren (Gerhard, Alexander, Clemens) in bar zu übergeben oder auf folgendes Konto zu überweisen:
C28: Konto-Nr. 377-14848 bei Erste Bank (BLZ 20111) lautend auf Dr.Gerhard Wagner
C29: IBAN: AT262011100037714848 BIC: GIBAATWWXXX
B31: 6 | C31: Auswertung
C32: Den aktuellen Punkte-Stand (und noch viele andere interessante Infos rund um den Wagner-Cup) finden Sie auf unserer Homepage.

Sheet AGB
B5: EM-Tippspiel 2020 (Wagner-Cup 2020)
B6: Spielregeln
B8: Allgemeines
B10: ● | C10: Es werden Tipps für alle 51 Spiele vor Beginn der Europameisterschaft abgegeben.
B11: ● | C11: Es ist für jedes Spiel das Ergebnis nach 90 bzw. 120 Minuten zu tippen. Erfordert der/die abgegebene(n) Tipp(s) ein Elfmeter-Schießen, erfolgt die Aufforderung zur Abgabe eines Zusatz-Tipps, welche der beiden Mannschaften das Elfmeter-Schießen gewinnt. Dieser Tipp ist durch Eingabe von 1 (für Mannschaft 1) oder 2 (für Mannschaft 2) im entsprechenden Feld abzugeben.
B12: ● | C12: Der Aufbau entspricht dem EM-Reglement: aus den Tipps für die Gruppenspiele ergeben sich die jeweiligen Gruppen-tabellen und somit auch die 1/8-Final-Spiele, sowie in weiterer Folge das Viertelfinale, das Halbfinale und das Finale. In sich unlogische und/oder unmögliche Kombinationen sind ausgeschlossen.
B13: ● | C13: Das Tipp-Formular ist vollständig auszufüllen. Mit Betätigen des OK-Buttons am Ende des Tipp-Formulars werden die Tipps in einem eigenen Formular fixiert (Druckversion). Es gelten ausschließlich diese fixierten Tipps. Nachträglich im Tipp-Formular vorgenommene Änderungen bleiben unberücksichtigt!
B14: ● | C14: Speichern Sie bitte anschließend Ihre Tipps unter Ihrem Namen ( familienname-vorname.xls ) und senden Sie es an eine der folgenden Adressen:
D15: alexander@wagner-cup.eu clemens@wagner-cup.eu gerhard@wagner-cup.eu
B16: ● | C16: Annahmeschluß ist der 11. Juni 2021, 18:00 Uhr MESZ.
B17: ● | C17: Der Rechtsweg ist ausgeschlossen.
B20: Teilnahmeberechtigung / Wetteinsatz
B22: ● | C22: Der Wetteinsatz pro vollständig abgegebenem Tipp beträgt € 10.- und ist mit der Abgabe des Tipps (= Zusendung per Mail) fällig.
B23: ● | C23: Der gesamte Wetteinsatz aller Teilnehmer gelangt ohne Abzüge in die Gewinn-Verteilung.
B24: ● | C24: Der Wetteinsatz kann in bar einem der Organisatoren (Alexander, Clemens oder Gerhard) übergeben werden, oder auf folgendes Konto überwiesen werden:
C26: Dr.Gerhard Wagner IBAN: AT262011100037714848 BIC: GIBAATWWXXX
B27: ● | C27: Teilnahmeberechtigt ist jede natürliche Person, die den Wetteinsatz entrichtet.
B28: ● | C28: Pro Person ist nur ein Tipp zulässig.
B31: Auswertung
B33: ● | C33: Die Auswertung erfolgt nach Beendigung der Europameisterschaft nach einem festgelegten Punkte-System (siehe unten). De
C34: Zwischenstände werden regelmäßig auf der Homepage des Wagner-Cups veröffentlicht.
B37: Gewinnverteilung
B39: ● | C39: Bei bis zu 50 Teilnehmern:
C40: ● | D40: Der Teilnehmer mir der dritthöchsten Punktezahl erhält 20 Prozent des gesamten Wetteinsatzes.
C41: ● | D41: Der Teilnehmer mir der zweithöchsten Punktezahl erhält 30 Prozent des gesamten Wetteinsatzes.
C42: ● | D42: Der Teilnehmer mit der höchsten Punktezahl erhält 50 Prozent des gesamten Wetteinsatzes
B44: ● | C44: Bei 50 - 99 Teilnehmern:
C45: ● | D45: Der Teilnehmer mir der siebenthöchsten Punktezahl erhält 2 Prozent des gesamten Wetteinsatzes.
C46: ● | D46: Der Teilnehmer mir der sechsthöchsten Punktezahl erhält 3 Prozent des gesamten Wetteinsatzes.
C47: ● | D47: Der Teilnehmer mir der fünfthöchsten Punktezahl erhält 5 Prozent des gesamten Wetteinsatzes.
C48: ● | D48: Der Teilnehmer mir der vierthöchsten Punktezahl erhält 10 Prozent des gesamten Wetteinsatzes.
C49: ● | D49: Der Teilnehmer mir der dritthöchsten Punktezahl erhält 15 Prozent des gesamten Wetteinsatzes.
C50: ● | D50: Der Teilnehmer mir der zweithöchsten Punktezahl erhält 25 Prozent des gesamten Wetteinsatzes.
C51: ● | D51: Der Teilnehmer mit der höchsten Punktezahl erhält 40 Prozent des gesamten Wetteinsatzes
B53: ● | C53: Bei mehr als 100 Teilnehmern:
C54: ● | D54: Der Teilnehmer mir der zehnthöchsten Punktezahl erhält 1 Prozent des gesamten Wetteinsatzes.
C55: ● | D55: Der Teilnehmer mir der neunthöchsten Punktezahl erhält 2 Prozent des gesamten Wetteinsatzes.
C56: ● | D56: Der Teilnehmer mir der achthöchsten Punktezahl erhält 3 Prozent des gesamten Wetteinsatzes.
C57: ● | D57: Der Teilnehmer mir der siebenthöchsten Punktezahl erhält 4 Prozent des gesamten Wetteinsatzes.
C58: ● | D58: Der Teilnehmer mir der sechsthöchsten Punktezahl erhält 5 Prozent des gesamten Wetteinsatzes.
C59: ● | D59: Der Teilnehmer mir der fünfthöchsten Punktezahl erhält 7,5 Prozent des gesamten Wetteinsatzes.
C60: ● | D60: Der Teilnehmer mir der vierthöchsten Punktezahl erhält 10 Prozent des gesamten Wetteinsatzes.
C61: ● | D61: Der Teilnehmer mir der dritthöchsten Punktezahl erhält 12,5 Prozent des gesamten Wetteinsatzes.
C62: ● | D62: Der Teilnehmer mir der zweithöchsten Punktezahl erhält 20 Prozent des gesamten Wetteinsatzes.
C63: ● | D63: Der Teilnehmer mit der höchsten Punktezahl erhält 35 Prozent des gesamten Wetteinsatzes
B65: ● | C65: Bei Punktegleichheit mehrerer Teilnehmer in einem Rang werden die Gewinnquoten der betroffenen nachfolgenden Ränge
C66: zusammengerechnet und zu gleichen Teilen auf die Gewinner verteilt.
B69: Punkte-System
B71: ● | C71: Vorrunde:
C73: ○ | D73: Jeder richtige Sieg-Tipp (1/2/X) | H73: 4 | I73: Punkte
D74: + | E74: Bei richtiger Tordifferenz | G74: zusätzlich | H74: 2 | I74: Punkte
D75: + | E75: Bei exakt richtigem Ergebnis | G75: zusätzlich | H75: 2 | I75: Punkte
C77: ○ | D77: Jeder richtig getippte Tabellenplatz innerhalb der Gruppe | H77: 4 | I77: Punkte
B79: ● | C79: 1/8-Finale:
C81: ○ | D81: Jeder richtig erratene Aufsteiger ins 1/8-Finale | H81: 16 | I81: Punkte
C83: ○ | D83: Jede richtig getippte Match-Kombi | H83: 6 | I83: Punkte
D84: + | E84: An richtiger Stelle im Matchplan und in richtiger Reihenfolge | H84: 2 | I84: Punkte
D85: + | E85: Jeder richtige Sieg-Tipp (1/2/X) | G85: zusätzlich | H85: 8 | I85: Punkte
D86: + | E86: Bei richtiger Tordifferenz | G86: zusätzlich | H86: 4 | I86: Punkte
D87: + | E87: Bei exakt richtigem Ergebnis | G87: zusätzlich | H87: 4 | I87: Punkte
D88: Anmerkung: beide Teams des jeweiligen 1/8-Finalspiels müssen korrekt sein
C90: ○ | D90: Pro 1/8-Final-Platz wird ein Bonus-Punkte-Topf gebildet
D91: Dotierung des Bonus-Punkte-Topfs pro Wagner-Cup-Teilnehmer | H91: 2 | I91: Punkte
D92: Ausschüttung des Bonus-Punkte-Topfs:
D93: 1 - Als einziger Wagner-Cup-Teilnehmer mit dem richtigen 1/8-Finalisten: 35% des Topfes
D94: 2 - Nur 2 Wagner-Cup-Teilnehmer haben den richtigen 1/8-Finalisten: je 30% des Topfes
D95: 3 - Nur 3 Wagner-Cup-Teilnehmer haben den richtigen 1/8-Finalisten: je 25% des Topfes
D96: 4 - Nur 4 Wagner-Cup-Teilnehmer haben den richtigen 1/8-Finalisten: je 22.5% des Topfes
D97: 5 - Haben 5 oder mehr Wagner-Cup-Teilnehmer den richtigen 1/8-Finalisten, so wird
D98: der Bonuspunktetopf zu gleichen Teilen (kfm. gerundet) auf jene Wagner-Cup-Teilnehmer
D99: verteilt, die die jeweilige Mannschaft im 1/8-Finale erwartet haben
E100: Beispiel: | F100: Nehmen 100 Freunde am Wagner-Cup teil, gibt es für jeden 1/8-Finalisten
F101: einen Bonus-Punkte-Topf, der mit 200 Punkten gefüllt ist.
F102: Kommt zB Finnland ins 1/8-Finale, so teilen sich alle jene diesen Topf, die
F103: Finnland ins 1/8-Finale getippt haben. Sind das zB 25 Leute, bekommt jeder
F104: 8 Bonus-Punkte gutgeschrieben.
B106: ● | C106: 1/4-Finale:
C108: ○ | D108: Jeder richtig erratene Aufsteiger ins 1/4-Finale | H108: 32 | I108: Punkte
C110: ○ | D110: Jede richtig getippte Match-Kombi | H110: 12 | I110: Punkte
D111: + | E111: An richtiger Stelle im Matchplan und in richtiger Reihenfolge | H111: 4 | I111: Punkte
D112: + | E112: Jeder richtige Sieg-Tipp (1/2/X) | G112: zusätzlich | H112: 12 | I112: Punkte
D113: + | E113: Bei richtiger Tordifferenz | G113: zusätzlich | H113: 6 | I113: Punkte
D114: + | E114: Bei exakt richtigem Ergebnis | G114: zusätzlich | H114: 6 | I114: Punkte
D115: Anmerkung: beide Teams des jeweiligen 1/4-Finalspiels müssen korrekt sein
C117: ○ | D117: Pro 1/4-Final-Platz wird ein Bonus-Punkte-Topf gebildet
D118: Dotierung des Bonus-Punkte-Topfs pro Wagner-Cup-Teilnehmer | H118: 3 | I118: Punkte
D119: Ausschüttung des Bonus-Punkte-Topfs:
D120: 1 - Als einziger Wagner-Cup-Teilnehmer mit dem richtigen 1/4-Finalisten: 35% des Topfes
D121: 2 - Nur 2 Wagner-Cup-Teilnehmer haben den richtigen 1/4-Finalisten: je 30% des Topfes
D122: 3 - Nur 3 Wagner-Cup-Teilnehmer haben den richtigen 1/4-Finalisten: je 25% des Topfes
D123: 4 - Nur 4 Wagner-Cup-Teilnehmer haben den richtigen 1/4-Finalisten: je 22.5% des Topfes
D124: 5 - Haben 5 oder mehr Wagner-Cup-Teilnehmer den richtigen 1/4-Finalisten, so wird
D125: der Bonuspunktetopf zu gleichen Teilen (kfm. gerundet) auf jene Wagner-Cup-Teilnehmer
D126: verteilt, die die jeweilige Mannschaft im 1/4-Finale erwartet haben
E127: Beispiel: | F127: Nehmen 100 Freunde am Wagner-Cup teil, gibt es für jeden 1/4-Finalisten
F128: einen Bonus-Punkte-Topf, der mit 300 Punkten gefüllt ist.
F129: Kommt zB Finnland ins 1/4-Finale, so teilen sich alle jene diesen Topf, die
F130: Finnland ins 1/4-Finale getippt haben. Sind das zB 10 Leute, bekommt jeder
F131: 30 Bonus-Punkte gutgeschrieben.
B133: ● | C133: 1/2-Finale
C135: ○ | D135: Jeder richtig erratene Aufsteiger ins 1/2-Finale | H135: 48 | I135: Punkte
C137: ○ | D137: Jede richtig getippte Match-Kombi | H137: 24 | I137: Punkte
D138: + | E138: An richtiger Stelle im Matchplan und in richtiger Reihenfolge | H138: 8 | I138: Punkte
D139: + | E139: Jeder richtige Sieg-Tipp (1/2/X) | G139: zusätzlich | H139: 16 | I139: Punkte
D140: + | E140: Bei richtiger Tordifferenz | G140: zusätzlich | H140: 8 | I140: Punkte
D141: + | E141: Bei exakt richtigem Ergebnis | G141: zusätzlich | H141: 8 | I141: Punkte
D142: Anmerkung: beide Teams des jeweiligen 1/2-Finalspiels müssen korrekt sein
C144: ○ | D144: Pro 1/2-Final-Platz wird ein Bonus-Punkte-Topf gebildet
D145: Dotierung des Bonus-Punkte-Topfs pro Wagner-Cup-Teilnehmer | H145: 4 | I145: Punkte
D146: Ausschüttung des Bonus-Punkte-Topfs:
D147: 1 - Als einziger Wagner-Cup-Teilnehmer mit dem richtigen 1/2-Finalisten: 35% des Topfes
D148: 2 - Nur 2 Wagner-Cup-Teilnehmer haben den richtigen 1/2-Finalisten: je 30% des Topfes
D149: 3 - Nur 3 Wagner-Cup-Teilnehmer haben den richtigen 1/2-Finalisten: je 25% des Topfes
D150: 4 - Nur 4 Wagner-Cup-Teilnehmer haben den richtigen 1/2-Finalisten: je 22.5% des Topfes
D151: 5 - Haben 5 oder mehr Wagner-Cup-Teilnehmer den richtigen 1/2-Finalisten, so wird
D152: der Bonuspunktetopf zu gleichen Teilen (kfm. gerundet) auf jene Wagner-Cup-Teilnehmer
D153: verteilt, die die jeweilige Mannschaft im 1/2-Finale erwartet haben
E154: Beispiel: | F154: Nehmen 100 Freunde am Wagner-Cup teil, gibt es für jeden 1/2-Finalisten
F155: einen Bonus-Punkte-Topf, der mit 400 Punkten gefüllt ist.
F156: Kommt zB Finnland ins 1/2-Finale, so teilen sich alle jene diesen Topf, die
F157: Finnland ins 1/2-Finale getippt haben. Sind das zB 3 Leute, bekommt jeder
F158: 100 Bonus-Punkte gutgeschrieben.
F159: Kommt zB Deutschland ins 1/2-Finale und haben das 75 Leute getippt,
F160: bekommt jeder 5 Bonus-Punkte gutgeschrieben.
B162: ● | C162: Finale
C164: ○ | D164: Jeder richtig erratene Finalist | H164: 96 | I164: Punkte
C166: ○ | D166: Jede richtig getippte Match-Kombi | H166: 48 | I166: Punkte
D167: + | E167: In richtiger Reihenfolge | H167: 16 | I167: Punkte
D168: + | E168: Jeder richtige Sieg-Tipp (1/2/X) | G168: zusätzlich | H168: 24 | I168: Punkte
D169: + | E169: Bei richtiger Tordifferenz | G169: zusätzlich | H169: 12 | I169: Punkte
D170: + | E170: Bei exakt richtigem Ergebnis | G170: zusätzlich | H170: 12 | I170: Punkte
D171: Anmerkung: beide Teams des Finalspiels müssen korrekt sein
C173: ○ | D173: Pro Final-Platz wird ein Bonus-Punkte-Topf gebildet
D174: Dotierung des Bonus-Punkte-Topfs pro Wagner-Cup-Teilnehmer | H174: 5 | I174: Punkte
D175: Ausschüttung des Bonus-Punkte-Topfs:
D176: 1 - Als einziger Wagner-Cup-Teilnehmer mit dem richtigen Finalisten: 35% des Topfes
D177: 2 - Nur 2 Wagner-Cup-Teilnehmer haben den richtigen Finalisten: je 30% des Topfes
D178: 3 - Nur 3 Wagner-Cup-Teilnehmer haben den richtigen Finalisten: je 25% des Topfes
D179: 4 - Nur 4 Wagner-Cup-Teilnehmer haben den richtigen Finalisten: je 22.5% des Topfes
D180: 5 - Haben 5 oder mehr Wagner-Cup-Teilnehmer den richtigen Finalisten, so wird
D181: der Bonuspunktetopf zu gleichen Teilen (kfm. gerundet) auf jene Wagner-Cup-Teilnehmer
D182: verteilt, die die jeweilige Mannschaft im Finale erwartet haben
E183: Beispiel: | F183: Nehmen 100 Freunde am Wagner-Cup teil, gibt es für jeden Finalisten
F184: einen Bonus-Punkte-Topf, der mit 500 Punkten gefüllt ist.
F185: Kommt zB Finnland ins Finale, so teilen sich alle jene diesen Topf, die
F186: Finnland ins Finale getippt haben. Ist das nur einer, bekommt er
F187: 175 Punkte gutgeschrieben.
F188: Kommt zB Spanien ins Finale und haben das 50 Leute getippt,
F189: bekommt jeder 10 Bonus-Punkte gutgeschrieben.
B191: ● | C191: Europameister
C193: ○ | D193: Der richtig getippten Europameister bringt | H193: 192 | I193: Punkte
C195: ○ | D195: Für den Europameister wird ein Bonus-Punkte-Topf gebildet
D196: Dotierung des Bonus-Punkte-Topfs pro Wagner-Cup-Teilnehmer | H196: 6 | I196: Punkte
D197: Ausschüttung des Bonus-Punkte-Topfs:
D198: 1 - Als einziger Wagner-Cup-Teilnehmer mit dem richtigen Finalisten: 35% des Topfes
D199: 2 - Nur 2 Wagner-Cup-Teilnehmer haben den richtigen Finalisten: je 30% des Topfes
D200: 3 - Nur 3 Wagner-Cup-Teilnehmer haben den richtigen Finalisten: je 25% des Topfes
D201: 4 - Nur 4 Wagner-Cup-Teilnehmer haben den richtigen Finalisten: je 22.5% des Topfes
D202: 5 - Haben 5 oder mehr Wagner-Cup-Teilnehmer den richtigen Finalisten, so wird
D203: der Bonuspunktetopf zu gleichen Teilen (kfm. gerundet) auf jene Wagner-Cup-Teilnehmer
D204: verteilt, die die jeweilige Mannschaft im Finale erwartet haben
E205: Beispiel: | F205: Nehmen 100 Freunde am Wagner-Cup teil, gibt es für jeden Finalisten
F206: einen Bonus-Punkte-Topf, der mit 600 Punkten gefüllt ist.
F207: Wird zB Finnland Europameister, so teilen sich alle jene diesen Topf, die
F208: Finnland als Europameister getippt haben. Ist das nur einer, bekommt er
F209: 210 Punkte gutgeschrieben.
F210: Wird zB Spanien Europameister und haben das 20 Leute getippt,
F211: bekommt jeder 30 Bonus-Punkte gutgeschrieben.

Sheet Tipp-Formular
CV1: Tipps für die Fair-Play-Wertung. Bitte VOLLSTÄNDIG ausfüllen - oder GAR NICHT!!!
C2: Gruppe A | Q2: =IF(OR(P7="ja",P8="ja"),"Bei diesen Ergebnissen entscheidet ein Penalty-Schießen über die endgültige Tabellen- platzierung. Tragen Sie Ihren Tipp im entsprechenden Kästchen ein (1 oder 2)","") ->  | T2: Gruppe A | AE2: =IF(AND(OR(AE6=1,AE7="X"),AE8<48),"J","N") -> N | AG2: =VLOOKUP(AE2,'Pulldown-Listen'!A$128:B$129,2,0) -> . | AI2: Achtel-Finale | CV2: Wenn Punkte, direkte Begegnungen, Tor-differenz und Anzahl der geschossenen Tore nicht reichen, um die Tabellen-platzierung in der Gruppe bzw. in der Tabelle der besten Gruppen-Dritten festzulegen, entscheidet als nächstes Kriterium das sogenannte Fair-Play-Verhalten während der EM. Dieses bestimmt sich nach der Anzahl der während der Gruppenspiele erhaltenen gelben und roten Karten. Jede gelbe Karte zählt dabei 1 Punkt, jede rote Karte 3 Punkte. Je mehr Punkte eine Mannschaft hat, desto schlechter ist ihr Fair-Play-Verhalten. Wenn auch in dieser Wertung Gleichstand zwischen zwei oder mehreren Teams besteht, entscheidet der Rang in der Schlussrangliste der European Qualifiers über die Reihung. Diese kann nebenan nachgelesen werden. => => => => | DA2: Gruppe A | DB2: Gelb =1 Punkt | DC2: Rot =3 Punkte | DD2: Summe | DE2: Rang in Gruppe | DF2: Rang alle Teams | DM2: Schlussrangliste der European Qualifiers | DQ2: Rangliste Fair-Play
B3: 1 | C3: =VLOOKUP($B3,'Gen-Tab'!$B$3:$O$57,11,0) -> 2021-06-11 | D3: =VLOOKUP($B3,'Gen-Tab'!$B$3:$O$57,12,0) -> 21:00:00 | E3: =VLOOKUP($B3,'Gen-Tab'!$B$3:$O$57,7,0) -> Türkei | F3: =VLOOKUP($B3,'Gen-Tab'!$B$3:$O$57,8,0) -> Italien | G3: =(VLOOKUP(L3,'Pulldown-Listen'!$B$1:$F$49,3))*1 ->  | H3: : | I3: =(VLOOKUP(L3,'Pulldown-Listen'!$B$1:$F$49,5))*1 ->  | K3: =IF(L3=0,0,VLOOKUP(L3,'Pulldown-Listen'!$B$1:$G$49,6,0)) -> 0 | T3: 1 | U3: . | V3: =IF(OR(AND(P7="ja",Q7=""),AND(P8="ja",Q8="")),"Tipps fehlen",IF(T8=1,VLOOKUP($T3,'Gruppen-Tabellen'!$D$3:$AB$6,3,0),"Tipps fehlen")) -> Tipps fehlen | W3: =IF(OR(AND(P7="ja",Q7=""),AND(P8="ja",Q8="")),0,IF(T8=1,VLOOKUP(V3,'Gruppen-Tabellen'!$AI$3:$AJ$6,2,0),0)) -> 0 | X3: =IF(OR(AND(P7="ja",Q7=""),AND(P8="ja",Q8="")),0,IF(T8=1,VLOOKUP($T3,'Gruppen-Tabellen'!$D$3:$AB$6,4,0),0)) -> 0 | Y3: : | Z3: =IF(OR(AND(P7="ja",Q7=""),AND(P8="ja",Q8="")),0,IF(T8=1,VLOOKUP($T3,'Gruppen-Tabellen'!$D$3:$AB$6,5,0),0)) -> 0 | AA3: =X3-Z3 -> 0 | AB3: =IF(OR(AND(P7="ja",Q7=""),AND(P8="ja",Q8="")),0,IF(T8=1,VLOOKUP($T3,'Gruppen-Tabellen'!$D$3:$AB$6,7,0),0)) -> 0 | AC3: =IF(OR(AND(P7="ja",Q7=""),AND(P8="ja",Q8="")),"",IF(T8=1,VLOOKUP(V3,'Gruppen-Tabellen'!F$3:AG$81,28,0),"")) ->  | AD3: Reihung unter den | DA3: ='Gen-Tab'!S3 -> Türkei | DD3: =DB3*1+DC3*3 -> 0 | DE3: =RANK(DD3,DD$3:DD$6,0) -> 1 | DF3: =RANK(DD3,DD$3:DD$46,0) -> 1 | DG3: =DF3+(VLOOKUP(DA3,'Gen-Tab'!$S$3:$V$26,4,0)/1000) -> 1.011 | DH3: =RANK(DG3,DG$3:DG$46,0) -> 14 | DI3: =DA3 -> Türkei
B4: 2 | C4: =VLOOKUP($B4,'Gen-Tab'!$B$3:$O$57,11,0) -> 2021-06-12 | D4: =VLOOKUP($B4,'Gen-Tab'!$B$3:$O$57,12,0) -> 15:00:00 | E4: =VLOOKUP($B4,'Gen-Tab'!$B$3:$O$57,7,0) -> Wales | F4: =VLOOKUP($B4,'Gen-Tab'!$B$3:$O$57,8,0) -> Schweiz | G4: =(VLOOKUP(L4,'Pulldown-Listen'!$B$1:$F$49,3))*1 ->  | H4: : | I4: =(VLOOKUP(L4,'Pulldown-Listen'!$B$1:$F$49,5))*1 ->  | K4: =IF(L4=0,0,VLOOKUP(L4,'Pulldown-Listen'!$B$1:$G$49,6,0)) -> 0 | T4: 2 | U4: . | V4: =IF(OR(AND(P7="ja",Q7=""),AND(P8="ja",Q8="")),"Tipps fehlen",IF(T8=1,VLOOKUP($T4,'Gruppen-Tabellen'!$D$3:$AB$6,3,0),"Tipps fehlen")) -> Tipps fehlen | W4: =IF(OR(AND(P7="ja",Q7=""),AND(P8="ja",Q8="")),0,IF(T8=1,VLOOKUP(V4,'Gruppen-Tabellen'!$AI$3:$AJ$6,2,0),0)) -> 0 | X4: =IF(OR(AND(P7="ja",Q7=""),AND(P8="ja",Q8="")),0,IF(T8=1,VLOOKUP($T4,'Gruppen-Tabellen'!$D$3:$AB$6,4,0),0)) -> 0 | Y4: : | Z4: =IF(OR(AND(P7="ja",Q7=""),AND(P8="ja",Q8="")),0,IF(T8=1,VLOOKUP($T4,'Gruppen-Tabellen'!$D$3:$AB$6,5,0),0)) -> 0 | AA4: =X4-Z4 -> 0 | AB4: =IF(OR(AND(P7="ja",Q7=""),AND(P8="ja",Q8="")),0,IF(T8=1,VLOOKUP($T4,'Gruppen-Tabellen'!$D$3:$AB$6,7,0),0)) -> 0 | AC4: =IF(OR(AND(P7="ja",Q7=""),AND(P8="ja",Q8="")),"",IF(T8=1,VLOOKUP(V4,'Gruppen-Tabellen'!F$3:AG$81,28,0),"")) ->  | AD4: Dritt- Platzierten | AH4: 37 | AI4: =VLOOKUP($AH4,'Gen-Tab'!$B$3:$O$57,11,0) -> 2021-06-26 | AJ4: =VLOOKUP($AH4,'Gen-Tab'!$B$3:$O$57,12,0) -> 18:00:00 | AK4: =VLOOKUP(AH4,'Gen-Tab'!$B$3:$O$57,2,0) -> 2A | AL4: =IF(T50=6,VLOOKUP(AK4,'Gruppen-Tabellen'!$AH$3:$AI$90,2,0),"") ->  | AM4: =VLOOKUP(AH4,'Gen-Tab'!$B$3:$O$57,3,0) -> 2B | AN4: =IF(T50=6,VLOOKUP(AM4,'Gruppen-Tabellen'!$AH$3:$AI$90,2,0),"") ->  | AO4: =(VLOOKUP(AS4,'Pulldown-Listen'!$B$1:$F$49,3))*1 ->  | AP4: : | AQ4: =(VLOOKUP(AS4,'Pulldown-Listen'!$B$1:$F$49,5))*1 ->  | AT4: =IF(AS4=0,0,VLOOKUP(AS4,'Pulldown-Listen'!$B$1:$G$49,6,0)) -> 0 | AV4: 1AF1 | AW4: =IF(AND(AZ4="ja",OR(AT4=1,AU4=1)),AL4,IF(AND(AZ4="ja",OR(AT4=2,AU4=2)),AN4,IF(AND(AZ4="nein",AT4=1),AL4,IF(AND(AZ4="nein",AT4=2),AN4,"")))) ->  | AX4: =VLOOKUP(AL4,'Gen-Tab'!$S$3:$T$26,2,0) ->  | AY4: =VLOOKUP(AN4,'Gen-Tab'!$S$3:$T$26,2,0) ->  | AZ4: =IF(AT4="X","ja","nein") -> nein | BA4: =IF(AT4=0,"",IF(AZ4="nein","",IF(AND(AZ4="ja",AU4>0),"","Elfmeterschießen tippen !"))) ->  | BB4: 2AF1 | BC4: =IF(AW4=AL4:AL4,AN4,AL4) ->  | DA4: ='Gen-Tab'!S4 -> Italien | DD4: =DB4*1+DC4*3 -> 0 | DE4: =RANK(DD4,DD$3:DD$6,0) -> 1 | DF4: =RANK(DD4,DD$3:DD$46,0) -> 1 | DG4: =DF4+(VLOOKUP(DA4,'Gen-Tab'!$S$3:$V$26,4,0)/1000) -> 1.023 | DH4: =RANK(DG4,DG$3:DG$46,0) -> 2 | DI4: =DA4 -> Italien | DM4: 1 | DN4: =VLOOKUP(DM4,'Gen-Tab'!$W$3:$Y$26,3,0) -> Belgien | DO4: 1 | DQ4: 1 | DR4: =IF($DJ$49<48,DN4,VLOOKUP(DQ4,$DH$3:$DI$60,2,0)) -> Belgien | DS4: 24
B5: 13 | C5: =VLOOKUP($B5,'Gen-Tab'!$B$3:$O$57,11,0) -> 2021-06-16 | D5: =VLOOKUP($B5,'Gen-Tab'!$B$3:$O$57,12,0) -> 18:00:00 | E5: =VLOOKUP($B5,'Gen-Tab'!$B$3:$O$57,7,0) -> Türkei | F5: =VLOOKUP($B5,'Gen-Tab'!$B$3:$O$57,8,0) -> Wales | G5: =(VLOOKUP(L5,'Pulldown-Listen'!$B$1:$F$49,3))*1 ->  | H5: : | I5: =(VLOOKUP(L5,'Pulldown-Listen'!$B$1:$F$49,5))*1 ->  | K5: =IF(L5=0,0,VLOOKUP(L5,'Pulldown-Listen'!$B$1:$G$49,6,0)) -> 0 | T5: 3 | U5: . | V5: =IF(OR(AND(P7="ja",Q7=""),AND(P8="ja",Q8="")),"Tipps fehlen",IF(T8=1,VLOOKUP($T5,'Gruppen-Tabellen'!$D$3:$AB$6,3,0),"Tipps fehlen")) -> Tipps fehlen | W5: =IF(OR(AND(P7="ja",Q7=""),AND(P8="ja",Q8="")),0,IF(T8=1,VLOOKUP(V5,'Gruppen-Tabellen'!$AI$3:$AJ$6,2,0),0)) -> 0 | X5: =IF(OR(AND(P7="ja",Q7=""),AND(P8="ja",Q8="")),0,IF(T8=1,VLOOKUP($T5,'Gruppen-Tabellen'!$D$3:$AB$6,4,0),0)) -> 0 | Y5: : | Z5: =IF(OR(AND(P7="ja",Q7=""),AND(P8="ja",Q8="")),0,IF(T8=1,VLOOKUP($T5,'Gruppen-Tabellen'!$D$3:$AB$6,5,0),0)) -> 0 | AA5: =X5-Z5 -> 0 | AB5: =IF(OR(AND(P7="ja",Q7=""),AND(P8="ja",Q8="")),0,IF(T8=1,VLOOKUP($T5,'Gruppen-Tabellen'!$D$3:$AB$6,7,0),0)) -> 0 | AC5: =IF(OR(AND(P7="ja",Q7=""),AND(P8="ja",Q8="")),"",IF(T8=1,VLOOKUP(V5,'Gruppen-Tabellen'!F$3:AG$81,28,0),"")) ->  | AD5: =IF(V5="Tipps fehlen","",VLOOKUP(V5,'Gruppen-Tabellen'!F$95:T$100,15,0)) ->  | DA5: ='Gen-Tab'!S5 -> Wales | DD5: =DB5*1+DC5*3 -> 0 | DE5: =RANK(DD5,DD$3:DD$6,0) -> 1 | DF5: =RANK(DD5,DD$3:DD$46,0) -> 1 | DG5: =DF5+(VLOOKUP(DA5,'Gen-Tab'!$S$3:$V$26,4,0)/1000) -> 1.006 | DH5: 19 | DI5: =DA5 -> Wales | DM5: 2 | DN5: =VLOOKUP(DM5,'Gen-Tab'!$W$3:$Y$26,3,0) -> Italien | DO5: 2 | DQ5: 2 | DR5: =IF($DJ$49<48,DN5,VLOOKUP(DQ5,$DH$3:$DI$60,2,0)) -> Italien | DS5: 23
B6: 14 | C6: =VLOOKUP($B6,'Gen-Tab'!$B$3:$O$57,11,0) -> 2021-06-16 | D6: =VLOOKUP($B6,'Gen-Tab'!$B$3:$O$57,12,0) -> 21:00:00 | E6: =VLOOKUP($B6,'Gen-Tab'!$B$3:$O$57,7,0) -> Italien | F6: =VLOOKUP($B6,'Gen-Tab'!$B$3:$O$57,8,0) -> Schweiz | G6: =(VLOOKUP(L6,'Pulldown-Listen'!$B$1:$F$49,3))*1 ->  | H6: : | I6: =(VLOOKUP(L6,'Pulldown-Listen'!$B$1:$F$49,5))*1 ->  | K6: =IF(L6=0,0,VLOOKUP(L6,'Pulldown-Listen'!$B$1:$G$49,6,0)) -> 0 | T6: 4 | U6: . | V6: =IF(OR(AND(P7="ja",Q7=""),AND(P8="ja",Q8="")),"Tipps fehlen",IF(T8=1,VLOOKUP($T6,'Gruppen-Tabellen'!$D$3:$AB$6,3,0),"Tipps fehlen")) -> Tipps fehlen | W6: =IF(OR(AND(P7="ja",Q7=""),AND(P8="ja",Q8="")),0,IF(T8=1,VLOOKUP(V6,'Gruppen-Tabellen'!$AI$3:$AJ$6,2,0),0)) -> 0 | X6: =IF(OR(AND(P7="ja",Q7=""),AND(P8="ja",Q8="")),0,IF(T8=1,VLOOKUP($T6,'Gruppen-Tabellen'!$D$3:$AB$6,4,0),0)) -> 0 | Y6: : | Z6: =IF(OR(AND(P7="ja",Q7=""),AND(P8="ja",Q8="")),0,IF(T8=1,VLOOKUP($T6,'Gruppen-Tabellen'!$D$3:$AB$6,5,0),0)) -> 0 | AA6: =X6-Z6 -> 0 | AB6: =IF(OR(AND(P7="ja",Q7=""),AND(P8="ja",Q8="")),0,IF(T8=1,VLOOKUP($T6,'Gruppen-Tabellen'!$D$3:$AB$6,7,0),0)) -> 0 | AC6: =IF(OR(AND(P7="ja",Q7=""),AND(P8="ja",Q8="")),"",IF(T8=1,VLOOKUP(V6,'Gruppen-Tabellen'!F$3:AG$81,28,0),"")) ->  | AE6: =IF(OR(U7="4)",U7="5)",U7="6)"),1,0) -> 0 | AH6: 38 | AI6: =VLOOKUP($AH6,'Gen-Tab'!$B$3:$O$57,11,0) -> 2021-06-26 | AJ6: =VLOOKUP($AH6,'Gen-Tab'!$B$3:$O$57,12,0) -> 21:00:00 | AK6: =VLOOKUP(AH6,'Gen-Tab'!$B$3:$O$57,2,0) -> 1A | AL6: =IF(T50=6,VLOOKUP(AK6,'Gruppen-Tabellen'!$AH$3:$AI$90,2,0),"") ->  | AM6: =VLOOKUP(AH6,'Gen-Tab'!$B$3:$O$57,3,0) -> 2C | AN6: =IF(T50=6,VLOOKUP(AM6,'Gruppen-Tabellen'!$AH$3:$AI$90,2,0),"") ->  | AO6: =(VLOOKUP(AS6,'Pulldown-Listen'!$B$1:$F$49,3))*1 ->  | AP6: : | AQ6: =(VLOOKUP(AS6,'Pulldown-Listen'!$B$1:$F$49,5))*1 ->  | AT6: =IF(AS6=0,0,VLOOKUP(AS6,'Pulldown-Listen'!$B$1:$G$49,6,0)) -> 0 | AV6: 1AF2 | AW6: =IF(AND(AZ6="ja",OR(AT6=1,AU6=1)),AL6,IF(AND(AZ6="ja",OR(AT6=2,AU6=2)),AN6,IF(AND(AZ6="nein",AT6=1),AL6,IF(AND(AZ6="nein",AT6=2),AN6,"")))) ->  | AX6: =VLOOKUP(AL6,'Gen-Tab'!$S$3:$T$26,2,0) ->  | AY6: =VLOOKUP(AN6,'Gen-Tab'!$S$3:$T$26,2,0) ->  | AZ6: =IF(AT6="X","ja","nein") -> nein | BA6: =IF(AT6=0,"",IF(AZ6="nein","",IF(AND(AZ6="ja",AU6>0),"","Elfmeterschießen tippen !"))) ->  | BB6: 2AF2 | BC6: =IF(AW6=AL6:AL6,AN6,AL6) ->  | DA6: ='Gen-Tab'!S6 -> Schweiz | DD6: =DB6*1+DC6*3 -> 0 | DE6: =RANK(DD6,DD$3:DD$6,0) -> 1 | DF6: =RANK(DD6,DD$3:DD$46,0) -> 1 | DG6: =DF6+(VLOOKUP(DA6,'Gen-Tab'!$S$3:$V$26,4,0)/1000) -> 1.016 | DH6: 9 | DI6: =DA6 -> Schweiz | DM6: 3 | DN6: =VLOOKUP(DM6,'Gen-Tab'!$W$3:$Y$26,3,0) -> England | DO6: 3 | DQ6: 3 | DR6: England | DS6: 22
B7: 25 | C7: =VLOOKUP($B7,'Gen-Tab'!$B$3:$O$57,11,0) -> 2021-06-20 | D7: =VLOOKUP($B7,'Gen-Tab'!$B$3:$O$57,12,0) -> 18:00:00 | E7: =VLOOKUP($B7,'Gen-Tab'!$B$3:$O$57,7,0) -> Schweiz | F7: =VLOOKUP($B7,'Gen-Tab'!$B$3:$O$57,8,0) -> Türkei | G7: =(VLOOKUP(L7,'Pulldown-Listen'!$B$1:$F$49,3))*1 ->  | H7: : | I7: =(VLOOKUP(L7,'Pulldown-Listen'!$B$1:$F$49,5))*1 ->  | K7: =IF(L7=0,0,VLOOKUP(L7,'Pulldown-Listen'!$B$1:$G$49,6,0)) -> 0 | P7: ='Sub-Tab_A'!P130 -> nein | U7: =IF(OR(AC3="1)",AC4="1)",AC5="1)",AC6="1)"),VLOOKUP("1)",'Pulldown-Listen'!A$56:C$61,2,0),IF(OR(AC3="2)",AC4="2)",AC5="2)",AC6="2)"),VLOOKUP("2)",'Pulldown-Listen'!A$56:C$61,2,0),IF(OR(AC3="3)",AC4="3)",AC5="3)",AC6="3)"),VLOOKUP("3)",'Pulldown-Listen'!A$56:C$61,2,0),IF(OR(AC3="4)",AC4="4)",AC5="4)",AC6="4)"),VLOOKUP("4)",'Pulldown-Listen'!A$56:C$61,2,0),IF(OR(AC3="5)",AC4="5)",AC5="5)",AC6="5)"),VLOOKUP("5)",'Pulldown-Listen'!A$56:C$61,2,0),IF(OR(AC3="6)",AC4="6)",AC5="6)",AC6="6)"),VLOOKUP("6)",'Pulldown-Listen'!A$56:C$61,2,0),"")))))) ->  | V7: =IF(U7="","",VLOOKUP(U7,'Pulldown-Listen'!A56:C61,3,0)) ->  | AE7: =VLOOKUP(V5,'Gruppen-Tabellen'!$F$95:$P$101,11,0) -> 0 | DJ7: =COUNTA(DB3:DC6) -> 0 | DM7: 4 | DN7: =VLOOKUP(DM7,'Gen-Tab'!$W$3:$Y$26,3,0) -> Deutschland | DO7: 4 | DQ7: 4 | DR7: Deutschland | DS7: 21
B8: 26 | C8: =VLOOKUP($B8,'Gen-Tab'!$B$3:$O$57,11,0) -> 2021-06-20 | D8: =VLOOKUP($B8,'Gen-Tab'!$B$3:$O$57,12,0) -> 18:00:00 | E8: =VLOOKUP($B8,'Gen-Tab'!$B$3:$O$57,7,0) -> Italien | F8: =VLOOKUP($B8,'Gen-Tab'!$B$3:$O$57,8,0) -> Wales | G8: =(VLOOKUP(L8,'Pulldown-Listen'!$B$1:$F$49,3))*1 ->  | H8: : | I8: =(VLOOKUP(L8,'Pulldown-Listen'!$B$1:$F$49,5))*1 ->  | K8: =IF(L8=0,0,VLOOKUP(L8,'Pulldown-Listen'!$B$1:$G$49,6,0)) -> 0 | P8: ='Sub-Tab_A'!P131 -> nein | T8: =IF('Gruppen-Tabellen'!AJ7=12,1,0) -> 0 | U8: =IF(SUM(W3:W6)=12,1,0) -> 0 | AE8: =$DJ$49 -> 0 | AH8: 39 | AI8: =VLOOKUP($AH8,'Gen-Tab'!$B$3:$O$57,11,0) -> 2021-06-27 | AJ8: =VLOOKUP($AH8,'Gen-Tab'!$B$3:$O$57,12,0) -> 18:00:00 | AK8: =VLOOKUP(AH8,'Gen-Tab'!$B$3:$O$57,2,0) -> 1C | AL8: =IF(T50=6,VLOOKUP(AK8,'Gruppen-Tabellen'!$AH$3:$AI$90,2,0),"") ->  | AM8: =VLOOKUP(AH8,'Gen-Tab'!$B$3:$O$57,3,0) -> 3D | AN8: =IF(T50=6,VLOOKUP(AM8,'Gruppen-Tabellen'!$AH$3:$AI$90,2,0),"") ->  | AO8: =(VLOOKUP(AS8,'Pulldown-Listen'!$B$1:$F$49,3))*1 ->  | AP8: : | AQ8: =(VLOOKUP(AS8,'Pulldown-Listen'!$B$1:$F$49,5))*1 ->  | AT8: =IF(AS8=0,0,VLOOKUP(AS8,'Pulldown-Listen'!$B$1:$G$49,6,0)) -> 0 | AV8: 1AF3 | AW8: =IF(AND(AZ8="ja",OR(AT8=1,AU8=1)),AL8,IF(AND(AZ8="ja",OR(AT8=2,AU8=2)),AN8,IF(AND(AZ8="nein",AT8=1),AL8,IF(AND(AZ8="nein",AT8=2),AN8,"")))) ->  | AX8: =VLOOKUP(AL8,'Gen-Tab'!$S$3:$T$26,2,0) ->  | AY8: =VLOOKUP(AN8,'Gen-Tab'!$S$3:$T$26,2,0) ->  | AZ8: =IF(AT8="X","ja","nein") -> nein | BA8: =IF(AT8=0,"",IF(AZ8="nein","",IF(AND(AZ8="ja",AU8>0),"","Elfmeterschießen tippen !"))) ->  | BB8: 2AF3 | BC8: =IF(AW8=AL8:AL8,AN8,AL8) ->  | DM8: 5 | DN8: =VLOOKUP(DM8,'Gen-Tab'!$W$3:$Y$26,3,0) -> Spanien | DO8: 5 | DQ8: 5 | DR8: Spanien | DS8: 20
DM9: 6 | DN9: =VLOOKUP(DM9,'Gen-Tab'!$W$3:$Y$26,3,0) -> Ukraine | DO9: 6 | DQ9: 6 | DR9: Ukraine | DS9: 19
C10: Gruppe B | Q10: =IF(OR(P15="ja",P16="ja"),"Bei diesen Ergebnissen entscheidet ein Penalty-Schießen über die endgültige Tabellen- platzierung. Tragen Sie Ihren Tipp im entsprechenden Kästchen ein (1 oder 2)",IF(OR(U15="4)",U15="5)",U15="6)"),"Bei diesen Ergebnissen entscheiden das Fair-Play-Verhalten während der Gruppenspiele (Anzahl der gelben und roten Karten) i.V.m. dem UEFA-Koeffizienten über die Tabellenplatzierung. Sie müssen also auch die Anzahl der gelben und roten Karten tippen.","")) ->  | T10: Gruppe B | AE10: =IF(AND(OR(AE14=1,AE15="X"),AE16<48),"J","N") -> N | AG10: =VLOOKUP(AE10,'Pulldown-Listen'!A$128:B$129,2,0) -> . | AH10: 40 | AI10: =VLOOKUP($AH10,'Gen-Tab'!$B$3:$O$57,11,0) -> 2021-06-27 | AJ10: =VLOOKUP($AH10,'Gen-Tab'!$B$3:$O$57,12,0) -> 21:00:00 | AK10: =VLOOKUP(AH10,'Gen-Tab'!$B$3:$O$57,2,0) -> 1B | AL10: =IF(T50=6,VLOOKUP(AK10,'Gruppen-Tabellen'!$AH$3:$AI$90,2,0),"") ->  | AM10: =VLOOKUP(AH10,'Gen-Tab'!$B$3:$O$57,3,0) -> 3E | AN10: =IF(T50=6,VLOOKUP(AM10,'Gruppen-Tabellen'!$AH$3:$AI$90,2,0),"") ->  | AO10: =(VLOOKUP(AS10,'Pulldown-Listen'!$B$1:$F$49,3))*1 ->  | AP10: : | AQ10: =(VLOOKUP(AS10,'Pulldown-Listen'!$B$1:$F$49,5))*1 ->  | AT10: =IF(AS10=0,0,VLOOKUP(AS10,'Pulldown-Listen'!$B$1:$G$49,6,0)) -> 0 | AV10: 1AF4 | AW10: =IF(AND(AZ10="ja",OR(AT10=1,AU10=1)),AL10,IF(AND(AZ10="ja",OR(AT10=2,AU10=2)),AN10,IF(AND(AZ10="nein",AT10=1),AL10,IF(AND(AZ10="nein",AT10=2),AN10,"")))) ->  | AX10: =VLOOKUP(AL10,'Gen-Tab'!$S$3:$T$26,2,0) ->  | AY10: =VLOOKUP(AN10,'Gen-Tab'!$S$3:$T$26,2,0) ->  | AZ10: =IF(AT10="X","ja","nein") -> nein | BA10: =IF(AT10=0,"",IF(AZ10="nein","",IF(AND(AZ10="ja",AU10>0),"","Elfmeterschießen tippen !"))) ->  | BB10: 2AF4 | BC10: =IF(AW10=AL10:AL10,AN10,AL10) ->  | DA10: Gruppe B | DB10: Gelb =1 Punkt | DC10: Rot =3 Punkte | DD10: Summe | DM10: 7 | DN10: =VLOOKUP(DM10,'Gen-Tab'!$W$3:$Y$26,3,0) -> Frankreich | DO10: 7 | DQ10: 7 | DR10: Frankreich | DS10: 18
B11: 3 | C11: =VLOOKUP($B11,'Gen-Tab'!$B$3:$O$57,11,0) -> 2021-06-12 | D11: =VLOOKUP($B11,'Gen-Tab'!$B$3:$O$57,12,0) -> 18:00:00 | E11: =VLOOKUP($B11,'Gen-Tab'!$B$3:$O$57,7,0) -> Dänemark | F11: =VLOOKUP($B11,'Gen-Tab'!$B$3:$O$57,8,0) -> Finnland | G11: =(VLOOKUP(L11,'Pulldown-Listen'!$B$1:$F$49,3))*1 ->  | H11: : | I11: =(VLOOKUP(L11,'Pulldown-Listen'!$B$1:$F$49,5))*1 ->  | K11: =IF(L11=0,0,VLOOKUP(L11,'Pulldown-Listen'!$B$1:$G$49,6,0)) -> 0 | T11: 1 | U11: . | V11: =IF(OR(AND(P15="ja",Q15=""),AND(P16="ja",Q16="")),"Tipps fehlen",IF(T16=1,VLOOKUP($T11,'Gruppen-Tabellen'!$D$18:$AB$21,3,0),"Tipps fehlen")) -> Tipps fehlen | W11: =IF(OR(AND(P15="ja",Q15=""),AND(P16="ja",Q16="")),"0",IF(T16=1,VLOOKUP(V11,'Gruppen-Tabellen'!$AI$18:$AJ$21,2,0),0)) -> 0 | X11: =IF(OR(AND(P15="ja",Q15=""),AND(P16="ja",Q16="")),"0",IF(T16=1,VLOOKUP($T11,'Gruppen-Tabellen'!$D$18:$AB$21,4,0),0)) -> 0 | Y11: : | Z11: =IF(OR(AND(P15="ja",Q15=""),AND(P16="ja",Q16="")),"0",IF(T16=1,VLOOKUP($T11,'Gruppen-Tabellen'!$D$18:$AB$21,5,0),0)) -> 0 | AA11: =X11-Z11 -> 0 | AB11: =IF(OR(AND(P15="ja",Q15=""),AND(P16="ja",Q16="")),"0",IF(T16=1,VLOOKUP($T11,'Gruppen-Tabellen'!$D$18:$AB$21,7,0),0)) -> 0 | AC11: =IF(OR(AND(P15="ja",Q15=""),AND(P16="ja",Q16="")),"",IF(T16=1,VLOOKUP(V11,'Gruppen-Tabellen'!F$3:AG$81,28,0),"")) ->  | AD11: Reihung unter den | DA11: ='Gen-Tab'!S7 -> Dänemark | DD11: =DB11*1+DC11*3 -> 0 | DE11: =RANK(DD11,DD$11:DD$14,0) -> 1 | DF11: =RANK(DD11,DD$3:DD$46,0) -> 1 | DG11: =DF11+(VLOOKUP(DA11,'Gen-Tab'!$S$3:$V$26,4,0)/1000) -> 1.01 | DH11: =RANK(DG11,DG$3:DG$46,0) -> 15 | DI11: =DA11 -> Dänemark | DM11: 8 | DN11: =VLOOKUP(DM11,'Gen-Tab'!$W$3:$Y$26,3,0) -> Polen | DO11: 8 | DQ11: 8 | DR11: Polen | DS11: 17
B12: 4 | C12: =VLOOKUP($B12,'Gen-Tab'!$B$3:$O$57,11,0) -> 2021-06-12 | D12: =VLOOKUP($B12,'Gen-Tab'!$B$3:$O$57,12,0) -> 21:00:00 | E12: =VLOOKUP($B12,'Gen-Tab'!$B$3:$O$57,7,0) -> Belgien | F12: =VLOOKUP($B12,'Gen-Tab'!$B$3:$O$57,8,0) -> Russland | G12: =(VLOOKUP(L12,'Pulldown-Listen'!$B$1:$F$49,3))*1 ->  | H12: : | I12: =(VLOOKUP(L12,'Pulldown-Listen'!$B$1:$F$49,5))*1 ->  | K12: =IF(L12=0,0,VLOOKUP(L12,'Pulldown-Listen'!$B$1:$G$49,6,0)) -> 0 | T12: 2 | U12: . | V12: =IF(OR(AND(P15="ja",Q15=""),AND(P16="ja",Q16="")),"Tipps fehlen",IF(T16=1,VLOOKUP($T12,'Gruppen-Tabellen'!$D$18:$AB$21,3,0),"Tipps fehlen")) -> Tipps fehlen | W12: =IF(OR(AND(P15="ja",Q15=""),AND(P16="ja",Q16="")),"0",IF(T16=1,VLOOKUP(V12,'Gruppen-Tabellen'!$AI$18:$AJ$21,2,0),0)) -> 0 | X12: =IF(OR(AND(P15="ja",Q15=""),AND(P16="ja",Q16="")),"0",IF(T16=1,VLOOKUP($T12,'Gruppen-Tabellen'!$D$18:$AB$21,4,0),0)) -> 0 | Y12: : | Z12: =IF(OR(AND(P15="ja",Q15=""),AND(P16="ja",Q16="")),"0",IF(T16=1,VLOOKUP($T12,'Gruppen-Tabellen'!$D$18:$AB$21,5,0),0)) -> 0 | AA12: =X12-Z12 -> 0 | AB12: =IF(OR(AND(P15="ja",Q15=""),AND(P16="ja",Q16="")),"0",IF(T16=1,VLOOKUP($T12,'Gruppen-Tabellen'!$D$18:$AB$21,7,0),0)) -> 0 | AC12: =IF(OR(AND(P15="ja",Q15=""),AND(P16="ja",Q16="")),"",IF(T16=1,VLOOKUP(V12,'Gruppen-Tabellen'!F$3:AG$81,28,0),"")) ->  | AD12: Dritt- Platzierten | AH12: 41 | AI12: =VLOOKUP($AH12,'Gen-Tab'!$B$3:$O$57,11,0) -> 2021-06-28 | AJ12: =VLOOKUP($AH12,'Gen-Tab'!$B$3:$O$57,12,0) -> 18:00:00 | AK12: =VLOOKUP(AH12,'Gen-Tab'!$B$3:$O$57,2,0) -> 2D | AL12: =IF(T50=6,VLOOKUP(AK12,'Gruppen-Tabellen'!$AH$3:$AI$90,2,0),"") ->  | AM12: =VLOOKUP(AH12,'Gen-Tab'!$B$3:$O$57,3,0) -> 2E | AN12: =IF(T50=6,VLOOKUP(AM12,'Gruppen-Tabellen'!$AH$3:$AI$90,2,0),"") ->  | AO12: =(VLOOKUP(AS12,'Pulldown-Listen'!$B$1:$F$49,3))*1 ->  | AP12: : | AQ12: =(VLOOKUP(AS12,'Pulldown-Listen'!$B$1:$F$49,5))*1 ->  | AT12: =IF(AS12=0,0,VLOOKUP(AS12,'Pulldown-Listen'!$B$1:$G$49,6,0)) -> 0 | AV12: 1AF5 | AW12: =IF(AND(AZ12="ja",OR(AT12=1,AU12=1)),AL12,IF(AND(AZ12="ja",OR(AT12=2,AU12=2)),AN12,IF(AND(AZ12="nein",AT12=1),AL12,IF(AND(AZ12="nein",AT12=2),AN12,"")))) ->  | AX12: =VLOOKUP(AL12,'Gen-Tab'!$S$3:$T$26,2,0) ->  | AY12: =VLOOKUP(AN12,'Gen-Tab'!$S$3:$T$26,2,0) ->  | AZ12: =IF(AT12="X","ja","nein") -> nein | BA12: =IF(AT12=0,"",IF(AZ12="nein","",IF(AND(AZ12="ja",AU12>0),"","Elfmeterschießen tippen !"))) ->  | BB12: 2AF5 | BC12: =IF(AW12=AL12:AL12,AN12,AL12) ->  | DA12: ='Gen-Tab'!S8 -> Finnland | DD12: =DB12*1+DC12*3 -> 0 | DE12: =RANK(DD12,DD$11:DD$14,0) -> 1 | DF12: =RANK(DD12,DD$3:DD$46,0) -> 1 | DG12: =DF12+(VLOOKUP(DA12,'Gen-Tab'!$S$3:$V$26,4,0)/1000) -> 1.005 | DH12: =RANK(DG12,DG$3:DG$46,0) -> 20 | DI12: =DA12 -> Finnland | DM12: 9 | DN12: =VLOOKUP(DM12,'Gen-Tab'!$W$3:$Y$26,3,0) -> Schweiz | DO12: 9 | DQ12: 9 | DR12: Schweiz | DS12: 16
B13: 15 | C13: =VLOOKUP($B13,'Gen-Tab'!$B$3:$O$57,11,0) -> 2021-06-16 | D13: =VLOOKUP($B13,'Gen-Tab'!$B$3:$O$57,12,0) -> 15:00:00 | E13: =VLOOKUP($B13,'Gen-Tab'!$B$3:$O$57,7,0) -> Finnland | F13: =VLOOKUP($B13,'Gen-Tab'!$B$3:$O$57,8,0) -> Russland | G13: =(VLOOKUP(L13,'Pulldown-Listen'!$B$1:$F$49,3))*1 ->  | H13: : | I13: =(VLOOKUP(L13,'Pulldown-Listen'!$B$1:$F$49,5))*1 ->  | K13: =IF(L13=0,0,VLOOKUP(L13,'Pulldown-Listen'!$B$1:$G$49,6,0)) -> 0 | T13: 3 | U13: . | V13: =IF(OR(AND(P15="ja",Q15=""),AND(P16="ja",Q16="")),"Tipps fehlen",IF(T16=1,VLOOKUP($T13,'Gruppen-Tabellen'!$D$18:$AB$21,3,0),"Tipps fehlen")) -> Tipps fehlen | W13: =IF(OR(AND(P15="ja",Q15=""),AND(P16="ja",Q16="")),"0",IF(T16=1,VLOOKUP(V13,'Gruppen-Tabellen'!$AI$18:$AJ$21,2,0),)) -> 0 | X13: =IF(OR(AND(P15="ja",Q15=""),AND(P16="ja",Q16="")),"0",IF(T16=1,VLOOKUP($T13,'Gruppen-Tabellen'!$D$18:$AB$21,4,0),0)) -> 0 | Y13: : | Z13: =IF(OR(AND(P15="ja",Q15=""),AND(P16="ja",Q16="")),"0",IF(T16=1,VLOOKUP($T13,'Gruppen-Tabellen'!$D$18:$AB$21,5,0),0)) -> 0 | AA13: =X13-Z13 -> 0 | AB13: =IF(OR(AND(P15="ja",Q15=""),AND(P16="ja",Q16="")),"0",IF(T16=1,VLOOKUP($T13,'Gruppen-Tabellen'!$D$18:$AB$21,7,0),0)) -> 0 | AC13: =IF(OR(AND(P15="ja",Q15=""),AND(P16="ja",Q16="")),"",IF(T16=1,VLOOKUP(V13,'Gruppen-Tabellen'!F$3:AG$81,28,0),"")) ->  | AD13: =IF(V13="Tipps fehlen","",VLOOKUP(V13,'Gruppen-Tabellen'!F$95:T$100,15,0)) ->  | DA13: ='Gen-Tab'!S9 -> Belgien | DD13: =DB13*1+DC13*3 -> 0 | DE13: =RANK(DD13,DD$11:DD$14,0) -> 1 | DF13: =RANK(DD13,DD$3:DD$46,0) -> 1 | DG13: =DF13+(VLOOKUP(DA13,'Gen-Tab'!$S$3:$V$26,4,0)/1000) -> 1.024 | DH13: 1 | DI13: =DA13 -> Belgien | DM13: 10 | DN13: =VLOOKUP(DM13,'Gen-Tab'!$W$3:$Y$26,3,0) -> Kroatien | DO13: 10 | DQ13: 10 | DR13: Kroatien | DS13: 15
B14: 16 | C14: =VLOOKUP($B14,'Gen-Tab'!$B$3:$O$57,11,0) -> 2021-06-17 | D14: =VLOOKUP($B14,'Gen-Tab'!$B$3:$O$57,12,0) -> 18:00:00 | E14: =VLOOKUP($B14,'Gen-Tab'!$B$3:$O$57,7,0) -> Dänemark | F14: =VLOOKUP($B14,'Gen-Tab'!$B$3:$O$57,8,0) -> Belgien | G14: =(VLOOKUP(L14,'Pulldown-Listen'!$B$1:$F$49,3))*1 ->  | H14: : | I14: =(VLOOKUP(L14,'Pulldown-Listen'!$B$1:$F$49,5))*1 ->  | K14: =IF(L14=0,0,VLOOKUP(L14,'Pulldown-Listen'!$B$1:$G$49,6,0)) -> 0 | T14: 4 | U14: . | V14: =IF(OR(AND(P15="ja",Q15=""),AND(P16="ja",Q16="")),"Tipps fehlen",IF(T16=1,VLOOKUP($T14,'Gruppen-Tabellen'!$D$18:$AB$21,3,0),"Tipps fehlen")) -> Tipps fehlen | W14: =IF(OR(AND(P15="ja",Q15=""),AND(P16="ja",Q16="")),"0",IF(T16=1,VLOOKUP(V14,'Gruppen-Tabellen'!$AI$18:$AJ$21,2,0),0)) -> 0 | X14: =IF(OR(AND(P15="ja",Q15=""),AND(P16="ja",Q16="")),"0",IF(T16=1,VLOOKUP($T14,'Gruppen-Tabellen'!$D$18:$AB$21,4,0),0)) -> 0 | Y14: : | Z14: =IF(OR(AND(P15="ja",Q15=""),AND(P16="ja",Q16="")),"0",IF(T16=1,VLOOKUP($T14,'Gruppen-Tabellen'!$D$18:$AB$21,5,0),0)) -> 0 | AA14: =X14-Z14 -> 0 | AB14: =IF(OR(AND(P15="ja",Q15=""),AND(P16="ja",Q16="")),"0",IF(T16=1,VLOOKUP($T14,'Gruppen-Tabellen'!$D$18:$AB$21,7,0),0)) -> 0 | AC14: =IF(OR(AND(P15="ja",Q15=""),AND(P16="ja",Q16="")),"",IF(T16=1,VLOOKUP(V14,'Gruppen-Tabellen'!F$3:AG$81,28,0),"")) ->  | AE14: =IF(OR(U15="4)",U15="5)",U15="6)"),1,0) -> 0 | AH14: 42 | AI14: =VLOOKUP($AH14,'Gen-Tab'!$B$3:$O$57,11,0) -> 2021-06-28 | AJ14: =VLOOKUP($AH14,'Gen-Tab'!$B$3:$O$57,12,0) -> 21:00:00 | AK14: =VLOOKUP(AH14,'Gen-Tab'!$B$3:$O$57,2,0) -> 1F | AL14: =IF(T50=6,VLOOKUP(AK14,'Gruppen-Tabellen'!$AH$3:$AI$90,2,0),"") ->  | AM14: =VLOOKUP(AH14,'Gen-Tab'!$B$3:$O$57,3,0) -> 3C | AN14: =IF(T50=6,VLOOKUP(AM14,'Gruppen-Tabellen'!$AH$3:$AI$90,2,0),"") ->  | AO14: =(VLOOKUP(AS14,'Pulldown-Listen'!$B$1:$F$49,3))*1 ->  | AP14: : | AQ14: =(VLOOKUP(AS14,'Pulldown-Listen'!$B$1:$F$49,5))*1 ->  | AT14: =IF(AS14=0,0,VLOOKUP(AS14,'Pulldown-Listen'!$B$1:$G$49,6,0)) -> 0 | AV14: 1AF6 | AW14: =IF(AND(AZ14="ja",OR(AT14=1,AU14=1)),AL14,IF(AND(AZ14="ja",OR(AT14=2,AU14=2)),AN14,IF(AND(AZ14="nein",AT14=1),AL14,IF(AND(AZ14="nein",AT14=2),AN14,"")))) ->  | AX14: =VLOOKUP(AL14,'Gen-Tab'!$S$3:$T$26,2,0) ->  | AY14: =VLOOKUP(AN14,'Gen-Tab'!$S$3:$T$26,2,0) ->  | AZ14: =IF(AT14="X","ja","nein") -> nein | BA14: =IF(AT14=0,"",IF(AZ14="nein","",IF(AND(AZ14="ja",AU14>0),"","Elfmeterschießen tippen !"))) ->  | BB14: 2AF6 | BC14: =IF(AW14=AL14:AL14,AN14,AL14) ->  | DA14: ='Gen-Tab'!S10 -> Russland | DD14: =DB14*1+DC14*3 -> 0 | DE14: =RANK(DD14,DD$11:DD$14,0) -> 1 | DF14: =RANK(DD14,DD$3:DD$46,0) -> 1 | DG14: =DF14+(VLOOKUP(DA14,'Gen-Tab'!$S$3:$V$26,4,0)/1000) -> 1.013 | DH14: 12 | DI14: =DA14 -> Russland | DM14: 11 | DN14: =VLOOKUP(DM14,'Gen-Tab'!$W$3:$Y$26,3,0) -> Niederlande | DO14: 11 | DQ14: 11 | DR14: Niederlande | DS14: 14
B15: 27 | C15: =VLOOKUP($B15,'Gen-Tab'!$B$3:$O$57,11,0) -> 2021-06-21 | D15: =VLOOKUP($B15,'Gen-Tab'!$B$3:$O$57,12,0) -> 21:00:00 | E15: =VLOOKUP($B15,'Gen-Tab'!$B$3:$O$57,7,0) -> Russland | F15: =VLOOKUP($B15,'Gen-Tab'!$B$3:$O$57,8,0) -> Dänemark | G15: =(VLOOKUP(L15,'Pulldown-Listen'!$B$1:$F$49,3))*1 ->  | H15: : | I15: =(VLOOKUP(L15,'Pulldown-Listen'!$B$1:$F$49,5))*1 ->  | K15: =IF(L15=0,0,VLOOKUP(L15,'Pulldown-Listen'!$B$1:$G$49,6,0)) -> 0 | P15: ='Sub-Tab_B'!P130 -> nein | U15: =IF(OR(AC11="1)",AC12="1)",AC13="1)",AC14="1)"),VLOOKUP("1)",'Pulldown-Listen'!A$56:C$61,2,0),IF(OR(AC11="2)",AC12="2)",AC13="2)",AC14="2)"),VLOOKUP("2)",'Pulldown-Listen'!A$56:C$61,2,0),IF(OR(AC11="3)",AC12="3)",AC13="3)",AC14="3)"),VLOOKUP("3)",'Pulldown-Listen'!A$56:C$61,2,0),IF(OR(AC11="4)",AC12="4)",AC13="4)",AC14="4)"),VLOOKUP("4)",'Pulldown-Listen'!A$56:C$61,2,0),IF(OR(AC11="5)",AC12="5)",AC13="5)",AC14="5)"),VLOOKUP("5)",'Pulldown-Listen'!A$56:C$61,2,0),IF(OR(AC11="6)",AC12="6)",AC13="6)",AC14="6)"),VLOOKUP("6)",'Pulldown-Listen'!A$56:C$61,2,0),"")))))) ->  | V15: =IF(U15="","",VLOOKUP(U15,'Pulldown-Listen'!A56:C61,3,0)) ->  | AE15: =VLOOKUP(V13,'Gruppen-Tabellen'!$F$95:$P$101,11,0) -> 0 | DJ15: =COUNTA(DB11:DC14) -> 0 | DM15: 12 | DN15: =VLOOKUP(DM15,'Gen-Tab'!$W$3:$Y$26,3,0) -> Russland | DO15: 12 | DQ15: 12 | DR15: Russland | DS15: 13
B16: 28 | C16: =VLOOKUP($B16,'Gen-Tab'!$B$3:$O$57,11,0) -> 2021-06-21 | D16: =VLOOKUP($B16,'Gen-Tab'!$B$3:$O$57,12,0) -> 21:00:00 | E16: =VLOOKUP($B16,'Gen-Tab'!$B$3:$O$57,7,0) -> Finnland | F16: =VLOOKUP($B16,'Gen-Tab'!$B$3:$O$57,8,0) -> Belgien | G16: =(VLOOKUP(L16,'Pulldown-Listen'!$B$1:$F$49,3))*1 ->  | H16: : | I16: =(VLOOKUP(L16,'Pulldown-Listen'!$B$1:$F$49,5))*1 ->  | K16: =IF(L16=0,0,VLOOKUP(L16,'Pulldown-Listen'!$B$1:$G$49,6,0)) -> 0 | P16: ='Sub-Tab_B'!P131 -> nein | T16: =IF('Gruppen-Tabellen'!AJ22=12,1,0) -> 0 | U16: =IF(SUM(W11:W14)=12,1,0) -> 0 | AE16: =$DJ$49 -> 0 | AH16: 43 | AI16: =VLOOKUP($AH16,'Gen-Tab'!$B$3:$O$57,11,0) -> 2021-06-29 | AJ16: =VLOOKUP($AH16,'Gen-Tab'!$B$3:$O$57,12,0) -> 18:00:00 | AK16: =VLOOKUP(AH16,'Gen-Tab'!$B$3:$O$57,2,0) -> 1D | AL16: =IF(T50=6,VLOOKUP(AK16,'Gruppen-Tabellen'!$AH$3:$AI$90,2,0),"") ->  | AM16: =VLOOKUP(AH16,'Gen-Tab'!$B$3:$O$57,3,0) -> 2F | AN16: =IF(T50=6,VLOOKUP(AM16,'Gruppen-Tabellen'!$AH$3:$AI$90,2,0),"") ->  | AO16: =(VLOOKUP(AS16,'Pulldown-Listen'!$B$1:$F$49,3))*1 ->  | AP16: : | AQ16: =(VLOOKUP(AS16,'Pulldown-Listen'!$B$1:$F$49,5))*1 ->  | AT16: =IF(AS16=0,0,VLOOKUP(AS16,'Pulldown-Listen'!$B$1:$G$49,6,0)) -> 0 | AV16: 1AF7 | AW16: =IF(AND(AZ16="ja",OR(AT16=1,AU16=1)),AL16,IF(AND(AZ16="ja",OR(AT16=2,AU16=2)),AN16,IF(AND(AZ16="nein",AT16=1),AL16,IF(AND(AZ16="nein",AT16=2),AN16,"")))) ->  | AX16: =VLOOKUP(AL16,'Gen-Tab'!$S$3:$T$26,2,0) ->  | AY16: =VLOOKUP(AN16,'Gen-Tab'!$S$3:$T$26,2,0) ->  | AZ16: =IF(AT16="X","ja","nein") -> nein | BA16: =IF(AT16=0,"",IF(AZ16="nein","",IF(AND(AZ16="ja",AU16>0),"","Elfmeterschießen tippen !"))) ->  | BB16: 2AF7 | BC16: =IF(AW16=AL16:AL16,AN16,AL16) ->  | DM16: 13 | DN16: =VLOOKUP(DM16,'Gen-Tab'!$W$3:$Y$26,3,0) -> Portugal | DO16: 13 | DQ16: 13 | DR16: Portugal | DS16: 12
DM17: 14 | DN17: =VLOOKUP(DM17,'Gen-Tab'!$W$3:$Y$26,3,0) -> Türkei | DO17: 14 | DQ17: 14 | DR17: Türkei | DS17: 11
C18: Gruppe C | Q18: =IF(OR(P23="ja",P24="ja"),"Bei diesen Ergebnissen entscheidet ein Penalty-Schießen über die endgültige Tabellen- platzierung. Tragen Sie Ihren Tipp im entsprechenden Kästchen ein (1 oder 2)","") ->  | T18: Gruppe C | AE18: =IF(AND(OR(AE22=1,AE23="X"),AE24<48),"J","N") -> N | AG18: =VLOOKUP(AE18,'Pulldown-Listen'!A$128:B$129,2,0) -> . | AH18: 44 | AI18: =VLOOKUP($AH18,'Gen-Tab'!$B$3:$O$57,11,0) -> 2021-06-29 | AJ18: =VLOOKUP($AH18,'Gen-Tab'!$B$3:$O$57,12,0) -> 21:00:00 | AK18: =VLOOKUP(AH18,'Gen-Tab'!$B$3:$O$57,2,0) -> 1E | AL18: =IF(T50=6,VLOOKUP(AK18,'Gruppen-Tabellen'!$AH$3:$AI$90,2,0),"") ->  | AM18: =VLOOKUP(AH18,'Gen-Tab'!$B$3:$O$57,3,0) -> 3B | AN18: =IF(T50=6,VLOOKUP(AM18,'Gruppen-Tabellen'!$AH$3:$AI$90,2,0),"") ->  | AO18: =(VLOOKUP(AS18,'Pulldown-Listen'!$B$1:$F$49,3))*1 ->  | AP18: : | AQ18: =(VLOOKUP(AS18,'Pulldown-Listen'!$B$1:$F$49,5))*1 ->  | AT18: =IF(AS18=0,0,VLOOKUP(AS18,'Pulldown-Listen'!$B$1:$G$49,6,0)) -> 0 | AV18: 1AF8 | AW18: =IF(AND(AZ18="ja",OR(AT18=1,AU18=1)),AL18,IF(AND(AZ18="ja",OR(AT18=2,AU18=2)),AN18,IF(AND(AZ18="nein",AT18=1),AL18,IF(AND(AZ18="nein",AT18=2),AN18,"")))) ->  | AX18: =VLOOKUP(AL18,'Gen-Tab'!$S$3:$T$26,2,0) ->  | AY18: =VLOOKUP(AN18,'Gen-Tab'!$S$3:$T$26,2,0) ->  | AZ18: =IF(AT18="X","ja","nein") -> nein | BA18: =IF(AT18=0,"",IF(AZ18="nein","",IF(AND(AZ18="ja",AU18>0),"","Elfmeterschießen tippen !"))) ->  | BB18: 2AF8 | BC18: =IF(AW18=AL18:AL18,AN18,AL18) ->  | DA18: Gruppe C | DB18: Gelb =1 Punkt | DC18: Rot =3 Punkte | DD18: Summe | DM18: 15 | DN18: =VLOOKUP(DM18,'Gen-Tab'!$W$3:$Y$26,3,0) -> Dänemark | DO18: 15 | DQ18: 15 | DR18: Dänemark | DS18: 10
B19: 5 | C19: =VLOOKUP($B19,'Gen-Tab'!$B$3:$O$57,11,0) -> 2021-06-13 | D19: =VLOOKUP($B19,'Gen-Tab'!$B$3:$O$57,12,0) -> 18:00:00 | E19: =VLOOKUP($B19,'Gen-Tab'!$B$3:$O$57,7,0) -> Österreich | F19: =VLOOKUP($B19,'Gen-Tab'!$B$3:$O$57,8,0) -> Nordmazedonien | G19: =(VLOOKUP(L19,'Pulldown-Listen'!$B$1:$F$49,3))*1 ->  | H19: : | I19: =(VLOOKUP(L19,'Pulldown-Listen'!$B$1:$F$49,5))*1 ->  | K19: =IF(L19=0,0,VLOOKUP(L19,'Pulldown-Listen'!$B$1:$G$49,6,0)) -> 0 | T19: 1 | U19: . | V19: =IF(OR(AND(P23="ja",Q23=""),AND(P24="ja",Q24="")),"Tipps fehlen",IF(T24=1,VLOOKUP($T19,'Gruppen-Tabellen'!$D$33:$AB$36,3,0),"Tipps fehlen")) -> Tipps fehlen | W19: =IF(OR(AND(P23="ja",Q23=""),AND(P24="ja",Q24="")),"0",IF(T24=1,VLOOKUP(V19,'Gruppen-Tabellen'!$AI$33:$AJ$36,2,0),0)) -> 0 | X19: =IF(OR(AND(P23="ja",Q23=""),AND(P24="ja",Q24="")),"0",IF(T24=1,VLOOKUP($T19,'Gruppen-Tabellen'!$D$33:$AB$36,4,0),0)) -> 0 | Y19: : | Z19: =IF(OR(AND(P23="ja",Q23=""),AND(P24="ja",Q24="")),"0",IF(T24=1,VLOOKUP($T19,'Gruppen-Tabellen'!$D$33:$AB$36,5,0),0)) -> 0 | AA19: =X19-Z19 -> 0 | AB19: =IF(OR(AND(P23="ja",Q23=""),AND(P24="ja",Q24="")),"0",IF(T24=1,VLOOKUP($T19,'Gruppen-Tabellen'!$D$33:$AB$36,7,0),0)) -> 0 | AC19: =IF(OR(AND(P23="ja",Q23=""),AND(P24="ja",Q24="")),"",IF(T24=1,VLOOKUP(V19,'Gruppen-Tabellen'!F$3:AG$81,28,0),"")) ->  | AD19: Reihung unter den | DA19: ='Gen-Tab'!S11 -> Niederlande | DD19: =DB19*1+DC19*3 -> 0 | DE19: =RANK(DD19,DD$19:DD$22,0) -> 1 | DF19: =RANK(DD19,DD$3:DD$46,0) -> 1 | DG19: =DF19+(VLOOKUP(DA19,'Gen-Tab'!$S$3:$V$26,4,0)/1000) -> 1.014 | DH19: =RANK(DG19,DG$3:DG$46,0) -> 11 | DI19: =DA19 -> Niederlande | DM19: 16 | DN19: =VLOOKUP(DM19,'Gen-Tab'!$W$3:$Y$26,3,0) -> Österreich | DO19: 16 | DQ19: 16 | DR19: Österreich | DS19: 9
B20: 6 | C20: =VLOOKUP($B20,'Gen-Tab'!$B$3:$O$57,11,0) -> 2021-06-13 | D20: =VLOOKUP($B20,'Gen-Tab'!$B$3:$O$57,12,0) -> 21:00:00 | E20: =VLOOKUP($B20,'Gen-Tab'!$B$3:$O$57,7,0) -> Niederlande | F20: =VLOOKUP($B20,'Gen-Tab'!$B$3:$O$57,8,0) -> Ukraine | G20: =(VLOOKUP(L20,'Pulldown-Listen'!$B$1:$F$49,3))*1 ->  | H20: : | I20: =(VLOOKUP(L20,'Pulldown-Listen'!$B$1:$F$49,5))*1 ->  | K20: =IF(L20=0,0,VLOOKUP(L20,'Pulldown-Listen'!$B$1:$G$49,6,0)) -> 0 | T20: 2 | U20: . | V20: =IF(OR(AND(P23="ja",Q23=""),AND(P24="ja",Q24="")),"Tipps fehlen",IF(T24=1,VLOOKUP($T20,'Gruppen-Tabellen'!$D$33:$AB$36,3,0),"Tipps fehlen")) -> Tipps fehlen | W20: =IF(OR(AND(P23="ja",Q23=""),AND(P24="ja",Q24="")),"0",IF(T24=1,VLOOKUP(V20,'Gruppen-Tabellen'!$AI$33:$AJ$36,2,0),0)) -> 0 | X20: =IF(OR(AND(P23="ja",Q23=""),AND(P24="ja",Q24="")),"0",IF(T24=1,VLOOKUP($T20,'Gruppen-Tabellen'!$D$33:$AB$36,4,0),0)) -> 0 | Y20: : | Z20: =IF(OR(AND(P23="ja",Q23=""),AND(P24="ja",Q24="")),"0",IF(T24=1,VLOOKUP($T20,'Gruppen-Tabellen'!$D$33:$AB$36,5,0),0)) -> 0 | AA20: =X20-Z20 -> 0 | AB20: =IF(OR(AND(P23="ja",Q23=""),AND(P24="ja",Q24="")),"0",IF(T24=1,VLOOKUP($T20,'Gruppen-Tabellen'!$D$33:$AB$36,7,0),0)) -> 0 | AC20: =IF(OR(AND(P23="ja",Q23=""),AND(P24="ja",Q24="")),"",IF(T24=1,VLOOKUP(V20,'Gruppen-Tabellen'!F$3:AG$81,28,0),"")) ->  | AD20: Dritt- Platzierten | AN20: =BA20 ->  | BA20: =IF(AND(BA16="",BA18="",BA14="",BA12="",BA4="",BA6="",BA8="",BA10=""),"","Elfmeterschießen tippen !") ->  | DA20: ='Gen-Tab'!S12 -> Ukraine | DD20: =DB20*1+DC20*3 -> 0 | DE20: =RANK(DD20,DD$19:DD$22,0) -> 1 | DF20: =RANK(DD20,DD$3:DD$46,0) -> 1 | DG20: =DF20+(VLOOKUP(DA20,'Gen-Tab'!$S$3:$V$26,4,0)/1000) -> 1.019 | DH20: =RANK(DG20,DG$3:DG$46,0) -> 6 | DI20: =DA20 -> Ukraine | DM20: 17 | DN20: =VLOOKUP(DM20,'Gen-Tab'!$W$3:$Y$26,3,0) -> Schweden | DO20: 17 | DQ20: 17 | DR20: Schweden | DS20: 8
B21: 17 | C21: =VLOOKUP($B21,'Gen-Tab'!$B$3:$O$57,11,0) -> 2021-06-17 | D21: =VLOOKUP($B21,'Gen-Tab'!$B$3:$O$57,12,0) -> 15:00:00 | E21: =VLOOKUP($B21,'Gen-Tab'!$B$3:$O$57,7,0) -> Ukraine | F21: =VLOOKUP($B21,'Gen-Tab'!$B$3:$O$57,8,0) -> Nordmazedonien | G21: =(VLOOKUP(L21,'Pulldown-Listen'!$B$1:$F$49,3))*1 ->  | H21: : | I21: =(VLOOKUP(L21,'Pulldown-Listen'!$B$1:$F$49,5))*1 ->  | K21: =IF(L21=0,0,VLOOKUP(L21,'Pulldown-Listen'!$B$1:$G$49,6,0)) -> 0 | T21: 3 | U21: . | V21: =IF(OR(AND(P23="ja",Q23=""),AND(P24="ja",Q24="")),"Tipps fehlen",IF(T24=1,VLOOKUP($T21,'Gruppen-Tabellen'!$D$33:$AB$36,3,0),"Tipps fehlen")) -> Tipps fehlen | W21: =IF(OR(AND(P23="ja",Q23=""),AND(P24="ja",Q24="")),"0",IF(T24=1,VLOOKUP(V21,'Gruppen-Tabellen'!$AI$33:$AJ$36,2,0),0)) -> 0 | X21: =IF(OR(AND(P23="ja",Q23=""),AND(P24="ja",Q24="")),"0",IF(T24=1,VLOOKUP($T21,'Gruppen-Tabellen'!$D$33:$AB$36,4,0),0)) -> 0 | Y21: : | Z21: =IF(OR(AND(P23="ja",Q23=""),AND(P24="ja",Q24="")),"0",IF(T24=1,VLOOKUP($T21,'Gruppen-Tabellen'!$D$33:$AB$36,5,0),0)) -> 0 | AA21: =X21-Z21 -> 0 | AB21: =IF(OR(AND(P23="ja",Q23=""),AND(P24="ja",Q24="")),"0",IF(T24=1,VLOOKUP($T21,'Gruppen-Tabellen'!$D$33:$AB$36,7,0),0)) -> 0 | AC21: =IF(OR(AND(P23="ja",Q23=""),AND(P24="ja",Q24="")),"",IF(T24=1,VLOOKUP(V21,'Gruppen-Tabellen'!F$3:AG$81,28,0),"")) ->  | AD21: =IF(V21="Tipps fehlen","",VLOOKUP(V21,'Gruppen-Tabellen'!F$95:T$100,15,0)) ->  | DA21: ='Gen-Tab'!S13 -> Österreich | DD21: =DB21*1+DC21*3 -> 0 | DE21: =RANK(DD21,DD$19:DD$22,0) -> 1 | DF21: =RANK(DD21,DD$3:DD$46,0) -> 1 | DG21: =DF21+(VLOOKUP(DA21,'Gen-Tab'!$S$3:$V$26,4,0)/1000) -> 1.009 | DH21: 16 | DI21: =DA21 -> Österreich | DM21: 18 | DN21: =VLOOKUP(DM21,'Gen-Tab'!$W$3:$Y$26,3,0) -> Tschechien | DO21: 18 | DQ21: 18 | DR21: Tschechien | DS21: 7
B22: 18 | C22: =VLOOKUP($B22,'Gen-Tab'!$B$3:$O$57,11,0) -> 2021-06-17 | D22: =VLOOKUP($B22,'Gen-Tab'!$B$3:$O$57,12,0) -> 21:00:00 | E22: =VLOOKUP($B22,'Gen-Tab'!$B$3:$O$57,7,0) -> Niederlande | F22: =VLOOKUP($B22,'Gen-Tab'!$B$3:$O$57,8,0) -> Österreich | G22: =(VLOOKUP(L22,'Pulldown-Listen'!$B$1:$F$49,3))*1 ->  | H22: : | I22: =(VLOOKUP(L22,'Pulldown-Listen'!$B$1:$F$49,5))*1 ->  | K22: =IF(L22=0,0,VLOOKUP(L22,'Pulldown-Listen'!$B$1:$G$49,6,0)) -> 0 | T22: 4 | U22: . | V22: =IF(OR(AND(P23="ja",Q23=""),AND(P24="ja",Q24="")),"Tipps fehlen",IF(T24=1,VLOOKUP($T22,'Gruppen-Tabellen'!$D$33:$AB$36,3,0),"Tipps fehlen")) -> Tipps fehlen | W22: =IF(OR(AND(P23="ja",Q23=""),AND(P24="ja",Q24="")),"0",IF(T24=1,VLOOKUP(V22,'Gruppen-Tabellen'!$AI$33:$AJ$36,2,0),0)) -> 0 | X22: =IF(OR(AND(P23="ja",Q23=""),AND(P24="ja",Q24="")),"0",IF(T24=1,VLOOKUP($T22,'Gruppen-Tabellen'!$D$33:$AB$36,4,0),0)) -> 0 | Y22: : | Z22: =IF(OR(AND(P23="ja",Q23=""),AND(P24="ja",Q24="")),"0",IF(T24=1,VLOOKUP($T22,'Gruppen-Tabellen'!$D$33:$AB$36,5,0),0)) -> 0 | AA22: =X22-Z22 -> 0 | AB22: =IF(OR(AND(P23="ja",Q23=""),AND(P24="ja",Q24="")),"0",IF(T24=1,VLOOKUP($T22,'Gruppen-Tabellen'!$D$33:$AB$36,7,0),0)) -> 0 | AC22: =IF(OR(AND(P23="ja",Q23=""),AND(P24="ja",Q24="")),"",IF(T24=1,VLOOKUP(V22,'Gruppen-Tabellen'!F$3:AG$81,28,0),"")) ->  | AE22: =IF(OR(U23="4)",U23="5)",U23="6)"),1,0) -> 0 | AI22: Viertel-Finale | DA22: ='Gen-Tab'!S14 -> Nordmazedonien | DD22: =DB22*1+DC22*3 -> 0 | DE22: =RANK(DD22,DD$19:DD$22,0) -> 1 | DF22: =RANK(DD22,DD$3:DD$46,0) -> 1 | DG22: =DF22+(VLOOKUP(DA22,'Gen-Tab'!$S$3:$V$26,4,0)/1000) -> 1.001 | DH22: 24 | DI22: =DA22 -> Nordmazedonien | DM22: 19 | DN22: =VLOOKUP(DM22,'Gen-Tab'!$W$3:$Y$26,3,0) -> Wales | DO22: 19 | DQ22: 19 | DR22: Wales | DS22: 6
B23: 29 | C23: =VLOOKUP($B23,'Gen-Tab'!$B$3:$O$57,11,0) -> 2021-06-21 | D23: =VLOOKUP($B23,'Gen-Tab'!$B$3:$O$57,12,0) -> 18:00:00 | E23: =VLOOKUP($B23,'Gen-Tab'!$B$3:$O$57,7,0) -> Ukraine | F23: =VLOOKUP($B23,'Gen-Tab'!$B$3:$O$57,8,0) -> Österreich | G23: =(VLOOKUP(L23,'Pulldown-Listen'!$B$1:$F$49,3))*1 ->  | H23: : | I23: =(VLOOKUP(L23,'Pulldown-Listen'!$B$1:$F$49,5))*1 ->  | K23: =IF(L23=0,0,VLOOKUP(L23,'Pulldown-Listen'!$B$1:$G$49,6,0)) -> 0 | P23: ='Sub-Tab_C'!P130 -> nein | U23: =IF(OR(AC19="1)",AC20="1)",AC21="1)",AC22="1)"),VLOOKUP("1)",'Pulldown-Listen'!A$56:C$61,2,0),IF(OR(AC19="2)",AC20="2)",AC21="2)",AC22="2)"),VLOOKUP("2)",'Pulldown-Listen'!A$56:C$61,2,0),IF(OR(AC19="3)",AC20="3)",AC21="3)",AC22="3)"),VLOOKUP("3)",'Pulldown-Listen'!A$56:C$61,2,0),IF(OR(AC19="4)",AC20="4)",AC21="4)",AC22="4)"),VLOOKUP("4)",'Pulldown-Listen'!A$56:C$61,2,0),IF(OR(AC19="5)",AC20="5)",AC21="5)",AC22="5)"),VLOOKUP("5)",'Pulldown-Listen'!A$56:C$61,2,0),IF(OR(AC19="6)",AC20="6)",AC21="6)",AC22="6)"),VLOOKUP("6)",'Pulldown-Listen'!A$56:C$61,2,0),"")))))) ->  | V23: =IF(U23="","",VLOOKUP(U23,'Pulldown-Listen'!A56:C61,3,0)) ->  | AE23: =VLOOKUP(V21,'Gruppen-Tabellen'!$F$95:$P$101,11,0) -> 0 | DJ23: =COUNTA(DB19:DC22) -> 0 | DM23: 20 | DN23: =VLOOKUP(DM23,'Gen-Tab'!$W$3:$Y$26,3,0) -> Finnland | DO23: 20 | DQ23: 20 | DR23: Finnland | DS23: 5
B24: 30 | C24: =VLOOKUP($B24,'Gen-Tab'!$B$3:$O$57,11,0) -> 2021-06-21 | D24: =VLOOKUP($B24,'Gen-Tab'!$B$3:$O$57,12,0) -> 18:00:00 | E24: =VLOOKUP($B24,'Gen-Tab'!$B$3:$O$57,7,0) -> Nordmazedonien | F24: =VLOOKUP($B24,'Gen-Tab'!$B$3:$O$57,8,0) -> Niederlande | G24: =(VLOOKUP(L24,'Pulldown-Listen'!$B$1:$F$49,3))*1 ->  | H24: : | I24: =(VLOOKUP(L24,'Pulldown-Listen'!$B$1:$F$49,5))*1 ->  | K24: =IF(L24=0,0,VLOOKUP(L24,'Pulldown-Listen'!$B$1:$G$49,6,0)) -> 0 | P24: ='Sub-Tab_C'!P131 -> nein | T24: =IF('Gruppen-Tabellen'!AJ37=12,1,0) -> 0 | U24: =IF(SUM(W19:W22)=12,1,0) -> 0 | AE24: =$DJ$49 -> 0 | DM24: 21 | DN24: =VLOOKUP(DM24,'Gen-Tab'!$W$3:$Y$26,3,0) -> Schottland | DO24: 21 | DQ24: 21 | DR24: Schottland | DS24: 4
AH25: 45 | AI25: =VLOOKUP($AH25,'Gen-Tab'!$B$3:$O$57,11,0) -> 2021-07-02 | AJ25: =VLOOKUP($AH25,'Gen-Tab'!$B$3:$O$57,12,0) -> 18:00:00 | AK25: =VLOOKUP(AH25,'Gen-Tab'!$B$49:$D$57,2,0) -> 1AF6 | AL25: =IF(AS4="","",VLOOKUP(AK25,AV4:AW19,2,0)) ->  | AM25: =VLOOKUP(AH25,'Gen-Tab'!$B$49:$D$57,3,0) -> 1AF5 | AN25: =IF(AS4="","",VLOOKUP(AM25,AV4:AW19,2,0)) ->  | AO25: =(VLOOKUP(AS25,'Pulldown-Listen'!$B$1:$F$49,3))*1 ->  | AP25: : | AT25: =IF(AS25=0,0,VLOOKUP(AS25,'Pulldown-Listen'!$B$1:$G$49,6,0)) -> 0 | AV25: 1VF1 | AW25: =IF(AND(AZ25="ja",OR(AT25=1,AU25=1)),AL25,IF(AND(AZ25="ja",OR(AT25=2,AU25=2)),AN25,IF(AND(AZ25="nein",AT25=1),AL25,IF(AND(AZ25="nein",AT25=2),AN25,"")))) ->  | AX25: =VLOOKUP(AL25,'Gen-Tab'!$S$3:$T$26,2,0) ->  | AY25: =VLOOKUP(AN25,'Gen-Tab'!$S$3:$T$26,2,0) ->  | AZ25: =IF(AT25="X","ja","nein") -> nein | BA25: =IF(AT25=0,"",IF(AZ25="nein","",IF(AND(AZ25="ja",AU25>0),"","Elfmeterschießen tippen !"))) ->  | BB25: 2VF1 | BC25: =IF(AW25=AL25:AL25,AN25,AL25) ->  | CV25: Wenn Sie glauben, dass sich im Fair-Play eine andere Reihung ergibt, dann füllen Sie bitte die Tabelle VOLLSTÄNDIG (=für alle Gruppen) aus. ACHTUNG: wenn Sie nur einzelne Gruppen befüllen, hat das keinen Einfluss. Nur wenn die gelben und roten Karten für ALLE Mannschaften eigetragen werden, wird das in den Tabellenrängen berücksichtigt. | DM25: 22 | DN25: =VLOOKUP(DM25,'Gen-Tab'!$W$3:$Y$26,3,0) -> Slowakei | DO25: 22 | DQ25: 22 | DR25: Slowakei | DS25: 3
C26: Gruppe D | Q26: =IF(OR(P31="ja",P32="ja"),"Bei diesen Ergebnissen entscheidet ein Penalty-Schießen über die endgültige Tabellen- platzierung. Tragen Sie Ihren Tipp im entsprechenden Kästchen ein (1 oder 2)","") ->  | T26: Gruppe D | AE26: =IF(AND(OR(AE30=1,AE31="X"),AE32<48),"J","N") -> N | AG26: =VLOOKUP(AE26,'Pulldown-Listen'!A$128:B$129,2,0) -> . | DA26: Gruppe D | DB26: Gelb =1 Punkt | DC26: Rot =3 Punkte | DD26: Summe | DM26: 23 | DN26: =VLOOKUP(DM26,'Gen-Tab'!$W$3:$Y$26,3,0) -> Ungarn | DO26: 23 | DQ26: 23 | DR26: Ungarn | DS26: 2
B27: 7 | C27: =VLOOKUP($B27,'Gen-Tab'!$B$3:$O$57,11,0) -> 2021-06-13 | D27: =VLOOKUP($B27,'Gen-Tab'!$B$3:$O$57,12,0) -> 15:00:00 | E27: =VLOOKUP($B27,'Gen-Tab'!$B$3:$O$57,7,0) -> England | F27: =VLOOKUP($B27,'Gen-Tab'!$B$3:$O$57,8,0) -> Kroatien | G27: =(VLOOKUP(L27,'Pulldown-Listen'!$B$1:$F$49,3))*1 ->  | H27: : | I27: =(VLOOKUP(L27,'Pulldown-Listen'!$B$1:$F$49,5))*1 ->  | K27: =IF(L27=0,0,VLOOKUP(L27,'Pulldown-Listen'!$B$1:$G$49,6,0)) -> 0 | T27: 1 | U27: . | V27: =IF(OR(AND(P31="ja",Q31=""),AND(P32="ja",Q32="")),"Tipps fehlen",IF(T32=1,VLOOKUP($T27,'Gruppen-Tabellen'!$D$48:$AB$51,3,0),"Tipps fehlen")) -> Tipps fehlen | W27: =IF(OR(AND(P31="ja",Q31=""),AND(P32="ja",Q32="")),"0",IF(T32=1,VLOOKUP(V27,'Gruppen-Tabellen'!$AI$48:$AJ$51,2,0),0)) -> 0 | X27: =IF(OR(AND(P31="ja",Q31=""),AND(P32="ja",Q32="")),"0",IF(T32=1,VLOOKUP($T27,'Gruppen-Tabellen'!$D$48:$AB$51,4,0),0)) -> 0 | Y27: : | Z27: =IF(OR(AND(P31="ja",Q31=""),AND(P32="ja",Q32="")),"0",IF(T32=1,VLOOKUP($T27,'Gruppen-Tabellen'!$D$48:$AB$51,5,0),0)) -> 0 | AA27: =X27-Z27 -> 0 | AB27: =IF(OR(AND(P31="ja",Q31=""),AND(P32="ja",Q32="")),"0",IF(T32=1,VLOOKUP($T27,'Gruppen-Tabellen'!$D$48:$AB$51,7,0),0)) -> 0 | AC27: =IF(OR(AND(P31="ja",Q31=""),AND(P32="ja",Q32="")),"",IF(T32=1,VLOOKUP(V27,'Gruppen-Tabellen'!F$3:AG$81,28,0),"")) ->  | AD27: Reihung unter den | AH27: 46 | AI27: =VLOOKUP($AH27,'Gen-Tab'!$B$3:$O$57,11,0) -> 2021-07-02 | AJ27: =VLOOKUP($AH27,'Gen-Tab'!$B$3:$O$57,12,0) -> 21:00:00 | AK27: =VLOOKUP(AH27,'Gen-Tab'!$B$49:$D$57,2,0) -> 1AF4 | AL27: =IF(AS6="","",VLOOKUP(AK27,AV4:AW19,2,0)) ->  | AM27: =VLOOKUP(AH27,'Gen-Tab'!$B$49:$D$57,3,0) -> 1AF2 | AN27: =IF(AS6="","",VLOOKUP(AM27,AV4:AW19,2,0)) ->  | AO27: =(VLOOKUP(AS27,'Pulldown-Listen'!$B$1:$F$49,3))*1 ->  | AP27: : | AT27: =IF(AS27=0,0,VLOOKUP(AS27,'Pulldown-Listen'!$B$1:$G$49,6,0)) -> 0 | AV27: 1VF2 | AW27: =IF(AND(AZ27="ja",OR(AT27=1,AU27=1)),AL27,IF(AND(AZ27="ja",OR(AT27=2,AU27=2)),AN27,IF(AND(AZ27="nein",AT27=1),AL27,IF(AND(AZ27="nein",AT27=2),AN27,"")))) ->  | AX27: =VLOOKUP(AL27,'Gen-Tab'!$S$3:$T$26,2,0) ->  | AY27: =VLOOKUP(AN27,'Gen-Tab'!$S$3:$T$26,2,0) ->  | AZ27: =IF(AT27="X","ja","nein") -> nein | BA27: =IF(AT27=0,"",IF(AZ27="nein","",IF(AND(AZ27="ja",AU27>0),"","Elfmeterschießen tippen !"))) ->  | BB27: 2VF2 | BC27: =IF(AW27=AL27:AL27,AN27,AL27) ->  | DA27: ='Gen-Tab'!S15 -> England | DD27: =DB27*1+DC27*3 -> 0 | DE27: =RANK(DD27,DD$27:DD$30,0) -> 1 | DF27: =RANK(DD27,DD$3:DD$46,0) -> 1 | DG27: =DF27+(VLOOKUP(DA27,'Gen-Tab'!$S$3:$V$26,4,0)/1000) -> 1.022 | DH27: =RANK(DG27,DG$3:DG$46,0) -> 3 | DI27: =DA27 -> England | DM27: 24 | DN27: =VLOOKUP(DM27,'Gen-Tab'!$W$3:$Y$26,3,0) -> Nordmazedonien | DO27: 24 | DQ27: 24 | DR27: Nordmazedonien | DS27: 1
B28: 8 | C28: =VLOOKUP($B28,'Gen-Tab'!$B$3:$O$57,11,0) -> 2021-06-14 | D28: =VLOOKUP($B28,'Gen-Tab'!$B$3:$O$57,12,0) -> 15:00:00 | E28: =VLOOKUP($B28,'Gen-Tab'!$B$3:$O$57,7,0) -> Schottland | F28: =VLOOKUP($B28,'Gen-Tab'!$B$3:$O$57,8,0) -> Tschechien | G28: =(VLOOKUP(L28,'Pulldown-Listen'!$B$1:$F$49,3))*1 ->  | H28: : | I28: =(VLOOKUP(L28,'Pulldown-Listen'!$B$1:$F$49,5))*1 ->  | K28: =IF(L28=0,0,VLOOKUP(L28,'Pulldown-Listen'!$B$1:$G$49,6,0)) -> 0 | T28: 2 | U28: . | V28: =IF(OR(AND(P31="ja",Q31=""),AND(P32="ja",Q32="")),"Tipps fehlen",IF(T32=1,VLOOKUP($T28,'Gruppen-Tabellen'!$D$48:$AB$51,3,0),"Tipps fehlen")) -> Tipps fehlen | W28: =IF(OR(AND(P31="ja",Q31=""),AND(P32="ja",Q32="")),"0",IF(T32=1,VLOOKUP(V28,'Gruppen-Tabellen'!$AI$48:$AJ$51,2,0),0)) -> 0 | X28: =IF(OR(AND(P31="ja",Q31=""),AND(P32="ja",Q32="")),"0",IF(T32=1,VLOOKUP($T28,'Gruppen-Tabellen'!$D$48:$AB$51,4,0),0)) -> 0 | Y28: : | Z28: =IF(OR(AND(P31="ja",Q31=""),AND(P32="ja",Q32="")),"0",IF(T32=1,VLOOKUP($T28,'Gruppen-Tabellen'!$D$48:$AB$51,5,0),0)) -> 0 | AA28: =X28-Z28 -> 0 | AB28: =IF(OR(AND(P31="ja",Q31=""),AND(P32="ja",Q32="")),"0",IF(T32=1,VLOOKUP($T28,'Gruppen-Tabellen'!$D$48:$AB$51,7,0),0)) -> 0 | AC28: =IF(OR(AND(P31="ja",Q31=""),AND(P32="ja",Q32="")),"",IF(T32=1,VLOOKUP(V28,'Gruppen-Tabellen'!F$3:AG$81,28,0),"")) ->  | AD28: Dritt- Platzierten | DA28: ='Gen-Tab'!S16 -> Kroatien | DD28: =DB28*1+DC28*3 -> 0 | DE28: =RANK(DD28,DD$27:DD$30,0) -> 1 | DF28: =RANK(DD28,DD$3:DD$46,0) -> 1 | DG28: =DF28+(VLOOKUP(DA28,'Gen-Tab'!$S$3:$V$26,4,0)/1000) -> 1.015 | DH28: =RANK(DG28,DG$3:DG$46,0) -> 10 | DI28: =DA28 -> Kroatien
B29: 19 | C29: =VLOOKUP($B29,'Gen-Tab'!$B$3:$O$57,11,0) -> 2021-06-18 | D29: =VLOOKUP($B29,'Gen-Tab'!$B$3:$O$57,12,0) -> 18:00:00 | E29: =VLOOKUP($B29,'Gen-Tab'!$B$3:$O$57,7,0) -> Kroatien | F29: =VLOOKUP($B29,'Gen-Tab'!$B$3:$O$57,8,0) -> Tschechien | G29: =(VLOOKUP(L29,'Pulldown-Listen'!$B$1:$F$49,3))*1 ->  | H29: : | I29: =(VLOOKUP(L29,'Pulldown-Listen'!$B$1:$F$49,5))*1 ->  | K29: =IF(L29=0,0,VLOOKUP(L29,'Pulldown-Listen'!$B$1:$G$49,6,0)) -> 0 | T29: 3 | U29: . | V29: =IF(OR(AND(P31="ja",Q31=""),AND(P32="ja",Q32="")),"Tipps fehlen",IF(T32=1,VLOOKUP($T29,'Gruppen-Tabellen'!$D$48:$AB$51,3,0),"Tipps fehlen")) -> Tipps fehlen | W29: =IF(OR(AND(P31="ja",Q31=""),AND(P32="ja",Q32="")),"0",IF(T32=1,VLOOKUP(V29,'Gruppen-Tabellen'!$AI$48:$AJ$51,2,0),0)) -> 0 | X29: =IF(OR(AND(P31="ja",Q31=""),AND(P32="ja",Q32="")),"0",IF(T32=1,VLOOKUP($T29,'Gruppen-Tabellen'!$D$48:$AB$51,4,0),0)) -> 0 | Y29: : | Z29: =IF(OR(AND(P31="ja",Q31=""),AND(P32="ja",Q32="")),"0",IF(T32=1,VLOOKUP($T29,'Gruppen-Tabellen'!$D$48:$AB$51,5,0),0)) -> 0 | AA29: =X29-Z29 -> 0 | AB29: =IF(OR(AND(P31="ja",Q31=""),AND(P32="ja",Q32="")),"0",IF(T32=1,VLOOKUP($T29,'Gruppen-Tabellen'!$D$48:$AB$51,7,0),0)) -> 0 | AC29: =IF(OR(AND(P31="ja",Q31=""),AND(P32="ja",Q32="")),"",IF(T32=1,VLOOKUP(V29,'Gruppen-Tabellen'!F$3:AG$81,28,0),"")) ->  | AD29: =IF(V29="Tipps fehlen","",VLOOKUP(V29,'Gruppen-Tabellen'!F$95:T$100,15,0)) ->  | AH29: 47 | AI29: =VLOOKUP($AH29,'Gen-Tab'!$B$3:$O$57,11,0) -> 2021-07-03 | AJ29: =VLOOKUP($AH29,'Gen-Tab'!$B$3:$O$57,12,0) -> 18:00:00 | AK29: =VLOOKUP(AH29,'Gen-Tab'!$B$49:$D$57,2,0) -> 1AF3 | AL29: =IF(AS8="","",VLOOKUP(AK29,AV4:AW19,2,0)) ->  | AM29: =VLOOKUP(AH29,'Gen-Tab'!$B$49:$D$57,3,0) -> 1AF1 | AN29: =IF(AS8="","",VLOOKUP(AM29,AV4:AW19,2,0)) ->  | AO29: =(VLOOKUP(AS29,'Pulldown-Listen'!$B$1:$F$49,3))*1 ->  | AP29: : | AT29: =IF(AS29=0,0,VLOOKUP(AS29,'Pulldown-Listen'!$B$1:$G$49,6,0)) -> 0 | AV29: 1VF3 | AW29: =IF(AND(AZ29="ja",OR(AT29=1,AU29=1)),AL29,IF(AND(AZ29="ja",OR(AT29=2,AU29=2)),AN29,IF(AND(AZ29="nein",AT29=1),AL29,IF(AND(AZ29="nein",AT29=2),AN29,"")))) ->  | AX29: =VLOOKUP(AL29,'Gen-Tab'!$S$3:$T$26,2,0) ->  | AY29: =VLOOKUP(AN29,'Gen-Tab'!$S$3:$T$26,2,0) ->  | AZ29: =IF(AT29="X","ja","nein") -> nein | BA29: =IF(AT29=0,"",IF(AZ29="nein","",IF(AND(AZ29="ja",AU29>0),"","Elfmeterschießen tippen !"))) ->  | BB29: 2VF3 | BC29: =IF(AW29=AL29:AL29,AN29,AL29) ->  | DA29: ='Gen-Tab'!S17 -> Schottland | DD29: =DB29*1+DC29*3 -> 0 | DE29: =RANK(DD29,DD$27:DD$30,0) -> 1 | DF29: =RANK(DD29,DD$3:DD$46,0) -> 1 | DG29: =DF29+(VLOOKUP(DA29,'Gen-Tab'!$S$3:$V$26,4,0)/1000) -> 1.004 | DH29: 21 | DI29: =DA29 -> Schottland
B30: 20 | C30: =VLOOKUP($B30,'Gen-Tab'!$B$3:$O$57,11,0) -> 2021-06-18 | D30: =VLOOKUP($B30,'Gen-Tab'!$B$3:$O$57,12,0) -> 21:00:00 | E30: =VLOOKUP($B30,'Gen-Tab'!$B$3:$O$57,7,0) -> England | F30: =VLOOKUP($B30,'Gen-Tab'!$B$3:$O$57,8,0) -> Schottland | G30: =(VLOOKUP(L30,'Pulldown-Listen'!$B$1:$F$49,3))*1 ->  | H30: : | I30: =(VLOOKUP(L30,'Pulldown-Listen'!$B$1:$F$49,5))*1 ->  | K30: =IF(L30=0,0,VLOOKUP(L30,'Pulldown-Listen'!$B$1:$G$49,6,0)) -> 0 | T30: 4 | U30: . | V30: =IF(OR(AND(P31="ja",Q31=""),AND(P32="ja",Q32="")),"Tipps fehlen",IF(T32=1,VLOOKUP($T30,'Gruppen-Tabellen'!$D$48:$AB$51,3,0),"Tipps fehlen")) -> Tipps fehlen | W30: =IF(OR(AND(P31="ja",Q31=""),AND(P32="ja",Q32="")),"0",IF(T32=1,VLOOKUP(V30,'Gruppen-Tabellen'!$AI$48:$AJ$51,2,0),0)) -> 0 | X30: =IF(OR(AND(P31="ja",Q31=""),AND(P32="ja",Q32="")),"0",IF(T32=1,VLOOKUP($T30,'Gruppen-Tabellen'!$D$48:$AB$51,4,0),0)) -> 0 | Y30: : | Z30: =IF(OR(AND(P31="ja",Q31=""),AND(P32="ja",Q32="")),"0",IF(T32=1,VLOOKUP($T30,'Gruppen-Tabellen'!$D$48:$AB$51,5,0),0)) -> 0 | AA30: =X30-Z30 -> 0 | AB30: =IF(OR(AND(P31="ja",Q31=""),AND(P32="ja",Q32="")),"0",IF(T32=1,VLOOKUP($T30,'Gruppen-Tabellen'!$D$48:$AB$51,7,0),0)) -> 0 | AC30: =IF(OR(AND(P31="ja",Q31=""),AND(P32="ja",Q32="")),"",IF(T32=1,VLOOKUP(V30,'Gruppen-Tabellen'!F$3:AG$81,28,0),"")) ->  | AE30: =IF(OR(U31="4)",U31="5)",U31="6)"),1,0) -> 0 | DA30: ='Gen-Tab'!S18 -> Tschechien | DD30: =DB30*1+DC30*3 -> 0 | DE30: =RANK(DD30,DD$27:DD$30,0) -> 1 | DF30: =RANK(DD30,DD$3:DD$46,0) -> 1 | DG30: =DF30+(VLOOKUP(DA30,'Gen-Tab'!$S$3:$V$26,4,0)/1000) -> 1.007 | DH30: 18 | DI30: =DA30 -> Tschechien
B31: 31 | C31: =VLOOKUP($B31,'Gen-Tab'!$B$3:$O$57,11,0) -> 2021-06-22 | D31: =VLOOKUP($B31,'Gen-Tab'!$B$3:$O$57,12,0) -> 21:00:00 | E31: =VLOOKUP($B31,'Gen-Tab'!$B$3:$O$57,7,0) -> Kroatien | F31: =VLOOKUP($B31,'Gen-Tab'!$B$3:$O$57,8,0) -> Schottland | G31: =(VLOOKUP(L31,'Pulldown-Listen'!$B$1:$F$49,3))*1 ->  | H31: : | I31: =(VLOOKUP(L31,'Pulldown-Listen'!$B$1:$F$49,5))*1 ->  | K31: =IF(L31=0,0,VLOOKUP(L31,'Pulldown-Listen'!$B$1:$G$49,6,0)) -> 0 | P31: ='Sub-Tab_D'!P130 -> nein | U31: =IF(OR(AC27="1)",AC28="1)",AC29="1)",AC30="1)"),VLOOKUP("1)",'Pulldown-Listen'!A$56:C$61,2,0),IF(OR(AC27="2)",AC28="2)",AC29="2)",AC30="2)"),VLOOKUP("2)",'Pulldown-Listen'!A$56:C$61,2,0),IF(OR(AC27="3)",AC28="3)",AC29="3)",AC30="3)"),VLOOKUP("3)",'Pulldown-Listen'!A$56:C$61,2,0),IF(OR(AC27="4)",AC28="4)",AC29="4)",AC30="4)"),VLOOKUP("4)",'Pulldown-Listen'!A$56:C$61,2,0),IF(OR(AC27="5)",AC28="5)",AC29="5)",AC30="5)"),VLOOKUP("5)",'Pulldown-Listen'!A$56:C$61,2,0),IF(OR(AC27="6)",AC28="6)",AC29="6)",AC30="6)"),VLOOKUP("6)",'Pulldown-Listen'!A$56:C$61,2,0),"")))))) ->  | V31: =IF(U31="","",VLOOKUP(U31,'Pulldown-Listen'!A56:C61,3,0)) ->  | AE31: =VLOOKUP(V29,'Gruppen-Tabellen'!$F$95:$P$101,11,0) -> 0 | AH31: 48 | AI31: =VLOOKUP($AH31,'Gen-Tab'!$B$3:$O$57,11,0) -> 2021-07-03 | AJ31: =VLOOKUP($AH31,'Gen-Tab'!$B$3:$O$57,12,0) -> 21:00:00 | AK31: =VLOOKUP(AH31,'Gen-Tab'!$B$49:$D$57,2,0) -> 1AF8 | AL31: =IF(AS10="","",VLOOKUP(AK31,AV4:AW19,2,0)) ->  | AM31: =VLOOKUP(AH31,'Gen-Tab'!$B$49:$D$57,3,0) -> 1AF7 | AN31: =IF(AS10="","",VLOOKUP(AM31,AV4:AW19,2,0)) ->  | AO31: =(VLOOKUP(AS31,'Pulldown-Listen'!$B$1:$F$49,3))*1 ->  | AP31: : | AT31: =IF(AS31=0,0,VLOOKUP(AS31,'Pulldown-Listen'!$B$1:$G$49,6,0)) -> 0 | AV31: 1VF4 | AW31: =IF(AND(AZ31="ja",OR(AT31=1,AU31=1)),AL31,IF(AND(AZ31="ja",OR(AT31=2,AU31=2)),AN31,IF(AND(AZ31="nein",AT31=1),AL31,IF(AND(AZ31="nein",AT31=2),AN31,"")))) ->  | AX31: =VLOOKUP(AL31,'Gen-Tab'!$S$3:$T$26,2,0) ->  | AY31: =VLOOKUP(AN31,'Gen-Tab'!$S$3:$T$26,2,0) ->  | AZ31: =IF(AT31="X","ja","nein") -> nein | BA31: =IF(AT31=0,"",IF(AZ31="nein","",IF(AND(AZ31="ja",AU31>0),"","Elfmeterschießen tippen !"))) ->  | BB31: 2VF4 | BC31: =IF(AW31=AL31:AL31,AN31,AL31) ->  | DE31: =RANK(DD31,DD$27:DD$30,0) -> 1 | DF31: =RANK(DD31,DD$3:DD$46,0) -> 1 | DJ31: =COUNTA(DB27:DC30) -> 0
B32: 32 | C32: =VLOOKUP($B32,'Gen-Tab'!$B$3:$O$57,11,0) -> 2021-06-22 | D32: =VLOOKUP($B32,'Gen-Tab'!$B$3:$O$57,12,0) -> 21:00:00 | E32: =VLOOKUP($B32,'Gen-Tab'!$B$3:$O$57,7,0) -> Tschechien | F32: =VLOOKUP($B32,'Gen-Tab'!$B$3:$O$57,8,0) -> England | G32: =(VLOOKUP(L32,'Pulldown-Listen'!$B$1:$F$49,3))*1 ->  | H32: : | I32: =(VLOOKUP(L32,'Pulldown-Listen'!$B$1:$F$49,5))*1 ->  | K32: =IF(L32=0,0,VLOOKUP(L32,'Pulldown-Listen'!$B$1:$G$49,6,0)) -> 0 | P32: ='Sub-Tab_D'!P131 -> nein | T32: =IF('Gruppen-Tabellen'!AJ52=12,1,0) -> 0 | U32: =IF(SUM(W27:W30)=12,1,0) -> 0 | AE32: =$DJ$49 -> 0
AN33: =BA33 ->  | BA33: =IF(AND(BA29="",BA31="",BA27="",BA25=""),"","Elfmeterschießen tippen !") -> 
C34: Gruppe E | Q34: =IF(OR(P39="ja",P40="ja"),"Bei diesen Ergebnissen entscheidet ein Penalty-Schießen über die endgültige Tabellen- platzierung. Tragen Sie Ihren Tipp im entsprechenden Kästchen ein (1 oder 2)","") ->  | T34: Gruppe E | AE34: =IF(AND(OR(AE38=1,AE39="X"),AE40<48),"J","N") -> N | AG34: =VLOOKUP(AE34,'Pulldown-Listen'!A$128:B$129,2,0) -> . | DA34: Gruppe E | DB34: Gelb =1 Punkt | DC34: Rot =3 Punkte | DD34: Summe
B35: 9 | C35: =VLOOKUP($B35,'Gen-Tab'!$B$3:$O$57,11,0) -> 2021-06-14 | D35: =VLOOKUP($B35,'Gen-Tab'!$B$3:$O$57,12,0) -> 18:00:00 | E35: =VLOOKUP($B35,'Gen-Tab'!$B$3:$O$57,7,0) -> Polen | F35: =VLOOKUP($B35,'Gen-Tab'!$B$3:$O$57,8,0) -> Slowakei | G35: =(VLOOKUP(L35,'Pulldown-Listen'!$B$1:$F$49,3))*1 ->  | H35: : | I35: =(VLOOKUP(L35,'Pulldown-Listen'!$B$1:$F$49,5))*1 ->  | K35: =IF(L35=0,0,VLOOKUP(L35,'Pulldown-Listen'!$B$1:$G$49,6,0)) -> 0 | T35: 1 | U35: . | V35: =IF(OR(AND(P39="ja",Q39=""),AND(P40="ja",Q40="")),"Tipps fehlen",IF(T40=1,VLOOKUP($T35,'Gruppen-Tabellen'!$D$63:$AB$66,3,0),"Tipps fehlen")) -> Tipps fehlen | W35: =IF(OR(AND(P39="ja",Q39=""),AND(P40="ja",Q40="")),"0",IF(T40=1,VLOOKUP(V35,'Gruppen-Tabellen'!$AI$63:$AJ$66,2,0),0)) -> 0 | X35: =IF(OR(AND(P39="ja",Q39=""),AND(P40="ja",Q40="")),"0",IF(T40=1,VLOOKUP($T35,'Gruppen-Tabellen'!$D$63:$AB$66,4,0),0)) -> 0 | Y35: : | Z35: =IF(OR(AND(P39="ja",Q39=""),AND(P40="ja",Q40="")),"0",IF(T40=1,VLOOKUP($T35,'Gruppen-Tabellen'!$D$63:$AB$66,5,0),0)) -> 0 | AA35: =X35-Z35 -> 0 | AB35: =IF(OR(AND(P39="ja",Q39=""),AND(P40="ja",Q40="")),"0",IF(T40=1,VLOOKUP($T35,'Gruppen-Tabellen'!$D$63:$AB$66,7,0),0)) -> 0 | AC35: =IF(OR(AND(P39="ja",Q39=""),AND(P40="ja",Q40="")),"",IF(T40=1,VLOOKUP(V35,'Gruppen-Tabellen'!F$3:AG$81,28,0),"")) ->  | AD35: Reihung unter den | AI35: Halb-Finale | DA35: ='Gen-Tab'!S19 -> Spanien | DD35: =DB35*1+DC35*3 -> 0 | DE35: =RANK(DD35,DD$35:DD$38,0) -> 1 | DF35: =RANK(DD35,DD$3:DD$46,0) -> 1 | DG35: =DF35+(VLOOKUP(DA35,'Gen-Tab'!$S$3:$V$26,4,0)/1000) -> 1.02 | DH35: =RANK(DG35,DG$3:DG$46,0) -> 5 | DI35: =DA35 -> Spanien
B36: 10 | C36: =VLOOKUP($B36,'Gen-Tab'!$B$3:$O$57,11,0) -> 2021-06-14 | D36: =VLOOKUP($B36,'Gen-Tab'!$B$3:$O$57,12,0) -> 21:00:00 | E36: =VLOOKUP($B36,'Gen-Tab'!$B$3:$O$57,7,0) -> Spanien | F36: =VLOOKUP($B36,'Gen-Tab'!$B$3:$O$57,8,0) -> Schweden | G36: =(VLOOKUP(L36,'Pulldown-Listen'!$B$1:$F$49,3))*1 ->  | H36: : | I36: =(VLOOKUP(L36,'Pulldown-Listen'!$B$1:$F$49,5))*1 ->  | K36: =IF(L36=0,0,VLOOKUP(L36,'Pulldown-Listen'!$B$1:$G$49,6,0)) -> 0 | T36: 2 | U36: . | V36: =IF(OR(AND(P39="ja",Q39=""),AND(P40="ja",Q40="")),"Tipps fehlen",IF(T40=1,VLOOKUP($T36,'Gruppen-Tabellen'!$D$63:$AB$66,3,0),"Tipps fehlen")) -> Tipps fehlen | W36: =IF(OR(AND(P39="ja",Q39=""),AND(P40="ja",Q40="")),"0",IF(T40=1,VLOOKUP(V36,'Gruppen-Tabellen'!$AI$63:$AJ$66,2,0),0)) -> 0 | X36: =IF(OR(AND(P39="ja",Q39=""),AND(P40="ja",Q40="")),"0",IF(T40=1,VLOOKUP($T36,'Gruppen-Tabellen'!$D$63:$AB$66,4,0),0)) -> 0 | Y36: : | Z36: =IF(OR(AND(P39="ja",Q39=""),AND(P40="ja",Q40="")),"0",IF(T40=1,VLOOKUP($T36,'Gruppen-Tabellen'!$D$63:$AB$66,5,0),0)) -> 0 | AA36: =X36-Z36 -> 0 | AB36: =IF(OR(AND(P39="ja",Q39=""),AND(P40="ja",Q40="")),"0",IF(T40=1,VLOOKUP($T36,'Gruppen-Tabellen'!$D$63:$AB$66,7,0),0)) -> 0 | AC36: =IF(OR(AND(P39="ja",Q39=""),AND(P40="ja",Q40="")),"",IF(T40=1,VLOOKUP(V36,'Gruppen-Tabellen'!F$3:AG$81,28,0),"")) ->  | AD36: Dritt- Platzierten | DA36: ='Gen-Tab'!S20 -> Schweden | DD36: =DB36*1+DC36*3 -> 0 | DE36: =RANK(DD36,DD$35:DD$38,0) -> 1 | DF36: =RANK(DD36,DD$3:DD$46,0) -> 1 | DG36: =DF36+(VLOOKUP(DA36,'Gen-Tab'!$S$3:$V$26,4,0)/1000) -> 1.008 | DH36: =RANK(DG36,DG$3:DG$46,0) -> 17 | DI36: =DA36 -> Schweden
B37: 21 | C37: =VLOOKUP($B37,'Gen-Tab'!$B$3:$O$57,11,0) -> 2021-06-18 | D37: =VLOOKUP($B37,'Gen-Tab'!$B$3:$O$57,12,0) -> 15:00:00 | E37: =VLOOKUP($B37,'Gen-Tab'!$B$3:$O$57,7,0) -> Schweden | F37: =VLOOKUP($B37,'Gen-Tab'!$B$3:$O$57,8,0) -> Slowakei | G37: =(VLOOKUP(L37,'Pulldown-Listen'!$B$1:$F$49,3))*1 ->  | H37: : | I37: =(VLOOKUP(L37,'Pulldown-Listen'!$B$1:$F$49,5))*1 ->  | K37: =IF(L37=0,0,VLOOKUP(L37,'Pulldown-Listen'!$B$1:$G$49,6,0)) -> 0 | T37: 3 | U37: . | V37: =IF(OR(AND(P39="ja",Q39=""),AND(P40="ja",Q40="")),"Tipps fehlen",IF(T40=1,VLOOKUP($T37,'Gruppen-Tabellen'!$D$63:$AB$66,3,0),"Tipps fehlen")) -> Tipps fehlen | W37: =IF(OR(AND(P39="ja",Q39=""),AND(P40="ja",Q40="")),"0",IF(T40=1,VLOOKUP(V37,'Gruppen-Tabellen'!$AI$63:$AJ$66,2,0),0)) -> 0 | X37: =IF(OR(AND(P39="ja",Q39=""),AND(P40="ja",Q40="")),"0",IF(T40=1,VLOOKUP($T37,'Gruppen-Tabellen'!$D$63:$AB$66,4,0),0)) -> 0 | Y37: : | Z37: =IF(OR(AND(P39="ja",Q39=""),AND(P40="ja",Q40="")),"0",IF(T40=1,VLOOKUP($T37,'Gruppen-Tabellen'!$D$63:$AB$66,5,0),0)) -> 0 | AA37: =X37-Z37 -> 0 | AB37: =IF(OR(AND(P39="ja",Q39=""),AND(P40="ja",Q40="")),"0",IF(T40=1,VLOOKUP($T37,'Gruppen-Tabellen'!$D$63:$AB$66,7,0),0)) -> 0 | AC37: =IF(OR(AND(P39="ja",Q39=""),AND(P40="ja",Q40="")),"",IF(T40=1,VLOOKUP(V37,'Gruppen-Tabellen'!F$3:AG$81,28,0),"")) ->  | AD37: =IF(V37="Tipps fehlen","",VLOOKUP(V37,'Gruppen-Tabellen'!F$95:T$100,15,0)) ->  | DA37: ='Gen-Tab'!S21 -> Polen | DD37: =DB37*1+DC37*3 -> 0 | DE37: =RANK(DD37,DD$35:DD$38,0) -> 1 | DF37: =RANK(DD37,DD$3:DD$46,0) -> 1 | DG37: =DF37+(VLOOKUP(DA37,'Gen-Tab'!$S$3:$V$26,4,0)/1000) -> 1.017 | DH37: 8 | DI37: =DA37 -> Polen
B38: 22 | C38: =VLOOKUP($B38,'Gen-Tab'!$B$3:$O$57,11,0) -> 2021-06-19 | D38: =VLOOKUP($B38,'Gen-Tab'!$B$3:$O$57,12,0) -> 21:00:00 | E38: =VLOOKUP($B38,'Gen-Tab'!$B$3:$O$57,7,0) -> Spanien | F38: =VLOOKUP($B38,'Gen-Tab'!$B$3:$O$57,8,0) -> Polen | G38: =(VLOOKUP(L38,'Pulldown-Listen'!$B$1:$F$49,3))*1 ->  | H38: : | I38: =(VLOOKUP(L38,'Pulldown-Listen'!$B$1:$F$49,5))*1 ->  | K38: =IF(L38=0,0,VLOOKUP(L38,'Pulldown-Listen'!$B$1:$G$49,6,0)) -> 0 | T38: 4 | U38: . | V38: =IF(OR(AND(P39="ja",Q39=""),AND(P40="ja",Q40="")),"Tipps fehlen",IF(T40=1,VLOOKUP($T38,'Gruppen-Tabellen'!$D$63:$AB$66,3,0),"Tipps fehlen")) -> Tipps fehlen | W38: =IF(OR(AND(P39="ja",Q39=""),AND(P40="ja",Q40="")),"0",IF(T40=1,VLOOKUP(V38,'Gruppen-Tabellen'!$AI$63:$AJ$66,2,0),0)) -> 0 | X38: =IF(OR(AND(P39="ja",Q39=""),AND(P40="ja",Q40="")),"0",IF(T40=1,VLOOKUP($T38,'Gruppen-Tabellen'!$D$63:$AB$66,4,0),0)) -> 0 | Y38: : | Z38: =IF(OR(AND(P39="ja",Q39=""),AND(P40="ja",Q40="")),"0",IF(T40=1,VLOOKUP($T38,'Gruppen-Tabellen'!$D$63:$AB$66,5,0),0)) -> 0 | AA38: =X38-Z38 -> 0 | AB38: =IF(OR(AND(P39="ja",Q39=""),AND(P40="ja",Q40="")),"0",IF(T40=1,VLOOKUP($T38,'Gruppen-Tabellen'!$D$63:$AB$66,7,0),0)) -> 0 | AC38: =IF(OR(AND(P39="ja",Q39=""),AND(P40="ja",Q40="")),"",IF(T40=1,VLOOKUP(V38,'Gruppen-Tabellen'!F$3:AG$81,28,0),"")) ->  | AE38: =IF(OR(U39="4)",U39="5)",U39="6)"),1,0) -> 0 | AH38: 49 | AI38: =VLOOKUP($AH38,'Gen-Tab'!$B$3:$O$57,11,0) -> 2021-07-06 | AJ38: =VLOOKUP($AH38,'Gen-Tab'!$B$3:$O$57,12,0) -> 21:00:00 | AK38: =VLOOKUP(AH38,'Gen-Tab'!$B$49:$D$57,2,0) -> 1VF2 | AL38: =VLOOKUP(AK38,$AV$25:$AW$31,2,0) ->  | AM38: =VLOOKUP(AH38,'Gen-Tab'!$B$49:$D$57,3,0) -> 1VF1 | AN38: =VLOOKUP(AM38,$AV$25:$AW$31,2,0) ->  | AO38: =(VLOOKUP(AS38,'Pulldown-Listen'!$B$1:$F$49,3))*1 ->  | AP38: : | AQ38: =(VLOOKUP(AS38,'Pulldown-Listen'!$B$1:$F$49,5))*1 ->  | AT38: =IF(AS38=0,0,VLOOKUP(AS38,'Pulldown-Listen'!$B$1:$G$49,6,0)) -> 0 | AV38: 1HF1 | AW38: =IF(AND(AZ38="ja",OR(AT38=1,AU38=1)),AL38,IF(AND(AZ38="ja",OR(AT38=2,AU38=2)),AN38,IF(AND(AZ38="nein",AT38=1),AL38,IF(AND(AZ38="nein",AT38=2),AN38,"")))) ->  | AX38: =VLOOKUP(AL38,'Gen-Tab'!$S$3:$T$26,2,0) ->  | AY38: =VLOOKUP(AN38,'Gen-Tab'!$S$3:$T$26,2,0) ->  | AZ38: =IF(AT38="X","ja","nein") -> nein | BA38: =IF(AT38=0,"",IF(AZ38="nein","",IF(AND(AZ38="ja",AU38>0),"","Elfmeterschießen tippen !"))) ->  | BB38: 2HF1 | BC38: =IF(AW38=AL38:AL38,AN38,AL38) ->  | CV38: NOCH EIN WICHTIGER HINWEIS: Für diese Tipps gibt es keine (direkten) Punkte im Wagner-Cup. Diese Tipps könnten aber darüber entscheiden, ob Sie die richtige Mannschaft im Achtel-Finale haben; und das beeinflusst natürlich das Punktekonto sehr wohl… | DA38: ='Gen-Tab'!S22 -> Slowakei | DD38: =DB38*1+DC38*3 -> 0 | DE38: =RANK(DD38,DD$35:DD$38,0) -> 1 | DF38: =RANK(DD38,DD$3:DD$46,0) -> 1 | DG38: =DF38+(VLOOKUP(DA38,'Gen-Tab'!$S$3:$V$26,4,0)/1000) -> 1.003 | DH38: 22 | DI38: =DA38 -> Slowakei
B39: 33 | C39: =VLOOKUP($B39,'Gen-Tab'!$B$3:$O$57,11,0) -> 2021-06-23 | D39: =VLOOKUP($B39,'Gen-Tab'!$B$3:$O$57,12,0) -> 18;00 | E39: =VLOOKUP($B39,'Gen-Tab'!$B$3:$O$57,7,0) -> Slowakei | F39: =VLOOKUP($B39,'Gen-Tab'!$B$3:$O$57,8,0) -> Spanien | G39: =(VLOOKUP(L39,'Pulldown-Listen'!$B$1:$F$49,3))*1 ->  | H39: : | I39: =(VLOOKUP(L39,'Pulldown-Listen'!$B$1:$F$49,5))*1 ->  | K39: =IF(L39=0,0,VLOOKUP(L39,'Pulldown-Listen'!$B$1:$G$49,6,0)) -> 0 | P39: ='Sub-Tab_E'!P130 -> nein | U39: =IF(OR(AC35="1)",AC36="1)",AC37="1)",AC38="1)"),VLOOKUP("1)",'Pulldown-Listen'!A$56:C$61,2,0),IF(OR(AC35="2)",AC36="2)",AC37="2)",AC38="2)"),VLOOKUP("2)",'Pulldown-Listen'!A$56:C$61,2,0),IF(OR(AC35="3)",AC36="3)",AC37="3)",AC38="3)"),VLOOKUP("3)",'Pulldown-Listen'!A$56:C$61,2,0),IF(OR(AC35="4)",AC36="4)",AC37="4)",AC38="4)"),VLOOKUP("4)",'Pulldown-Listen'!A$56:C$61,2,0),IF(OR(AC35="5)",AC36="5)",AC37="5)",AC38="5)"),VLOOKUP("5)",'Pulldown-Listen'!A$56:C$61,2,0),IF(OR(AC35="6)",AC36="6)",AC37="6)",AC38="6)"),VLOOKUP("6)",'Pulldown-Listen'!A$56:C$61,2,0),"")))))) ->  | V39: =IF(U39="","",VLOOKUP(U39,'Pulldown-Listen'!A56:C61,3,0)) ->  | AE39: =VLOOKUP(V37,'Gruppen-Tabellen'!$F$95:$P$101,11,0) -> 0 | DJ39: =COUNTA(DB35:DC38) -> 0
B40: 34 | C40: =VLOOKUP($B40,'Gen-Tab'!$B$3:$O$57,11,0) -> 2021-06-23 | D40: =VLOOKUP($B40,'Gen-Tab'!$B$3:$O$57,12,0) -> 18:00:00 | E40: =VLOOKUP($B40,'Gen-Tab'!$B$3:$O$57,7,0) -> Schweden | F40: =VLOOKUP($B40,'Gen-Tab'!$B$3:$O$57,8,0) -> Polen | G40: =(VLOOKUP(L40,'Pulldown-Listen'!$B$1:$F$49,3))*1 ->  | H40: : | I40: =(VLOOKUP(L40,'Pulldown-Listen'!$B$1:$F$49,5))*1 ->  | K40: =IF(L40=0,0,VLOOKUP(L40,'Pulldown-Listen'!$B$1:$G$49,6,0)) -> 0 | P40: ='Sub-Tab_E'!P131 -> nein | T40: =IF('Gruppen-Tabellen'!AJ67=12,1,0) -> 0 | U40: =IF(SUM(W35:W38)=12,1,0) -> 0 | AE40: =$DJ$49 -> 0 | AH40: 50 | AI40: =VLOOKUP($AH40,'Gen-Tab'!$B$3:$O$57,11,0) -> 2021-07-07 | AJ40: =VLOOKUP($AH40,'Gen-Tab'!$B$3:$O$57,12,0) -> 21:00:00 | AK40: =VLOOKUP(AH40,'Gen-Tab'!$B$49:$D$57,2,0) -> 1VF4 | AL40: =VLOOKUP(AK40,$AV$25:$AW$31,2,0) ->  | AM40: =VLOOKUP(AH40,'Gen-Tab'!$B$49:$D$57,3,0) -> 1VF3 | AN40: =VLOOKUP(AM40,$AV$25:$AW$31,2,0) ->  | AO40: =(VLOOKUP(AS40,'Pulldown-Listen'!$B$1:$F$49,3))*1 ->  | AP40: : | AQ40: =(VLOOKUP(AS40,'Pulldown-Listen'!$B$1:$F$49,5))*1 ->  | AT40: =IF(AS40=0,0,VLOOKUP(AS40,'Pulldown-Listen'!$B$1:$G$49,6,0)) -> 0 | AV40: 1HF2 | AW40: =IF(AND(AZ40="ja",OR(AT40=1,AU40=1)),AL40,IF(AND(AZ40="ja",OR(AT40=2,AU40=2)),AN40,IF(AND(AZ40="nein",AT40=1),AL40,IF(AND(AZ40="nein",AT40=2),AN40,"")))) ->  | AX40: =VLOOKUP(AL40,'Gen-Tab'!$S$3:$T$26,2,0) ->  | AY40: =VLOOKUP(AN40,'Gen-Tab'!$S$3:$T$26,2,0) ->  | AZ40: =IF(AT40="X","ja","nein") -> nein | BA40: =IF(AT40=0,"",IF(AZ40="nein","",IF(AND(AZ40="ja",AU40>0),"","Elfmeterschießen tippen !"))) ->  | BB40: 2HF2 | BC40: =IF(AW40=AL40:AL40,AN40,AL40) -> 
C42: Gruppe F | Q42: =IF(OR(P47="ja",P48="ja"),"Bei diesen Ergebnissen entscheidet ein Penalty-Schießen über die endgültige Tabellen- platzierung. Tragen Sie Ihren Tipp im entsprechenden Kästchen ein (1 oder 2)","") ->  | T42: Gruppe F | AE42: =IF(AND(OR(AE46=1,AE47="X"),AE48<48),"J","N") -> N | AG42: =VLOOKUP(AE42,'Pulldown-Listen'!A$128:B$129,2,0) -> . | AN42: =BA42 ->  | BA42: =IF(AND(BA38="",BA40=""),"","Elfmeterschießen tippen !") ->  | DA42: Gruppe F | DB42: Gelb =1 Punkt | DC42: Rot =3 Punkte | DD42: Summe
B43: 11 | C43: =VLOOKUP($B43,'Gen-Tab'!$B$3:$O$57,11,0) -> 2021-06-15 | D43: =VLOOKUP($B43,'Gen-Tab'!$B$3:$O$57,12,0) -> 18:00:00 | E43: =VLOOKUP($B43,'Gen-Tab'!$B$3:$O$57,7,0) -> Ungarn | F43: =VLOOKUP($B43,'Gen-Tab'!$B$3:$O$57,8,0) -> Portugal | G43: =(VLOOKUP(L43,'Pulldown-Listen'!$B$1:$F$49,3))*1 ->  | H43: : | I43: =(VLOOKUP(L43,'Pulldown-Listen'!$B$1:$F$49,5))*1 ->  | K43: =IF(L43=0,0,VLOOKUP(L43,'Pulldown-Listen'!$B$1:$G$49,6,0)) -> 0 | T43: 1 | U43: . | V43: =IF(OR(AND(P47="ja",Q47=""),AND(P48="ja",Q48="")),"Tipps fehlen",IF(T48=1,VLOOKUP($T43,'Gruppen-Tabellen'!$D$78:$AB$81,3,0),"Tipps fehlen")) -> Tipps fehlen | W43: =IF(OR(AND(P47="ja",Q47=""),AND(P48="ja",Q48="")),"0",IF(T48=1,VLOOKUP(V43,'Gruppen-Tabellen'!$AI$78:$AJ$81,2,0),0)) -> 0 | X43: =IF(OR(AND(P47="ja",Q47=""),AND(P48="ja",Q48="")),"0",IF(T48=1,VLOOKUP($T43,'Gruppen-Tabellen'!$D$78:$AB$81,4,0),0)) -> 0 | Y43: : | Z43: =IF(OR(AND(P47="ja",Q47=""),AND(P48="ja",Q48="")),"0",IF(T48=1,VLOOKUP($T43,'Gruppen-Tabellen'!$D$78:$AB$81,5,0),0)) -> 0 | AA43: =X43-Z43 -> 0 | AB43: =IF(OR(AND(P47="ja",Q47=""),AND(P48="ja",Q48="")),"0",IF(T48=1,VLOOKUP($T43,'Gruppen-Tabellen'!$D$78:$AB$81,7,0),0)) -> 0 | AC43: =IF(OR(AND(P47="ja",Q47=""),AND(P48="ja",Q48="")),"",IF(T48=1,VLOOKUP(V43,'Gruppen-Tabellen'!F$3:AG$81,28,0),"")) ->  | AD43: Reihung unter den | DA43: ='Gen-Tab'!S23 -> Ungarn | DD43: =DB43*1+DC43*3 -> 0 | DE43: =RANK(DD43,DD$43:DD$46,0) -> 1 | DF43: =RANK(DD43,DD$3:DD$46,0) -> 1 | DG43: =DF43+(VLOOKUP(DA43,'Gen-Tab'!$S$3:$V$26,4,0)/1000) -> 1.002 | DH43: =RANK(DG43,DG$3:DG$46,0) -> 23 | DI43: =DA43 -> Ungarn
B44: 12 | C44: =VLOOKUP($B44,'Gen-Tab'!$B$3:$O$57,11,0) -> 2021-06-15 | D44: =VLOOKUP($B44,'Gen-Tab'!$B$3:$O$57,12,0) -> 21:00:00 | E44: =VLOOKUP($B44,'Gen-Tab'!$B$3:$O$57,7,0) -> Frankreich | F44: =VLOOKUP($B44,'Gen-Tab'!$B$3:$O$57,8,0) -> Deutschland | G44: =(VLOOKUP(L44,'Pulldown-Listen'!$B$1:$F$49,3))*1 ->  | H44: : | I44: =(VLOOKUP(L44,'Pulldown-Listen'!$B$1:$F$49,5))*1 ->  | K44: =IF(L44=0,0,VLOOKUP(L44,'Pulldown-Listen'!$B$1:$G$49,6,0)) -> 0 | T44: 2 | U44: . | V44: =IF(OR(AND(P47="ja",Q47=""),AND(P48="ja",Q48="")),"Tipps fehlen",IF(T48=1,VLOOKUP($T44,'Gruppen-Tabellen'!$D$78:$AB$81,3,0),"Tipps fehlen")) -> Tipps fehlen | W44: =IF(OR(AND(P47="ja",Q47=""),AND(P48="ja",Q48="")),"0",IF(T48=1,VLOOKUP(V44,'Gruppen-Tabellen'!$AI$78:$AJ$81,2,0),0)) -> 0 | X44: =IF(OR(AND(P47="ja",Q47=""),AND(P48="ja",Q48="")),"0",IF(T48=1,VLOOKUP($T44,'Gruppen-Tabellen'!$D$78:$AB$81,4,0),0)) -> 0 | Y44: : | Z44: =IF(OR(AND(P47="ja",Q47=""),AND(P48="ja",Q48="")),"0",IF(T48=1,VLOOKUP($T44,'Gruppen-Tabellen'!$D$78:$AB$81,5,0),0)) -> 0 | AA44: =X44-Z44 -> 0 | AB44: =IF(OR(AND(P47="ja",Q47=""),AND(P48="ja",Q48="")),"0",IF(T48=1,VLOOKUP($T44,'Gruppen-Tabellen'!$D$78:$AB$81,7,0),0)) -> 0 | AC44: =IF(OR(AND(P47="ja",Q47=""),AND(P48="ja",Q48="")),"",IF(T48=1,VLOOKUP(V44,'Gruppen-Tabellen'!F$3:AG$81,28,0),"")) ->  | AD44: Dritt- Platzierten | AI44: Finale | DA44: ='Gen-Tab'!S24 -> Portugal | DD44: =DB44*1+DC44*3 -> 0 | DE44: =RANK(DD44,DD$43:DD$46,0) -> 1 | DF44: =RANK(DD44,DD$3:DD$46,0) -> 1 | DG44: =DF44+(VLOOKUP(DA44,'Gen-Tab'!$S$3:$V$26,4,0)/1000) -> 1.012 | DH44: =RANK(DG44,DG$3:DG$46,0) -> 13 | DI44: =DA44 -> Portugal
B45: 23 | C45: =VLOOKUP($B45,'Gen-Tab'!$B$3:$O$57,11,0) -> 2021-06-19 | D45: =VLOOKUP($B45,'Gen-Tab'!$B$3:$O$57,12,0) -> 15:00:00 | E45: =VLOOKUP($B45,'Gen-Tab'!$B$3:$O$57,7,0) -> Ungarn | F45: =VLOOKUP($B45,'Gen-Tab'!$B$3:$O$57,8,0) -> Frankreich | G45: =(VLOOKUP(L45,'Pulldown-Listen'!$B$1:$F$49,3))*1 ->  | H45: : | I45: =(VLOOKUP(L45,'Pulldown-Listen'!$B$1:$F$49,5))*1 ->  | K45: =IF(L45=0,0,VLOOKUP(L45,'Pulldown-Listen'!$B$1:$G$49,6,0)) -> 0 | T45: 3 | U45: . | V45: =IF(OR(AND(P47="ja",Q47=""),AND(P48="ja",Q48="")),"Tipps fehlen",IF(T48=1,VLOOKUP($T45,'Gruppen-Tabellen'!$D$78:$AB$81,3,0),"Tipps fehlen")) -> Tipps fehlen | W45: =IF(OR(AND(P47="ja",Q47=""),AND(P48="ja",Q48="")),"0",IF(T48=1,VLOOKUP(V45,'Gruppen-Tabellen'!$AI$78:$AJ$81,2,0),0)) -> 0 | X45: =IF(OR(AND(P47="ja",Q47=""),AND(P48="ja",Q48="")),"0",IF(T48=1,VLOOKUP($T45,'Gruppen-Tabellen'!$D$78:$AB$81,4,0),0)) -> 0 | Y45: : | Z45: =IF(OR(AND(P47="ja",Q47=""),AND(P48="ja",Q48="")),"0",IF(T48=1,VLOOKUP($T45,'Gruppen-Tabellen'!$D$78:$AB$81,5,0),0)) -> 0 | AA45: =X45-Z45 -> 0 | AB45: =IF(OR(AND(P47="ja",Q47=""),AND(P48="ja",Q48="")),"0",IF(T48=1,VLOOKUP($T45,'Gruppen-Tabellen'!$D$78:$AB$81,7,0),0)) -> 0 | AC45: =IF(OR(AND(P47="ja",Q47=""),AND(P48="ja",Q48="")),"",IF(T48=1,VLOOKUP(V45,'Gruppen-Tabellen'!F$3:AG$81,28,0),"")) ->  | AD45: =IF(V45="Tipps fehlen","",VLOOKUP(V45,'Gruppen-Tabellen'!F$95:T$100,15,0)) ->  | DA45: ='Gen-Tab'!S25 -> Frankreich | DD45: =DB45*1+DC45*3 -> 0 | DE45: =RANK(DD45,DD$43:DD$46,0) -> 1 | DF45: =RANK(DD45,DD$3:DD$46,0) -> 1 | DG45: =DF45+(VLOOKUP(DA45,'Gen-Tab'!$S$3:$V$26,4,0)/1000) -> 1.018 | DH45: 7 | DI45: =DA45 -> Frankreich
B46: 24 | C46: =VLOOKUP($B46,'Gen-Tab'!$B$3:$O$57,11,0) -> 2021-06-19 | D46: =VLOOKUP($B46,'Gen-Tab'!$B$3:$O$57,12,0) -> 18;00 | E46: =VLOOKUP($B46,'Gen-Tab'!$B$3:$O$57,7,0) -> Portugal | F46: =VLOOKUP($B46,'Gen-Tab'!$B$3:$O$57,8,0) -> Deutschland | G46: =(VLOOKUP(L46,'Pulldown-Listen'!$B$1:$F$49,3))*1 ->  | H46: : | I46: =(VLOOKUP(L46,'Pulldown-Listen'!$B$1:$F$49,5))*1 ->  | K46: =IF(L46=0,0,VLOOKUP(L46,'Pulldown-Listen'!$B$1:$G$49,6,0)) -> 0 | T46: 4 | U46: . | V46: =IF(OR(AND(P47="ja",Q47=""),AND(P48="ja",Q48="")),"Tipps fehlen",IF(T48=1,VLOOKUP($T46,'Gruppen-Tabellen'!$D$78:$AB$81,3,0),"Tipps fehlen")) -> Tipps fehlen | W46: =IF(OR(AND(P47="ja",Q47=""),AND(P48="ja",Q48="")),"0",IF(T48=1,VLOOKUP(V46,'Gruppen-Tabellen'!$AI$78:$AJ$81,2,0),0)) -> 0 | X46: =IF(OR(AND(P47="ja",Q47=""),AND(P48="ja",Q48="")),"0",IF(T48=1,VLOOKUP($T46,'Gruppen-Tabellen'!$D$78:$AB$81,4,0),0)) -> 0 | Y46: : | Z46: =IF(OR(AND(P47="ja",Q47=""),AND(P48="ja",Q48="")),"0",IF(T48=1,VLOOKUP($T46,'Gruppen-Tabellen'!$D$78:$AB$81,5,0),0)) -> 0 | AA46: =X46-Z46 -> 0 | AB46: =IF(OR(AND(P47="ja",Q47=""),AND(P48="ja",Q48="")),"0",IF(T48=1,VLOOKUP($T46,'Gruppen-Tabellen'!$D$78:$AB$81,7,0),0)) -> 0 | AC46: =IF(OR(AND(P47="ja",Q47=""),AND(P48="ja",Q48="")),"",IF(T48=1,VLOOKUP(V46,'Gruppen-Tabellen'!F$3:AG$81,28,0),"")) ->  | AE46: =IF(OR(U47="4)",U47="5)",U47="6)"),1,0) -> 0 | DA46: ='Gen-Tab'!S26 -> Deutschland | DD46: =DB46*1+DC46*3 -> 0 | DE46: =RANK(DD46,DD$43:DD$46,0) -> 1 | DF46: =RANK(DD46,DD$3:DD$46,0) -> 1 | DG46: =DF46+(VLOOKUP(DA46,'Gen-Tab'!$S$3:$V$26,4,0)/1000) -> 1.021 | DH46: 4 | DI46: =DA46 -> Deutschland
B47: 35 | C47: =VLOOKUP($B47,'Gen-Tab'!$B$3:$O$57,11,0) -> 2021-06-23 | D47: =VLOOKUP($B47,'Gen-Tab'!$B$3:$O$57,12,0) -> 21:00:00 | E47: =VLOOKUP($B47,'Gen-Tab'!$B$3:$O$57,7,0) -> Portugal | F47: =VLOOKUP($B47,'Gen-Tab'!$B$3:$O$57,8,0) -> Frankreich | G47: =(VLOOKUP(L47,'Pulldown-Listen'!$B$1:$F$49,3))*1 ->  | H47: : | I47: =(VLOOKUP(L47,'Pulldown-Listen'!$B$1:$F$49,5))*1 ->  | K47: =IF(L47=0,0,VLOOKUP(L47,'Pulldown-Listen'!$B$1:$G$49,6,0)) -> 0 | P47: ='Sub-Tab_F'!P130 -> nein | U47: =IF(OR(AC43="1)",AC44="1)",AC45="1)",AC46="1)"),VLOOKUP("1)",'Pulldown-Listen'!A$56:C$61,2,0),IF(OR(AC43="2)",AC44="2)",AC45="2)",AC46="2)"),VLOOKUP("2)",'Pulldown-Listen'!A$56:C$61,2,0),IF(OR(AC43="3)",AC44="3)",AC45="3)",AC46="3)"),VLOOKUP("3)",'Pulldown-Listen'!A$56:C$61,2,0),IF(OR(AC43="4)",AC44="4)",AC45="4)",AC46="4)"),VLOOKUP("4)",'Pulldown-Listen'!A$56:C$61,2,0),IF(OR(AC43="5)",AC44="5)",AC45="5)",AC46="5)"),VLOOKUP("5)",'Pulldown-Listen'!A$56:C$61,2,0),IF(OR(AC43="6)",AC44="6)",AC45="6)",AC46="6)"),VLOOKUP("6)",'Pulldown-Listen'!A$56:C$61,2,0),"")))))) ->  | V47: =IF(U47="","",VLOOKUP(U47,'Pulldown-Listen'!A56:C61,3,0)) ->  | AE47: =VLOOKUP(V45,'Gruppen-Tabellen'!$F$95:$P$101,11,0) -> 0 | AH47: 51 | AI47: =VLOOKUP($AH47,'Gen-Tab'!$B$3:$O$57,11,0) -> 2021-07-11 | AJ47: =VLOOKUP($AH47,'Gen-Tab'!$B$3:$O$57,12,0) -> 21:00:00 | AK47: =VLOOKUP(AH47,'Gen-Tab'!$B$49:$D$57,2,0) -> 1HF1 | AL47: =VLOOKUP(AK47,$AV$38:$AW$41,2,0) ->  | AM47: =VLOOKUP(AH47,'Gen-Tab'!$B$49:$D$57,3,0) -> 1HF2 | AN47: =VLOOKUP(AM47,$AV$38:$AW$41,2,0) ->  | AO47: =(VLOOKUP(AS47,'Pulldown-Listen'!$B$1:$F$49,3))*1 ->  | AP47: : | AQ47: =(VLOOKUP(AS47,'Pulldown-Listen'!$B$1:$F$49,5))*1 ->  | AT47: =IF(AS47=0,0,VLOOKUP(AS47,'Pulldown-Listen'!$B$1:$G$49,6,0)) -> 0 | AV47: 1F | AW47: =IF(AND(AZ47="ja",OR(AT47=1,AU47=1)),AL47,IF(AND(AZ47="ja",OR(AT47=2,AU47=2)),AN47,IF(AND(AZ47="nein",AT47=1),AL47,IF(AND(AZ47="nein",AT47=2),AN47,"")))) ->  | AY47: =VLOOKUP(AN47,'Gen-Tab'!$S$3:$T$26,2,0) ->  | AZ47: =IF(AT47="X","ja","nein") -> nein | BA47: =IF(AT47=0,"",IF(AZ47="nein","",IF(AND(AZ47="ja",AU47>0),"","Elfmeterschießen tippen !"))) ->  | BB47: 2F | BC47: =IF(AW47=AL47:AL47,AN47,AL47) ->  | DJ47: =COUNTA(DB43:DC46) -> 0
B48: 36 | C48: =VLOOKUP($B48,'Gen-Tab'!$B$3:$O$57,11,0) -> 2021-06-23 | D48: =VLOOKUP($B48,'Gen-Tab'!$B$3:$O$57,12,0) -> 21:00:00 | E48: =VLOOKUP($B48,'Gen-Tab'!$B$3:$O$57,7,0) -> Deutschland | F48: =VLOOKUP($B48,'Gen-Tab'!$B$3:$O$57,8,0) -> Ungarn | G48: =(VLOOKUP(L48,'Pulldown-Listen'!$B$1:$F$49,3))*1 ->  | H48: : | I48: =(VLOOKUP(L48,'Pulldown-Listen'!$B$1:$F$49,5))*1 ->  | K48: =IF(L48=0,0,VLOOKUP(L48,'Pulldown-Listen'!$B$1:$G$49,6,0)) -> 0 | P48: ='Sub-Tab_F'!P131 -> nein | T48: =IF('Gruppen-Tabellen'!AJ82=12,1,0) -> 0 | U48: =IF(SUM(W43:W46)=12,1,0) -> 0 | AE48: =$DJ$49 -> 0
AN49: =BA47 ->  | DJ49: =SUM(DJ7:DJ48) -> 0
T50: =T8+T16+T24+T32+T40+T48 -> 0 | AE50: =COUNTIF(AE2:AE48,"J") -> 0
AI52: Mein Europameister heißt | AN52: =AW47 ->  | AY52: =VLOOKUP(AN52,'Gen-Tab'!$S$3:$T$18,2,0) -> 
C54: Nachname | E54: ='1'!C7 -> 0
C55: Vorname | E55: ='1'!C6 -> 0
AI56: Ich nehme mit meinen Tipps am Wagner-Cup teil. Durch Drücken des OK-Buttons bestätige ich, dass ich die Spielregeln (AGB) gelesen und akzeptiert habe. ACHTUNG: Nach Drücken des OK-Buttons können die Tipps nicht mehr verändert werden.
C57: Mein Statement Kann hier noch überschrieben werden | E57: ='1'!C10 -> 0

Sheet Quicktipp
C2: Gruppe A | Q2: =IF(OR(P7="ja",P8="ja"),"Bei diesen Ergebnissen entscheidet ein Penalty-Schießen über die endgültige Tabellen- platzierung. Tragen Sie Ihren Tipp im entsprechenden Kästchen ein (1 oder 2)","") ->  | T2: Gruppe A | AE2: =IF(OR(AE6=1,AE7="X"),"J","N") -> N | AG2: =VLOOKUP(AE7,'Pulldown-Listen'!A$132:B$133,2,0) -> . | AI2: Achtel-Finale
B3: 1 | C3: =VLOOKUP($B3,'Gen-Tab_Quick'!$B$3:$O$57,11,0) -> 2021-06-11 | D3: =VLOOKUP($B3,'Gen-Tab_Quick'!$B$3:$O$57,12,0) -> 21:00:00 | E3: =VLOOKUP($B3,'Gen-Tab_Quick'!$B$3:$O$57,7,0) -> Türkei | F3: =VLOOKUP($B3,'Gen-Tab_Quick'!$B$3:$O$57,8,0) -> Italien | G3: =(VLOOKUP(L3,'Pulldown-Listen'!$B$1:$F$49,3))*1 -> 3 | H3: : | I3: =(VLOOKUP(L3,'Pulldown-Listen'!$B$1:$F$49,5))*1 -> 5 | K3: =IF(L3=0,0,VLOOKUP(L3,'Pulldown-Listen'!$B$1:$G$49,6,0)) -> 2 | L3: =VLOOKUP(M3,'Pulldown-Listen'!$I$1:$K$49,3,0) -> 32 | M3: =IF(N3=1,RANDBETWEEN(8,28),IF(N3=2,RANDBETWEEN(1,7),RANDBETWEEN(29,49))) -> 40 | N3: =ROUND(IF(AND(O3<=6,O3>=-6),RANDBETWEEN(1,3),IF(AND(O3>6,O3<12),(RANDBETWEEN(10,27)/10)-0.3,IF(O3>=12,(RANDBETWEEN(10,25)/10)-0.5,IF(O3<=-12,(RANDBETWEEN(15,30)/10)+0.49,(RANDBETWEEN(13,30)/10)+0.3)))),0) -> 3 | O3: =ROUND((VLOOKUP(E3,'Gen-Tab_Quick'!$S$3:$V$26,4,0)-VLOOKUP(F3,'Gen-Tab_Quick'!$S$3:$V$26,4,0))/1000,0) -> 0 | T3: 1 | U3: . | V3: =IF(T8=1,VLOOKUP($T3,'Grupp-Tab-Quick'!$D$3:$AB$6,3,0),"Tipps fehlen") -> Schweiz | W3: =VLOOKUP(V3,'Grupp-Tab-Quick'!$AI$3:$AJ$6,2,0) -> 3 | X3: =IF(T8=1,VLOOKUP($T3,'Grupp-Tab-Quick'!$D$3:$AB$6,4,0),0) -> 8 | Y3: : | Z3: =IF(T8=1,VLOOKUP($T3,'Grupp-Tab-Quick'!$D$3:$AB$6,5,0),0) -> 2 | AA3: =X3-Z3 -> 6 | AB3: =IF(T8=1,VLOOKUP($T3,'Grupp-Tab-Quick'!$D$3:$AB$6,7,0),0) -> 7 | AC3: =IF(T8=1,VLOOKUP(V3,'Grupp-Tab-Quick'!F$3:AG$6,28,0),"") ->  | AD3: Reihung unter den
B4: 2 | C4: =VLOOKUP($B4,'Gen-Tab_Quick'!$B$3:$O$57,11,0) -> 2021-06-12 | D4: =VLOOKUP($B4,'Gen-Tab_Quick'!$B$3:$O$57,12,0) -> 15:00:00 | E4: =VLOOKUP($B4,'Gen-Tab_Quick'!$B$3:$O$57,7,0) -> Wales | F4: =VLOOKUP($B4,'Gen-Tab_Quick'!$B$3:$O$57,8,0) -> Schweiz | G4: =(VLOOKUP(L4,'Pulldown-Listen'!$B$1:$F$49,3))*1 -> 1 | H4: : | I4: =(VLOOKUP(L4,'Pulldown-Listen'!$B$1:$F$49,5))*1 -> 4 | K4: =IF(L4=0,0,VLOOKUP(L4,'Pulldown-Listen'!$B$1:$G$49,6,0)) -> 2 | L4: =VLOOKUP(M4,'Pulldown-Listen'!$I$1:$K$49,3,0) -> 23 | M4: 37 | N4: 3 | O4: =ROUND((VLOOKUP(E4,'Gen-Tab_Quick'!$S$3:$V$26,4,0)-VLOOKUP(F4,'Gen-Tab_Quick'!$S$3:$V$26,4,0))/1000,0) -> 0 | T4: 2 | U4: . | V4: =IF(T8=1,VLOOKUP($T4,'Grupp-Tab-Quick'!$D$3:$AB$6,3,0),"Tipps fehlen") -> Italien | W4: =VLOOKUP(V4,'Grupp-Tab-Quick'!$AI$3:$AJ$6,2,0) -> 3 | X4: =IF(T8=1,VLOOKUP($T4,'Grupp-Tab-Quick'!$D$3:$AB$6,4,0),0) -> 9 | Y4: : | Z4: =IF(T8=1,VLOOKUP($T4,'Grupp-Tab-Quick'!$D$3:$AB$6,5,0),0) -> 10 | AA4: =X4-Z4 -> -1 | AB4: =IF(T8=1,VLOOKUP($T4,'Grupp-Tab-Quick'!$D$3:$AB$6,7,0),0) -> 4 | AC4: =IF(T8=1,VLOOKUP(V4,'Grupp-Tab-Quick'!F$3:AG$6,28,0),"") -> 3) | AD4: Dritt- Platzierten | AH4: 37 | AI4: =VLOOKUP($AH4,'Gen-Tab_Quick'!$B$3:$O$57,11,0) -> 2021-06-26 | AJ4: =VLOOKUP($AH4,'Gen-Tab_Quick'!$B$3:$O$57,12,0) -> 18:00:00 | AK4: =VLOOKUP(AH4,'Gen-Tab_Quick'!$B$3:$O$57,2,0) -> 2A | AL4: =IF(T8=1,VLOOKUP(AK4,'Grupp-Tab-Quick'!$AH$3:$AI$90,2,0),"") -> Italien | AM4: =VLOOKUP(AH4,'Gen-Tab_Quick'!$B$3:$O$57,3,0) -> 2B | AN4: =IF(T24=1,VLOOKUP(AM4,'Grupp-Tab-Quick'!$AH$3:$AI$90,2,0),"") -> Finnland | AO4: =(VLOOKUP(AS4,'Pulldown-Listen'!$B$1:$F$49,3))*1 -> 5 | AP4: : | AQ4: =(VLOOKUP(AS4,'Pulldown-Listen'!$B$1:$F$49,5))*1 -> 4 | AS4: =VLOOKUP(BF4,'Pulldown-Listen'!$I$1:$K$49,3,0) -> 30 | AT4: =IF(AS4=0,0,VLOOKUP(AS4,'Pulldown-Listen'!$B$1:$G$49,6,0)) -> 1 | AU4: =RANDBETWEEN(1,2) -> 2 | AV4: 1AF1 | AW4: =IF(AND(AZ4="ja",OR(AT4=1,AU4=1)),AL4,IF(AND(AZ4="ja",OR(AT4=2,AU4=2)),AN4,IF(AND(AZ4="nein",AT4=1),AL4,IF(AND(AZ4="nein",AT4=2),AN4,"")))) -> Italien | AX4: =VLOOKUP(AL4,'Gen-Tab_Quick'!$S$3:$T$26,2,0) -> A2 | AY4: =VLOOKUP(AN4,'Gen-Tab_Quick'!$S$3:$T$26,2,0) -> B2 | AZ4: =IF(AT4="X","ja","nein") -> nein | BA4: =IF(AT4=0,"",IF(AZ4="nein","",IF(AND(AZ4="ja",AU4>0),"","Elfmeterschießen tippen !"))) ->  | BB4: 2AF1 | BC4: =IF(AW4=AL4:AL4,AN4,AL4) -> Finnland | BE4: =VLOOKUP(BF4,'Pulldown-Listen'!$I$1:$K$49,3,0) -> 30 | BF4: =IF(BG4=1,RANDBETWEEN(8,28),IF(BG4=2,RANDBETWEEN(1,7),RANDBETWEEN(29,49))) -> 22 | BG4: =ROUND(IF(AND(BH4<=6,BH4>=-6),RANDBETWEEN(1,3),IF(AND(BH4>6,BH4<12),(RANDBETWEEN(10,27)/10)-0.3,IF(BH4>=12,(RANDBETWEEN(10,25)/10)-0.5,IF(BH4<=-12,(RANDBETWEEN(15,30)/10)+0.49,(RANDBETWEEN(13,30)/10)+0.3)))),0) -> 1 | BH4: =ROUND((VLOOKUP(AL4,'Gen-Tab_Quick'!$S$3:$V$26,4,0)-VLOOKUP(AN4,'Gen-Tab_Quick'!$S$3:$V$26,4,0))/1000,0) -> 0
B5: 13 | C5: =VLOOKUP($B5,'Gen-Tab_Quick'!$B$3:$O$57,11,0) -> 2021-06-16 | D5: =VLOOKUP($B5,'Gen-Tab_Quick'!$B$3:$O$57,12,0) -> 18:00:00 | E5: =VLOOKUP($B5,'Gen-Tab_Quick'!$B$3:$O$57,7,0) -> Türkei | F5: =VLOOKUP($B5,'Gen-Tab_Quick'!$B$3:$O$57,8,0) -> Wales | G5: =(VLOOKUP(L5,'Pulldown-Listen'!$B$1:$F$49,3))*1 -> 5 | H5: : | I5: =(VLOOKUP(L5,'Pulldown-Listen'!$B$1:$F$49,5))*1 -> 4 | K5: =IF(L5=0,0,VLOOKUP(L5,'Pulldown-Listen'!$B$1:$G$49,6,0)) -> 1 | L5: =VLOOKUP(M5,'Pulldown-Listen'!$I$1:$K$49,3,0) -> 30 | M5: 22 | N5: 1 | O5: =ROUND((VLOOKUP(E5,'Gen-Tab_Quick'!$S$3:$V$26,4,0)-VLOOKUP(F5,'Gen-Tab_Quick'!$S$3:$V$26,4,0))/1000,0) -> 0 | T5: 3 | U5: . | V5: =IF(T8=1,VLOOKUP($T5,'Grupp-Tab-Quick'!$D$3:$AB$6,3,0),"Tipps fehlen") -> Türkei | W5: =VLOOKUP(V5,'Grupp-Tab-Quick'!$AI$3:$AJ$6,2,0) -> 3 | X5: =IF(T8=1,VLOOKUP($T5,'Grupp-Tab-Quick'!$D$3:$AB$6,4,0),0) -> 9 | Y5: : | Z5: =IF(T8=1,VLOOKUP($T5,'Grupp-Tab-Quick'!$D$3:$AB$6,5,0),0) -> 10 | AA5: =X5-Z5 -> -1 | AB5: =IF(T8=1,VLOOKUP($T5,'Grupp-Tab-Quick'!$D$3:$AB$6,7,0),0) -> 4 | AC5: =IF(T8=1,VLOOKUP(V5,'Grupp-Tab-Quick'!F$3:AG$6,28,0),"") -> 3) | AD5: =VLOOKUP(V5,'Grupp-Tab-Quick'!F$95:T$100,15,0) -> 2
B6: 14 | C6: =VLOOKUP($B6,'Gen-Tab_Quick'!$B$3:$O$57,11,0) -> 2021-06-16 | D6: =VLOOKUP($B6,'Gen-Tab_Quick'!$B$3:$O$57,12,0) -> 21:00:00 | E6: =VLOOKUP($B6,'Gen-Tab_Quick'!$B$3:$O$57,7,0) -> Italien | F6: =VLOOKUP($B6,'Gen-Tab_Quick'!$B$3:$O$57,8,0) -> Schweiz | G6: =(VLOOKUP(L6,'Pulldown-Listen'!$B$1:$F$49,3))*1 -> 0 | H6: : | I6: =(VLOOKUP(L6,'Pulldown-Listen'!$B$1:$F$49,5))*1 -> 3 | K6: =IF(L6=0,0,VLOOKUP(L6,'Pulldown-Listen'!$B$1:$G$49,6,0)) -> 2 | L6: =VLOOKUP(M6,'Pulldown-Listen'!$I$1:$K$49,3,0) -> 15 | M6: 34 | N6: 3 | O6: =ROUND((VLOOKUP(E6,'Gen-Tab_Quick'!$S$3:$V$26,4,0)-VLOOKUP(F6,'Gen-Tab_Quick'!$S$3:$V$26,4,0))/1000,0) -> 0 | T6: 4 | U6: . | V6: =IF(T8=1,VLOOKUP($T6,'Grupp-Tab-Quick'!$D$3:$AB$6,3,0),"Tipps fehlen") -> Wales | W6: =VLOOKUP(V6,'Grupp-Tab-Quick'!$AI$3:$AJ$6,2,0) -> 3 | X6: =IF(T8=1,VLOOKUP($T6,'Grupp-Tab-Quick'!$D$3:$AB$6,4,0),0) -> 9 | Y6: : | Z6: =IF(T8=1,VLOOKUP($T6,'Grupp-Tab-Quick'!$D$3:$AB$6,5,0),0) -> 13 | AA6: =X6-Z6 -> -4 | AB6: =IF(T8=1,VLOOKUP($T6,'Grupp-Tab-Quick'!$D$3:$AB$6,7,0),0) -> 1 | AC6: =IF(T8=1,VLOOKUP(V6,'Grupp-Tab-Quick'!F$3:AG$6,28,0),"") ->  | AE6: =IF(OR(U7="4)",U7="5)",U7="6)"),1,0) -> 0 | AH6: 38 | AI6: =VLOOKUP($AH6,'Gen-Tab_Quick'!$B$3:$O$57,11,0) -> 2021-06-26 | AJ6: =VLOOKUP($AH6,'Gen-Tab_Quick'!$B$3:$O$57,12,0) -> 21:00:00 | AK6: =VLOOKUP(AH6,'Gen-Tab_Quick'!$B$3:$O$57,2,0) -> 1A | AL6: =IF(T32=1,VLOOKUP(AK6,'Grupp-Tab-Quick'!$AH$3:$AI$90,2,0),"") -> Schweiz | AM6: =VLOOKUP(AH6,'Gen-Tab_Quick'!$B$3:$O$57,3,0) -> 2C | AN6: =IF(T16=1,VLOOKUP(AM6,'Grupp-Tab-Quick'!$AH$3:$AI$90,2,0),"") -> Österreich | AO6: =(VLOOKUP(AS6,'Pulldown-Listen'!$B$1:$F$49,3))*1 -> 5 | AP6: : | AQ6: =(VLOOKUP(AS6,'Pulldown-Listen'!$B$1:$F$49,5))*1 -> 3 | AS6: =VLOOKUP(BF6,'Pulldown-Listen'!$I$1:$K$49,3,0) -> 29 | AT6: =IF(AS6=0,0,VLOOKUP(AS6,'Pulldown-Listen'!$B$1:$G$49,6,0)) -> 1 | AU6: =RANDBETWEEN(1,2) -> 2 | AV6: 1AF2 | AW6: =IF(AND(AZ6="ja",OR(AT6=1,AU6=1)),AL6,IF(AND(AZ6="ja",OR(AT6=2,AU6=2)),AN6,IF(AND(AZ6="nein",AT6=1),AL6,IF(AND(AZ6="nein",AT6=2),AN6,"")))) -> Schweiz | AX6: =VLOOKUP(AL6,'Gen-Tab_Quick'!$S$3:$T$26,2,0) -> A4 | AY6: =VLOOKUP(AN6,'Gen-Tab_Quick'!$S$3:$T$26,2,0) -> C3 | AZ6: =IF(AT6="X","ja","nein") -> nein | BA6: =IF(AT6=0,"",IF(AZ6="nein","",IF(AND(AZ6="ja",AU6>0),"","Elfmeterschießen tippen !"))) ->  | BB6: 2AF2 | BC6: =IF(AW6=AL6:AL6,AN6,AL6) -> Österreich | BE6: =VLOOKUP(BF6,'Pulldown-Listen'!$I$1:$K$49,3,0) -> 29 | BF6: =IF(BG6=1,RANDBETWEEN(8,28),IF(BG6=2,RANDBETWEEN(1,7),RANDBETWEEN(29,49))) -> 21 | BG6: =ROUND(IF(AND(BH6<=6,BH6>=-6),RANDBETWEEN(1,3),IF(AND(BH6>6,BH6<12),(RANDBETWEEN(10,27)/10)-0.3,IF(BH6>=12,(RANDBETWEEN(10,25)/10)-0.5,IF(BH6<=-12,(RANDBETWEEN(15,30)/10)+0.49,(RANDBETWEEN(13,30)/10)+0.3)))),0) -> 1 | BH6: =ROUND((VLOOKUP(AL6,'Gen-Tab_Quick'!$S$3:$V$26,4,0)-VLOOKUP(AN6,'Gen-Tab_Quick'!$S$3:$V$26,4,0))/1000,0) -> 0
B7: 25 | C7: =VLOOKUP($B7,'Gen-Tab_Quick'!$B$3:$O$57,11,0) -> 2021-06-20 | D7: =VLOOKUP($B7,'Gen-Tab_Quick'!$B$3:$O$57,12,0) -> 18:00:00 | E7: =VLOOKUP($B7,'Gen-Tab_Quick'!$B$3:$O$57,7,0) -> Schweiz | F7: =VLOOKUP($B7,'Gen-Tab_Quick'!$B$3:$O$57,8,0) -> Türkei | G7: =(VLOOKUP(L7,'Pulldown-Listen'!$B$1:$F$49,3))*1 -> 1 | H7: : | I7: =(VLOOKUP(L7,'Pulldown-Listen'!$B$1:$F$49,5))*1 -> 1 | K7: =IF(L7=0,0,VLOOKUP(L7,'Pulldown-Listen'!$B$1:$G$49,6,0)) -> X | L7: =VLOOKUP(M7,'Pulldown-Listen'!$I$1:$K$49,3,0) -> 4 | M7: 2 | N7: 2 | O7: =ROUND((VLOOKUP(E7,'Gen-Tab_Quick'!$S$3:$V$26,4,0)-VLOOKUP(F7,'Gen-Tab_Quick'!$S$3:$V$26,4,0))/1000,0) -> 0 | P7: ='Sub-Tab_A_Quick'!P130 -> nein | Q7: =RANDBETWEEN(1,2) -> 1 | U7: =IF(OR(AC3="1)",AC4="1)",AC5="1)",AC6="1)"),VLOOKUP("1)",'Pulldown-Listen'!A$56:C$61,2,0),IF(OR(AC3="2)",AC4="2)",AC5="2)",AC6="2)"),VLOOKUP("2)",'Pulldown-Listen'!A$56:C$61,2,0),IF(OR(AC3="3)",AC4="3)",AC5="3)",AC6="3)"),VLOOKUP("3)",'Pulldown-Listen'!A$56:C$61,2,0),IF(OR(AC3="4)",AC4="4)",AC5="4)",AC6="4)"),VLOOKUP("4)",'Pulldown-Listen'!A$56:C$61,2,0),IF(OR(AC3="5)",AC4="5)",AC5="5)",AC6="5)"),VLOOKUP("5)",'Pulldown-Listen'!A$56:C$61,2,0),IF(OR(AC3="6)",AC4="6)",AC5="6)",AC6="6)"),VLOOKUP("6)",'Pulldown-Listen'!A$56:C$61,2,0),"")))))) -> 3) | V7: =IF(U7="","",VLOOKUP(U7,'Pulldown-Listen'!A56:C61,3,0)) -> Tabellenrang durch direkte Begegnung bestimmt | AE7: =VLOOKUP(V5,'Grupp-Tab-Quick'!$F$95:$P$100,11,0) -> N | AG7: =VLOOKUP(AE8,'Pulldown-Listen'!A$135:B$136,2,0) -> 
B8: 26 | C8: =VLOOKUP($B8,'Gen-Tab_Quick'!$B$3:$O$57,11,0) -> 2021-06-20 | D8: =VLOOKUP($B8,'Gen-Tab_Quick'!$B$3:$O$57,12,0) -> 18:00:00 | E8: =VLOOKUP($B8,'Gen-Tab_Quick'!$B$3:$O$57,7,0) -> Italien | F8: =VLOOKUP($B8,'Gen-Tab_Quick'!$B$3:$O$57,8,0) -> Wales | G8: =(VLOOKUP(L8,'Pulldown-Listen'!$B$1:$F$49,3))*1 -> 4 | H8: : | I8: =(VLOOKUP(L8,'Pulldown-Listen'!$B$1:$F$49,5))*1 -> 4 | K8: =IF(L8=0,0,VLOOKUP(L8,'Pulldown-Listen'!$B$1:$G$49,6,0)) -> X | L8: =VLOOKUP(M8,'Pulldown-Listen'!$I$1:$K$49,3,0) -> 25 | M8: 5 | N8: 2 | O8: =ROUND((VLOOKUP(E8,'Gen-Tab_Quick'!$S$3:$V$26,4,0)-VLOOKUP(F8,'Gen-Tab_Quick'!$S$3:$V$26,4,0))/1000,0) -> 0 | P8: ='Sub-Tab_A_Quick'!P131 -> nein | Q8: =RANDBETWEEN(1,2) -> 1 | T8: =IF('Grupp-Tab-Quick'!AJ7=12,1,0) -> 1 | U8: =IF(SUM(W3:W6)=12,1,0) -> 1 | AE8: =AE7 -> N | AH8: 39 | AI8: =VLOOKUP($AH8,'Gen-Tab_Quick'!$B$3:$O$57,11,0) -> 2021-06-27 | AJ8: =VLOOKUP($AH8,'Gen-Tab_Quick'!$B$3:$O$57,12,0) -> 18:00:00 | AK8: =VLOOKUP(AH8,'Gen-Tab_Quick'!$B$3:$O$57,2,0) -> 1C | AL8: =IF(T16=1,VLOOKUP(AK8,'Grupp-Tab-Quick'!$AH$3:$AI$90,2,0),"") -> Nordmazedonien | AM8: =VLOOKUP(AH8,'Gen-Tab_Quick'!$B$3:$O$57,3,0) -> 3D | AN8: =IF(T32=1,VLOOKUP(AM8,'Grupp-Tab-Quick'!$AH$3:$AI$90,2,0),"") -> Kroatien | AO8: =(VLOOKUP(AS8,'Pulldown-Listen'!$B$1:$F$49,3))*1 -> 1 | AP8: : | AQ8: =(VLOOKUP(AS8,'Pulldown-Listen'!$B$1:$F$49,5))*1 -> 0 | AS8: =VLOOKUP(BF8,'Pulldown-Listen'!$I$1:$K$49,3,0) -> 2 | AT8: =IF(AS8=0,0,VLOOKUP(AS8,'Pulldown-Listen'!$B$1:$G$49,6,0)) -> 1 | AU8: =RANDBETWEEN(1,2) -> 1 | AV8: 1AF3 | AW8: =IF(AND(AZ8="ja",OR(AT8=1,AU8=1)),AL8,IF(AND(AZ8="ja",OR(AT8=2,AU8=2)),AN8,IF(AND(AZ8="nein",AT8=1),AL8,IF(AND(AZ8="nein",AT8=2),AN8,"")))) -> Nordmazedonien | AX8: =VLOOKUP(AL8,'Gen-Tab_Quick'!$S$3:$T$26,2,0) -> C4 | AY8: =VLOOKUP(AN8,'Gen-Tab_Quick'!$S$3:$T$26,2,0) -> D2 | AZ8: =IF(AT8="X","ja","nein") -> nein | BA8: =IF(AT8=0,"",IF(AZ8="nein","",IF(AND(AZ8="ja",AU8>0),"","Elfmeterschießen tippen !"))) ->  | BB8: 2AF3 | BC8: =IF(AW8=AL8:AL8,AN8,AL8) -> Kroatien | BE8: =VLOOKUP(BF8,'Pulldown-Listen'!$I$1:$K$49,3,0) -> 2 | BF8: =IF(BG8=1,RANDBETWEEN(8,28),IF(BG8=2,RANDBETWEEN(1,7),RANDBETWEEN(29,49))) -> 8 | BG8: =ROUND(IF(AND(BH8<=6,BH8>=-6),RANDBETWEEN(1,3),IF(AND(BH8>6,BH8<12),(RANDBETWEEN(10,27)/10)-0.3,IF(BH8>=12,(RANDBETWEEN(10,25)/10)-0.5,IF(BH8<=-12,(RANDBETWEEN(15,30)/10)+0.49,(RANDBETWEEN(13,30)/10)+0.3)))),0) -> 1 | BH8: =ROUND((VLOOKUP(AL8,'Gen-Tab_Quick'!$S$3:$V$26,4,0)-VLOOKUP(AN8,'Gen-Tab_Quick'!$S$3:$V$26,4,0))/1000,0) -> 0 | BJ8: 1 | BK8: =RANDBETWEEN(1,6) -> 5 | BL8: =BK8 -> 5 | BM8: =_xlfn.RANK.EQ(BL8,$BL$8:$BL$14,1) -> 4
BJ9: 2 | BK9: 5 | BL9: =IF(BK9=BK8,BK9+0.1,BK9) -> 5.1 | BM9: 5
C10: Gruppe B | Q10: =IF(OR(P15="ja",P16="ja"),"Bei diesen Ergebnissen entscheidet ein Penalty-Schießen über die endgültige Tabellen- platzierung. Tragen Sie Ihren Tipp im entsprechenden Kästchen ein (1 oder 2)","") ->  | T10: Gruppe B | AE10: =IF(OR(AE14=1,AE15="X"),"J","N") -> N | AG10: =VLOOKUP(AE15,'Pulldown-Listen'!A$132:B$133,2,0) -> . | AH10: 40 | AI10: =VLOOKUP($AH10,'Gen-Tab_Quick'!$B$3:$O$57,11,0) -> 2021-06-27 | AJ10: =VLOOKUP($AH10,'Gen-Tab_Quick'!$B$3:$O$57,12,0) -> 21:00:00 | AK10: =VLOOKUP(AH10,'Gen-Tab_Quick'!$B$3:$O$57,2,0) -> 1B | AL10: =IF(T48=1,VLOOKUP(AK10,'Grupp-Tab-Quick'!$AH$3:$AI$90,2,0),"") -> Dänemark | AM10: =VLOOKUP(AH10,'Gen-Tab_Quick'!$B$3:$O$57,3,0) -> 3E | AN10: =IF(T40=1,VLOOKUP(AM10,'Grupp-Tab-Quick'!$AH$3:$AI$90,2,0),"") -> Spanien | AO10: =(VLOOKUP(AS10,'Pulldown-Listen'!$B$1:$F$49,3))*1 -> 2 | AP10: : | AQ10: =(VLOOKUP(AS10,'Pulldown-Listen'!$B$1:$F$49,5))*1 -> 4 | AS10: =VLOOKUP(BF10,'Pulldown-Listen'!$I$1:$K$49,3,0) -> 22 | AT10: =IF(AS10=0,0,VLOOKUP(AS10,'Pulldown-Listen'!$B$1:$G$49,6,0)) -> 2 | AU10: =RANDBETWEEN(1,2) -> 2 | AV10: 1AF4 | AW10: =IF(AND(AZ10="ja",OR(AT10=1,AU10=1)),AL10,IF(AND(AZ10="ja",OR(AT10=2,AU10=2)),AN10,IF(AND(AZ10="nein",AT10=1),AL10,IF(AND(AZ10="nein",AT10=2),AN10,"")))) -> Spanien | AX10: =VLOOKUP(AL10,'Gen-Tab_Quick'!$S$3:$T$26,2,0) -> B1 | AY10: =VLOOKUP(AN10,'Gen-Tab_Quick'!$S$3:$T$26,2,0) -> E1 | AZ10: =IF(AT10="X","ja","nein") -> nein | BA10: =IF(AT10=0,"",IF(AZ10="nein","",IF(AND(AZ10="ja",AU10>0),"","Elfmeterschießen tippen !"))) ->  | BB10: 2AF4 | BC10: =IF(AW10=AL10:AL10,AN10,AL10) -> Dänemark | BE10: =VLOOKUP(BF10,'Pulldown-Listen'!$I$1:$K$49,3,0) -> 22 | BF10: =IF(BG10=1,RANDBETWEEN(8,28),IF(BG10=2,RANDBETWEEN(1,7),RANDBETWEEN(29,49))) -> 36 | BG10: =ROUND(IF(AND(BH10<=6,BH10>=-6),RANDBETWEEN(1,3),IF(AND(BH10>6,BH10<12),(RANDBETWEEN(10,27)/10)-0.3,IF(BH10>=12,(RANDBETWEEN(10,25)/10)-0.5,IF(BH10<=-12,(RANDBETWEEN(15,30)/10)+0.49,(RANDBETWEEN(13,30)/10)+0.3)))),0) -> 3 | BH10: =ROUND((VLOOKUP(AL10,'Gen-Tab_Quick'!$S$3:$V$26,4,0)-VLOOKUP(AN10,'Gen-Tab_Quick'!$S$3:$V$26,4,0))/1000,0) -> 0 | BJ10: 3 | BK10: 4 | BL10: =IF(OR(BK10=BK8,BK10=BK9),BK10+0.2,BK10) -> 4 | BM10: 3
B11: 3 | C11: =VLOOKUP($B11,'Gen-Tab_Quick'!$B$3:$O$57,11,0) -> 2021-06-12 | D11: =VLOOKUP($B11,'Gen-Tab_Quick'!$B$3:$O$57,12,0) -> 18:00:00 | E11: =VLOOKUP($B11,'Gen-Tab_Quick'!$B$3:$O$57,7,0) -> Dänemark | F11: =VLOOKUP($B11,'Gen-Tab_Quick'!$B$3:$O$57,8,0) -> Finnland | G11: =(VLOOKUP(L11,'Pulldown-Listen'!$B$1:$F$49,3))*1 -> 4 | H11: : | I11: =(VLOOKUP(L11,'Pulldown-Listen'!$B$1:$F$49,5))*1 -> 3 | K11: =IF(L11=0,0,VLOOKUP(L11,'Pulldown-Listen'!$B$1:$G$49,6,0)) -> 1 | L11: =VLOOKUP(M11,'Pulldown-Listen'!$I$1:$K$49,3,0) -> 20 | M11: =IF(N11=1,RANDBETWEEN(8,28),IF(N11=2,RANDBETWEEN(1,7),RANDBETWEEN(29,49))) -> 17 | N11: =ROUND(IF(AND(O11<=6,O11>=-6),RANDBETWEEN(1,3),IF(AND(O11>6,O11<12),(RANDBETWEEN(10,27)/10)-0.3,IF(O11>=12,(RANDBETWEEN(10,25)/10)-0.5,IF(O11<=-12,(RANDBETWEEN(15,30)/10)+0.49,(RANDBETWEEN(13,30)/10)+0.3)))),0) -> 1 | O11: =ROUND((VLOOKUP(E11,'Gen-Tab_Quick'!$S$3:$V$26,4,0)-VLOOKUP(F11,'Gen-Tab_Quick'!$S$3:$V$26,4,0))/1000,0) -> 0 | T11: 1 | U11: . | V11: =IF(T16=1,VLOOKUP($T11,'Grupp-Tab-Quick'!$D$18:$AB$21,3,0),"Tipps fehlen") -> Dänemark | W11: =VLOOKUP(V11,'Grupp-Tab-Quick'!$AI$18:$AJ$21,2,0) -> 3 | X11: =IF(T16=1,VLOOKUP($T11,'Grupp-Tab-Quick'!$D$18:$AB$21,4,0),0) -> 11 | Y11: : | Z11: =IF(T16=1,VLOOKUP($T11,'Grupp-Tab-Quick'!$D$18:$AB$21,5,0),0) -> 8 | AA11: =X11-Z11 -> 3 | AB11: =IF(T16=1,VLOOKUP($T11,'Grupp-Tab-Quick'!$D$18:$AB$21,7,0),0) -> 7 | AC11: =IF(T16=1,VLOOKUP(V11,'Grupp-Tab-Quick'!F$18:AG$21,28,0),"") ->  | AD11: Reihung unter den | BJ11: 4 | BK11: 5 | BL11: =IF(OR(BK11=BK10,BK11=BK9,BK11=BK8),BK11+0.3,BK11) -> 5.3 | BM11: 6
B12: 4 | C12: =VLOOKUP($B12,'Gen-Tab_Quick'!$B$3:$O$57,11,0) -> 2021-06-12 | D12: =VLOOKUP($B12,'Gen-Tab_Quick'!$B$3:$O$57,12,0) -> 21:00:00 | E12: =VLOOKUP($B12,'Gen-Tab_Quick'!$B$3:$O$57,7,0) -> Belgien | F12: =VLOOKUP($B12,'Gen-Tab_Quick'!$B$3:$O$57,8,0) -> Russland | G12: =(VLOOKUP(L12,'Pulldown-Listen'!$B$1:$F$49,3))*1 -> 2 | H12: : | I12: =(VLOOKUP(L12,'Pulldown-Listen'!$B$1:$F$49,5))*1 -> 5 | K12: =IF(L12=0,0,VLOOKUP(L12,'Pulldown-Listen'!$B$1:$G$49,6,0)) -> 2 | L12: =VLOOKUP(M12,'Pulldown-Listen'!$I$1:$K$49,3,0) -> 33 | M12: 41 | N12: 3 | O12: =ROUND((VLOOKUP(E12,'Gen-Tab_Quick'!$S$3:$V$26,4,0)-VLOOKUP(F12,'Gen-Tab_Quick'!$S$3:$V$26,4,0))/1000,0) -> 0 | T12: 2 | U12: . | V12: =IF(T16=1,VLOOKUP($T12,'Grupp-Tab-Quick'!$D$18:$AB$21,3,0),"Tipps fehlen") -> Finnland | W12: =VLOOKUP(V12,'Grupp-Tab-Quick'!$AI$18:$AJ$21,2,0) -> 3 | X12: =IF(T16=1,VLOOKUP($T12,'Grupp-Tab-Quick'!$D$18:$AB$21,4,0),0) -> 13 | Y12: : | Z12: =IF(T16=1,VLOOKUP($T12,'Grupp-Tab-Quick'!$D$18:$AB$21,5,0),0) -> 7 | AA12: =X12-Z12 -> 6 | AB12: =IF(T16=1,VLOOKUP($T12,'Grupp-Tab-Quick'!$D$18:$AB$21,7,0),0) -> 6 | AC12: =IF(T16=1,VLOOKUP(V12,'Grupp-Tab-Quick'!F$18:AG$21,28,0),"") ->  | AD12: Dritt- Platzierten | AH12: 41 | AI12: =VLOOKUP($AH12,'Gen-Tab_Quick'!$B$3:$O$57,11,0) -> 2021-06-28 | AJ12: =VLOOKUP($AH12,'Gen-Tab_Quick'!$B$3:$O$57,12,0) -> 18:00:00 | AK12: =VLOOKUP(AH12,'Gen-Tab_Quick'!$B$3:$O$57,2,0) -> 2D | AL12: =IF(T24=1,VLOOKUP(AK12,'Grupp-Tab-Quick'!$AH$3:$AI$90,2,0),"") -> Schottland | AM12: =VLOOKUP(AH12,'Gen-Tab_Quick'!$B$3:$O$57,3,0) -> 2E | AN12: =IF(T8=1,VLOOKUP(AM12,'Grupp-Tab-Quick'!$AH$3:$AI$90,2,0),"") -> Schweden | AO12: =(VLOOKUP(AS12,'Pulldown-Listen'!$B$1:$F$49,3))*1 -> 3 | AP12: : | AQ12: =(VLOOKUP(AS12,'Pulldown-Listen'!$B$1:$F$49,5))*1 -> 3 | AS12: =VLOOKUP(BF12,'Pulldown-Listen'!$I$1:$K$49,3,0) -> 16 | AT12: =IF(AS12=0,0,VLOOKUP(AS12,'Pulldown-Listen'!$B$1:$G$49,6,0)) -> X | AU12: =RANDBETWEEN(1,2) -> 1 | AV12: 1AF5 | AW12: =IF(AND(AZ12="ja",OR(AT12=1,AU12=1)),AL12,IF(AND(AZ12="ja",OR(AT12=2,AU12=2)),AN12,IF(AND(AZ12="nein",AT12=1),AL12,IF(AND(AZ12="nein",AT12=2),AN12,"")))) -> Schottland | AX12: =VLOOKUP(AL12,'Gen-Tab_Quick'!$S$3:$T$26,2,0) -> D3 | AY12: =VLOOKUP(AN12,'Gen-Tab_Quick'!$S$3:$T$26,2,0) -> E2 | AZ12: =IF(AT12="X","ja","nein") -> ja | BA12: =IF(AT12=0,"",IF(AZ12="nein","",IF(AND(AZ12="ja",AU12>0),"","Elfmeterschießen tippen !"))) ->  | BB12: 2AF5 | BC12: =IF(AW12=AL12:AL12,AN12,AL12) -> Schweden | BE12: =VLOOKUP(BF12,'Pulldown-Listen'!$I$1:$K$49,3,0) -> 16 | BF12: =IF(BG12=1,RANDBETWEEN(8,28),IF(BG12=2,RANDBETWEEN(1,7),RANDBETWEEN(29,49))) -> 4 | BG12: =ROUND(IF(AND(BH12<=6,BH12>=-6),RANDBETWEEN(1,3),IF(AND(BH12>6,BH12<12),(RANDBETWEEN(10,27)/10)-0.3,IF(BH12>=12,(RANDBETWEEN(10,25)/10)-0.5,IF(BH12<=-12,(RANDBETWEEN(15,30)/10)+0.49,(RANDBETWEEN(13,30)/10)+0.3)))),0) -> 2 | BH12: =ROUND((VLOOKUP(AL12,'Gen-Tab_Quick'!$S$3:$V$26,4,0)-VLOOKUP(AN12,'Gen-Tab_Quick'!$S$3:$V$26,4,0))/1000,0) -> 0 | BJ12: 5 | BK12: 3 | BL12: =IF(OR(BK12=BK11,BK12=BK10,BK12=BK9,BK12=BK8),BK12+0.4,BK12) -> 3 | BM12: 2
B13: 15 | C13: =VLOOKUP($B13,'Gen-Tab_Quick'!$B$3:$O$57,11,0) -> 2021-06-16 | D13: =VLOOKUP($B13,'Gen-Tab_Quick'!$B$3:$O$57,12,0) -> 15:00:00 | E13: =VLOOKUP($B13,'Gen-Tab_Quick'!$B$3:$O$57,7,0) -> Dänemark | F13: =VLOOKUP($B13,'Gen-Tab_Quick'!$B$3:$O$57,8,0) -> Belgien | G13: =(VLOOKUP(L13,'Pulldown-Listen'!$B$1:$F$49,3))*1 -> 5 | H13: : | I13: =(VLOOKUP(L13,'Pulldown-Listen'!$B$1:$F$49,5))*1 -> 5 | K13: =IF(L13=0,0,VLOOKUP(L13,'Pulldown-Listen'!$B$1:$G$49,6,0)) -> X | L13: =VLOOKUP(M13,'Pulldown-Listen'!$I$1:$K$49,3,0) -> 36 | M13: 6 | N13: 2 | O13: =ROUND((VLOOKUP(E13,'Gen-Tab_Quick'!$S$3:$V$26,4,0)-VLOOKUP(F13,'Gen-Tab_Quick'!$S$3:$V$26,4,0))/1000,0) -> 0 | T13: 3 | U13: . | V13: =IF(T16=1,VLOOKUP($T13,'Grupp-Tab-Quick'!$D$18:$AB$21,3,0),"Tipps fehlen") -> Russland | W13: =VLOOKUP(V13,'Grupp-Tab-Quick'!$AI$18:$AJ$21,2,0) -> 3 | X13: =IF(T16=1,VLOOKUP($T13,'Grupp-Tab-Quick'!$D$18:$AB$21,4,0),0) -> 6 | Y13: : | Z13: =IF(T16=1,VLOOKUP($T13,'Grupp-Tab-Quick'!$D$18:$AB$21,5,0),0) -> 9 | AA13: =X13-Z13 -> -3 | AB13: =IF(T16=1,VLOOKUP($T13,'Grupp-Tab-Quick'!$D$18:$AB$21,7,0),0) -> 3 | AC13: =IF(T16=1,VLOOKUP(V13,'Grupp-Tab-Quick'!F$18:AG$21,28,0),"") ->  | AD13: =VLOOKUP(V13,'Grupp-Tab-Quick'!F$95:T$100,15,0) -> 5 | BJ13: 6 | BK13: 2 | BL13: =IF(OR(BK13=BK12,BK13=BK11,BK13=BK10,BK13=BK9,BK13=BK8),BK13+0.5,BK13) -> 2 | BM13: 1
B14: 16 | C14: =VLOOKUP($B14,'Gen-Tab_Quick'!$B$3:$O$57,11,0) -> 2021-06-17 | D14: =VLOOKUP($B14,'Gen-Tab_Quick'!$B$3:$O$57,12,0) -> 18:00:00 | E14: =VLOOKUP($B14,'Gen-Tab_Quick'!$B$3:$O$57,7,0) -> Finnland | F14: =VLOOKUP($B14,'Gen-Tab_Quick'!$B$3:$O$57,8,0) -> Russland | G14: =(VLOOKUP(L14,'Pulldown-Listen'!$B$1:$F$49,3))*1 -> 5 | H14: : | I14: =(VLOOKUP(L14,'Pulldown-Listen'!$B$1:$F$49,5))*1 -> 1 | K14: =IF(L14=0,0,VLOOKUP(L14,'Pulldown-Listen'!$B$1:$G$49,6,0)) -> 1 | L14: =VLOOKUP(M14,'Pulldown-Listen'!$I$1:$K$49,3,0) -> 27 | M14: 19 | N14: 1 | O14: =ROUND((VLOOKUP(E14,'Gen-Tab_Quick'!$S$3:$V$26,4,0)-VLOOKUP(F14,'Gen-Tab_Quick'!$S$3:$V$26,4,0))/1000,0) -> 0 | T14: 4 | U14: . | V14: =IF(T16=1,VLOOKUP($T14,'Grupp-Tab-Quick'!$D$18:$AB$21,3,0),"Tipps fehlen") -> Belgien | W14: =VLOOKUP(V14,'Grupp-Tab-Quick'!$AI$18:$AJ$21,2,0) -> 3 | X14: =IF(T16=1,VLOOKUP($T14,'Grupp-Tab-Quick'!$D$18:$AB$21,4,0),0) -> 9 | Y14: : | Z14: =IF(T16=1,VLOOKUP($T14,'Grupp-Tab-Quick'!$D$18:$AB$21,5,0),0) -> 15 | AA14: =X14-Z14 -> -6 | AB14: =IF(T16=1,VLOOKUP($T14,'Grupp-Tab-Quick'!$D$18:$AB$21,7,0),0) -> 1 | AC14: =IF(T16=1,VLOOKUP(V14,'Grupp-Tab-Quick'!F$18:AG$21,28,0),"") ->  | AE14: =IF(OR(U15="4)",U15="5)",U15="6)"),1,0) -> 0 | AH14: 42 | AI14: =VLOOKUP($AH14,'Gen-Tab_Quick'!$B$3:$O$57,11,0) -> 2021-06-28 | AJ14: =VLOOKUP($AH14,'Gen-Tab_Quick'!$B$3:$O$57,12,0) -> 21:00:00 | AK14: =VLOOKUP(AH14,'Gen-Tab_Quick'!$B$3:$O$57,2,0) -> 1F | AL14: =IF(T40=1,VLOOKUP(AK14,'Grupp-Tab-Quick'!$AH$3:$AI$90,2,0),"") -> Ungarn | AM14: =VLOOKUP(AH14,'Gen-Tab_Quick'!$B$3:$O$57,3,0) -> 3A | AN14: =IF(T32=1,VLOOKUP(AM14,'Grupp-Tab-Quick'!$AH$3:$AI$90,2,0),"") -> Türkei | AO14: =(VLOOKUP(AS14,'Pulldown-Listen'!$B$1:$F$49,3))*1 -> 5 | AP14: : | AQ14: =(VLOOKUP(AS14,'Pulldown-Listen'!$B$1:$F$49,5))*1 -> 2 | AS14: =VLOOKUP(BF14,'Pulldown-Listen'!$I$1:$K$49,3,0) -> 28 | AT14: =IF(AS14=0,0,VLOOKUP(AS14,'Pulldown-Listen'!$B$1:$G$49,6,0)) -> 1 | AU14: =RANDBETWEEN(1,2) -> 2 | AV14: 1AF6 | AW14: =IF(AND(AZ14="ja",OR(AT14=1,AU14=1)),AL14,IF(AND(AZ14="ja",OR(AT14=2,AU14=2)),AN14,IF(AND(AZ14="nein",AT14=1),AL14,IF(AND(AZ14="nein",AT14=2),AN14,"")))) -> Ungarn | AX14: =VLOOKUP(AL14,'Gen-Tab_Quick'!$S$3:$T$26,2,0) -> F1 | AY14: =VLOOKUP(AN14,'Gen-Tab_Quick'!$S$3:$T$26,2,0) -> A1 | AZ14: =IF(AT14="X","ja","nein") -> nein | BA14: =IF(AT14=0,"",IF(AZ14="nein","",IF(AND(AZ14="ja",AU14>0),"","Elfmeterschießen tippen !"))) ->  | BB14: 2AF6 | BC14: =IF(AW14=AL14:AL14,AN14,AL14) -> Türkei | BE14: =VLOOKUP(BF14,'Pulldown-Listen'!$I$1:$K$49,3,0) -> 28 | BF14: =IF(BG14=1,RANDBETWEEN(8,28),IF(BG14=2,RANDBETWEEN(1,7),RANDBETWEEN(29,49))) -> 20 | BG14: =ROUND(IF(AND(BH14<=6,BH14>=-6),RANDBETWEEN(1,3),IF(AND(BH14>6,BH14<12),(RANDBETWEEN(10,27)/10)-0.3,IF(BH14>=12,(RANDBETWEEN(10,25)/10)-0.5,IF(BH14<=-12,(RANDBETWEEN(15,30)/10)+0.49,(RANDBETWEEN(13,30)/10)+0.3)))),0) -> 1 | BH14: =ROUND((VLOOKUP(AL14,'Gen-Tab_Quick'!$S$3:$V$26,4,0)-VLOOKUP(AN14,'Gen-Tab_Quick'!$S$3:$V$26,4,0))/1000,0) -> 0
B15: 27 | C15: =VLOOKUP($B15,'Gen-Tab_Quick'!$B$3:$O$57,11,0) -> 2021-06-21 | D15: =VLOOKUP($B15,'Gen-Tab_Quick'!$B$3:$O$57,12,0) -> 21:00:00 | E15: =VLOOKUP($B15,'Gen-Tab_Quick'!$B$3:$O$57,7,0) -> Russland | F15: =VLOOKUP($B15,'Gen-Tab_Quick'!$B$3:$O$57,8,0) -> Dänemark | G15: =(VLOOKUP(L15,'Pulldown-Listen'!$B$1:$F$49,3))*1 -> 0 | H15: : | I15: =(VLOOKUP(L15,'Pulldown-Listen'!$B$1:$F$49,5))*1 -> 2 | K15: =IF(L15=0,0,VLOOKUP(L15,'Pulldown-Listen'!$B$1:$G$49,6,0)) -> 2 | L15: =VLOOKUP(M15,'Pulldown-Listen'!$I$1:$K$49,3,0) -> 8 | M15: 31 | N15: 3 | O15: =ROUND((VLOOKUP(E15,'Gen-Tab_Quick'!$S$3:$V$26,4,0)-VLOOKUP(F15,'Gen-Tab_Quick'!$S$3:$V$26,4,0))/1000,0) -> 0 | P15: ='Sub-Tab_B_Quick'!P130 -> nein | Q15: =RANDBETWEEN(1,2) -> 2 | U15: =IF(OR(AC11="1)",AC12="1)",AC13="1)",AC14="1)"),VLOOKUP("1)",'Pulldown-Listen'!A$56:C$61,2,0),IF(OR(AC11="2)",AC12="2)",AC13="2)",AC14="2)"),VLOOKUP("2)",'Pulldown-Listen'!A$56:C$61,2,0),IF(OR(AC11="3)",AC12="3)",AC13="3)",AC14="3)"),VLOOKUP("3)",'Pulldown-Listen'!A$56:C$61,2,0),IF(OR(AC11="4)",AC12="4)",AC13="4)",AC14="4)"),VLOOKUP("4)",'Pulldown-Listen'!A$56:C$61,2,0),IF(OR(AC11="5)",AC12="5)",AC13="5)",AC14="5)"),VLOOKUP("5)",'Pulldown-Listen'!A$56:C$61,2,0),IF(OR(AC11="6)",AC12="6)",AC13="6)",AC14="6)"),VLOOKUP("6)",'Pulldown-Listen'!A$56:C$61,2,0),"")))))) ->  | V15: =IF(U15="","",VLOOKUP(U15,'Pulldown-Listen'!A56:C61,3,0)) ->  | AE15: =VLOOKUP(V13,'Grupp-Tab-Quick'!$F$95:$P$100,11,0) -> N | AG15: =VLOOKUP(AE16,'Pulldown-Listen'!A$135:B$136,2,0) -> 
B16: 28 | C16: =VLOOKUP($B16,'Gen-Tab_Quick'!$B$3:$O$57,11,0) -> 2021-06-21 | D16: =VLOOKUP($B16,'Gen-Tab_Quick'!$B$3:$O$57,12,0) -> 21:00:00 | E16: =VLOOKUP($B16,'Gen-Tab_Quick'!$B$3:$O$57,7,0) -> Finnland | F16: =VLOOKUP($B16,'Gen-Tab_Quick'!$B$3:$O$57,8,0) -> Belgien | G16: =(VLOOKUP(L16,'Pulldown-Listen'!$B$1:$F$49,3))*1 -> 5 | H16: : | I16: =(VLOOKUP(L16,'Pulldown-Listen'!$B$1:$F$49,5))*1 -> 2 | K16: =IF(L16=0,0,VLOOKUP(L16,'Pulldown-Listen'!$B$1:$G$49,6,0)) -> 1 | L16: =VLOOKUP(M16,'Pulldown-Listen'!$I$1:$K$49,3,0) -> 28 | M16: 20 | N16: 1 | O16: =ROUND((VLOOKUP(E16,'Gen-Tab_Quick'!$S$3:$V$26,4,0)-VLOOKUP(F16,'Gen-Tab_Quick'!$S$3:$V$26,4,0))/1000,0) -> 0 | P16: ='Sub-Tab_B_Quick'!P131 -> nein | Q16: =RANDBETWEEN(1,2) -> 1 | T16: =IF('Grupp-Tab-Quick'!AJ22=12,1,0) -> 1 | U16: =IF(SUM(W11:W14)=12,1,0) -> 1 | AE16: =AE15 -> N | AH16: 43 | AI16: =VLOOKUP($AH16,'Gen-Tab_Quick'!$B$3:$O$57,11,0) -> 2021-06-29 | AJ16: =VLOOKUP($AH16,'Gen-Tab_Quick'!$B$3:$O$57,12,0) -> 18:00:00 | AK16: =VLOOKUP(AH16,'Gen-Tab_Quick'!$B$3:$O$57,2,0) -> 1D | AL16: =IF(T8,VLOOKUP(AK16,'Grupp-Tab-Quick'!$AH$3:$AI$90,2,0),"") -> Tschechien | AM16: =VLOOKUP(AH16,'Gen-Tab_Quick'!$B$3:$O$57,3,0) -> 2F | AN16: =IF(T24=1,VLOOKUP(AM16,'Grupp-Tab-Quick'!$AH$3:$AI$90,2,0),"") -> Deutschland | AO16: =(VLOOKUP(AS16,'Pulldown-Listen'!$B$1:$F$49,3))*1 -> 6 | AP16: : | AQ16: =(VLOOKUP(AS16,'Pulldown-Listen'!$B$1:$F$49,5))*1 -> 6 | AS16: =VLOOKUP(BF16,'Pulldown-Listen'!$I$1:$K$49,3,0) -> 49 | AT16: =IF(AS16=0,0,VLOOKUP(AS16,'Pulldown-Listen'!$B$1:$G$49,6,0)) -> X | AU16: =RANDBETWEEN(1,2) -> 1 | AV16: 1AF7 | AW16: =IF(AND(AZ16="ja",OR(AT16=1,AU16=1)),AL16,IF(AND(AZ16="ja",OR(AT16=2,AU16=2)),AN16,IF(AND(AZ16="nein",AT16=1),AL16,IF(AND(AZ16="nein",AT16=2),AN16,"")))) -> Tschechien | AX16: =VLOOKUP(AL16,'Gen-Tab_Quick'!$S$3:$T$26,2,0) -> D4 | AY16: =VLOOKUP(AN16,'Gen-Tab_Quick'!$S$3:$T$26,2,0) -> F4 | AZ16: =IF(AT16="X","ja","nein") -> ja | BA16: =IF(AT16=0,"",IF(AZ16="nein","",IF(AND(AZ16="ja",AU16>0),"","Elfmeterschießen tippen !"))) ->  | BB16: 2AF7 | BC16: =IF(AW16=AL16:AL16,AN16,AL16) -> Deutschland | BE16: =VLOOKUP(BF16,'Pulldown-Listen'!$I$1:$K$49,3,0) -> 49 | BF16: =IF(BG16=1,RANDBETWEEN(8,28),IF(BG16=2,RANDBETWEEN(1,7),RANDBETWEEN(29,49))) -> 7 | BG16: =ROUND(IF(AND(BH16<=6,BH16>=-6),RANDBETWEEN(1,3),IF(AND(BH16>6,BH16<12),(RANDBETWEEN(10,27)/10)-0.3,IF(BH16>=12,(RANDBETWEEN(10,25)/10)-0.5,IF(BH16<=-12,(RANDBETWEEN(15,30)/10)+0.49,(RANDBETWEEN(13,30)/10)+0.3)))),0) -> 2 | BH16: =ROUND((VLOOKUP(AL16,'Gen-Tab_Quick'!$S$3:$V$26,4,0)-VLOOKUP(AN16,'Gen-Tab_Quick'!$S$3:$V$26,4,0))/1000,0) -> 0
C18: Gruppe C | Q18: =IF(OR(P23="ja",P24="ja"),"Bei diesen Ergebnissen entscheidet ein Penalty-Schießen über die endgültige Tabellen- platzierung. Tragen Sie Ihren Tipp im entsprechenden Kästchen ein (1 oder 2)","") ->  | T18: Gruppe C | AE18: =IF(OR(AE22=1,AE23="X"),"J","N") -> N | AG18: =VLOOKUP(AE23,'Pulldown-Listen'!A$132:B$133,2,0) -> . | AH18: 44 | AI18: =VLOOKUP($AH18,'Gen-Tab_Quick'!$B$3:$O$57,11,0) -> 2021-06-29 | AJ18: =VLOOKUP($AH18,'Gen-Tab_Quick'!$B$3:$O$57,12,0) -> 21:00:00 | AK18: =VLOOKUP(AH18,'Gen-Tab_Quick'!$B$3:$O$57,2,0) -> 1E | AL18: =IF(T16=1,VLOOKUP(AK18,'Grupp-Tab-Quick'!$AH$3:$AI$90,2,0),"") -> Polen | AM18: =VLOOKUP(AH18,'Gen-Tab_Quick'!$B$3:$O$57,3,0) -> 3C | AN18: =IF(T48=1,VLOOKUP(AM18,'Grupp-Tab-Quick'!$AH$3:$AI$90,2,0),"") -> Niederlande | AO18: =(VLOOKUP(AS18,'Pulldown-Listen'!$B$1:$F$49,3))*1 -> 2 | AP18: : | AQ18: =(VLOOKUP(AS18,'Pulldown-Listen'!$B$1:$F$49,5))*1 -> 5 | AS18: =VLOOKUP(BF18,'Pulldown-Listen'!$I$1:$K$49,3,0) -> 33 | AT18: =IF(AS18=0,0,VLOOKUP(AS18,'Pulldown-Listen'!$B$1:$G$49,6,0)) -> 2 | AU18: =RANDBETWEEN(1,2) -> 1 | AV18: 1AF8 | AW18: =IF(AND(AZ18="ja",OR(AT18=1,AU18=1)),AL18,IF(AND(AZ18="ja",OR(AT18=2,AU18=2)),AN18,IF(AND(AZ18="nein",AT18=1),AL18,IF(AND(AZ18="nein",AT18=2),AN18,"")))) -> Niederlande | AX18: =VLOOKUP(AL18,'Gen-Tab_Quick'!$S$3:$T$26,2,0) -> E3 | AY18: =VLOOKUP(AN18,'Gen-Tab_Quick'!$S$3:$T$26,2,0) -> C1 | AZ18: =IF(AT18="X","ja","nein") -> nein | BA18: =IF(AT18=0,"",IF(AZ18="nein","",IF(AND(AZ18="ja",AU18>0),"","Elfmeterschießen tippen !"))) ->  | BB18: 2AF8 | BC18: =IF(AW18=AL18:AL18,AN18,AL18) -> Polen | BE18: =VLOOKUP(BF18,'Pulldown-Listen'!$I$1:$K$49,3,0) -> 33 | BF18: =IF(BG18=1,RANDBETWEEN(8,28),IF(BG18=2,RANDBETWEEN(1,7),RANDBETWEEN(29,49))) -> 41 | BG18: =ROUND(IF(AND(BH18<=6,BH18>=-6),RANDBETWEEN(1,3),IF(AND(BH18>6,BH18<12),(RANDBETWEEN(10,27)/10)-0.3,IF(BH18>=12,(RANDBETWEEN(10,25)/10)-0.5,IF(BH18<=-12,(RANDBETWEEN(15,30)/10)+0.49,(RANDBETWEEN(13,30)/10)+0.3)))),0) -> 3 | BH18: =ROUND((VLOOKUP(AL18,'Gen-Tab_Quick'!$S$3:$V$26,4,0)-VLOOKUP(AN18,'Gen-Tab_Quick'!$S$3:$V$26,4,0))/1000,0) -> 0
B19: 5 | C19: =VLOOKUP($B19,'Gen-Tab_Quick'!$B$3:$O$57,11,0) -> 2021-06-13 | D19: =VLOOKUP($B19,'Gen-Tab_Quick'!$B$3:$O$57,12,0) -> 18:00:00 | E19: =VLOOKUP($B19,'Gen-Tab_Quick'!$B$3:$O$57,7,0) -> Niederlande | F19: =VLOOKUP($B19,'Gen-Tab_Quick'!$B$3:$O$57,8,0) -> Ukraine | G19: =(VLOOKUP(L19,'Pulldown-Listen'!$B$1:$F$49,3))*1 -> 6 | H19: : | I19: =(VLOOKUP(L19,'Pulldown-Listen'!$B$1:$F$49,5))*1 -> 1 | K19: =IF(L19=0,0,VLOOKUP(L19,'Pulldown-Listen'!$B$1:$G$49,6,0)) -> 1 | L19: =VLOOKUP(M19,'Pulldown-Listen'!$I$1:$K$49,3,0) -> 38 | M19: =IF(N19=1,RANDBETWEEN(8,28),IF(N19=2,RANDBETWEEN(1,7),RANDBETWEEN(29,49))) -> 24 | N19: =ROUND(IF(AND(O19<=6,O19>=-6),RANDBETWEEN(1,3),IF(AND(O19>6,O19<12),(RANDBETWEEN(10,27)/10)-0.3,IF(O19>=12,(RANDBETWEEN(10,25)/10)-0.5,IF(O19<=-12,(RANDBETWEEN(15,30)/10)+0.49,(RANDBETWEEN(13,30)/10)+0.3)))),0) -> 1 | O19: =ROUND((VLOOKUP(E19,'Gen-Tab_Quick'!$S$3:$V$26,4,0)-VLOOKUP(F19,'Gen-Tab_Quick'!$S$3:$V$26,4,0))/1000,0) -> 0 | T19: 1 | U19: . | V19: =IF(T24=1,VLOOKUP($T19,'Grupp-Tab-Quick'!$D$33:$AB$36,3,0),"Tipps fehlen") -> Nordmazedonien | W19: =VLOOKUP(V19,'Grupp-Tab-Quick'!$AI$33:$AJ$36,2,0) -> 3 | X19: =IF(T24=1,VLOOKUP($T19,'Grupp-Tab-Quick'!$D$33:$AB$36,4,0),0) -> 14 | Y19: : | Z19: =IF(T24=1,VLOOKUP($T19,'Grupp-Tab-Quick'!$D$33:$AB$36,5,0),0) -> 12 | AA19: =X19-Z19 -> 2 | AB19: =IF(T24=1,VLOOKUP($T19,'Grupp-Tab-Quick'!$D$33:$AB$36,7,0),0) -> 7 | AC19: =IF(T24=1,VLOOKUP(V19,'Grupp-Tab-Quick'!F$33:AG$36,28,0),"") ->  | AD19: Reihung unter den
B20: 6 | C20: =VLOOKUP($B20,'Gen-Tab_Quick'!$B$3:$O$57,11,0) -> 2021-06-13 | D20: =VLOOKUP($B20,'Gen-Tab_Quick'!$B$3:$O$57,12,0) -> 21:00:00 | E20: =VLOOKUP($B20,'Gen-Tab_Quick'!$B$3:$O$57,7,0) -> Österreich | F20: =VLOOKUP($B20,'Gen-Tab_Quick'!$B$3:$O$57,8,0) -> Nordmazedonien | G20: =(VLOOKUP(L20,'Pulldown-Listen'!$B$1:$F$49,3))*1 -> 2 | H20: : | I20: =(VLOOKUP(L20,'Pulldown-Listen'!$B$1:$F$49,5))*1 -> 3 | K20: =IF(L20=0,0,VLOOKUP(L20,'Pulldown-Listen'!$B$1:$G$49,6,0)) -> 2 | L20: =VLOOKUP(M20,'Pulldown-Listen'!$I$1:$K$49,3,0) -> 13 | M20: 32 | N20: 3 | O20: =ROUND((VLOOKUP(E20,'Gen-Tab_Quick'!$S$3:$V$26,4,0)-VLOOKUP(F20,'Gen-Tab_Quick'!$S$3:$V$26,4,0))/1000,0) -> 0 | T20: 2 | U20: . | V20: =IF(T24=1,VLOOKUP($T20,'Grupp-Tab-Quick'!$D$33:$AB$36,3,0),"Tipps fehlen") -> Österreich | W20: =VLOOKUP(V20,'Grupp-Tab-Quick'!$AI$33:$AJ$36,2,0) -> 3 | X20: =IF(T24=1,VLOOKUP($T20,'Grupp-Tab-Quick'!$D$33:$AB$36,4,0),0) -> 9 | Y20: : | Z20: =IF(T24=1,VLOOKUP($T20,'Grupp-Tab-Quick'!$D$33:$AB$36,5,0),0) -> 4 | AA20: =X20-Z20 -> 5 | AB20: =IF(T24=1,VLOOKUP($T20,'Grupp-Tab-Quick'!$D$33:$AB$36,7,0),0) -> 4 | AC20: =IF(T24=1,VLOOKUP(V20,'Grupp-Tab-Quick'!F$33:AG$36,28,0),"") -> 3) | AD20: Dritt- Platzierten | AN20: =BA20 ->  | BA20: =IF(AND(BA16="",BA18="",BA14="",BA12="",BA4="",BA6="",BA8="",BA10=""),"","Elfmeterschießen tippen !") -> 
B21: 17 | C21: =VLOOKUP($B21,'Gen-Tab_Quick'!$B$3:$O$57,11,0) -> 2021-06-17 | D21: =VLOOKUP($B21,'Gen-Tab_Quick'!$B$3:$O$57,12,0) -> 15:00:00 | E21: =VLOOKUP($B21,'Gen-Tab_Quick'!$B$3:$O$57,7,0) -> Niederlande | F21: =VLOOKUP($B21,'Gen-Tab_Quick'!$B$3:$O$57,8,0) -> Österreich | G21: =(VLOOKUP(L21,'Pulldown-Listen'!$B$1:$F$49,3))*1 -> 0 | H21: : | I21: =(VLOOKUP(L21,'Pulldown-Listen'!$B$1:$F$49,5))*1 -> 6 | K21: =IF(L21=0,0,VLOOKUP(L21,'Pulldown-Listen'!$B$1:$G$49,6,0)) -> 2 | L21: =VLOOKUP(M21,'Pulldown-Listen'!$I$1:$K$49,3,0) -> 48 | M21: 49 | N21: 3 | O21: =ROUND((VLOOKUP(E21,'Gen-Tab_Quick'!$S$3:$V$26,4,0)-VLOOKUP(F21,'Gen-Tab_Quick'!$S$3:$V$26,4,0))/1000,0) -> 0 | T21: 3 | U21: . | V21: =IF(T24=1,VLOOKUP($T21,'Grupp-Tab-Quick'!$D$33:$AB$36,3,0),"Tipps fehlen") -> Niederlande | W21: =VLOOKUP(V21,'Grupp-Tab-Quick'!$AI$33:$AJ$36,2,0) -> 3 | X21: =IF(T24=1,VLOOKUP($T21,'Grupp-Tab-Quick'!$D$33:$AB$36,4,0),0) -> 12 | Y21: : | Z21: =IF(T24=1,VLOOKUP($T21,'Grupp-Tab-Quick'!$D$33:$AB$36,5,0),0) -> 13 | AA21: =X21-Z21 -> -1 | AB21: =IF(T24=1,VLOOKUP($T21,'Grupp-Tab-Quick'!$D$33:$AB$36,7,0),0) -> 4 | AC21: =IF(T24=1,VLOOKUP(V21,'Grupp-Tab-Quick'!F$33:AG$36,28,0),"") -> 3) | AD21: =VLOOKUP(V21,'Grupp-Tab-Quick'!F$95:T$100,15,0) -> 1
B22: 18 | C22: =VLOOKUP($B22,'Gen-Tab_Quick'!$B$3:$O$57,11,0) -> 2021-06-17 | D22: =VLOOKUP($B22,'Gen-Tab_Quick'!$B$3:$O$57,12,0) -> 21:00:00 | E22: =VLOOKUP($B22,'Gen-Tab_Quick'!$B$3:$O$57,7,0) -> Ukraine | F22: =VLOOKUP($B22,'Gen-Tab_Quick'!$B$3:$O$57,8,0) -> Nordmazedonien | G22: =(VLOOKUP(L22,'Pulldown-Listen'!$B$1:$F$49,3))*1 -> 4 | H22: : | I22: =(VLOOKUP(L22,'Pulldown-Listen'!$B$1:$F$49,5))*1 -> 5 | K22: =IF(L22=0,0,VLOOKUP(L22,'Pulldown-Listen'!$B$1:$G$49,6,0)) -> 2 | L22: =VLOOKUP(M22,'Pulldown-Listen'!$I$1:$K$49,3,0) -> 31 | M22: 39 | N22: 3 | O22: =ROUND((VLOOKUP(E22,'Gen-Tab_Quick'!$S$3:$V$26,4,0)-VLOOKUP(F22,'Gen-Tab_Quick'!$S$3:$V$26,4,0))/1000,0) -> 0 | T22: 4 | U22: . | V22: =IF(T24=1,VLOOKUP($T22,'Grupp-Tab-Quick'!$D$33:$AB$36,3,0),"Tipps fehlen") -> Ukraine | W22: =VLOOKUP(V22,'Grupp-Tab-Quick'!$AI$33:$AJ$36,2,0) -> 3 | X22: =IF(T24=1,VLOOKUP($T22,'Grupp-Tab-Quick'!$D$33:$AB$36,4,0),0) -> 6 | Y22: : | Z22: =IF(T24=1,VLOOKUP($T22,'Grupp-Tab-Quick'!$D$33:$AB$36,5,0),0) -> 12 | AA22: =X22-Z22 -> -6 | AB22: =IF(T24=1,VLOOKUP($T22,'Grupp-Tab-Quick'!$D$33:$AB$36,7,0),0) -> 1 | AC22: =IF(T24=1,VLOOKUP(V22,'Grupp-Tab-Quick'!F$33:AG$36,28,0),"") ->  | AE22: =IF(OR(U23="4)",U23="5)",U23="6)"),1,0) -> 0 | AI22: Viertel-Finale
B23: 29 | C23: =VLOOKUP($B23,'Gen-Tab_Quick'!$B$3:$O$57,11,0) -> 2021-06-21 | D23: =VLOOKUP($B23,'Gen-Tab_Quick'!$B$3:$O$57,12,0) -> 18:00:00 | E23: =VLOOKUP($B23,'Gen-Tab_Quick'!$B$3:$O$57,7,0) -> Nordmazedonien | F23: =VLOOKUP($B23,'Gen-Tab_Quick'!$B$3:$O$57,8,0) -> Niederlande | G23: =(VLOOKUP(L23,'Pulldown-Listen'!$B$1:$F$49,3))*1 -> 6 | H23: : | I23: =(VLOOKUP(L23,'Pulldown-Listen'!$B$1:$F$49,5))*1 -> 6 | K23: =IF(L23=0,0,VLOOKUP(L23,'Pulldown-Listen'!$B$1:$G$49,6,0)) -> X | L23: =VLOOKUP(M23,'Pulldown-Listen'!$I$1:$K$49,3,0) -> 49 | M23: 7 | N23: 2 | O23: =ROUND((VLOOKUP(E23,'Gen-Tab_Quick'!$S$3:$V$26,4,0)-VLOOKUP(F23,'Gen-Tab_Quick'!$S$3:$V$26,4,0))/1000,0) -> 0 | P23: ='Sub-Tab_C_Quick'!P130 -> nein | Q23: =RANDBETWEEN(1,2) -> 2 | U23: =IF(OR(AC19="1)",AC20="1)",AC21="1)",AC22="1)"),VLOOKUP("1)",'Pulldown-Listen'!A$56:C$61,2,0),IF(OR(AC19="2)",AC20="2)",AC21="2)",AC22="2)"),VLOOKUP("2)",'Pulldown-Listen'!A$56:C$61,2,0),IF(OR(AC19="3)",AC20="3)",AC21="3)",AC22="3)"),VLOOKUP("3)",'Pulldown-Listen'!A$56:C$61,2,0),IF(OR(AC19="4)",AC20="4)",AC21="4)",AC22="4)"),VLOOKUP("4)",'Pulldown-Listen'!A$56:C$61,2,0),IF(OR(AC19="5)",AC20="5)",AC21="5)",AC22="5)"),VLOOKUP("5)",'Pulldown-Listen'!A$56:C$61,2,0),IF(OR(AC19="6)",AC20="6)",AC21="6)",AC22="6)"),VLOOKUP("6)",'Pulldown-Listen'!A$56:C$61,2,0),"")))))) -> 3) | V23: =IF(U23="","",VLOOKUP(U23,'Pulldown-Listen'!A56:C61,3,0)) -> Tabellenrang durch direkte Begegnung bestimmt | AE23: =VLOOKUP(V21,'Grupp-Tab-Quick'!$F$95:$P$100,11,0) -> N | AG23: =VLOOKUP(AE24,'Pulldown-Listen'!A$135:B$136,2,0) -> 
B24: 30 | C24: =VLOOKUP($B24,'Gen-Tab_Quick'!$B$3:$O$57,11,0) -> 2021-06-21 | D24: =VLOOKUP($B24,'Gen-Tab_Quick'!$B$3:$O$57,12,0) -> 18:00:00 | E24: =VLOOKUP($B24,'Gen-Tab_Quick'!$B$3:$O$57,7,0) -> Ukraine | F24: =VLOOKUP($B24,'Gen-Tab_Quick'!$B$3:$O$57,8,0) -> Österreich | G24: =(VLOOKUP(L24,'Pulldown-Listen'!$B$1:$F$49,3))*1 -> 1 | H24: : | I24: =(VLOOKUP(L24,'Pulldown-Listen'!$B$1:$F$49,5))*1 -> 1 | K24: =IF(L24=0,0,VLOOKUP(L24,'Pulldown-Listen'!$B$1:$G$49,6,0)) -> X | L24: =VLOOKUP(M24,'Pulldown-Listen'!$I$1:$K$49,3,0) -> 4 | M24: 2 | N24: 2 | O24: =ROUND((VLOOKUP(E24,'Gen-Tab_Quick'!$S$3:$V$26,4,0)-VLOOKUP(F24,'Gen-Tab_Quick'!$S$3:$V$26,4,0))/1000,0) -> 0 | P24: ='Sub-Tab_C_Quick'!P131 -> nein | Q24: =RANDBETWEEN(1,2) -> 2 | T24: =IF('Grupp-Tab-Quick'!AJ37=12,1,0) -> 1 | U24: =IF(SUM(W19:W22)=12,1,0) -> 1 | AE24: =AE23 -> N
AH25: 45 | AI25: =VLOOKUP($AH25,'Gen-Tab_Quick'!$B$3:$O$57,11,0) -> 2021-07-02 | AJ25: =VLOOKUP($AH25,'Gen-Tab_Quick'!$B$3:$O$57,12,0) -> 18:00:00 | AK25: =VLOOKUP(AH25,'Gen-Tab_Quick'!$B$49:$D$57,2,0) -> 1AF6 | AL25: =IF(AS4="",0,VLOOKUP(AK25,AV4:AW19,2,0)) -> Ungarn | AM25: =VLOOKUP(AH25,'Gen-Tab_Quick'!$B$49:$D$57,3,0) -> 1AF5 | AN25: =IF(AS4="",0,VLOOKUP(AM25,AV4:AW19,2,0)) -> Schottland | AO25: =(VLOOKUP(AS25,'Pulldown-Listen'!$B$1:$F$49,3))*1 -> 1 | AP25: : | AQ25: =(VLOOKUP(AS25,'Pulldown-Listen'!$B$1:$F$49,5))*1 -> 1 | AS25: =VLOOKUP(BF25,'Pulldown-Listen'!$I$1:$K$49,3,0) -> 4 | AT25: =IF(AS25=0,0,VLOOKUP(AS25,'Pulldown-Listen'!$B$1:$G$49,6,0)) -> X | AU25: =RANDBETWEEN(1,2) -> 1 | AV25: 1VF1 | AW25: =IF(AND(AZ25="ja",OR(AT25=1,AU25=1)),AL25,IF(AND(AZ25="ja",OR(AT25=2,AU25=2)),AN25,IF(AND(AZ25="nein",AT25=1),AL25,IF(AND(AZ25="nein",AT25=2),AN25,"")))) -> Ungarn | AX25: =VLOOKUP(AL25,'Gen-Tab_Quick'!$S$3:$T$26,2,0) -> F1 | AY25: =VLOOKUP(AN25,'Gen-Tab_Quick'!$S$3:$T$26,2,0) -> D3 | AZ25: =IF(AT25="X","ja","nein") -> ja | BA25: =IF(AT25=0,"",IF(AZ25="nein","",IF(AND(AZ25="ja",AU25>0),"","Elfmeterschießen tippen !"))) ->  | BB25: 2VF1 | BC25: =IF(AW25=AL25:AL25,AN25,AL25) -> Schottland | BE25: =VLOOKUP(BF25,'Pulldown-Listen'!$I$1:$K$49,3,0) -> 4 | BF25: =IF(BG25=1,RANDBETWEEN(8,28),IF(BG25=2,RANDBETWEEN(1,7),RANDBETWEEN(29,49))) -> 2 | BG25: =ROUND(IF(AND(BH25<=6,BH25>=-6),RANDBETWEEN(1,3),IF(AND(BH25>6,BH25<12),(RANDBETWEEN(10,27)/10)-0.3,IF(BH25>=12,(RANDBETWEEN(10,25)/10)-0.5,IF(BH25<=-12,(RANDBETWEEN(15,30)/10)+0.49,(RANDBETWEEN(13,30)/10)+0.3)))),0) -> 2 | BH25: =ROUND((VLOOKUP(AL25,'Gen-Tab_Quick'!$S$3:$V$26,4,0)-VLOOKUP(AN25,'Gen-Tab_Quick'!$S$3:$V$26,4,0))/1000,0) -> 0
C26: Gruppe D | Q26: =IF(OR(P31="ja",P32="ja"),"Bei diesen Ergebnissen entscheidet ein Penalty-Schießen über die endgültige Tabellen- platzierung. Tragen Sie Ihren Tipp im entsprechenden Kästchen ein (1 oder 2)","") ->  | T26: Gruppe D | AE26: =IF(OR(AE30=1,AE31="X"),"J","N") -> N | AG26: =VLOOKUP(AE31,'Pulldown-Listen'!A$132:B$133,2,0) -> .
B27: 7 | C27: =VLOOKUP($B27,'Gen-Tab_Quick'!$B$3:$O$57,11,0) -> 2021-06-13 | D27: =VLOOKUP($B27,'Gen-Tab_Quick'!$B$3:$O$57,12,0) -> 15:00:00 | E27: =VLOOKUP($B27,'Gen-Tab_Quick'!$B$3:$O$57,7,0) -> England | F27: =VLOOKUP($B27,'Gen-Tab_Quick'!$B$3:$O$57,8,0) -> Kroatien | G27: =(VLOOKUP(L27,'Pulldown-Listen'!$B$1:$F$49,3))*1 -> 1 | H27: : | I27: =(VLOOKUP(L27,'Pulldown-Listen'!$B$1:$F$49,5))*1 -> 5 | K27: =IF(L27=0,0,VLOOKUP(L27,'Pulldown-Listen'!$B$1:$G$49,6,0)) -> 2 | L27: =VLOOKUP(M27,'Pulldown-Listen'!$I$1:$K$49,3,0) -> 34 | M27: =IF(N27=1,RANDBETWEEN(8,28),IF(N27=2,RANDBETWEEN(1,7),RANDBETWEEN(29,49))) -> 42 | N27: =ROUND(IF(AND(O27<=6,O27>=-6),RANDBETWEEN(1,3),IF(AND(O27>6,O27<12),(RANDBETWEEN(10,27)/10)-0.3,IF(O27>=12,(RANDBETWEEN(10,25)/10)-0.5,IF(O27<=-12,(RANDBETWEEN(15,30)/10)+0.49,(RANDBETWEEN(13,30)/10)+0.3)))),0) -> 3 | O27: =ROUND((VLOOKUP(E27,'Gen-Tab_Quick'!$S$3:$V$26,4,0)-VLOOKUP(F27,'Gen-Tab_Quick'!$S$3:$V$26,4,0))/1000,0) -> 0 | T27: 1 | U27: . | V27: =IF(T32=1,VLOOKUP($T27,'Grupp-Tab-Quick'!$D$48:$AB$51,3,0),"Tipps fehlen") -> Tschechien | W27: =VLOOKUP(V27,'Grupp-Tab-Quick'!$AI$48:$AJ$51,2,0) -> 3 | X27: =IF(T32=1,VLOOKUP($T27,'Grupp-Tab-Quick'!$D$48:$AB$51,4,0),0) -> 12 | Y27: : | Z27: =IF(T32=1,VLOOKUP($T27,'Grupp-Tab-Quick'!$D$48:$AB$51,5,0),0) -> 11 | AA27: =X27-Z27 -> 1 | AB27: =IF(T32=1,VLOOKUP($T27,'Grupp-Tab-Quick'!$D$48:$AB$51,7,0),0) -> 6 | AC27: =IF(T32=1,VLOOKUP(V27,'Grupp-Tab-Quick'!F$48:AG$51,28,0),"") -> 3) | AD27: Reihung unter den | AH27: 46 | AI27: =VLOOKUP($AH27,'Gen-Tab_Quick'!$B$3:$O$57,11,0) -> 2021-07-02 | AJ27: =VLOOKUP($AH27,'Gen-Tab_Quick'!$B$3:$O$57,12,0) -> 21:00:00 | AK27: =VLOOKUP(AH27,'Gen-Tab_Quick'!$B$49:$D$57,2,0) -> 1AF4 | AL27: =IF(AS6="",0,VLOOKUP(AK27,AV4:AW19,2,0)) -> Spanien | AM27: =VLOOKUP(AH27,'Gen-Tab_Quick'!$B$49:$D$57,3,0) -> 1AF2 | AN27: =IF(AS6="",0,VLOOKUP(AM27,AV4:AW19,2,0)) -> Schweiz | AO27: =(VLOOKUP(AS27,'Pulldown-Listen'!$B$1:$F$49,3))*1 -> 5 | AP27: : | AQ27: =(VLOOKUP(AS27,'Pulldown-Listen'!$B$1:$F$49,5))*1 -> 0 | AS27: =VLOOKUP(BF27,'Pulldown-Listen'!$I$1:$K$49,3,0) -> 26 | AT27: =IF(AS27=0,0,VLOOKUP(AS27,'Pulldown-Listen'!$B$1:$G$49,6,0)) -> 1 | AU27: 2 | AV27: 1VF2 | AW27: =IF(AND(AZ27="ja",OR(AT27=1,AU27=1)),AL27,IF(AND(AZ27="ja",OR(AT27=2,AU27=2)),AN27,IF(AND(AZ27="nein",AT27=1),AL27,IF(AND(AZ27="nein",AT27=2),AN27,"")))) -> Spanien | AX27: =VLOOKUP(AL27,'Gen-Tab_Quick'!$S$3:$T$26,2,0) -> E1 | AY27: =VLOOKUP(AN27,'Gen-Tab_Quick'!$S$3:$T$26,2,0) -> A4 | AZ27: =IF(AT27="X","ja","nein") -> nein | BA27: =IF(AT27=0,"",IF(AZ27="nein","",IF(AND(AZ27="ja",AU27>0),"","Elfmeterschießen tippen !"))) ->  | BB27: 2VF2 | BC27: =IF(AW27=AL27:AL27,AN27,AL27) -> Schweiz | BE27: =VLOOKUP(BF27,'Pulldown-Listen'!$I$1:$K$49,3,0) -> 26 | BF27: =IF(BG27=1,RANDBETWEEN(8,28),IF(BG27=2,RANDBETWEEN(1,7),RANDBETWEEN(29,49))) -> 18 | BG27: =ROUND(IF(AND(BH27<=6,BH27>=-6),RANDBETWEEN(1,3),IF(AND(BH27>6,BH27<12),(RANDBETWEEN(10,27)/10)-0.3,IF(BH27>=12,(RANDBETWEEN(10,25)/10)-0.5,IF(BH27<=-12,(RANDBETWEEN(15,30)/10)+0.49,(RANDBETWEEN(13,30)/10)+0.3)))),0) -> 1 | BH27: =ROUND((VLOOKUP(AL27,'Gen-Tab_Quick'!$S$3:$V$26,4,0)-VLOOKUP(AN27,'Gen-Tab_Quick'!$S$3:$V$26,4,0))/1000,0) -> 0
B28: 8 | C28: =VLOOKUP($B28,'Gen-Tab_Quick'!$B$3:$O$57,11,0) -> 2021-06-14 | D28: =VLOOKUP($B28,'Gen-Tab_Quick'!$B$3:$O$57,12,0) -> 15:00:00 | E28: =VLOOKUP($B28,'Gen-Tab_Quick'!$B$3:$O$57,7,0) -> Schottland | F28: =VLOOKUP($B28,'Gen-Tab_Quick'!$B$3:$O$57,8,0) -> Tschechien | G28: =(VLOOKUP(L28,'Pulldown-Listen'!$B$1:$F$49,3))*1 -> 5 | H28: : | I28: =(VLOOKUP(L28,'Pulldown-Listen'!$B$1:$F$49,5))*1 -> 6 | K28: =IF(L28=0,0,VLOOKUP(L28,'Pulldown-Listen'!$B$1:$G$49,6,0)) -> 2 | L28: =VLOOKUP(M28,'Pulldown-Listen'!$I$1:$K$49,3,0) -> 43 | M28: 44 | N28: 3 | O28: =ROUND((VLOOKUP(E28,'Gen-Tab_Quick'!$S$3:$V$26,4,0)-VLOOKUP(F28,'Gen-Tab_Quick'!$S$3:$V$26,4,0))/1000,0) -> 0 | T28: 2 | U28: . | V28: =IF(T32=1,VLOOKUP($T28,'Grupp-Tab-Quick'!$D$48:$AB$51,3,0),"Tipps fehlen") -> Schottland | W28: =VLOOKUP(V28,'Grupp-Tab-Quick'!$AI$48:$AJ$51,2,0) -> 3 | X28: =IF(T32=1,VLOOKUP($T28,'Grupp-Tab-Quick'!$D$48:$AB$51,4,0),0) -> 15 | Y28: : | Z28: =IF(T32=1,VLOOKUP($T28,'Grupp-Tab-Quick'!$D$48:$AB$51,5,0),0) -> 10 | AA28: =X28-Z28 -> 5 | AB28: =IF(T32=1,VLOOKUP($T28,'Grupp-Tab-Quick'!$D$48:$AB$51,7,0),0) -> 6 | AC28: =IF(T32=1,VLOOKUP(V28,'Grupp-Tab-Quick'!F$48:AG$51,28,0),"") -> 3) | AD28: Dritt- Platzierten
B29: 19 | C29: =VLOOKUP($B29,'Gen-Tab_Quick'!$B$3:$O$57,11,0) -> 2021-06-18 | D29: =VLOOKUP($B29,'Gen-Tab_Quick'!$B$3:$O$57,12,0) -> 18:00:00 | E29: =VLOOKUP($B29,'Gen-Tab_Quick'!$B$3:$O$57,7,0) -> England | F29: =VLOOKUP($B29,'Gen-Tab_Quick'!$B$3:$O$57,8,0) -> Schottland | G29: =(VLOOKUP(L29,'Pulldown-Listen'!$B$1:$F$49,3))*1 -> 1 | H29: : | I29: =(VLOOKUP(L29,'Pulldown-Listen'!$B$1:$F$49,5))*1 -> 5 | K29: =IF(L29=0,0,VLOOKUP(L29,'Pulldown-Listen'!$B$1:$G$49,6,0)) -> 2 | L29: =VLOOKUP(M29,'Pulldown-Listen'!$I$1:$K$49,3,0) -> 34 | M29: 42 | N29: 3 | O29: =ROUND((VLOOKUP(E29,'Gen-Tab_Quick'!$S$3:$V$26,4,0)-VLOOKUP(F29,'Gen-Tab_Quick'!$S$3:$V$26,4,0))/1000,0) -> 0 | T29: 3 | U29: . | V29: =IF(T32=1,VLOOKUP($T29,'Grupp-Tab-Quick'!$D$48:$AB$51,3,0),"Tipps fehlen") -> Kroatien | W29: =VLOOKUP(V29,'Grupp-Tab-Quick'!$AI$48:$AJ$51,2,0) -> 3 | X29: =IF(T32=1,VLOOKUP($T29,'Grupp-Tab-Quick'!$D$48:$AB$51,4,0),0) -> 12 | Y29: : | Z29: =IF(T32=1,VLOOKUP($T29,'Grupp-Tab-Quick'!$D$48:$AB$51,5,0),0) -> 12 | AA29: =X29-Z29 -> 0 | AB29: =IF(T32=1,VLOOKUP($T29,'Grupp-Tab-Quick'!$D$48:$AB$51,7,0),0) -> 3 | AC29: =IF(T32=1,VLOOKUP(V29,'Grupp-Tab-Quick'!F$48:AG$51,28,0),"") -> 3) | AD29: =VLOOKUP(V29,'Grupp-Tab-Quick'!F$95:T$100,15,0) -> 3 | AH29: 47 | AI29: =VLOOKUP($AH29,'Gen-Tab_Quick'!$B$3:$O$57,11,0) -> 2021-07-03 | AJ29: =VLOOKUP($AH29,'Gen-Tab_Quick'!$B$3:$O$57,12,0) -> 18:00:00 | AK29: =VLOOKUP(AH29,'Gen-Tab_Quick'!$B$49:$D$57,2,0) -> 1AF3 | AL29: =IF(AS8="",0,VLOOKUP(AK29,AV4:AW19,2,0)) -> Nordmazedonien | AM29: =VLOOKUP(AH29,'Gen-Tab_Quick'!$B$49:$D$57,3,0) -> 1AF1 | AN29: =IF(AS8="",0,VLOOKUP(AM29,AV4:AW19,2,0)) -> Italien | AO29: =(VLOOKUP(AS29,'Pulldown-Listen'!$B$1:$F$49,3))*1 -> 6 | AP29: : | AQ29: =(VLOOKUP(AS29,'Pulldown-Listen'!$B$1:$F$49,5))*1 -> 5 | AS29: =VLOOKUP(BF29,'Pulldown-Listen'!$I$1:$K$49,3,0) -> 42 | AT29: =IF(AS29=0,0,VLOOKUP(AS29,'Pulldown-Listen'!$B$1:$G$49,6,0)) -> 1 | AU29: 1 | AV29: 1VF3 | AW29: =IF(AND(AZ29="ja",OR(AT29=1,AU29=1)),AL29,IF(AND(AZ29="ja",OR(AT29=2,AU29=2)),AN29,IF(AND(AZ29="nein",AT29=1),AL29,IF(AND(AZ29="nein",AT29=2),AN29,"")))) -> Nordmazedonien | AX29: =VLOOKUP(AL29,'Gen-Tab_Quick'!$S$3:$T$26,2,0) -> C4 | AY29: =VLOOKUP(AN29,'Gen-Tab_Quick'!$S$3:$T$26,2,0) -> A2 | AZ29: =IF(AT29="X","ja","nein") -> nein | BA29: =IF(AT29=0,"",IF(AZ29="nein","",IF(AND(AZ29="ja",AU29>0),"","Elfmeterschießen tippen !"))) ->  | BB29: 2VF3 | BC29: =IF(AW29=AL29:AL29,AN29,AL29) -> Italien | BE29: =VLOOKUP(BF29,'Pulldown-Listen'!$I$1:$K$49,3,0) -> 42 | BF29: =IF(BG29=1,RANDBETWEEN(8,28),IF(BG29=2,RANDBETWEEN(1,7),RANDBETWEEN(29,49))) -> 28 | BG29: =ROUND(IF(AND(BH29<=6,BH29>=-6),RANDBETWEEN(1,3),IF(AND(BH29>6,BH29<12),(RANDBETWEEN(10,27)/10)-0.3,IF(BH29>=12,(RANDBETWEEN(10,25)/10)-0.5,IF(BH29<=-12,(RANDBETWEEN(15,30)/10)+0.49,(RANDBETWEEN(13,30)/10)+0.3)))),0) -> 1 | BH29: =ROUND((VLOOKUP(AL29,'Gen-Tab_Quick'!$S$3:$V$26,4,0)-VLOOKUP(AN29,'Gen-Tab_Quick'!$S$3:$V$26,4,0))/1000,0) -> 0
B30: 20 | C30: =VLOOKUP($B30,'Gen-Tab_Quick'!$B$3:$O$57,11,0) -> 2021-06-18 | D30: =VLOOKUP($B30,'Gen-Tab_Quick'!$B$3:$O$57,12,0) -> 21:00:00 | E30: =VLOOKUP($B30,'Gen-Tab_Quick'!$B$3:$O$57,7,0) -> Kroatien | F30: =VLOOKUP($B30,'Gen-Tab_Quick'!$B$3:$O$57,8,0) -> Tschechien | G30: =(VLOOKUP(L30,'Pulldown-Listen'!$B$1:$F$49,3))*1 -> 4 | H30: : | I30: =(VLOOKUP(L30,'Pulldown-Listen'!$B$1:$F$49,5))*1 -> 6 | K30: =IF(L30=0,0,VLOOKUP(L30,'Pulldown-Listen'!$B$1:$G$49,6,0)) -> 2 | L30: =VLOOKUP(M30,'Pulldown-Listen'!$I$1:$K$49,3,0) -> 44 | M30: 45 | N30: 3 | O30: =ROUND((VLOOKUP(E30,'Gen-Tab_Quick'!$S$3:$V$26,4,0)-VLOOKUP(F30,'Gen-Tab_Quick'!$S$3:$V$26,4,0))/1000,0) -> 0 | T30: 4 | U30: . | V30: =IF(T32=1,VLOOKUP($T30,'Grupp-Tab-Quick'!$D$48:$AB$51,3,0),"Tipps fehlen") -> England | W30: =VLOOKUP(V30,'Grupp-Tab-Quick'!$AI$48:$AJ$51,2,0) -> 3 | X30: =IF(T32=1,VLOOKUP($T30,'Grupp-Tab-Quick'!$D$48:$AB$51,4,0),0) -> 4 | Y30: : | Z30: =IF(T32=1,VLOOKUP($T30,'Grupp-Tab-Quick'!$D$48:$AB$51,5,0),0) -> 10 | AA30: =X30-Z30 -> -6 | AB30: =IF(T32=1,VLOOKUP($T30,'Grupp-Tab-Quick'!$D$48:$AB$51,7,0),0) -> 3 | AC30: =IF(T32=1,VLOOKUP(V30,'Grupp-Tab-Quick'!F$48:AG$51,28,0),"") -> 3) | AE30: =IF(OR(U31="4)",U31="5)",U31="6)"),1,0) -> 0
B31: 31 | C31: =VLOOKUP($B31,'Gen-Tab_Quick'!$B$3:$O$57,11,0) -> 2021-06-22 | D31: =VLOOKUP($B31,'Gen-Tab_Quick'!$B$3:$O$57,12,0) -> 21:00:00 | E31: =VLOOKUP($B31,'Gen-Tab_Quick'!$B$3:$O$57,7,0) -> Tschechien | F31: =VLOOKUP($B31,'Gen-Tab_Quick'!$B$3:$O$57,8,0) -> England | G31: =(VLOOKUP(L31,'Pulldown-Listen'!$B$1:$F$49,3))*1 -> 0 | H31: : | I31: =(VLOOKUP(L31,'Pulldown-Listen'!$B$1:$F$49,5))*1 -> 2 | K31: =IF(L31=0,0,VLOOKUP(L31,'Pulldown-Listen'!$B$1:$G$49,6,0)) -> 2 | L31: =VLOOKUP(M31,'Pulldown-Listen'!$I$1:$K$49,3,0) -> 8 | M31: 31 | N31: 3 | O31: =ROUND((VLOOKUP(E31,'Gen-Tab_Quick'!$S$3:$V$26,4,0)-VLOOKUP(F31,'Gen-Tab_Quick'!$S$3:$V$26,4,0))/1000,0) -> 0 | P31: ='Sub-Tab_D_Quick'!P130 -> nein | Q31: =RANDBETWEEN(1,2) -> 1 | U31: =IF(OR(AC27="1)",AC28="1)",AC29="1)",AC30="1)"),VLOOKUP("1)",'Pulldown-Listen'!A$56:C$61,2,0),IF(OR(AC27="2)",AC28="2)",AC29="2)",AC30="2)"),VLOOKUP("2)",'Pulldown-Listen'!A$56:C$61,2,0),IF(OR(AC27="3)",AC28="3)",AC29="3)",AC30="3)"),VLOOKUP("3)",'Pulldown-Listen'!A$56:C$61,2,0),IF(OR(AC27="4)",AC28="4)",AC29="4)",AC30="4)"),VLOOKUP("4)",'Pulldown-Listen'!A$56:C$61,2,0),IF(OR(AC27="5)",AC28="5)",AC29="5)",AC30="5)"),VLOOKUP("5)",'Pulldown-Listen'!A$56:C$61,2,0),IF(OR(AC27="6)",AC28="6)",AC29="6)",AC30="6)"),VLOOKUP("6)",'Pulldown-Listen'!A$56:C$61,2,0),"")))))) -> 3) | V31: =IF(U31="","",VLOOKUP(U31,'Pulldown-Listen'!A56:C61,3,0)) -> Tabellenrang durch direkte Begegnung bestimmt | AE31: =VLOOKUP(V29,'Grupp-Tab-Quick'!$F$95:$P$100,11,0) -> N | AG31: =VLOOKUP(AE32,'Pulldown-Listen'!A$135:B$136,2,0) ->  | AH31: 48 | AI31: =VLOOKUP($AH31,'Gen-Tab_Quick'!$B$3:$O$57,11,0) -> 2021-07-03 | AJ31: =VLOOKUP($AH31,'Gen-Tab_Quick'!$B$3:$O$57,12,0) -> 21:00:00 | AK31: =VLOOKUP(AH31,'Gen-Tab_Quick'!$B$49:$D$57,2,0) -> 1AF8 | AL31: =IF(AS10="",0,VLOOKUP(AK31,AV4:AW19,2,0)) -> Niederlande | AM31: =VLOOKUP(AH31,'Gen-Tab_Quick'!$B$49:$D$57,3,0) -> 1AF7 | AN31: =IF(AS10="",0,VLOOKUP(AM31,AV4:AW19,2,0)) -> Tschechien | AO31: =(VLOOKUP(AS31,'Pulldown-Listen'!$B$1:$F$49,3))*1 -> 5 | AP31: : | AQ31: =(VLOOKUP(AS31,'Pulldown-Listen'!$B$1:$F$49,5))*1 -> 5 | AS31: =VLOOKUP(BF31,'Pulldown-Listen'!$I$1:$K$49,3,0) -> 36 | AT31: =IF(AS31=0,0,VLOOKUP(AS31,'Pulldown-Listen'!$B$1:$G$49,6,0)) -> X | AU31: 1 | AV31: 1VF4 | AW31: =IF(AND(AZ31="ja",OR(AT31=1,AU31=1)),AL31,IF(AND(AZ31="ja",OR(AT31=2,AU31=2)),AN31,IF(AND(AZ31="nein",AT31=1),AL31,IF(AND(AZ31="nein",AT31=2),AN31,"")))) -> Niederlande | AX31: =VLOOKUP(AL31,'Gen-Tab_Quick'!$S$3:$T$26,2,0) -> C1 | AY31: =VLOOKUP(AN31,'Gen-Tab_Quick'!$S$3:$T$26,2,0) -> D4 | AZ31: =IF(AT31="X","ja","nein") -> ja | BA31: =IF(AT31=0,"",IF(AZ31="nein","",IF(AND(AZ31="ja",AU31>0),"","Elfmeterschießen tippen !"))) ->  | BB31: 2VF4 | BC31: =IF(AW31=AL31:AL31,AN31,AL31) -> Tschechien | BE31: =VLOOKUP(BF31,'Pulldown-Listen'!$I$1:$K$49,3,0) -> 36 | BF31: =IF(BG31=1,RANDBETWEEN(8,28),IF(BG31=2,RANDBETWEEN(1,7),RANDBETWEEN(29,49))) -> 6 | BG31: =ROUND(IF(AND(BH31<=6,BH31>=-6),RANDBETWEEN(1,3),IF(AND(BH31>6,BH31<12),(RANDBETWEEN(10,27)/10)-0.3,IF(BH31>=12,(RANDBETWEEN(10,25)/10)-0.5,IF(BH31<=-12,(RANDBETWEEN(15,30)/10)+0.49,(RANDBETWEEN(13,30)/10)+0.3)))),0) -> 2 | BH31: =ROUND((VLOOKUP(AL31,'Gen-Tab_Quick'!$S$3:$V$26,4,0)-VLOOKUP(AN31,'Gen-Tab_Quick'!$S$3:$V$26,4,0))/1000,0) -> 0
B32: 32 | C32: =VLOOKUP($B32,'Gen-Tab_Quick'!$B$3:$O$57,11,0) -> 2021-06-22 | D32: =VLOOKUP($B32,'Gen-Tab_Quick'!$B$3:$O$57,12,0) -> 21:00:00 | E32: =VLOOKUP($B32,'Gen-Tab_Quick'!$B$3:$O$57,7,0) -> Kroatien | F32: =VLOOKUP($B32,'Gen-Tab_Quick'!$B$3:$O$57,8,0) -> Schottland | G32: =(VLOOKUP(L32,'Pulldown-Listen'!$B$1:$F$49,3))*1 -> 3 | H32: : | I32: =(VLOOKUP(L32,'Pulldown-Listen'!$B$1:$F$49,5))*1 -> 5 | K32: =IF(L32=0,0,VLOOKUP(L32,'Pulldown-Listen'!$B$1:$G$49,6,0)) -> 2 | L32: =VLOOKUP(M32,'Pulldown-Listen'!$I$1:$K$49,3,0) -> 32 | M32: 40 | N32: 3 | O32: =ROUND((VLOOKUP(E32,'Gen-Tab_Quick'!$S$3:$V$26,4,0)-VLOOKUP(F32,'Gen-Tab_Quick'!$S$3:$V$26,4,0))/1000,0) -> 0 | P32: ='Sub-Tab_D_Quick'!P131 -> nein | Q32: =RANDBETWEEN(1,2) -> 1 | T32: =IF('Grupp-Tab-Quick'!AJ52=12,1,0) -> 1 | U32: =IF(SUM(W27:W30)=12,1,0) -> 1 | AE32: =AE31 -> N
AN33: =BA33 ->  | BA33: =IF(AND(BA29="",BA31="",BA27="",BA25=""),"","Elfmeterschießen tippen !") -> 
C34: Gruppe E | Q34: =IF(OR(P39="ja",P40="ja"),"Bei diesen Ergebnissen entscheidet ein Penalty-Schießen über die endgültige Tabellen- platzierung. Tragen Sie Ihren Tipp im entsprechenden Kästchen ein (1 oder 2)","") ->  | T34: Gruppe E | AE34: =IF(OR(AE38=1,AE39="X"),"J","N") -> N | AG34: =VLOOKUP(AE39,'Pulldown-Listen'!A$132:B$133,2,0) -> .
B35: 9 | C35: =VLOOKUP($B35,'Gen-Tab_Quick'!$B$3:$O$57,11,0) -> 2021-06-14 | D35: =VLOOKUP($B35,'Gen-Tab_Quick'!$B$3:$O$57,12,0) -> 18:00:00 | E35: =VLOOKUP($B35,'Gen-Tab_Quick'!$B$3:$O$57,7,0) -> Spanien | F35: =VLOOKUP($B35,'Gen-Tab_Quick'!$B$3:$O$57,8,0) -> Schweden | G35: =(VLOOKUP(L35,'Pulldown-Listen'!$B$1:$F$49,3))*1 -> 5 | H35: : | I35: =(VLOOKUP(L35,'Pulldown-Listen'!$B$1:$F$49,5))*1 -> 5 | K35: =IF(L35=0,0,VLOOKUP(L35,'Pulldown-Listen'!$B$1:$G$49,6,0)) -> X | L35: =VLOOKUP(M35,'Pulldown-Listen'!$I$1:$K$49,3,0) -> 36 | M35: =IF(N35=1,RANDBETWEEN(8,28),IF(N35=2,RANDBETWEEN(1,7),RANDBETWEEN(29,49))) -> 6 | N35: =ROUND(IF(AND(O35<=6,O35>=-6),RANDBETWEEN(1,3),IF(AND(O35>6,O35<12),(RANDBETWEEN(10,27)/10)-0.3,IF(O35>=12,(RANDBETWEEN(10,25)/10)-0.5,IF(O35<=-12,(RANDBETWEEN(15,30)/10)+0.49,(RANDBETWEEN(13,30)/10)+0.3)))),0) -> 2 | O35: =ROUND((VLOOKUP(E35,'Gen-Tab_Quick'!$S$3:$V$26,4,0)-VLOOKUP(F35,'Gen-Tab_Quick'!$S$3:$V$26,4,0))/1000,0) -> 0 | T35: 1 | U35: . | V35: =IF(T40=1,VLOOKUP($T35,'Grupp-Tab-Quick'!$D$63:$AB$66,3,0),"Tipps fehlen") -> Polen | W35: =VLOOKUP(V35,'Grupp-Tab-Quick'!$AI$63:$AJ$66,2,0) -> 3 | X35: =IF(T40=1,VLOOKUP($T35,'Grupp-Tab-Quick'!$D$63:$AB$66,4,0),0) -> 7 | Y35: : | Z35: =IF(T40=1,VLOOKUP($T35,'Grupp-Tab-Quick'!$D$63:$AB$66,5,0),0) -> 2 | AA35: =X35-Z35 -> 5 | AB35: =IF(T40=1,VLOOKUP($T35,'Grupp-Tab-Quick'!$D$63:$AB$66,7,0),0) -> 5 | AC35: =IF(T40=1,VLOOKUP(V35,'Grupp-Tab-Quick'!F$63:AG$66,28,0),"") ->  | AD35: Reihung unter den | AI35: Halb-Finale
B36: 10 | C36: =VLOOKUP($B36,'Gen-Tab_Quick'!$B$3:$O$57,11,0) -> 2021-06-14 | D36: =VLOOKUP($B36,'Gen-Tab_Quick'!$B$3:$O$57,12,0) -> 21:00:00 | E36: =VLOOKUP($B36,'Gen-Tab_Quick'!$B$3:$O$57,7,0) -> Polen | F36: =VLOOKUP($B36,'Gen-Tab_Quick'!$B$3:$O$57,8,0) -> Slowakei | G36: =(VLOOKUP(L36,'Pulldown-Listen'!$B$1:$F$49,3))*1 -> 5 | H36: : | I36: =(VLOOKUP(L36,'Pulldown-Listen'!$B$1:$F$49,5))*1 -> 0 | K36: =IF(L36=0,0,VLOOKUP(L36,'Pulldown-Listen'!$B$1:$G$49,6,0)) -> 1 | L36: =VLOOKUP(M36,'Pulldown-Listen'!$I$1:$K$49,3,0) -> 26 | M36: 18 | N36: 1 | O36: =ROUND((VLOOKUP(E36,'Gen-Tab_Quick'!$S$3:$V$26,4,0)-VLOOKUP(F36,'Gen-Tab_Quick'!$S$3:$V$26,4,0))/1000,0) -> 0 | T36: 2 | U36: . | V36: =IF(T40=1,VLOOKUP($T36,'Grupp-Tab-Quick'!$D$63:$AB$66,3,0),"Tipps fehlen") -> Schweden | W36: =VLOOKUP(V36,'Grupp-Tab-Quick'!$AI$63:$AJ$66,2,0) -> 3 | X36: =IF(T40=1,VLOOKUP($T36,'Grupp-Tab-Quick'!$D$63:$AB$66,4,0),0) -> 9 | Y36: : | Z36: =IF(T40=1,VLOOKUP($T36,'Grupp-Tab-Quick'!$D$63:$AB$66,5,0),0) -> 5 | AA36: =X36-Z36 -> 4 | AB36: =IF(T40=1,VLOOKUP($T36,'Grupp-Tab-Quick'!$D$63:$AB$66,7,0),0) -> 5 | AC36: =IF(T40=1,VLOOKUP(V36,'Grupp-Tab-Quick'!F$63:AG$66,28,0),"") ->  | AD36: Dritt- Platzierten
B37: 21 | C37: =VLOOKUP($B37,'Gen-Tab_Quick'!$B$3:$O$57,11,0) -> 2021-06-18 | D37: =VLOOKUP($B37,'Gen-Tab_Quick'!$B$3:$O$57,12,0) -> 15:00:00 | E37: =VLOOKUP($B37,'Gen-Tab_Quick'!$B$3:$O$57,7,0) -> Spanien | F37: =VLOOKUP($B37,'Gen-Tab_Quick'!$B$3:$O$57,8,0) -> Polen | G37: =(VLOOKUP(L37,'Pulldown-Listen'!$B$1:$F$49,3))*1 -> 2 | H37: : | I37: =(VLOOKUP(L37,'Pulldown-Listen'!$B$1:$F$49,5))*1 -> 2 | K37: =IF(L37=0,0,VLOOKUP(L37,'Pulldown-Listen'!$B$1:$G$49,6,0)) -> X | L37: =VLOOKUP(M37,'Pulldown-Listen'!$I$1:$K$49,3,0) -> 9 | M37: 3 | N37: 2 | O37: =ROUND((VLOOKUP(E37,'Gen-Tab_Quick'!$S$3:$V$26,4,0)-VLOOKUP(F37,'Gen-Tab_Quick'!$S$3:$V$26,4,0))/1000,0) -> 0 | T37: 3 | U37: . | V37: =IF(T40=1,VLOOKUP($T37,'Grupp-Tab-Quick'!$D$63:$AB$66,3,0),"Tipps fehlen") -> Spanien | W37: =VLOOKUP(V37,'Grupp-Tab-Quick'!$AI$63:$AJ$66,2,0) -> 3 | X37: =IF(T40=1,VLOOKUP($T37,'Grupp-Tab-Quick'!$D$63:$AB$66,4,0),0) -> 10 | Y37: : | Z37: =IF(T40=1,VLOOKUP($T37,'Grupp-Tab-Quick'!$D$63:$AB$66,5,0),0) -> 10 | AA37: =X37-Z37 -> 0 | AB37: =IF(T40=1,VLOOKUP($T37,'Grupp-Tab-Quick'!$D$63:$AB$66,7,0),0) -> 3 | AC37: =IF(T40=1,VLOOKUP(V37,'Grupp-Tab-Quick'!F$63:AG$66,28,0),"") ->  | AD37: =VLOOKUP(V37,'Grupp-Tab-Quick'!F$95:T$100,15,0) -> 4
B38: 22 | C38: =VLOOKUP($B38,'Gen-Tab_Quick'!$B$3:$O$57,11,0) -> 2021-06-19 | D38: =VLOOKUP($B38,'Gen-Tab_Quick'!$B$3:$O$57,12,0) -> 21:00:00 | E38: =VLOOKUP($B38,'Gen-Tab_Quick'!$B$3:$O$57,7,0) -> Schweden | F38: =VLOOKUP($B38,'Gen-Tab_Quick'!$B$3:$O$57,8,0) -> Slowakei | G38: =(VLOOKUP(L38,'Pulldown-Listen'!$B$1:$F$49,3))*1 -> 4 | H38: : | I38: =(VLOOKUP(L38,'Pulldown-Listen'!$B$1:$F$49,5))*1 -> 0 | K38: =IF(L38=0,0,VLOOKUP(L38,'Pulldown-Listen'!$B$1:$G$49,6,0)) -> 1 | L38: =VLOOKUP(M38,'Pulldown-Listen'!$I$1:$K$49,3,0) -> 17 | M38: 14 | N38: 1 | O38: =ROUND((VLOOKUP(E38,'Gen-Tab_Quick'!$S$3:$V$26,4,0)-VLOOKUP(F38,'Gen-Tab_Quick'!$S$3:$V$26,4,0))/1000,0) -> 0 | T38: 4 | U38: . | V38: =IF(T40=1,VLOOKUP($T38,'Grupp-Tab-Quick'!$D$63:$AB$66,3,0),"Tipps fehlen") -> Slowakei | W38: =VLOOKUP(V38,'Grupp-Tab-Quick'!$AI$63:$AJ$66,2,0) -> 3 | X38: =IF(T40=1,VLOOKUP($T38,'Grupp-Tab-Quick'!$D$63:$AB$66,4,0),0) -> 3 | Y38: : | Z38: =IF(T40=1,VLOOKUP($T38,'Grupp-Tab-Quick'!$D$63:$AB$66,5,0),0) -> 12 | AA38: =X38-Z38 -> -9 | AB38: =IF(T40=1,VLOOKUP($T38,'Grupp-Tab-Quick'!$D$63:$AB$66,7,0),0) -> 1 | AC38: =IF(T40=1,VLOOKUP(V38,'Grupp-Tab-Quick'!F$63:AG$66,28,0),"") ->  | AE38: =IF(OR(U39="4)",U39="5)",U39="6)"),1,0) -> 0 | AH38: 49 | AI38: =VLOOKUP($AH38,'Gen-Tab_Quick'!$B$3:$O$57,11,0) -> 2021-07-06 | AJ38: =VLOOKUP($AH38,'Gen-Tab_Quick'!$B$3:$O$57,12,0) -> 21:00:00 | AK38: =VLOOKUP(AH38,'Gen-Tab_Quick'!$B$49:$D$57,2,0) -> 1VF2 | AL38: =VLOOKUP(AK38,$AV$25:$AW$31,2,0) -> Spanien | AM38: =VLOOKUP(AH38,'Gen-Tab_Quick'!$B$49:$D$57,3,0) -> 1VF1 | AN38: =VLOOKUP(AM38,$AV$25:$AW$31,2,0) -> Ungarn | AO38: =(VLOOKUP(AS38,'Pulldown-Listen'!$B$1:$F$49,3))*1 -> 4 | AP38: : | AQ38: =(VLOOKUP(AS38,'Pulldown-Listen'!$B$1:$F$49,5))*1 -> 5 | AS38: =VLOOKUP(BF38,'Pulldown-Listen'!$I$1:$K$49,3,0) -> 31 | AT38: =IF(AS38=0,0,VLOOKUP(AS38,'Pulldown-Listen'!$B$1:$G$49,6,0)) -> 2 | AU38: =RANDBETWEEN(1,2) -> 1 | AV38: 1HF1 | AW38: =IF(AND(AZ38="ja",OR(AT38=1,AU38=1)),AL38,IF(AND(AZ38="ja",OR(AT38=2,AU38=2)),AN38,IF(AND(AZ38="nein",AT38=1),AL38,IF(AND(AZ38="nein",AT38=2),AN38,"")))) -> Ungarn | AX38: =VLOOKUP(AL38,'Gen-Tab_Quick'!$S$3:$T$26,2,0) -> E1 | AY38: =VLOOKUP(AN38,'Gen-Tab_Quick'!$S$3:$T$26,2,0) -> F1 | AZ38: =IF(AT38="X","ja","nein") -> nein | BA38: =IF(AT38=0,"",IF(AZ38="nein","",IF(AND(AZ38="ja",AU38>0),"","Elfmeterschießen tippen !"))) ->  | BB38: 2HF1 | BC38: =IF(AW38=AL38:AL38,AN38,AL38) -> Spanien | BE38: =VLOOKUP(BF38,'Pulldown-Listen'!$I$1:$K$49,3,0) -> 31 | BF38: =IF(BG38=1,RANDBETWEEN(8,28),IF(BG38=2,RANDBETWEEN(1,7),RANDBETWEEN(29,49))) -> 39 | BG38: =ROUND(IF(AND(BH38<=6,BH38>=-6),RANDBETWEEN(1,3),IF(AND(BH38>6,BH38<12),(RANDBETWEEN(10,27)/10)-0.3,IF(BH38>=12,(RANDBETWEEN(10,25)/10)-0.5,IF(BH38<=-12,(RANDBETWEEN(15,30)/10)+0.49,(RANDBETWEEN(13,30)/10)+0.3)))),0) -> 3 | BH38: =ROUND((VLOOKUP(AL38,'Gen-Tab_Quick'!$S$3:$V$26,4,0)-VLOOKUP(AN38,'Gen-Tab_Quick'!$S$3:$V$26,4,0))/1000,0) -> 0
B39: 33 | C39: =VLOOKUP($B39,'Gen-Tab_Quick'!$B$3:$O$57,11,0) -> 2021-06-23 | D39: =VLOOKUP($B39,'Gen-Tab_Quick'!$B$3:$O$57,12,0) -> 18;00 | E39: =VLOOKUP($B39,'Gen-Tab_Quick'!$B$3:$O$57,7,0) -> Slowakei | F39: =VLOOKUP($B39,'Gen-Tab_Quick'!$B$3:$O$57,8,0) -> Spanien | G39: =(VLOOKUP(L39,'Pulldown-Listen'!$B$1:$F$49,3))*1 -> 3 | H39: : | I39: =(VLOOKUP(L39,'Pulldown-Listen'!$B$1:$F$49,5))*1 -> 3 | K39: =IF(L39=0,0,VLOOKUP(L39,'Pulldown-Listen'!$B$1:$G$49,6,0)) -> X | L39: =VLOOKUP(M39,'Pulldown-Listen'!$I$1:$K$49,3,0) -> 16 | M39: 4 | N39: 2 | O39: =ROUND((VLOOKUP(E39,'Gen-Tab_Quick'!$S$3:$V$26,4,0)-VLOOKUP(F39,'Gen-Tab_Quick'!$S$3:$V$26,4,0))/1000,0) -> 0 | P39: ='Sub-Tab_E_Quick'!P130 -> nein | Q39: =RANDBETWEEN(1,2) -> 2 | U39: =IF(OR(AC35="1)",AC36="1)",AC37="1)",AC38="1)"),VLOOKUP("1)",'Pulldown-Listen'!A$56:C$61,2,0),IF(OR(AC35="2)",AC36="2)",AC37="2)",AC38="2)"),VLOOKUP("2)",'Pulldown-Listen'!A$56:C$61,2,0),IF(OR(AC35="3)",AC36="3)",AC37="3)",AC38="3)"),VLOOKUP("3)",'Pulldown-Listen'!A$56:C$61,2,0),IF(OR(AC35="4)",AC36="4)",AC37="4)",AC38="4)"),VLOOKUP("4)",'Pulldown-Listen'!A$56:C$61,2,0),IF(OR(AC35="5)",AC36="5)",AC37="5)",AC38="5)"),VLOOKUP("5)",'Pulldown-Listen'!A$56:C$61,2,0),IF(OR(AC35="6)",AC36="6)",AC37="6)",AC38="6)"),VLOOKUP("6)",'Pulldown-Listen'!A$56:C$61,2,0),"")))))) ->  | V39: =IF(U39="","",VLOOKUP(U39,'Pulldown-Listen'!A56:C61,3,0)) ->  | AE39: =VLOOKUP(V37,'Grupp-Tab-Quick'!$F$95:$P$100,11,0) -> N | AG39: =VLOOKUP(AE40,'Pulldown-Listen'!A$135:B$136,2,0) -> 
B40: 34 | C40: =VLOOKUP($B40,'Gen-Tab_Quick'!$B$3:$O$57,11,0) -> 2021-06-23 | D40: =VLOOKUP($B40,'Gen-Tab_Quick'!$B$3:$O$57,12,0) -> 18:00:00 | E40: =VLOOKUP($B40,'Gen-Tab_Quick'!$B$3:$O$57,7,0) -> Schweden | F40: =VLOOKUP($B40,'Gen-Tab_Quick'!$B$3:$O$57,8,0) -> Polen | G40: =(VLOOKUP(L40,'Pulldown-Listen'!$B$1:$F$49,3))*1 -> 0 | H40: : | I40: =(VLOOKUP(L40,'Pulldown-Listen'!$B$1:$F$49,5))*1 -> 0 | K40: =IF(L40=0,0,VLOOKUP(L40,'Pulldown-Listen'!$B$1:$G$49,6,0)) -> X | L40: =VLOOKUP(M40,'Pulldown-Listen'!$I$1:$K$49,3,0) -> 1 | M40: 1 | N40: 2 | O40: =ROUND((VLOOKUP(E40,'Gen-Tab_Quick'!$S$3:$V$26,4,0)-VLOOKUP(F40,'Gen-Tab_Quick'!$S$3:$V$26,4,0))/1000,0) -> 0 | P40: ='Sub-Tab_E_Quick'!P131 -> nein | Q40: =RANDBETWEEN(1,2) -> 2 | T40: =IF('Grupp-Tab-Quick'!AJ67=12,1,0) -> 1 | U40: =IF(SUM(W35:W38)=12,1,0) -> 1 | AE40: =AE39 -> N | AH40: 50 | AI40: =VLOOKUP($AH40,'Gen-Tab_Quick'!$B$3:$O$57,11,0) -> 2021-07-07 | AJ40: =VLOOKUP($AH40,'Gen-Tab_Quick'!$B$3:$O$57,12,0) -> 21:00:00 | AK40: =VLOOKUP(AH40,'Gen-Tab_Quick'!$B$49:$D$57,2,0) -> 1VF4 | AL40: =VLOOKUP(AK40,$AV$25:$AW$31,2,0) -> Niederlande | AM40: =VLOOKUP(AH40,'Gen-Tab_Quick'!$B$49:$D$57,3,0) -> 1VF3 | AN40: =VLOOKUP(AM40,$AV$25:$AW$31,2,0) -> Nordmazedonien | AO40: =(VLOOKUP(AS40,'Pulldown-Listen'!$B$1:$F$49,3))*1 -> 2 | AP40: : | AQ40: =(VLOOKUP(AS40,'Pulldown-Listen'!$B$1:$F$49,5))*1 -> 2 | AS40: =VLOOKUP(BF40,'Pulldown-Listen'!$I$1:$K$49,3,0) -> 9 | AT40: =IF(AS40=0,0,VLOOKUP(AS40,'Pulldown-Listen'!$B$1:$G$49,6,0)) -> X | AU40: 1 | AV40: 1HF2 | AW40: =IF(AND(AZ40="ja",OR(AT40=1,AU40=1)),AL40,IF(AND(AZ40="ja",OR(AT40=2,AU40=2)),AN40,IF(AND(AZ40="nein",AT40=1),AL40,IF(AND(AZ40="nein",AT40=2),AN40,"")))) -> Niederlande | AX40: =VLOOKUP(AL40,'Gen-Tab_Quick'!$S$3:$T$26,2,0) -> C1 | AY40: =VLOOKUP(AN40,'Gen-Tab_Quick'!$S$3:$T$26,2,0) -> C4 | AZ40: =IF(AT40="X","ja","nein") -> ja | BA40: =IF(AT40=0,"",IF(AZ40="nein","",IF(AND(AZ40="ja",AU40>0),"","Elfmeterschießen tippen !"))) ->  | BB40: 2HF2 | BC40: =IF(AW40=AL40:AL40,AN40,AL40) -> Nordmazedonien | BE40: =VLOOKUP(BF40,'Pulldown-Listen'!$I$1:$K$49,3,0) -> 9 | BF40: =IF(BG40=1,RANDBETWEEN(8,28),IF(BG40=2,RANDBETWEEN(1,7),RANDBETWEEN(29,49))) -> 3 | BG40: =ROUND(IF(AND(BH40<=6,BH40>=-6),RANDBETWEEN(1,3),IF(AND(BH40>6,BH40<12),(RANDBETWEEN(10,27)/10)-0.3,IF(BH40>=12,(RANDBETWEEN(10,25)/10)-0.5,IF(BH40<=-12,(RANDBETWEEN(15,30)/10)+0.49,(RANDBETWEEN(13,30)/10)+0.3)))),0) -> 2 | BH40: =ROUND((VLOOKUP(AL40,'Gen-Tab_Quick'!$S$3:$V$26,4,0)-VLOOKUP(AN40,'Gen-Tab_Quick'!$S$3:$V$26,4,0))/1000,0) -> 0
C42: Gruppe F | Q42: =IF(OR(P47="ja",P48="ja"),"Bei diesen Ergebnissen entscheidet ein Penalty-Schießen über die endgültige Tabellen- platzierung. Tragen Sie Ihren Tipp im entsprechenden Kästchen ein (1 oder 2)","") ->  | T42: Gruppe F | AE42: N | AG42: =VLOOKUP(AE47,'Pulldown-Listen'!A$132:B$133,2,0) -> . | AN42: =BA42 ->  | BA42: =IF(AND(BA38="",BA40=""),"","Elfmeterschießen tippen !") -> 
B43: 11 | C43: =VLOOKUP($B43,'Gen-Tab_Quick'!$B$3:$O$57,11,0) -> 2021-06-15 | D43: =VLOOKUP($B43,'Gen-Tab_Quick'!$B$3:$O$57,12,0) -> 18:00:00 | E43: =VLOOKUP($B43,'Gen-Tab_Quick'!$B$3:$O$57,7,0) -> Ungarn | F43: =VLOOKUP($B43,'Gen-Tab_Quick'!$B$3:$O$57,8,0) -> Portugal | G43: =(VLOOKUP(L43,'Pulldown-Listen'!$B$1:$F$49,3))*1 -> 6 | H43: : | I43: =(VLOOKUP(L43,'Pulldown-Listen'!$B$1:$F$49,5))*1 -> 5 | K43: =IF(L43=0,0,VLOOKUP(L43,'Pulldown-Listen'!$B$1:$G$49,6,0)) -> 1 | L43: =VLOOKUP(M43,'Pulldown-Listen'!$I$1:$K$49,3,0) -> 42 | M43: =IF(N43=1,RANDBETWEEN(8,28),IF(N43=2,RANDBETWEEN(1,7),RANDBETWEEN(29,49))) -> 28 | N43: =ROUND(IF(AND(O43<=6,O43>=-6),RANDBETWEEN(1,3),IF(AND(O43>6,O43<12),(RANDBETWEEN(10,27)/10)-0.3,IF(O43>=12,(RANDBETWEEN(10,25)/10)-0.5,IF(O43<=-12,(RANDBETWEEN(15,30)/10)+0.49,(RANDBETWEEN(13,30)/10)+0.3)))),0) -> 1 | O43: =ROUND((VLOOKUP(E43,'Gen-Tab_Quick'!$S$3:$V$26,4,0)-VLOOKUP(F43,'Gen-Tab_Quick'!$S$3:$V$26,4,0))/1000,0) -> 0 | T43: 1 | U43: . | V43: =IF(T48=1,VLOOKUP($T43,'Grupp-Tab-Quick'!$D$78:$AB$81,3,0),"Tipps fehlen") -> Ungarn | W43: =VLOOKUP(V43,'Grupp-Tab-Quick'!$AI$78:$AJ$81,2,0) -> 3 | X43: =IF(T48=1,VLOOKUP($T43,'Grupp-Tab-Quick'!$D$78:$AB$81,4,0),0) -> 16 | Y43: : | Z43: =IF(T48=1,VLOOKUP($T43,'Grupp-Tab-Quick'!$D$78:$AB$81,5,0),0) -> 12 | AA43: =X43-Z43 -> 4 | AB43: =IF(T48=1,VLOOKUP($T43,'Grupp-Tab-Quick'!$D$78:$AB$81,7,0),0) -> 7 | AC43: =IF(T48=1,VLOOKUP(V43,'Grupp-Tab-Quick'!F$78:AG$81,28,0),"") ->  | AD43: Reihung unter den
B44: 12 | C44: =VLOOKUP($B44,'Gen-Tab_Quick'!$B$3:$O$57,11,0) -> 2021-06-15 | D44: =VLOOKUP($B44,'Gen-Tab_Quick'!$B$3:$O$57,12,0) -> 21:00:00 | E44: =VLOOKUP($B44,'Gen-Tab_Quick'!$B$3:$O$57,7,0) -> Frankreich | F44: =VLOOKUP($B44,'Gen-Tab_Quick'!$B$3:$O$57,8,0) -> Deutschland | G44: =(VLOOKUP(L44,'Pulldown-Listen'!$B$1:$F$49,3))*1 -> 4 | H44: : | I44: =(VLOOKUP(L44,'Pulldown-Listen'!$B$1:$F$49,5))*1 -> 5 | K44: =IF(L44=0,0,VLOOKUP(L44,'Pulldown-Listen'!$B$1:$G$49,6,0)) -> 2 | L44: =VLOOKUP(M44,'Pulldown-Listen'!$I$1:$K$49,3,0) -> 31 | M44: 39 | N44: 3 | O44: =ROUND((VLOOKUP(E44,'Gen-Tab_Quick'!$S$3:$V$26,4,0)-VLOOKUP(F44,'Gen-Tab_Quick'!$S$3:$V$26,4,0))/1000,0) -> 0 | T44: 2 | U44: . | V44: =IF(T48=1,VLOOKUP($T44,'Grupp-Tab-Quick'!$D$78:$AB$81,3,0),"Tipps fehlen") -> Deutschland | W44: =VLOOKUP(V44,'Grupp-Tab-Quick'!$AI$78:$AJ$81,2,0) -> 3 | X44: =IF(T48=1,VLOOKUP($T44,'Grupp-Tab-Quick'!$D$78:$AB$81,4,0),0) -> 16 | Y44: : | Z44: =IF(T48=1,VLOOKUP($T44,'Grupp-Tab-Quick'!$D$78:$AB$81,5,0),0) -> 15 | AA44: =X44-Z44 -> 1 | AB44: =IF(T48=1,VLOOKUP($T44,'Grupp-Tab-Quick'!$D$78:$AB$81,7,0),0) -> 5 | AC44: =IF(T48=1,VLOOKUP(V44,'Grupp-Tab-Quick'!F$78:AG$81,28,0),"") ->  | AD44: Dritt- Platzierten | AI44: Finale
B45: 23 | C45: =VLOOKUP($B45,'Gen-Tab_Quick'!$B$3:$O$57,11,0) -> 2021-06-19 | D45: =VLOOKUP($B45,'Gen-Tab_Quick'!$B$3:$O$57,12,0) -> 15:00:00 | E45: =VLOOKUP($B45,'Gen-Tab_Quick'!$B$3:$O$57,7,0) -> Ungarn | F45: =VLOOKUP($B45,'Gen-Tab_Quick'!$B$3:$O$57,8,0) -> Frankreich | G45: =(VLOOKUP(L45,'Pulldown-Listen'!$B$1:$F$49,3))*1 -> 5 | H45: : | I45: =(VLOOKUP(L45,'Pulldown-Listen'!$B$1:$F$49,5))*1 -> 2 | K45: =IF(L45=0,0,VLOOKUP(L45,'Pulldown-Listen'!$B$1:$G$49,6,0)) -> 1 | L45: =VLOOKUP(M45,'Pulldown-Listen'!$I$1:$K$49,3,0) -> 28 | M45: 20 | N45: 1 | O45: =ROUND((VLOOKUP(E45,'Gen-Tab_Quick'!$S$3:$V$26,4,0)-VLOOKUP(F45,'Gen-Tab_Quick'!$S$3:$V$26,4,0))/1000,0) -> 0 | T45: 3 | U45: . | V45: =IF(T48=1,VLOOKUP($T45,'Grupp-Tab-Quick'!$D$78:$AB$81,3,0),"Tipps fehlen") -> Portugal | W45: =VLOOKUP(V45,'Grupp-Tab-Quick'!$AI$78:$AJ$81,2,0) -> 3 | X45: =IF(T48=1,VLOOKUP($T45,'Grupp-Tab-Quick'!$D$78:$AB$81,4,0),0) -> 16 | Y45: : | Z45: =IF(T48=1,VLOOKUP($T45,'Grupp-Tab-Quick'!$D$78:$AB$81,5,0),0) -> 17 | AA45: =X45-Z45 -> -1 | AB45: =IF(T48=1,VLOOKUP($T45,'Grupp-Tab-Quick'!$D$78:$AB$81,7,0),0) -> 2 | AC45: =IF(T48=1,VLOOKUP(V45,'Grupp-Tab-Quick'!F$78:AG$81,28,0),"") ->  | AD45: =VLOOKUP(V45,'Grupp-Tab-Quick'!F$95:T$100,15,0) -> 6
B46: 24 | C46: =VLOOKUP($B46,'Gen-Tab_Quick'!$B$3:$O$57,11,0) -> 2021-06-19 | D46: =VLOOKUP($B46,'Gen-Tab_Quick'!$B$3:$O$57,12,0) -> 18;00 | E46: =VLOOKUP($B46,'Gen-Tab_Quick'!$B$3:$O$57,7,0) -> Portugal | F46: =VLOOKUP($B46,'Gen-Tab_Quick'!$B$3:$O$57,8,0) -> Deutschland | G46: =(VLOOKUP(L46,'Pulldown-Listen'!$B$1:$F$49,3))*1 -> 6 | H46: : | I46: =(VLOOKUP(L46,'Pulldown-Listen'!$B$1:$F$49,5))*1 -> 6 | K46: =IF(L46=0,0,VLOOKUP(L46,'Pulldown-Listen'!$B$1:$G$49,6,0)) -> X | L46: =VLOOKUP(M46,'Pulldown-Listen'!$I$1:$K$49,3,0) -> 49 | M46: 7 | N46: 2 | O46: =ROUND((VLOOKUP(E46,'Gen-Tab_Quick'!$S$3:$V$26,4,0)-VLOOKUP(F46,'Gen-Tab_Quick'!$S$3:$V$26,4,0))/1000,0) -> 0 | T46: 4 | U46: . | V46: =IF(T48=1,VLOOKUP($T46,'Grupp-Tab-Quick'!$D$78:$AB$81,3,0),"Tipps fehlen") -> Frankreich | W46: =VLOOKUP(V46,'Grupp-Tab-Quick'!$AI$78:$AJ$81,2,0) -> 3 | X46: =IF(T48=1,VLOOKUP($T46,'Grupp-Tab-Quick'!$D$78:$AB$81,4,0),0) -> 11 | Y46: : | Z46: =IF(T48=1,VLOOKUP($T46,'Grupp-Tab-Quick'!$D$78:$AB$81,5,0),0) -> 15 | AA46: =X46-Z46 -> -4 | AB46: =IF(T48=1,VLOOKUP($T46,'Grupp-Tab-Quick'!$D$78:$AB$81,7,0),0) -> 1 | AC46: =IF(T48=1,VLOOKUP(V46,'Grupp-Tab-Quick'!F$78:AG$81,28,0),"") ->  | AE46: =IF(OR(U47="4)",U47="5)",U47="6)"),1,0) -> 0
B47: 35 | C47: =VLOOKUP($B47,'Gen-Tab_Quick'!$B$3:$O$57,11,0) -> 2021-06-23 | D47: =VLOOKUP($B47,'Gen-Tab_Quick'!$B$3:$O$57,12,0) -> 21:00:00 | E47: =VLOOKUP($B47,'Gen-Tab_Quick'!$B$3:$O$57,7,0) -> Deutschland | F47: =VLOOKUP($B47,'Gen-Tab_Quick'!$B$3:$O$57,8,0) -> Ungarn | G47: =(VLOOKUP(L47,'Pulldown-Listen'!$B$1:$F$49,3))*1 -> 5 | H47: : | I47: =(VLOOKUP(L47,'Pulldown-Listen'!$B$1:$F$49,5))*1 -> 5 | K47: =IF(L47=0,0,VLOOKUP(L47,'Pulldown-Listen'!$B$1:$G$49,6,0)) -> X | L47: =VLOOKUP(M47,'Pulldown-Listen'!$I$1:$K$49,3,0) -> 36 | M47: 6 | N47: 2 | O47: =ROUND((VLOOKUP(E47,'Gen-Tab_Quick'!$S$3:$V$26,4,0)-VLOOKUP(F47,'Gen-Tab_Quick'!$S$3:$V$26,4,0))/1000,0) -> 0 | P47: ='Sub-Tab_F_Quick'!P130 -> nein | Q47: =RANDBETWEEN(1,2) -> 1 | U47: =IF(OR(AC43="1)",AC44="1)",AC45="1)",AC46="1)"),VLOOKUP("1)",'Pulldown-Listen'!A$56:C$61,2,0),IF(OR(AC43="2)",AC44="2)",AC45="2)",AC46="2)"),VLOOKUP("2)",'Pulldown-Listen'!A$56:C$61,2,0),IF(OR(AC43="3)",AC44="3)",AC45="3)",AC46="3)"),VLOOKUP("3)",'Pulldown-Listen'!A$56:C$61,2,0),IF(OR(AC43="4)",AC44="4)",AC45="4)",AC46="4)"),VLOOKUP("4)",'Pulldown-Listen'!A$56:C$61,2,0),IF(OR(AC43="5)",AC44="5)",AC45="5)",AC46="5)"),VLOOKUP("5)",'Pulldown-Listen'!A$56:C$61,2,0),IF(OR(AC43="6)",AC44="6)",AC45="6)",AC46="6)"),VLOOKUP("6)",'Pulldown-Listen'!A$56:C$61,2,0),"")))))) ->  | V47: =IF(U47="","",VLOOKUP(U47,'Pulldown-Listen'!A56:C61,3,0)) ->  | AE47: =VLOOKUP(V45,'Grupp-Tab-Quick'!$F$95:$P$100,11,0) -> N | AG47: =VLOOKUP(AE48,'Pulldown-Listen'!A$135:B$136,2,0) ->  | AH47: 51 | AI47: =VLOOKUP($AH47,'Gen-Tab_Quick'!$B$3:$O$57,11,0) -> 2021-07-11 | AJ47: =VLOOKUP($AH47,'Gen-Tab_Quick'!$B$3:$O$57,12,0) -> 21:00:00 | AK47: =VLOOKUP(AH47,'Gen-Tab_Quick'!$B$49:$D$57,2,0) -> 1HF1 | AL47: =VLOOKUP(AK47,$AV$38:$AW$41,2,0) -> Ungarn | AM47: =VLOOKUP(AH47,'Gen-Tab_Quick'!$B$49:$D$57,3,0) -> 1HF2 | AN47: =VLOOKUP(AM47,$AV$38:$AW$41,2,0) -> Niederlande | AO47: =(VLOOKUP(AS47,'Pulldown-Listen'!$B$1:$F$49,3))*1 -> 4 | AP47: : | AQ47: =(VLOOKUP(AS47,'Pulldown-Listen'!$B$1:$F$49,5))*1 -> 0 | AS47: =VLOOKUP(BF47,'Pulldown-Listen'!$I$1:$K$49,3,0) -> 17 | AT47: =IF(AS47=0,0,VLOOKUP(AS47,'Pulldown-Listen'!$B$1:$G$49,6,0)) -> 1 | AU47: =RANDBETWEEN(1,2) -> 1 | AV47: 1F | AW47: =IF(AND(AZ47="ja",OR(AT47=1,AU47=1)),AL47,IF(AND(AZ47="ja",OR(AT47=2,AU47=2)),AN47,IF(AND(AZ47="nein",AT47=1),AL47,IF(AND(AZ47="nein",AT47=2),AN47,"")))) -> Ungarn | AX47: =VLOOKUP(AL47,'Gen-Tab_Quick'!$S$3:$T$26,2,0) -> F1 | AY47: =VLOOKUP(AN47,'Gen-Tab_Quick'!$S$3:$T$26,2,0) -> C1 | AZ47: =IF(AT47="X","ja","nein") -> nein | BA47: =IF(AT47=0,"",IF(AZ47="nein","",IF(AND(AZ47="ja",AU47>0),"","Elfmeterschießen tippen !"))) ->  | BB47: 2F | BC47: =IF(AW47=AL47:AL47,AN47,AL47) -> Niederlande | BE47: =VLOOKUP(BF47,'Pulldown-Listen'!$I$1:$K$49,3,0) -> 17 | BF47: =IF(BG47=1,RANDBETWEEN(8,28),IF(BG47=2,RANDBETWEEN(1,7),RANDBETWEEN(29,49))) -> 14 | BG47: =ROUND(IF(AND(BH47<=6,BH47>=-6),RANDBETWEEN(1,3),IF(AND(BH47>6,BH47<12),(RANDBETWEEN(10,27)/10)-0.3,IF(BH47>=12,(RANDBETWEEN(10,25)/10)-0.5,IF(BH47<=-12,(RANDBETWEEN(15,30)/10)+0.49,(RANDBETWEEN(13,30)/10)+0.3)))),0) -> 1 | BH47: =ROUND((VLOOKUP(AL47,'Gen-Tab_Quick'!$S$3:$V$26,4,0)-VLOOKUP(AN47,'Gen-Tab_Quick'!$S$3:$V$26,4,0))/1000,0) -> 0
B48: 36 | C48: =VLOOKUP($B48,'Gen-Tab_Quick'!$B$3:$O$57,11,0) -> 2021-06-23 | D48: =VLOOKUP($B48,'Gen-Tab_Quick'!$B$3:$O$57,12,0) -> 21:00:00 | E48: =VLOOKUP($B48,'Gen-Tab_Quick'!$B$3:$O$57,7,0) -> Portugal | F48: =VLOOKUP($B48,'Gen-Tab_Quick'!$B$3:$O$57,8,0) -> Frankreich | G48: =(VLOOKUP(L48,'Pulldown-Listen'!$B$1:$F$49,3))*1 -> 5 | H48: : | I48: =(VLOOKUP(L48,'Pulldown-Listen'!$B$1:$F$49,5))*1 -> 5 | K48: =IF(L48=0,0,VLOOKUP(L48,'Pulldown-Listen'!$B$1:$G$49,6,0)) -> X | L48: =VLOOKUP(M48,'Pulldown-Listen'!$I$1:$K$49,3,0) -> 36 | M48: 6 | N48: 2 | O48: =ROUND((VLOOKUP(E48,'Gen-Tab_Quick'!$S$3:$V$26,4,0)-VLOOKUP(F48,'Gen-Tab_Quick'!$S$3:$V$26,4,0))/1000,0) -> 0 | P48: ='Sub-Tab_F_Quick'!P131 -> nein | Q48: =RANDBETWEEN(1,2) -> 1 | T48: =IF('Grupp-Tab-Quick'!AJ82=12,1,0) -> 1 | U48: =IF(SUM(W43:W46)=12,1,0) -> 1 | AE48: =AE47 -> N
AN49: =BA47 -> 
AI52: Mein Europameister heißt | AN52: =AW47 -> Ungarn | AY52: =VLOOKUP(AN52,'Gen-Tab_Quick'!$S$3:$T$18,2,0) -> 
C54: Nachname | E54: ='1'!C7 -> 0
C55: Vorname | E55: ='1'!C6 -> 0
AI56: Ich nehme mit meinen Tipps am Wagner-Cup teil. Durch Drücken des OK-Buttons bestätige ich, dass ich die Spielregeln (AGB) gelesen und akzeptiert habe. ACHTUNG: Nach Drücken des OK-Buttons können die Tipps nicht mehr verändert werden.
C57: Mein Statement Kann hier noch überschrieben werden | E57: ='1'!C10 -> 0

Sheet Meine Tipps
C1: DRUCKVERSION Es gelten ausschließlich die hier stehenden Tipps. Nachträgliche Änderungen im Tipp-Formular haben keine Gültigkeit! | AG1: DRUCKVERSION Es gelten ausschließlich die hier stehenden Tipps. Nachträgliche Änderungen im Tipp-Formular haben keine Gültigkeit! | DA1: Meine Faiplay-Wertung
C2: Gruppe A | Q2: ='Tipp-Formular'!Q2:R6 ->  | T2: Gruppe A | AG2: ='Tipp-Formular'!AG2:AG6 -> . | AI2: Achtel-Finale | DA2: ='Tipp-Formular'!DA2 -> Gruppe A | DB2: ='Tipp-Formular'!DB2 -> Gelb =1 Punkt | DC2: ='Tipp-Formular'!DC2 -> Rot =3 Punkte | DD2: ='Tipp-Formular'!DD2 -> Summe
B3: ='Tipp-Formular'!B3 -> 1 | C3: ='Tipp-Formular'!C3 -> 2021-06-11 | D3: ='Tipp-Formular'!D3 -> 21:00:00 | E3: ='Tipp-Formular'!E3 -> Türkei | F3: ='Tipp-Formular'!F3 -> Italien | G3: =IFERROR('Tipp-Formular'!G3,0) -> 0 | H3: : | I3: =IFERROR('Tipp-Formular'!I3,0) -> 0 | J3: ='Tipp-Formular'!J3 -> 0 | K3: ='Tipp-Formular'!K3 -> 0 | L3: ='Tipp-Formular'!L3 -> 0 | T3: 1 | U3: . | V3: ='Tipp-Formular'!V3 -> Tipps fehlen | W3: ='Tipp-Formular'!W3 -> 0 | X3: ='Tipp-Formular'!X3 -> 0 | Y3: : | Z3: ='Tipp-Formular'!Z3 -> 0 | AA3: ='Tipp-Formular'!AA3 -> 0 | AB3: ='Tipp-Formular'!AB3 -> 0 | AC3: ='Tipp-Formular'!AC3 ->  | AD3: ='Tipp-Formular'!AD3 -> Reihung unter den | DA3: ='Tipp-Formular'!DA3 -> Türkei | DB3: ='Tipp-Formular'!DB3 -> 0 | DC3: ='Tipp-Formular'!DC3 -> 0 | DD3: ='Tipp-Formular'!DD3 -> 0
B4: ='Tipp-Formular'!B4 -> 2 | C4: ='Tipp-Formular'!C4 -> 2021-06-12 | D4: ='Tipp-Formular'!D4 -> 15:00:00 | E4: ='Tipp-Formular'!E4 -> Wales | F4: ='Tipp-Formular'!F4 -> Schweiz | G4: =IFERROR('Tipp-Formular'!G4,0) -> 0 | H4: : | I4: =IFERROR('Tipp-Formular'!I4,0) -> 0 | J4: ='Tipp-Formular'!J4 -> 0 | K4: ='Tipp-Formular'!K4 -> 0 | L4: ='Tipp-Formular'!L4 -> 0 | T4: 2 | U4: . | V4: ='Tipp-Formular'!V4 -> Tipps fehlen | W4: ='Tipp-Formular'!W4 -> 0 | X4: ='Tipp-Formular'!X4 -> 0 | Y4: : | Z4: ='Tipp-Formular'!Z4 -> 0 | AA4: ='Tipp-Formular'!AA4 -> 0 | AB4: ='Tipp-Formular'!AB4 -> 0 | AC4: ='Tipp-Formular'!AC4 ->  | AD4: ='Tipp-Formular'!AD4 -> Dritt- Platzierten | AI4: ='Tipp-Formular'!AI4 -> 2021-06-26 | AJ4: ='Tipp-Formular'!AJ4 -> 18:00:00 | AK4: ='Tipp-Formular'!AK4 -> 2A | AL4: ='Tipp-Formular'!AL4 ->  | AM4: ='Tipp-Formular'!AM4 -> 2B | AN4: ='Tipp-Formular'!AN4 ->  | AO4: =IFERROR('Tipp-Formular'!AO4,0) -> 0 | AP4: : | AQ4: =IFERROR('Tipp-Formular'!AQ4,0) -> 0 | AS4: ='Tipp-Formular'!AS4 -> 0 | AT4: ='Tipp-Formular'!AT4 -> 0 | AU4: ='Tipp-Formular'!AU4 -> 0 | AV4: ='Tipp-Formular'!AV4 -> 1AF1 | AW4: ='Tipp-Formular'!AW4 ->  | AX4: ='Tipp-Formular'!AX4:AX5 ->  | AY4: ='Tipp-Formular'!AY4:AY5 ->  | AZ4: ='Tipp-Formular'!AZ4 -> nein | BA4: ='Tipp-Formular'!BA4 ->  | BB4: ='Tipp-Formular'!BB4 -> 2AF1 | BC4: ='Tipp-Formular'!BC4 ->  | DA4: ='Tipp-Formular'!DA4 -> Italien | DB4: ='Tipp-Formular'!DB4 -> 0 | DC4: ='Tipp-Formular'!DC4 -> 0 | DD4: ='Tipp-Formular'!DD4 -> 0
B5: ='Tipp-Formular'!B5 -> 13 | C5: ='Tipp-Formular'!C5 -> 2021-06-16 | D5: ='Tipp-Formular'!D5 -> 18:00:00 | E5: ='Tipp-Formular'!E5 -> Türkei | F5: ='Tipp-Formular'!F5 -> Wales | G5: =IFERROR('Tipp-Formular'!G5,0) -> 0 | H5: : | I5: =IFERROR('Tipp-Formular'!I5,0) -> 0 | J5: ='Tipp-Formular'!J5 -> 0 | K5: ='Tipp-Formular'!K5 -> 0 | L5: ='Tipp-Formular'!L5 -> 0 | T5: 3 | U5: . | V5: ='Tipp-Formular'!V5 -> Tipps fehlen | W5: ='Tipp-Formular'!W5 -> 0 | X5: ='Tipp-Formular'!X5 -> 0 | Y5: : | Z5: ='Tipp-Formular'!Z5 -> 0 | AA5: ='Tipp-Formular'!AA5 -> 0 | AB5: ='Tipp-Formular'!AB5 -> 0 | AC5: ='Tipp-Formular'!AC5 ->  | AD5: ='Tipp-Formular'!AD5 ->  | DA5: ='Tipp-Formular'!DA5 -> Wales | DB5: ='Tipp-Formular'!DB5 -> 0 | DC5: ='Tipp-Formular'!DC5 -> 0 | DD5: ='Tipp-Formular'!DD5 -> 0
B6: ='Tipp-Formular'!B6 -> 14 | C6: ='Tipp-Formular'!C6 -> 2021-06-16 | D6: ='Tipp-Formular'!D6 -> 21:00:00 | E6: ='Tipp-Formular'!E6 -> Italien | F6: ='Tipp-Formular'!F6 -> Schweiz | G6: =IFERROR('Tipp-Formular'!G6,0) -> 0 | H6: : | I6: =IFERROR('Tipp-Formular'!I6,0) -> 0 | J6: ='Tipp-Formular'!J6 -> 0 | K6: ='Tipp-Formular'!K6 -> 0 | L6: ='Tipp-Formular'!L6 -> 0 | T6: 4 | U6: . | V6: ='Tipp-Formular'!V6 -> Tipps fehlen | W6: ='Tipp-Formular'!W6 -> 0 | X6: ='Tipp-Formular'!X6 -> 0 | Y6: : | Z6: ='Tipp-Formular'!Z6 -> 0 | AA6: ='Tipp-Formular'!AA6 -> 0 | AB6: ='Tipp-Formular'!AB6 -> 0 | AC6: ='Tipp-Formular'!AC6 ->  | AI6: ='Tipp-Formular'!AI6 -> 2021-06-26 | AJ6: ='Tipp-Formular'!AJ6 -> 21:00:00 | AK6: ='Tipp-Formular'!AK6 -> 1A | AL6: ='Tipp-Formular'!AL6 ->  | AM6: ='Tipp-Formular'!AM6 -> 2C | AN6: ='Tipp-Formular'!AN6 ->  | AO6: =IFERROR('Tipp-Formular'!AO6,0) -> 0 | AP6: : | AQ6: =IFERROR('Tipp-Formular'!AQ6,0) -> 0 | AS6: ='Tipp-Formular'!AS6 -> 0 | AT6: ='Tipp-Formular'!AT6 -> 0 | AU6: ='Tipp-Formular'!AU6 -> 0 | AV6: ='Tipp-Formular'!AV6 -> 1AF2 | AW6: ='Tipp-Formular'!AW6 ->  | AX6: ='Tipp-Formular'!AX6:AX7 ->  | AY6: ='Tipp-Formular'!AY6:AY7 ->  | AZ6: ='Tipp-Formular'!AZ6 -> nein | BA6: ='Tipp-Formular'!BA6 ->  | BB6: ='Tipp-Formular'!BB6 -> 2AF2 | BC6: ='Tipp-Formular'!BC6 ->  | DA6: ='Tipp-Formular'!DA6 -> Schweiz | DB6: ='Tipp-Formular'!DB6 -> 0 | DC6: ='Tipp-Formular'!DC6 -> 0 | DD6: ='Tipp-Formular'!DD6 -> 0
B7: ='Tipp-Formular'!B7 -> 25 | C7: ='Tipp-Formular'!C7 -> 2021-06-20 | D7: ='Tipp-Formular'!D7 -> 18:00:00 | E7: ='Tipp-Formular'!E7 -> Schweiz | F7: ='Tipp-Formular'!F7 -> Türkei | G7: =IFERROR('Tipp-Formular'!G7,0) -> 0 | H7: : | I7: =IFERROR('Tipp-Formular'!I7,0) -> 0 | J7: ='Tipp-Formular'!J7 -> 0 | K7: ='Tipp-Formular'!K7 -> 0 | L7: ='Tipp-Formular'!L7 -> 0 | P7: ='Tipp-Formular'!P7 -> nein | Q7: ='Tipp-Formular'!Q7 -> 0 | U7: ='Tipp-Formular'!U7 ->  | V7: ='Tipp-Formular'!V7 ->  | AE7: ='Tipp-Formular'!AE7 -> 0
B8: ='Tipp-Formular'!B8 -> 26 | C8: ='Tipp-Formular'!C8 -> 2021-06-20 | D8: ='Tipp-Formular'!D8 -> 18:00:00 | E8: ='Tipp-Formular'!E8 -> Italien | F8: ='Tipp-Formular'!F8 -> Wales | G8: =IFERROR('Tipp-Formular'!G8,0) -> 0 | H8: : | I8: =IFERROR('Tipp-Formular'!I8,0) -> 0 | J8: ='Tipp-Formular'!J8 -> 0 | K8: ='Tipp-Formular'!K8 -> 0 | L8: ='Tipp-Formular'!L8 -> 0 | P8: ='Tipp-Formular'!P8 -> nein | Q8: 0 | T8: ='Tipp-Formular'!T8 -> 0 | U8: ='Tipp-Formular'!U8 -> 0 | AE8: ='Tipp-Formular'!AE8 -> 0 | AI8: ='Tipp-Formular'!AI8 -> 2021-06-27 | AJ8: ='Tipp-Formular'!AJ8 -> 18:00:00 | AK8: ='Tipp-Formular'!AK8 -> 1C | AL8: ='Tipp-Formular'!AL8 ->  | AM8: ='Tipp-Formular'!AM8 -> 3D | AN8: ='Tipp-Formular'!AN8 ->  | AO8: =IFERROR('Tipp-Formular'!AO8,0) -> 0 | AP8: : | AQ8: =IFERROR('Tipp-Formular'!AQ8,0) -> 0 | AS8: ='Tipp-Formular'!AS8 -> 0 | AT8: ='Tipp-Formular'!AT8 -> 0 | AU8: ='Tipp-Formular'!AU8 -> 0 | AV8: ='Tipp-Formular'!AV8 -> 1AF3 | AW8: ='Tipp-Formular'!AW8 ->  | AX8: ='Tipp-Formular'!AX8:AX9 ->  | AY8: ='Tipp-Formular'!AY8:AY9 ->  | AZ8: ='Tipp-Formular'!AZ8 -> nein | BA8: ='Tipp-Formular'!BA8 ->  | BB8: ='Tipp-Formular'!BB8 -> 2AF3 | BC8: ='Tipp-Formular'!BC8 -> 
C10: Gruppe B | Q10: ='Tipp-Formular'!Q10:R14 ->  | T10: Gruppe B | AG10: ='Tipp-Formular'!AG10:AG14 -> . | AI10: ='Tipp-Formular'!AI10 -> 2021-06-27 | AJ10: ='Tipp-Formular'!AJ10 -> 21:00:00 | AK10: ='Tipp-Formular'!AK10 -> 1B | AL10: ='Tipp-Formular'!AL10 ->  | AM10: ='Tipp-Formular'!AM10 -> 3E | AN10: ='Tipp-Formular'!AN10 ->  | AO10: =IFERROR('Tipp-Formular'!AO10,0) -> 0 | AP10: : | AQ10: =IFERROR('Tipp-Formular'!AQ10,0) -> 0 | AS10: ='Tipp-Formular'!AS10 -> 0 | AT10: ='Tipp-Formular'!AT10 -> 0 | AU10: ='Tipp-Formular'!AU10 -> 0 | AV10: ='Tipp-Formular'!AV10 -> 1AF4 | AW10: ='Tipp-Formular'!AW10 ->  | AX10: ='Tipp-Formular'!AX10:AX11 ->  | AY10: ='Tipp-Formular'!AY10:AY11 ->  | AZ10: ='Tipp-Formular'!AZ10 -> nein | BA10: ='Tipp-Formular'!BA10 ->  | BB10: ='Tipp-Formular'!BB10 -> 2AF4 | BC10: ='Tipp-Formular'!BC10 ->  | DA10: ='Tipp-Formular'!DA10 -> Gruppe B | DB10: ='Tipp-Formular'!DB10 -> Gelb =1 Punkt | DC10: ='Tipp-Formular'!DC10 -> Rot =3 Punkte | DD10: ='Tipp-Formular'!DD10 -> Summe
B11: ='Tipp-Formular'!B11 -> 3 | C11: ='Tipp-Formular'!C11 -> 2021-06-12 | D11: ='Tipp-Formular'!D11 -> 18:00:00 | E11: ='Tipp-Formular'!E11 -> Dänemark | F11: ='Tipp-Formular'!F11 -> Finnland | G11: =IFERROR('Tipp-Formular'!G11,0) -> 0 | H11: : | I11: =IFERROR('Tipp-Formular'!I11,0) -> 0 | J11: ='Tipp-Formular'!J11 -> 0 | K11: ='Tipp-Formular'!K11 -> 0 | L11: ='Tipp-Formular'!L11 -> 0 | T11: 1 | U11: . | V11: ='Tipp-Formular'!V11 -> Tipps fehlen | W11: ='Tipp-Formular'!W11 -> 0 | X11: ='Tipp-Formular'!X11 -> 0 | Y11: : | Z11: ='Tipp-Formular'!Z11 -> 0 | AA11: ='Tipp-Formular'!AA11 -> 0 | AB11: ='Tipp-Formular'!AB11 -> 0 | AC11: ='Tipp-Formular'!AC11 ->  | AD11: ='Tipp-Formular'!AD11 -> Reihung unter den | DA11: ='Tipp-Formular'!DA11 -> Dänemark | DB11: ='Tipp-Formular'!DB11 -> 0 | DC11: ='Tipp-Formular'!DC11 -> 0 | DD11: ='Tipp-Formular'!DD11 -> 0
B12: ='Tipp-Formular'!B12 -> 4 | C12: ='Tipp-Formular'!C12 -> 2021-06-12 | D12: ='Tipp-Formular'!D12 -> 21:00:00 | E12: ='Tipp-Formular'!E12 -> Belgien | F12: ='Tipp-Formular'!F12 -> Russland | G12: =IFERROR('Tipp-Formular'!G12,0) -> 0 | H12: : | I12: =IFERROR('Tipp-Formular'!I12,0) -> 0 | J12: ='Tipp-Formular'!J12 -> 0 | K12: ='Tipp-Formular'!K12 -> 0 | L12: ='Tipp-Formular'!L12 -> 0 | T12: 2 | U12: . | V12: ='Tipp-Formular'!V12 -> Tipps fehlen | W12: ='Tipp-Formular'!W12 -> 0 | X12: ='Tipp-Formular'!X12 -> 0 | Y12: : | Z12: ='Tipp-Formular'!Z12 -> 0 | AA12: ='Tipp-Formular'!AA12 -> 0 | AB12: ='Tipp-Formular'!AB12 -> 0 | AC12: ='Tipp-Formular'!AC12 ->  | AD12: ='Tipp-Formular'!AD12 -> Dritt- Platzierten | AI12: ='Tipp-Formular'!AI12 -> 2021-06-28 | AJ12: ='Tipp-Formular'!AJ12 -> 18:00:00 | AK12: ='Tipp-Formular'!AK12 -> 2D | AL12: ='Tipp-Formular'!AL12 ->  | AM12: ='Tipp-Formular'!AM12 -> 2E | AN12: ='Tipp-Formular'!AN12 ->  | AO12: =IFERROR('Tipp-Formular'!AO12,0) -> 0 | AP12: : | AQ12: =IFERROR('Tipp-Formular'!AQ12,0) -> 0 | AS12: ='Tipp-Formular'!AS12 -> 0 | AT12: ='Tipp-Formular'!AT12 -> 0 | AU12: ='Tipp-Formular'!AU12 -> 0 | AV12: ='Tipp-Formular'!AV12 -> 1AF5 | AW12: ='Tipp-Formular'!AW12 ->  | AX12: ='Tipp-Formular'!AX12:AX13 ->  | AY12: ='Tipp-Formular'!AY12:AY13 ->  | AZ12: ='Tipp-Formular'!AZ12 -> nein | BA12: ='Tipp-Formular'!BA12 ->  | BB12: ='Tipp-Formular'!BB12 -> 2AF5 | BC12: ='Tipp-Formular'!BC12 ->  | DA12: ='Tipp-Formular'!DA12 -> Finnland | DB12: ='Tipp-Formular'!DB12 -> 0 | DC12: ='Tipp-Formular'!DC12 -> 0 | DD12: ='Tipp-Formular'!DD12 -> 0
B13: ='Tipp-Formular'!B13 -> 15 | C13: ='Tipp-Formular'!C13 -> 2021-06-16 | D13: ='Tipp-Formular'!D13 -> 15:00:00 | E13: ='Tipp-Formular'!E13 -> Finnland | F13: ='Tipp-Formular'!F13 -> Russland | G13: =IFERROR('Tipp-Formular'!G13,0) -> 0 | H13: : | I13: =IFERROR('Tipp-Formular'!I13,0) -> 0 | J13: ='Tipp-Formular'!J13 -> 0 | K13: ='Tipp-Formular'!K13 -> 0 | L13: ='Tipp-Formular'!L13 -> 0 | T13: 3 | U13: . | V13: ='Tipp-Formular'!V13 -> Tipps fehlen | W13: ='Tipp-Formular'!W13 -> 0 | X13: ='Tipp-Formular'!X13 -> 0 | Y13: : | Z13: ='Tipp-Formular'!Z13 -> 0 | AA13: ='Tipp-Formular'!AA13 -> 0 | AB13: ='Tipp-Formular'!AB13 -> 0 | AC13: ='Tipp-Formular'!AC13 ->  | AD13: ='Tipp-Formular'!AD13 ->  | DA13: ='Tipp-Formular'!DA13 -> Belgien | DB13: ='Tipp-Formular'!DB13 -> 0 | DC13: ='Tipp-Formular'!DC13 -> 0 | DD13: ='Tipp-Formular'!DD13 -> 0
B14: ='Tipp-Formular'!B14 -> 16 | C14: ='Tipp-Formular'!C14 -> 2021-06-17 | D14: ='Tipp-Formular'!D14 -> 18:00:00 | E14: ='Tipp-Formular'!E14 -> Dänemark | F14: ='Tipp-Formular'!F14 -> Belgien | G14: =IFERROR('Tipp-Formular'!G14,0) -> 0 | H14: : | I14: =IFERROR('Tipp-Formular'!I14,0) -> 0 | J14: ='Tipp-Formular'!J14 -> 0 | K14: ='Tipp-Formular'!K14 -> 0 | L14: ='Tipp-Formular'!L14 -> 0 | T14: 4 | U14: . | V14: ='Tipp-Formular'!V14 -> Tipps fehlen | W14: ='Tipp-Formular'!W14 -> 0 | X14: ='Tipp-Formular'!X14 -> 0 | Y14: : | Z14: ='Tipp-Formular'!Z14 -> 0 | AA14: ='Tipp-Formular'!AA14 -> 0 | AB14: ='Tipp-Formular'!AB14 -> 0 | AC14: ='Tipp-Formular'!AC14 ->  | AI14: ='Tipp-Formular'!AI14 -> 2021-06-28 | AJ14: ='Tipp-Formular'!AJ14 -> 21:00:00 | AK14: ='Tipp-Formular'!AK14 -> 1F | AL14: ='Tipp-Formular'!AL14 ->  | AM14: ='Tipp-Formular'!AM14 -> 3C | AN14: ='Tipp-Formular'!AN14 ->  | AO14: =IFERROR('Tipp-Formular'!AO14,0) -> 0 | AP14: : | AQ14: =IFERROR('Tipp-Formular'!AQ14,0) -> 0 | AS14: ='Tipp-Formular'!AS14 -> 0 | AT14: ='Tipp-Formular'!AT14 -> 0 | AU14: ='Tipp-Formular'!AU14 -> 0 | AV14: ='Tipp-Formular'!AV14 -> 1AF6 | AW14: ='Tipp-Formular'!AW14 ->  | AX14: ='Tipp-Formular'!AX14:AX15 ->  | AY14: ='Tipp-Formular'!AY14:AY15 ->  | AZ14: ='Tipp-Formular'!AZ14 -> nein | BA14: ='Tipp-Formular'!BA14 ->  | BB14: ='Tipp-Formular'!BB14 -> 2AF6 | BC14: ='Tipp-Formular'!BC14 ->  | DA14: ='Tipp-Formular'!DA14 -> Russland | DB14: ='Tipp-Formular'!DB14 -> 0 | DC14: ='Tipp-Formular'!DC14 -> 0 | DD14: ='Tipp-Formular'!DD14 -> 0
B15: ='Tipp-Formular'!B15 -> 27 | C15: ='Tipp-Formular'!C15 -> 2021-06-21 | D15: ='Tipp-Formular'!D15 -> 21:00:00 | E15: ='Tipp-Formular'!E15 -> Russland | F15: ='Tipp-Formular'!F15 -> Dänemark | G15: =IFERROR('Tipp-Formular'!G15,0) -> 0 | H15: : | I15: =IFERROR('Tipp-Formular'!I15,0) -> 0 | J15: ='Tipp-Formular'!J15 -> 0 | K15: ='Tipp-Formular'!K15 -> 0 | L15: ='Tipp-Formular'!L15 -> 0 | P15: ='Tipp-Formular'!P15 -> nein | Q15: ='Tipp-Formular'!Q15 -> 0 | U15: ='Tipp-Formular'!U15 ->  | V15: ='Tipp-Formular'!V15 ->  | AE15: ='Tipp-Formular'!AE15 -> 0
B16: ='Tipp-Formular'!B16 -> 28 | C16: ='Tipp-Formular'!C16 -> 2021-06-21 | D16: ='Tipp-Formular'!D16 -> 21:00:00 | E16: ='Tipp-Formular'!E16 -> Finnland | F16: ='Tipp-Formular'!F16 -> Belgien | G16: =IFERROR('Tipp-Formular'!G16,0) -> 0 | H16: : | I16: =IFERROR('Tipp-Formular'!I16,0) -> 0 | J16: ='Tipp-Formular'!J16 -> 0 | K16: ='Tipp-Formular'!K16 -> 0 | L16: ='Tipp-Formular'!L16 -> 0 | P16: ='Tipp-Formular'!P16 -> nein | Q16: 0 | T16: ='Tipp-Formular'!T16 -> 0 | U16: ='Tipp-Formular'!U16 -> 0 | AE16: ='Tipp-Formular'!AE16 -> 0 | AI16: ='Tipp-Formular'!AI16 -> 2021-06-29 | AJ16: ='Tipp-Formular'!AJ16 -> 18:00:00 | AK16: ='Tipp-Formular'!AK16 -> 1D | AL16: ='Tipp-Formular'!AL16 ->  | AM16: ='Tipp-Formular'!AM16 -> 2F | AN16: ='Tipp-Formular'!AN16 ->  | AO16: =IFERROR('Tipp-Formular'!AO16,0) -> 0 | AP16: : | AQ16: =IFERROR('Tipp-Formular'!AQ16,0) -> 0 | AS16: ='Tipp-Formular'!AS16 -> 0 | AT16: ='Tipp-Formular'!AT16 -> 0 | AU16: ='Tipp-Formular'!AU16 -> 0 | AV16: ='Tipp-Formular'!AV16 -> 1AF7 | AW16: ='Tipp-Formular'!AW16 ->  | AX16: ='Tipp-Formular'!AX16:AX17 ->  | AY16: ='Tipp-Formular'!AY16:AY17 ->  | AZ16: ='Tipp-Formular'!AZ16 -> nein | BA16: ='Tipp-Formular'!BA16 ->  | BB16: ='Tipp-Formular'!BB16 -> 2AF7 | BC16: ='Tipp-Formular'!BC16 -> 
C18: Gruppe C | Q18: ='Tipp-Formular'!Q18:R22 ->  | T18: Gruppe C | AG18: ='Tipp-Formular'!AG18:AG22 -> . | AI18: ='Tipp-Formular'!AI18 -> 2021-06-29 | AJ18: ='Tipp-Formular'!AJ18 -> 21:00:00 | AK18: ='Tipp-Formular'!AK18 -> 1E | AL18: ='Tipp-Formular'!AL18 ->  | AM18: ='Tipp-Formular'!AM18 -> 3B | AN18: ='Tipp-Formular'!AN18 ->  | AO18: =IFERROR('Tipp-Formular'!AO18,0) -> 0 | AP18: : | AQ18: =IFERROR('Tipp-Formular'!AQ18,0) -> 0 | AS18: ='Tipp-Formular'!AS18 -> 0 | AT18: ='Tipp-Formular'!AT18 -> 0 | AU18: ='Tipp-Formular'!AU18 -> 0 | AV18: ='Tipp-Formular'!AV18 -> 1AF8 | AW18: ='Tipp-Formular'!AW18 ->  | AX18: ='Tipp-Formular'!AX18:AX19 ->  | AY18: ='Tipp-Formular'!AY18:AY19 ->  | AZ18: ='Tipp-Formular'!AZ18 -> nein | BA18: ='Tipp-Formular'!BA18 ->  | BB18: ='Tipp-Formular'!BB18 -> 2AF8 | BC18: ='Tipp-Formular'!BC18 ->  | DA18: ='Tipp-Formular'!DA18 -> Gruppe C | DB18: ='Tipp-Formular'!DB18 -> Gelb =1 Punkt | DC18: ='Tipp-Formular'!DC18 -> Rot =3 Punkte | DD18: ='Tipp-Formular'!DD18 -> Summe
B19: ='Tipp-Formular'!B19 -> 5 | C19: ='Tipp-Formular'!C19 -> 2021-06-13 | D19: ='Tipp-Formular'!D19 -> 18:00:00 | E19: ='Tipp-Formular'!E19 -> Österreich | F19: ='Tipp-Formular'!F19 -> Nordmazedonien | G19: =IFERROR('Tipp-Formular'!G19,0) -> 0 | H19: : | I19: =IFERROR('Tipp-Formular'!I19,0) -> 0 | J19: ='Tipp-Formular'!J19 -> 0 | K19: ='Tipp-Formular'!K19 -> 0 | L19: ='Tipp-Formular'!L19 -> 0 | T19: 1 | U19: . | V19: ='Tipp-Formular'!V19 -> Tipps fehlen | W19: ='Tipp-Formular'!W19 -> 0 | X19: ='Tipp-Formular'!X19 -> 0 | Y19: : | Z19: ='Tipp-Formular'!Z19 -> 0 | AA19: ='Tipp-Formular'!AA19 -> 0 | AB19: ='Tipp-Formular'!AB19 -> 0 | AC19: ='Tipp-Formular'!AC19 ->  | AD19: ='Tipp-Formular'!AD19 -> Reihung unter den | DA19: ='Tipp-Formular'!DA19 -> Niederlande | DB19: ='Tipp-Formular'!DB19 -> 0 | DC19: ='Tipp-Formular'!DC19 -> 0 | DD19: ='Tipp-Formular'!DD19 -> 0
B20: ='Tipp-Formular'!B20 -> 6 | C20: ='Tipp-Formular'!C20 -> 2021-06-13 | D20: ='Tipp-Formular'!D20 -> 21:00:00 | E20: ='Tipp-Formular'!E20 -> Niederlande | F20: ='Tipp-Formular'!F20 -> Ukraine | G20: =IFERROR('Tipp-Formular'!G20,0) -> 0 | H20: : | I20: =IFERROR('Tipp-Formular'!I20,0) -> 0 | J20: ='Tipp-Formular'!J20 -> 0 | K20: ='Tipp-Formular'!K20 -> 0 | L20: ='Tipp-Formular'!L20 -> 0 | T20: 2 | U20: . | V20: ='Tipp-Formular'!V20 -> Tipps fehlen | W20: ='Tipp-Formular'!W20 -> 0 | X20: ='Tipp-Formular'!X20 -> 0 | Y20: : | Z20: ='Tipp-Formular'!Z20 -> 0 | AA20: ='Tipp-Formular'!AA20 -> 0 | AB20: ='Tipp-Formular'!AB20 -> 0 | AC20: ='Tipp-Formular'!AC20 ->  | AD20: ='Tipp-Formular'!AD20 -> Dritt- Platzierten | AN20: ='Gruppen-Tabellen'!E102 -> BCDE | DA20: ='Tipp-Formular'!DA20 -> Ukraine | DB20: ='Tipp-Formular'!DB20 -> 0 | DC20: ='Tipp-Formular'!DC20 -> 0 | DD20: ='Tipp-Formular'!DD20 -> 0
B21: ='Tipp-Formular'!B21 -> 17 | C21: ='Tipp-Formular'!C21 -> 2021-06-17 | D21: ='Tipp-Formular'!D21 -> 15:00:00 | E21: ='Tipp-Formular'!E21 -> Ukraine | F21: ='Tipp-Formular'!F21 -> Nordmazedonien | G21: =IFERROR('Tipp-Formular'!G21,0) -> 0 | H21: : | I21: =IFERROR('Tipp-Formular'!I21,0) -> 0 | J21: ='Tipp-Formular'!J21 -> 0 | K21: ='Tipp-Formular'!K21 -> 0 | L21: ='Tipp-Formular'!L21 -> 0 | T21: 3 | U21: . | V21: ='Tipp-Formular'!V21 -> Tipps fehlen | W21: ='Tipp-Formular'!W21 -> 0 | X21: ='Tipp-Formular'!X21 -> 0 | Y21: : | Z21: ='Tipp-Formular'!Z21 -> 0 | AA21: ='Tipp-Formular'!AA21 -> 0 | AB21: ='Tipp-Formular'!AB21 -> 0 | AC21: ='Tipp-Formular'!AC21 ->  | AD21: ='Tipp-Formular'!AD21 ->  | DA21: ='Tipp-Formular'!DA21 -> Österreich | DB21: ='Tipp-Formular'!DB21 -> 0 | DC21: ='Tipp-Formular'!DC21 -> 0 | DD21: ='Tipp-Formular'!DD21 -> 0
B22: ='Tipp-Formular'!B22 -> 18 | C22: ='Tipp-Formular'!C22 -> 2021-06-17 | D22: ='Tipp-Formular'!D22 -> 21:00:00 | E22: ='Tipp-Formular'!E22 -> Niederlande | F22: ='Tipp-Formular'!F22 -> Österreich | G22: =IFERROR('Tipp-Formular'!G22,0) -> 0 | H22: : | I22: =IFERROR('Tipp-Formular'!I22,0) -> 0 | J22: ='Tipp-Formular'!J22 -> 0 | K22: ='Tipp-Formular'!K22 -> 0 | L22: ='Tipp-Formular'!L22 -> 0 | T22: 4 | U22: . | V22: ='Tipp-Formular'!V22 -> Tipps fehlen | W22: ='Tipp-Formular'!W22 -> 0 | X22: ='Tipp-Formular'!X22 -> 0 | Y22: : | Z22: ='Tipp-Formular'!Z22 -> 0 | AA22: ='Tipp-Formular'!AA22 -> 0 | AB22: ='Tipp-Formular'!AB22 -> 0 | AC22: ='Tipp-Formular'!AC22 ->  | AI22: Viertel-Finale | DA22: ='Tipp-Formular'!DA22 -> Nordmazedonien | DB22: ='Tipp-Formular'!DB22 -> 0 | DC22: ='Tipp-Formular'!DC22 -> 0 | DD22: ='Tipp-Formular'!DD22 -> 0
B23: ='Tipp-Formular'!B23 -> 29 | C23: ='Tipp-Formular'!C23 -> 2021-06-21 | D23: ='Tipp-Formular'!D23 -> 18:00:00 | E23: ='Tipp-Formular'!E23 -> Ukraine | F23: ='Tipp-Formular'!F23 -> Österreich | G23: =IFERROR('Tipp-Formular'!G23,0) -> 0 | H23: : | I23: =IFERROR('Tipp-Formular'!I23,0) -> 0 | J23: ='Tipp-Formular'!J23 -> 0 | K23: ='Tipp-Formular'!K23 -> 0 | L23: ='Tipp-Formular'!L23 -> 0 | P23: ='Tipp-Formular'!P23 -> nein | Q23: ='Tipp-Formular'!Q23 -> 0 | U23: ='Tipp-Formular'!U23 ->  | V23: ='Tipp-Formular'!V23 ->  | AE23: ='Tipp-Formular'!AE23 -> 0
B24: ='Tipp-Formular'!B24 -> 30 | C24: ='Tipp-Formular'!C24 -> 2021-06-21 | D24: ='Tipp-Formular'!D24 -> 18:00:00 | E24: ='Tipp-Formular'!E24 -> Nordmazedonien | F24: ='Tipp-Formular'!F24 -> Niederlande | G24: =IFERROR('Tipp-Formular'!G24,0) -> 0 | H24: : | I24: =IFERROR('Tipp-Formular'!I24,0) -> 0 | J24: ='Tipp-Formular'!J24 -> 0 | K24: ='Tipp-Formular'!K24 -> 0 | L24: ='Tipp-Formular'!L24 -> 0 | P24: ='Tipp-Formular'!P24 -> nein | Q24: 0 | T24: ='Tipp-Formular'!T24 -> 0 | U24: ='Tipp-Formular'!U24 -> 0 | AE24: ='Tipp-Formular'!AE24 -> 0
AI25: ='Tipp-Formular'!AI25:AI26 -> 2021-07-02 | AJ25: ='Tipp-Formular'!AJ25:AJ26 -> 18:00:00 | AK25: ='Tipp-Formular'!AK25:AK26 -> 1AF6 | AL25: ='Tipp-Formular'!AL25:AL26 ->  | AM25: ='Tipp-Formular'!AM25:AM26 -> 1AF5 | AN25: ='Tipp-Formular'!AN25:AN26 ->  | AO25: =IFERROR('Tipp-Formular'!AO25,0) -> 0 | AP25: : | AQ25: =IFERROR('Tipp-Formular'!AQ25,0) -> 0 | AS25: ='Tipp-Formular'!AS25:AS26 -> 0 | AT25: ='Tipp-Formular'!AT25:AT26 -> 0 | AU25: ='Tipp-Formular'!AU25:AU26 -> 0 | AV25: ='Tipp-Formular'!AV25:AV26 -> 1VF1 | AW25: ='Tipp-Formular'!AW25:AW26 ->  | AX25: ='Tipp-Formular'!AX25:AX26 ->  | AY25: ='Tipp-Formular'!AY25:AY26 ->  | AZ25: ='Tipp-Formular'!AZ25:AZ26 -> nein | BA25: ='Tipp-Formular'!BA25:BA26 ->  | BB25: ='Tipp-Formular'!BB25:BB26 -> 2VF1 | BC25: ='Tipp-Formular'!BC25:BC26 -> 
C26: Gruppe D | Q26: ='Tipp-Formular'!Q26:R30 ->  | T26: Gruppe D | AG26: ='Tipp-Formular'!AG26:AG30 -> . | DA26: ='Tipp-Formular'!DA26 -> Gruppe D | DB26: ='Tipp-Formular'!DB26 -> Gelb =1 Punkt | DC26: ='Tipp-Formular'!DC26 -> Rot =3 Punkte | DD26: ='Tipp-Formular'!DD26 -> Summe
B27: ='Tipp-Formular'!B27 -> 7 | C27: ='Tipp-Formular'!C27 -> 2021-06-13 | D27: ='Tipp-Formular'!D27 -> 15:00:00 | E27: ='Tipp-Formular'!E27 -> England | F27: ='Tipp-Formular'!F27 -> Kroatien | G27: =IFERROR('Tipp-Formular'!G27,0) -> 0 | H27: : | I27: =IFERROR('Tipp-Formular'!I27,0) -> 0 | J27: ='Tipp-Formular'!J27 -> 0 | K27: ='Tipp-Formular'!K27 -> 0 | L27: ='Tipp-Formular'!L27 -> 0 | T27: 1 | U27: . | V27: ='Tipp-Formular'!V27 -> Tipps fehlen | W27: ='Tipp-Formular'!W27 -> 0 | X27: ='Tipp-Formular'!X27 -> 0 | Y27: : | Z27: ='Tipp-Formular'!Z27 -> 0 | AA27: ='Tipp-Formular'!AA27 -> 0 | AB27: ='Tipp-Formular'!AB27 -> 0 | AC27: ='Tipp-Formular'!AC27 ->  | AD27: ='Tipp-Formular'!AD27 -> Reihung unter den | AI27: ='Tipp-Formular'!AI27:AI28 -> 2021-07-02 | AJ27: ='Tipp-Formular'!AJ27:AJ28 -> 21:00:00 | AK27: ='Tipp-Formular'!AK27:AK28 -> 1AF4 | AL27: ='Tipp-Formular'!AL27:AL28 ->  | AM27: ='Tipp-Formular'!AM27:AM28 -> 1AF2 | AN27: ='Tipp-Formular'!AN27:AN28 ->  | AO27: =IFERROR('Tipp-Formular'!AO27,0) -> 0 | AP27: : | AQ27: =IFERROR('Tipp-Formular'!AQ27,0) -> 0 | AS27: ='Tipp-Formular'!AS27:AS28 -> 0 | AT27: ='Tipp-Formular'!AT27:AT28 -> 0 | AU27: ='Tipp-Formular'!AU27:AU28 -> 0 | AV27: ='Tipp-Formular'!AV27:AV28 -> 1VF2 | AW27: ='Tipp-Formular'!AW27:AW28 ->  | AX27: ='Tipp-Formular'!AX27:AX28 ->  | AY27: ='Tipp-Formular'!AY27:AY28 ->  | AZ27: ='Tipp-Formular'!AZ27:AZ28 -> nein | BA27: ='Tipp-Formular'!BA27:BA28 ->  | BB27: ='Tipp-Formular'!BB27:BB28 -> 2VF2 | BC27: ='Tipp-Formular'!BC27:BC28 ->  | DA27: ='Tipp-Formular'!DA27 -> England | DB27: ='Tipp-Formular'!DB27 -> 0 | DC27: ='Tipp-Formular'!DC27 -> 0 | DD27: ='Tipp-Formular'!DD27 -> 0
B28: ='Tipp-Formular'!B28 -> 8 | C28: ='Tipp-Formular'!C28 -> 2021-06-14 | D28: ='Tipp-Formular'!D28 -> 15:00:00 | E28: ='Tipp-Formular'!E28 -> Schottland | F28: ='Tipp-Formular'!F28 -> Tschechien | G28: =IFERROR('Tipp-Formular'!G28,0) -> 0 | H28: : | I28: =IFERROR('Tipp-Formular'!I28,0) -> 0 | J28: ='Tipp-Formular'!J28 -> 0 | K28: ='Tipp-Formular'!K28 -> 0 | L28: ='Tipp-Formular'!L28 -> 0 | T28: 2 | U28: . | V28: ='Tipp-Formular'!V28 -> Tipps fehlen | W28: ='Tipp-Formular'!W28 -> 0 | X28: ='Tipp-Formular'!X28 -> 0 | Y28: : | Z28: ='Tipp-Formular'!Z28 -> 0 | AA28: ='Tipp-Formular'!AA28 -> 0 | AB28: ='Tipp-Formular'!AB28 -> 0 | AC28: ='Tipp-Formular'!AC28 ->  | AD28: ='Tipp-Formular'!AD28 -> Dritt- Platzierten | DA28: ='Tipp-Formular'!DA28 -> Kroatien | DB28: ='Tipp-Formular'!DB28 -> 0 | DC28: ='Tipp-Formular'!DC28 -> 0 | DD28: ='Tipp-Formular'!DD28 -> 0
B29: ='Tipp-Formular'!B29 -> 19 | C29: ='Tipp-Formular'!C29 -> 2021-06-18 | D29: ='Tipp-Formular'!D29 -> 18:00:00 | E29: ='Tipp-Formular'!E29 -> Kroatien | F29: ='Tipp-Formular'!F29 -> Tschechien | G29: =IFERROR('Tipp-Formular'!G29,0) -> 0 | H29: : | I29: =IFERROR('Tipp-Formular'!I29,0) -> 0 | J29: ='Tipp-Formular'!J29 -> 0 | K29: ='Tipp-Formular'!K29 -> 0 | L29: ='Tipp-Formular'!L29 -> 0 | T29: 3 | U29: . | V29: ='Tipp-Formular'!V29 -> Tipps fehlen | W29: ='Tipp-Formular'!W29 -> 0 | X29: ='Tipp-Formular'!X29 -> 0 | Y29: : | Z29: ='Tipp-Formular'!Z29 -> 0 | AA29: ='Tipp-Formular'!AA29 -> 0 | AB29: ='Tipp-Formular'!AB29 -> 0 | AC29: ='Tipp-Formular'!AC29 ->  | AD29: ='Tipp-Formular'!AD29 ->  | AI29: ='Tipp-Formular'!AI29:AI30 -> 2021-07-03 | AJ29: ='Tipp-Formular'!AJ29:AJ30 -> 18:00:00 | AK29: ='Tipp-Formular'!AK29:AK30 -> 1AF3 | AL29: ='Tipp-Formular'!AL29:AL30 ->  | AM29: ='Tipp-Formular'!AM29:AM30 -> 1AF1 | AN29: ='Tipp-Formular'!AN29:AN30 ->  | AO29: =IFERROR('Tipp-Formular'!AO29,0) -> 0 | AP29: : | AQ29: =IFERROR('Tipp-Formular'!AQ29,0) -> 0 | AS29: ='Tipp-Formular'!AS29:AS30 -> 0 | AT29: ='Tipp-Formular'!AT29:AT30 -> 0 | AU29: ='Tipp-Formular'!AU29:AU30 -> 0 | AV29: ='Tipp-Formular'!AV29:AV30 -> 1VF3 | AW29: ='Tipp-Formular'!AW29:AW30 ->  | AX29: ='Tipp-Formular'!AX29:AX30 ->  | AY29: ='Tipp-Formular'!AY29:AY30 ->  | AZ29: ='Tipp-Formular'!AZ29:AZ30 -> nein | BA29: ='Tipp-Formular'!BA29:BA30 ->  | BB29: ='Tipp-Formular'!BB29:BB30 -> 2VF3 | BC29: ='Tipp-Formular'!BC29:BC30 ->  | DA29: ='Tipp-Formular'!DA29 -> Schottland | DB29: ='Tipp-Formular'!DB29 -> 0 | DC29: ='Tipp-Formular'!DC29 -> 0 | DD29: ='Tipp-Formular'!DD29 -> 0
B30: ='Tipp-Formular'!B30 -> 20 | C30: ='Tipp-Formular'!C30 -> 2021-06-18 | D30: ='Tipp-Formular'!D30 -> 21:00:00 | E30: ='Tipp-Formular'!E30 -> England | F30: ='Tipp-Formular'!F30 -> Schottland | G30: =IFERROR('Tipp-Formular'!G30,0) -> 0 | H30: : | I30: =IFERROR('Tipp-Formular'!I30,0) -> 0 | J30: ='Tipp-Formular'!J30 -> 0 | K30: ='Tipp-Formular'!K30 -> 0 | L30: ='Tipp-Formular'!L30 -> 0 | T30: 4 | U30: . | V30: ='Tipp-Formular'!V30 -> Tipps fehlen | W30: ='Tipp-Formular'!W30 -> 0 | X30: ='Tipp-Formular'!X30 -> 0 | Y30: : | Z30: ='Tipp-Formular'!Z30 -> 0 | AA30: ='Tipp-Formular'!AA30 -> 0 | AB30: ='Tipp-Formular'!AB30 -> 0 | AC30: ='Tipp-Formular'!AC30 ->  | DA30: ='Tipp-Formular'!DA30 -> Tschechien | DB30: ='Tipp-Formular'!DB30 -> 0 | DC30: ='Tipp-Formular'!DC30 -> 0 | DD30: ='Tipp-Formular'!DD30 -> 0
B31: ='Tipp-Formular'!B31 -> 31 | C31: ='Tipp-Formular'!C31 -> 2021-06-22 | D31: ='Tipp-Formular'!D31 -> 21:00:00 | E31: ='Tipp-Formular'!E31 -> Kroatien | F31: ='Tipp-Formular'!F31 -> Schottland | G31: =IFERROR('Tipp-Formular'!G31,0) -> 0 | H31: : | I31: =IFERROR('Tipp-Formular'!I31,0) -> 0 | J31: ='Tipp-Formular'!J31 -> 0 | K31: ='Tipp-Formular'!K31 -> 0 | L31: ='Tipp-Formular'!L31 -> 0 | P31: ='Tipp-Formular'!P31 -> nein | Q31: ='Tipp-Formular'!Q31 -> 0 | U31: ='Tipp-Formular'!U31 ->  | V31: ='Tipp-Formular'!V31 ->  | AE31: ='Tipp-Formular'!AE31 -> 0 | AI31: ='Tipp-Formular'!AI31:AI32 -> 2021-07-03 | AJ31: ='Tipp-Formular'!AJ31:AJ32 -> 21:00:00 | AK31: ='Tipp-Formular'!AK31:AK32 -> 1AF8 | AL31: ='Tipp-Formular'!AL31:AL32 ->  | AM31: ='Tipp-Formular'!AM31:AM32 -> 1AF7 | AN31: ='Tipp-Formular'!AN31:AN32 ->  | AO31: =IFERROR('Tipp-Formular'!AO31,0) -> 0 | AP31: : | AQ31: =IFERROR('Tipp-Formular'!AQ31,0) -> 0 | AS31: ='Tipp-Formular'!AS31:AS32 -> 0 | AT31: ='Tipp-Formular'!AT31:AT32 -> 0 | AU31: ='Tipp-Formular'!AU31:AU32 -> 0 | AV31: ='Tipp-Formular'!AV31:AV32 -> 1VF4 | AW31: ='Tipp-Formular'!AW31:AW32 ->  | AX31: ='Tipp-Formular'!AX31:AX32 ->  | AY31: ='Tipp-Formular'!AY31:AY32 ->  | AZ31: ='Tipp-Formular'!AZ31:AZ32 -> nein | BA31: ='Tipp-Formular'!BA31:BA32 ->  | BB31: ='Tipp-Formular'!BB31:BB32 -> 2VF4 | BC31: ='Tipp-Formular'!BC31:BC32 -> 
B32: ='Tipp-Formular'!B32 -> 32 | C32: ='Tipp-Formular'!C32 -> 2021-06-22 | D32: ='Tipp-Formular'!D32 -> 21:00:00 | E32: ='Tipp-Formular'!E32 -> Tschechien | F32: ='Tipp-Formular'!F32 -> England | G32: =IFERROR('Tipp-Formular'!G32,0) -> 0 | H32: : | I32: =IFERROR('Tipp-Formular'!I32,0) -> 0 | J32: ='Tipp-Formular'!J32 -> 0 | K32: ='Tipp-Formular'!K32 -> 0 | L32: ='Tipp-Formular'!L32 -> 0 | P32: ='Tipp-Formular'!P32 -> nein | Q32: 0 | T32: ='Tipp-Formular'!T32 -> 0 | U32: ='Tipp-Formular'!U32 -> 0 | AE32: ='Tipp-Formular'!AE32 -> 0
C34: Gruppe E | Q34: ='Tipp-Formular'!Q34:R38 ->  | T34: Gruppe E | AG34: ='Tipp-Formular'!AG34:AG38 -> . | DA34: ='Tipp-Formular'!DA34 -> Gruppe E | DB34: ='Tipp-Formular'!DB34 -> Gelb =1 Punkt | DC34: ='Tipp-Formular'!DC34 -> Rot =3 Punkte | DD34: ='Tipp-Formular'!DD34 -> Summe
B35: ='Tipp-Formular'!B35 -> 9 | C35: ='Tipp-Formular'!C35 -> 2021-06-14 | D35: ='Tipp-Formular'!D35 -> 18:00:00 | E35: ='Tipp-Formular'!E35 -> Polen | F35: ='Tipp-Formular'!F35 -> Slowakei | G35: =IFERROR('Tipp-Formular'!G35,0) -> 0 | H35: : | I35: =IFERROR('Tipp-Formular'!I35,0) -> 0 | J35: ='Tipp-Formular'!J35 -> 0 | K35: ='Tipp-Formular'!K35 -> 0 | L35: ='Tipp-Formular'!L35 -> 0 | T35: 1 | U35: . | V35: ='Tipp-Formular'!V35 -> Tipps fehlen | W35: ='Tipp-Formular'!W35 -> 0 | X35: ='Tipp-Formular'!X35 -> 0 | Y35: : | Z35: ='Tipp-Formular'!Z35 -> 0 | AA35: ='Tipp-Formular'!AA35 -> 0 | AB35: ='Tipp-Formular'!AB35 -> 0 | AC35: ='Tipp-Formular'!AC35 ->  | AD35: ='Tipp-Formular'!AD35 -> Reihung unter den | AI35: Halb-Finale | DA35: ='Tipp-Formular'!DA35 -> Spanien | DB35: ='Tipp-Formular'!DB35 -> 0 | DC35: ='Tipp-Formular'!DC35 -> 0 | DD35: ='Tipp-Formular'!DD35 -> 0
B36: ='Tipp-Formular'!B36 -> 10 | C36: ='Tipp-Formular'!C36 -> 2021-06-14 | D36: ='Tipp-Formular'!D36 -> 21:00:00 | E36: ='Tipp-Formular'!E36 -> Spanien | F36: ='Tipp-Formular'!F36 -> Schweden | G36: =IFERROR('Tipp-Formular'!G36,0) -> 0 | H36: : | I36: =IFERROR('Tipp-Formular'!I36,0) -> 0 | J36: ='Tipp-Formular'!J36 -> 0 | K36: ='Tipp-Formular'!K36 -> 0 | L36: ='Tipp-Formular'!L36 -> 0 | T36: 2 | U36: . | V36: ='Tipp-Formular'!V36 -> Tipps fehlen | W36: ='Tipp-Formular'!W36 -> 0 | X36: ='Tipp-Formular'!X36 -> 0 | Y36: : | Z36: ='Tipp-Formular'!Z36 -> 0 | AA36: ='Tipp-Formular'!AA36 -> 0 | AB36: ='Tipp-Formular'!AB36 -> 0 | AC36: ='Tipp-Formular'!AC36 ->  | AD36: ='Tipp-Formular'!AD36 -> Dritt- Platzierten | DA36: ='Tipp-Formular'!DA36 -> Schweden | DB36: ='Tipp-Formular'!DB36 -> 0 | DC36: ='Tipp-Formular'!DC36 -> 0 | DD36: ='Tipp-Formular'!DD36 -> 0
B37: ='Tipp-Formular'!B37 -> 21 | C37: ='Tipp-Formular'!C37 -> 2021-06-18 | D37: ='Tipp-Formular'!D37 -> 15:00:00 | E37: ='Tipp-Formular'!E37 -> Schweden | F37: ='Tipp-Formular'!F37 -> Slowakei | G37: =IFERROR('Tipp-Formular'!G37,0) -> 0 | H37: : | I37: =IFERROR('Tipp-Formular'!I37,0) -> 0 | J37: ='Tipp-Formular'!J37 -> 0 | K37: ='Tipp-Formular'!K37 -> 0 | L37: ='Tipp-Formular'!L37 -> 0 | T37: 3 | U37: . | V37: ='Tipp-Formular'!V37 -> Tipps fehlen | W37: ='Tipp-Formular'!W37 -> 0 | X37: ='Tipp-Formular'!X37 -> 0 | Y37: : | Z37: ='Tipp-Formular'!Z37 -> 0 | AA37: ='Tipp-Formular'!AA37 -> 0 | AB37: ='Tipp-Formular'!AB37 -> 0 | AC37: ='Tipp-Formular'!AC37 ->  | AD37: ='Tipp-Formular'!AD37 ->  | DA37: ='Tipp-Formular'!DA37 -> Polen | DB37: ='Tipp-Formular'!DB37 -> 0 | DC37: ='Tipp-Formular'!DC37 -> 0 | DD37: ='Tipp-Formular'!DD37 -> 0
B38: ='Tipp-Formular'!B38 -> 22 | C38: ='Tipp-Formular'!C38 -> 2021-06-19 | D38: ='Tipp-Formular'!D38 -> 21:00:00 | E38: ='Tipp-Formular'!E38 -> Spanien | F38: ='Tipp-Formular'!F38 -> Polen | G38: =IFERROR('Tipp-Formular'!G38,0) -> 0 | H38: : | I38: =IFERROR('Tipp-Formular'!I38,0) -> 0 | J38: ='Tipp-Formular'!J38 -> 0 | K38: ='Tipp-Formular'!K38 -> 0 | L38: ='Tipp-Formular'!L38 -> 0 | T38: 4 | U38: . | V38: ='Tipp-Formular'!V38 -> Tipps fehlen | W38: ='Tipp-Formular'!W38 -> 0 | X38: ='Tipp-Formular'!X38 -> 0 | Y38: : | Z38: ='Tipp-Formular'!Z38 -> 0 | AA38: ='Tipp-Formular'!AA38 -> 0 | AB38: ='Tipp-Formular'!AB38 -> 0 | AC38: ='Tipp-Formular'!AC38 ->  | AI38: ='Tipp-Formular'!AI38:AI39 -> 2021-07-06 | AJ38: ='Tipp-Formular'!AJ38:AJ39 -> 21:00:00 | AK38: ='Tipp-Formular'!AK38:AK39 -> 1VF2 | AL38: ='Tipp-Formular'!AL38:AL39 ->  | AM38: ='Tipp-Formular'!AM38:AM39 -> 1VF1 | AN38: ='Tipp-Formular'!AN38:AN39 ->  | AO38: =IFERROR('Tipp-Formular'!AO38,0) -> 0 | AP38: : | AQ38: =IFERROR('Tipp-Formular'!AQ38,0) -> 0 | AS38: ='Tipp-Formular'!AS38:AS39 -> 0 | AT38: ='Tipp-Formular'!AT38:AT39 -> 0 | AU38: ='Tipp-Formular'!AU38:AU39 -> 0 | AV38: ='Tipp-Formular'!AV38:AV39 -> 1HF1 | AW38: ='Tipp-Formular'!AW38:AW39 ->  | AX38: ='Tipp-Formular'!AX38:AX39 ->  | AY38: ='Tipp-Formular'!AY38:AY39 ->  | AZ38: ='Tipp-Formular'!AZ38:AZ39 -> nein | BA38: ='Tipp-Formular'!BA38:BA39 ->  | BB38: ='Tipp-Formular'!BB38:BB39 -> 2HF1 | BC38: ='Tipp-Formular'!BC38:BC39 ->  | DA38: ='Tipp-Formular'!DA38 -> Slowakei | DB38: ='Tipp-Formular'!DB38 -> 0 | DC38: ='Tipp-Formular'!DC38 -> 0 | DD38: ='Tipp-Formular'!DD38 -> 0
B39: ='Tipp-Formular'!B39 -> 33 | C39: ='Tipp-Formular'!C39 -> 2021-06-23 | D39: ='Tipp-Formular'!D39 -> 18;00 | E39: ='Tipp-Formular'!E39 -> Slowakei | F39: ='Tipp-Formular'!F39 -> Spanien | G39: =IFERROR('Tipp-Formular'!G39,0) -> 0 | H39: : | I39: =IFERROR('Tipp-Formular'!I39,0) -> 0 | J39: ='Tipp-Formular'!J39 -> 0 | K39: ='Tipp-Formular'!K39 -> 0 | L39: ='Tipp-Formular'!L39 -> 0 | P39: ='Tipp-Formular'!P39 -> nein | Q39: ='Tipp-Formular'!Q39 -> 0 | U39: ='Tipp-Formular'!U39 ->  | V39: ='Tipp-Formular'!V39 ->  | AE39: ='Tipp-Formular'!AE39 -> 0
B40: ='Tipp-Formular'!B40 -> 34 | C40: ='Tipp-Formular'!C40 -> 2021-06-23 | D40: ='Tipp-Formular'!D40 -> 18:00:00 | E40: ='Tipp-Formular'!E40 -> Schweden | F40: ='Tipp-Formular'!F40 -> Polen | G40: =IFERROR('Tipp-Formular'!G40,0) -> 0 | H40: : | I40: =IFERROR('Tipp-Formular'!I40,0) -> 0 | J40: ='Tipp-Formular'!J40 -> 0 | K40: ='Tipp-Formular'!K40 -> 0 | L40: ='Tipp-Formular'!L40 -> 0 | P40: ='Tipp-Formular'!P40 -> nein | Q40: 0 | T40: ='Tipp-Formular'!T40 -> 0 | U40: ='Tipp-Formular'!U40 -> 0 | AE40: ='Tipp-Formular'!AE40 -> 0 | AI40: ='Tipp-Formular'!AI40:AI41 -> 2021-07-07 | AJ40: ='Tipp-Formular'!AJ40:AJ41 -> 21:00:00 | AK40: ='Tipp-Formular'!AK40:AK41 -> 1VF4 | AL40: ='Tipp-Formular'!AL40:AL41 ->  | AM40: ='Tipp-Formular'!AM40:AM41 -> 1VF3 | AN40: ='Tipp-Formular'!AN40:AN41 ->  | AO40: =IFERROR('Tipp-Formular'!AO40,0) -> 0 | AP40: : | AQ40: =IFERROR('Tipp-Formular'!AQ40,0) -> 0 | AS40: ='Tipp-Formular'!AS40:AS41 -> 0 | AT40: ='Tipp-Formular'!AT40:AT41 -> 0 | AU40: ='Tipp-Formular'!AU40:AU41 -> 0 | AV40: ='Tipp-Formular'!AV40:AV41 -> 1HF2 | AW40: ='Tipp-Formular'!AW40:AW41 ->  | AX40: ='Tipp-Formular'!AX40:AX41 ->  | AY40: ='Tipp-Formular'!AY40:AY41 ->  | AZ40: ='Tipp-Formular'!AZ40:AZ41 -> nein | BA40: ='Tipp-Formular'!BA40:BA41 ->  | BB40: ='Tipp-Formular'!BB40:BB41 -> 2HF2 | BC40: ='Tipp-Formular'!BC40:BC41 -> 
C42: Gruppe F | Q42: ='Tipp-Formular'!Q42:R46 ->  | T42: Gruppe F | AG42: ='Tipp-Formular'!AG42:AG46 -> . | DA42: ='Tipp-Formular'!DA42 -> Gruppe F | DB42: ='Tipp-Formular'!DB42 -> Gelb =1 Punkt | DC42: ='Tipp-Formular'!DC42 -> Rot =3 Punkte | DD42: ='Tipp-Formular'!DD42 -> Summe
B43: ='Tipp-Formular'!B43 -> 11 | C43: ='Tipp-Formular'!C43 -> 2021-06-15 | D43: ='Tipp-Formular'!D43 -> 18:00:00 | E43: ='Tipp-Formular'!E43 -> Ungarn | F43: ='Tipp-Formular'!F43 -> Portugal | G43: =IFERROR('Tipp-Formular'!G43,0) -> 0 | H43: : | I43: =IFERROR('Tipp-Formular'!I43,0) -> 0 | J43: ='Tipp-Formular'!J43 -> 0 | K43: ='Tipp-Formular'!K43 -> 0 | L43: ='Tipp-Formular'!L43 -> 0 | T43: 1 | U43: . | V43: ='Tipp-Formular'!V43 -> Tipps fehlen | W43: ='Tipp-Formular'!W43 -> 0 | X43: ='Tipp-Formular'!X43 -> 0 | Y43: : | Z43: ='Tipp-Formular'!Z43 -> 0 | AA43: ='Tipp-Formular'!AA43 -> 0 | AB43: ='Tipp-Formular'!AB43 -> 0 | AC43: ='Tipp-Formular'!AC43 ->  | AD43: ='Tipp-Formular'!AD43 -> Reihung unter den | DA43: ='Tipp-Formular'!DA43 -> Ungarn | DB43: ='Tipp-Formular'!DB43 -> 0 | DC43: ='Tipp-Formular'!DC43 -> 0 | DD43: ='Tipp-Formular'!DD43 -> 0
B44: ='Tipp-Formular'!B44 -> 12 | C44: ='Tipp-Formular'!C44 -> 2021-06-15 | D44: ='Tipp-Formular'!D44 -> 21:00:00 | E44: ='Tipp-Formular'!E44 -> Frankreich | F44: ='Tipp-Formular'!F44 -> Deutschland | G44: =IFERROR('Tipp-Formular'!G44,0) -> 0 | H44: : | I44: =IFERROR('Tipp-Formular'!I44,0) -> 0 | J44: ='Tipp-Formular'!J44 -> 0 | K44: ='Tipp-Formular'!K44 -> 0 | L44: ='Tipp-Formular'!L44 -> 0 | T44: 2 | U44: . | V44: ='Tipp-Formular'!V44 -> Tipps fehlen | W44: ='Tipp-Formular'!W44 -> 0 | X44: ='Tipp-Formular'!X44 -> 0 | Y44: : | Z44: ='Tipp-Formular'!Z44 -> 0 | AA44: ='Tipp-Formular'!AA44 -> 0 | AB44: ='Tipp-Formular'!AB44 -> 0 | AC44: ='Tipp-Formular'!AC44 ->  | AD44: ='Tipp-Formular'!AD44 -> Dritt- Platzierten | AI44: Finale | DA44: ='Tipp-Formular'!DA44 -> Portugal | DB44: ='Tipp-Formular'!DB44 -> 0 | DC44: ='Tipp-Formular'!DC44 -> 0 | DD44: ='Tipp-Formular'!DD44 -> 0
B45: ='Tipp-Formular'!B45 -> 23 | C45: ='Tipp-Formular'!C45 -> 2021-06-19 | D45: ='Tipp-Formular'!D45 -> 15:00:00 | E45: ='Tipp-Formular'!E45 -> Ungarn | F45: ='Tipp-Formular'!F45 -> Frankreich | G45: =IFERROR('Tipp-Formular'!G45,0) -> 0 | H45: : | I45: =IFERROR('Tipp-Formular'!I45,0) -> 0 | J45: ='Tipp-Formular'!J45 -> 0 | K45: ='Tipp-Formular'!K45 -> 0 | L45: ='Tipp-Formular'!L45 -> 0 | T45: 3 | U45: . | V45: ='Tipp-Formular'!V45 -> Tipps fehlen | W45: ='Tipp-Formular'!W45 -> 0 | X45: ='Tipp-Formular'!X45 -> 0 | Y45: : | Z45: ='Tipp-Formular'!Z45 -> 0 | AA45: ='Tipp-Formular'!AA45 -> 0 | AB45: ='Tipp-Formular'!AB45 -> 0 | AC45: ='Tipp-Formular'!AC45 ->  | AD45: ='Tipp-Formular'!AD45 ->  | DA45: ='Tipp-Formular'!DA45 -> Frankreich | DB45: ='Tipp-Formular'!DB45 -> 0 | DC45: ='Tipp-Formular'!DC45 -> 0 | DD45: ='Tipp-Formular'!DD45 -> 0
B46: ='Tipp-Formular'!B46 -> 24 | C46: ='Tipp-Formular'!C46 -> 2021-06-19 | D46: ='Tipp-Formular'!D46 -> 18;00 | E46: ='Tipp-Formular'!E46 -> Portugal | F46: ='Tipp-Formular'!F46 -> Deutschland | G46: =IFERROR('Tipp-Formular'!G46,0) -> 0 | H46: : | I46: =IFERROR('Tipp-Formular'!I46,0) -> 0 | J46: ='Tipp-Formular'!J46 -> 0 | K46: ='Tipp-Formular'!K46 -> 0 | L46: ='Tipp-Formular'!L46 -> 0 | T46: 4 | U46: . | V46: ='Tipp-Formular'!V46 -> Tipps fehlen | W46: ='Tipp-Formular'!W46 -> 0 | X46: ='Tipp-Formular'!X46 -> 0 | Y46: : | Z46: ='Tipp-Formular'!Z46 -> 0 | AA46: ='Tipp-Formular'!AA46 -> 0 | AB46: ='Tipp-Formular'!AB46 -> 0 | AC46: ='Tipp-Formular'!AC46 ->  | DA46: ='Tipp-Formular'!DA46 -> Deutschland | DB46: ='Tipp-Formular'!DB46 -> 0 | DC46: ='Tipp-Formular'!DC46 -> 0 | DD46: ='Tipp-Formular'!DD46 -> 0
B47: ='Tipp-Formular'!B47 -> 35 | C47: ='Tipp-Formular'!C47 -> 2021-06-23 | D47: ='Tipp-Formular'!D47 -> 21:00:00 | E47: ='Tipp-Formular'!E47 -> Portugal | F47: ='Tipp-Formular'!F47 -> Frankreich | G47: =IFERROR('Tipp-Formular'!G47,0) -> 0 | H47: : | I47: =IFERROR('Tipp-Formular'!I47,0) -> 0 | J47: ='Tipp-Formular'!J47 -> 0 | K47: ='Tipp-Formular'!K47 -> 0 | L47: ='Tipp-Formular'!L47 -> 0 | P47: ='Tipp-Formular'!P47 -> nein | Q47: ='Tipp-Formular'!Q47 -> 0 | U47: ='Tipp-Formular'!U47 ->  | V47: ='Tipp-Formular'!V47 ->  | AE47: ='Tipp-Formular'!AE47 -> 0 | AI47: ='Tipp-Formular'!AI47:AI48 -> 2021-07-11 | AJ47: ='Tipp-Formular'!AJ47:AJ48 -> 21:00:00 | AK47: ='Tipp-Formular'!AK47:AK48 -> 1HF1 | AL47: ='Tipp-Formular'!AL47:AL48 ->  | AM47: ='Tipp-Formular'!AM47:AM48 -> 1HF2 | AN47: ='Tipp-Formular'!AN47:AN48 ->  | AO47: =IFERROR('Tipp-Formular'!AO47,0) -> 0 | AP47: : | AQ47: =IFERROR('Tipp-Formular'!AQ47,0) -> 0 | AS47: ='Tipp-Formular'!AS47:AS48 -> 0 | AT47: ='Tipp-Formular'!AT47:AT48 -> 0 | AU47: ='Tipp-Formular'!AU47:AU48 -> 0 | AV47: ='Tipp-Formular'!AV47:AV48 -> 1F | AW47: ='Tipp-Formular'!AW47:AW48 ->  | AX47: ='Tipp-Formular'!AX47:AX48 ->  | AY47: ='Tipp-Formular'!AY47:AY48 ->  | AZ47: ='Tipp-Formular'!AZ47:AZ48 -> nein | BA47: ='Tipp-Formular'!BA47:BA48 ->  | BB47: ='Tipp-Formular'!BB47:BB48 -> 2F | BC47: ='Tipp-Formular'!BC47:BC48 -> 
B48: ='Tipp-Formular'!B48 -> 36 | C48: ='Tipp-Formular'!C48 -> 2021-06-23 | D48: ='Tipp-Formular'!D48 -> 21:00:00 | E48: ='Tipp-Formular'!E48 -> Deutschland | F48: ='Tipp-Formular'!F48 -> Ungarn | G48: =IFERROR('Tipp-Formular'!G48,0) -> 0 | H48: : | I48: =IFERROR('Tipp-Formular'!I48,0) -> 0 | J48: ='Tipp-Formular'!J48 -> 0 | K48: ='Tipp-Formular'!K48 -> 0 | L48: ='Tipp-Formular'!L48 -> 0 | P48: ='Tipp-Formular'!P48 -> nein | Q48: 0 | T48: ='Tipp-Formular'!T48 -> 0 | U48: ='Tipp-Formular'!U48 -> 0 | AE48: ='Tipp-Formular'!AE48 -> 0
DA49: ='1'!C10 -> 0
C50: Alter | D50: ='1'!C9 ->  | AY50: ='Tipp-Formular'!AY52 -> 
C51: Nachname | E51: ='Tipp-Formular'!E54 -> 0 | S51: Danke für Ihre Teilnahme. Viel Glück. Bitte speichern Sie jetzt Ihre Tipps und senden Sie diese an eine der nebenstehenden e-Mail-Adressen | X51: gerhard@wagner-cup.eu | AI51: Mein Europameister ist | AN51: ='Tipp-Formular'!AN52 ->  | BE51: ='1'!C8 -> 
X52: alexander@wagner-cup.eu
C53: Vorname | E53: ='Tipp-Formular'!E55 -> 0 | X53: clemens@wagner-cup.eu
BE54: =Kontrolle2!BE54 -> 0

Sheet Kontrolle (hidden)
A1: Kontrolle | C1: DRUCKVERSION Es gelten ausschließlich die hier stehenden Tipps. Nachträgliche Änderungen im Tipp-Formular haben keine Gültigkeit! | AG1: DRUCKVERSION Es gelten ausschließlich die hier stehenden Tipps. Nachträgliche Änderungen im Tipp-Formular haben keine Gültigkeit! | DA1: ='Tipp-Formular'!CV1:DD1 -> 0
C2: Gruppe A | Q2: ='Tipp-Formular'!Q2:R6 ->  | T2: Gruppe A | AG2: ='Tipp-Formular'!AG2:AG6 -> . | AI2: Achtel-Finale | DA2: ='Tipp-Formular'!DA2 -> Gruppe A | DB2: ='Tipp-Formular'!DB2 -> Gelb =1 Punkt | DC2: ='Tipp-Formular'!DC2 -> Rot =3 Punkte | DD2: ='Tipp-Formular'!DD2 -> Summe
B3: ='Tipp-Formular'!B3 -> 1 | C3: ='Tipp-Formular'!C3 -> 2021-06-11 | D3: ='Tipp-Formular'!D3 -> 21:00:00 | E3: ='Tipp-Formular'!E3 -> Türkei | F3: ='Tipp-Formular'!F3 -> Italien | G3: =IFERROR('Tipp-Formular'!G3,0) -> 0 | H3: : | I3: =IFERROR('Tipp-Formular'!I3,0) -> 0 | J3: ='Tipp-Formular'!J3 -> 0 | K3: ='Tipp-Formular'!K3 -> 0 | L3: ='Tipp-Formular'!L3 -> 0 | T3: 1 | U3: . | V3: ='Tipp-Formular'!V3 -> Tipps fehlen | W3: ='Tipp-Formular'!W3 -> 0 | X3: ='Tipp-Formular'!X3 -> 0 | Y3: : | Z3: ='Tipp-Formular'!Z3 -> 0 | AA3: ='Tipp-Formular'!AA3 -> 0 | AB3: ='Tipp-Formular'!AB3 -> 0 | AC3: ='Tipp-Formular'!AC3 ->  | AD3: ='Tipp-Formular'!AD3 -> Reihung unter den | DA3: ='Tipp-Formular'!DA3 -> Türkei | DB3: ='Tipp-Formular'!DB3 -> 0 | DC3: ='Tipp-Formular'!DC3 -> 0 | DD3: ='Tipp-Formular'!DD3 -> 0
B4: ='Tipp-Formular'!B4 -> 2 | C4: ='Tipp-Formular'!C4 -> 2021-06-12 | D4: ='Tipp-Formular'!D4 -> 15:00:00 | E4: ='Tipp-Formular'!E4 -> Wales | F4: ='Tipp-Formular'!F4 -> Schweiz | G4: =IFERROR('Tipp-Formular'!G4,0) -> 0 | H4: : | I4: =IFERROR('Tipp-Formular'!I4,0) -> 0 | J4: ='Tipp-Formular'!J4 -> 0 | K4: ='Tipp-Formular'!K4 -> 0 | L4: ='Tipp-Formular'!L4 -> 0 | T4: 2 | U4: . | V4: ='Tipp-Formular'!V4 -> Tipps fehlen | W4: ='Tipp-Formular'!W4 -> 0 | X4: ='Tipp-Formular'!X4 -> 0 | Y4: : | Z4: ='Tipp-Formular'!Z4 -> 0 | AA4: ='Tipp-Formular'!AA4 -> 0 | AB4: ='Tipp-Formular'!AB4 -> 0 | AC4: ='Tipp-Formular'!AC4 ->  | AD4: ='Tipp-Formular'!AD4 -> Dritt- Platzierten | AI4: ='Tipp-Formular'!AI4 -> 2021-06-26 | AJ4: ='Tipp-Formular'!AJ4 -> 18:00:00 | AK4: ='Tipp-Formular'!AK4 -> 2A | AL4: ='Tipp-Formular'!AL4 ->  | AM4: ='Tipp-Formular'!AM4 -> 2B | AN4: ='Tipp-Formular'!AN4 ->  | AO4: =IFERROR('Tipp-Formular'!AO4,0) -> 0 | AP4: : | AQ4: =IFERROR('Tipp-Formular'!AQ4,0) -> 0 | AS4: ='Tipp-Formular'!AS4 -> 0 | AT4: ='Tipp-Formular'!AT4 -> 0 | AU4: ='Tipp-Formular'!AU4 -> 0 | AV4: ='Tipp-Formular'!AV4 -> 1AF1 | AW4: ='Tipp-Formular'!AW4 ->  | AX4: ='Tipp-Formular'!AX4:AX5 ->  | AY4: ='Tipp-Formular'!AY4:AY5 ->  | AZ4: ='Tipp-Formular'!AZ4 -> nein | BA4: ='Tipp-Formular'!BA4 ->  | BB4: ='Tipp-Formular'!BB4 -> 2AF1 | BC4: ='Tipp-Formular'!BC4 ->  | DA4: ='Tipp-Formular'!DA4 -> Italien | DB4: ='Tipp-Formular'!DB4 -> 0 | DC4: ='Tipp-Formular'!DC4 -> 0 | DD4: ='Tipp-Formular'!DD4 -> 0
B5: ='Tipp-Formular'!B5 -> 13 | C5: ='Tipp-Formular'!C5 -> 2021-06-16 | D5: ='Tipp-Formular'!D5 -> 18:00:00 | E5: ='Tipp-Formular'!E5 -> Türkei | F5: ='Tipp-Formular'!F5 -> Wales | G5: =IFERROR('Tipp-Formular'!G5,0) -> 0 | H5: : | I5: =IFERROR('Tipp-Formular'!I5,0) -> 0 | J5: ='Tipp-Formular'!J5 -> 0 | K5: ='Tipp-Formular'!K5 -> 0 | L5: ='Tipp-Formular'!L5 -> 0 | T5: 3 | U5: . | V5: ='Tipp-Formular'!V5 -> Tipps fehlen | W5: ='Tipp-Formular'!W5 -> 0 | X5: ='Tipp-Formular'!X5 -> 0 | Y5: : | Z5: ='Tipp-Formular'!Z5 -> 0 | AA5: ='Tipp-Formular'!AA5 -> 0 | AB5: ='Tipp-Formular'!AB5 -> 0 | AC5: ='Tipp-Formular'!AC5 ->  | AD5: ='Tipp-Formular'!AD5 ->  | DA5: ='Tipp-Formular'!DA5 -> Wales | DB5: ='Tipp-Formular'!DB5 -> 0 | DC5: ='Tipp-Formular'!DC5 -> 0 | DD5: ='Tipp-Formular'!DD5 -> 0
B6: ='Tipp-Formular'!B6 -> 14 | C6: ='Tipp-Formular'!C6 -> 2021-06-16 | D6: ='Tipp-Formular'!D6 -> 21:00:00 | E6: ='Tipp-Formular'!E6 -> Italien | F6: ='Tipp-Formular'!F6 -> Schweiz | G6: =IFERROR('Tipp-Formular'!G6,0) -> 0 | H6: : | I6: =IFERROR('Tipp-Formular'!I6,0) -> 0 | J6: ='Tipp-Formular'!J6 -> 0 | K6: ='Tipp-Formular'!K6 -> 0 | L6: ='Tipp-Formular'!L6 -> 0 | T6: 4 | U6: . | V6: ='Tipp-Formular'!V6 -> Tipps fehlen | W6: ='Tipp-Formular'!W6 -> 0 | X6: ='Tipp-Formular'!X6 -> 0 | Y6: : | Z6: ='Tipp-Formular'!Z6 -> 0 | AA6: ='Tipp-Formular'!AA6 -> 0 | AB6: ='Tipp-Formular'!AB6 -> 0 | AC6: ='Tipp-Formular'!AC6 ->  | AI6: ='Tipp-Formular'!AI6 -> 2021-06-26 | AJ6: ='Tipp-Formular'!AJ6 -> 21:00:00 | AK6: ='Tipp-Formular'!AK6 -> 1A | AL6: ='Tipp-Formular'!AL6 ->  | AM6: ='Tipp-Formular'!AM6 -> 2C | AN6: ='Tipp-Formular'!AN6 ->  | AO6: =IFERROR('Tipp-Formular'!AO6,0) -> 0 | AP6: : | AQ6: =IFERROR('Tipp-Formular'!AQ6,0) -> 0 | AS6: ='Tipp-Formular'!AS6 -> 0 | AT6: ='Tipp-Formular'!AT6 -> 0 | AU6: ='Tipp-Formular'!AU6 -> 0 | AV6: ='Tipp-Formular'!AV6 -> 1AF2 | AW6: ='Tipp-Formular'!AW6 ->  | AX6: ='Tipp-Formular'!AX6:AX7 ->  | AY6: ='Tipp-Formular'!AY6:AY7 ->  | AZ6: ='Tipp-Formular'!AZ6 -> nein | BA6: ='Tipp-Formular'!BA6 ->  | BB6: ='Tipp-Formular'!BB6 -> 2AF2 | BC6: ='Tipp-Formular'!BC6 ->  | DA6: ='Tipp-Formular'!DA6 -> Schweiz | DB6: ='Tipp-Formular'!DB6 -> 0 | DC6: ='Tipp-Formular'!DC6 -> 0 | DD6: ='Tipp-Formular'!DD6 -> 0
B7: ='Tipp-Formular'!B7 -> 25 | C7: ='Tipp-Formular'!C7 -> 2021-06-20 | D7: ='Tipp-Formular'!D7 -> 18:00:00 | E7: ='Tipp-Formular'!E7 -> Schweiz | F7: ='Tipp-Formular'!F7 -> Türkei | G7: =IFERROR('Tipp-Formular'!G7,0) -> 0 | H7: : | I7: =IFERROR('Tipp-Formular'!I7,0) -> 0 | J7: ='Tipp-Formular'!J7 -> 0 | K7: ='Tipp-Formular'!K7 -> 0 | L7: ='Tipp-Formular'!L7 -> 0 | P7: ='Tipp-Formular'!P7 -> nein | Q7: ='Tipp-Formular'!Q7 -> 0 | U7: ='Tipp-Formular'!U7 ->  | V7: ='Tipp-Formular'!V7 ->  | AE7: ='Tipp-Formular'!AE7 -> 0
B8: ='Tipp-Formular'!B8 -> 26 | C8: ='Tipp-Formular'!C8 -> 2021-06-20 | D8: ='Tipp-Formular'!D8 -> 18:00:00 | E8: ='Tipp-Formular'!E8 -> Italien | F8: ='Tipp-Formular'!F8 -> Wales | G8: =IFERROR('Tipp-Formular'!G8,0) -> 0 | H8: : | I8: =IFERROR('Tipp-Formular'!I8,0) -> 0 | J8: ='Tipp-Formular'!J8 -> 0 | K8: ='Tipp-Formular'!K8 -> 0 | L8: ='Tipp-Formular'!L8 -> 0 | P8: ='Tipp-Formular'!P8 -> nein | Q8: 0 | T8: ='Tipp-Formular'!T8 -> 0 | U8: ='Tipp-Formular'!U8 -> 0 | AE8: ='Tipp-Formular'!AE8 -> 0 | AI8: ='Tipp-Formular'!AI8 -> 2021-06-27 | AJ8: ='Tipp-Formular'!AJ8 -> 18:00:00 | AK8: ='Tipp-Formular'!AK8 -> 1C | AL8: ='Tipp-Formular'!AL8 ->  | AM8: ='Tipp-Formular'!AM8 -> 3D | AN8: ='Tipp-Formular'!AN8 ->  | AO8: =IFERROR('Tipp-Formular'!AO8,0) -> 0 | AP8: : | AQ8: =IFERROR('Tipp-Formular'!AQ8,0) -> 0 | AS8: ='Tipp-Formular'!AS8 -> 0 | AT8: ='Tipp-Formular'!AT8 -> 0 | AU8: ='Tipp-Formular'!AU8 -> 0 | AV8: ='Tipp-Formular'!AV8 -> 1AF3 | AW8: ='Tipp-Formular'!AW8 ->  | AX8: ='Tipp-Formular'!AX8:AX9 ->  | AY8: ='Tipp-Formular'!AY8:AY9 ->  | AZ8: ='Tipp-Formular'!AZ8 -> nein | BA8: ='Tipp-Formular'!BA8 ->  | BB8: ='Tipp-Formular'!BB8 -> 2AF3 | BC8: ='Tipp-Formular'!BC8 -> 
C10: Gruppe B | Q10: ='Tipp-Formular'!Q10:R14 ->  | T10: Gruppe B | AG10: ='Tipp-Formular'!AG10:AG14 -> . | AI10: ='Tipp-Formular'!AI10 -> 2021-06-27 | AJ10: ='Tipp-Formular'!AJ10 -> 21:00:00 | AK10: ='Tipp-Formular'!AK10 -> 1B | AL10: ='Tipp-Formular'!AL10 ->  | AM10: ='Tipp-Formular'!AM10 -> 3E | AN10: ='Tipp-Formular'!AN10 ->  | AO10: =IFERROR('Tipp-Formular'!AO10,0) -> 0 | AP10: : | AQ10: =IFERROR('Tipp-Formular'!AQ10,0) -> 0 | AS10: ='Tipp-Formular'!AS10 -> 0 | AT10: ='Tipp-Formular'!AT10 -> 0 | AU10: ='Tipp-Formular'!AU10 -> 0 | AV10: ='Tipp-Formular'!AV10 -> 1AF4 | AW10: ='Tipp-Formular'!AW10 ->  | AX10: ='Tipp-Formular'!AX10:AX11 ->  | AY10: ='Tipp-Formular'!AY10:AY11 ->  | AZ10: ='Tipp-Formular'!AZ10 -> nein | BA10: ='Tipp-Formular'!BA10 ->  | BB10: ='Tipp-Formular'!BB10 -> 2AF4 | BC10: ='Tipp-Formular'!BC10 ->  | DA10: ='Tipp-Formular'!DA10 -> Gruppe B | DB10: ='Tipp-Formular'!DB10 -> Gelb =1 Punkt | DC10: ='Tipp-Formular'!DC10 -> Rot =3 Punkte | DD10: ='Tipp-Formular'!DD10 -> Summe
B11: ='Tipp-Formular'!B11 -> 3 | C11: ='Tipp-Formular'!C11 -> 2021-06-12 | D11: ='Tipp-Formular'!D11 -> 18:00:00 | E11: ='Tipp-Formular'!E11 -> Dänemark | F11: ='Tipp-Formular'!F11 -> Finnland | G11: =IFERROR('Tipp-Formular'!G11,0) -> 0 | H11: : | I11: =IFERROR('Tipp-Formular'!I11,0) -> 0 | J11: ='Tipp-Formular'!J11 -> 0 | K11: ='Tipp-Formular'!K11 -> 0 | L11: ='Tipp-Formular'!L11 -> 0 | T11: 1 | U11: . | V11: ='Tipp-Formular'!V11 -> Tipps fehlen | W11: ='Tipp-Formular'!W11 -> 0 | X11: ='Tipp-Formular'!X11 -> 0 | Y11: : | Z11: ='Tipp-Formular'!Z11 -> 0 | AA11: ='Tipp-Formular'!AA11 -> 0 | AB11: ='Tipp-Formular'!AB11 -> 0 | AC11: ='Tipp-Formular'!AC11 ->  | AD11: ='Tipp-Formular'!AD11 -> Reihung unter den | DA11: ='Tipp-Formular'!DA11 -> Dänemark | DB11: ='Tipp-Formular'!DB11 -> 0 | DC11: ='Tipp-Formular'!DC11 -> 0 | DD11: ='Tipp-Formular'!DD11 -> 0
B12: ='Tipp-Formular'!B12 -> 4 | C12: ='Tipp-Formular'!C12 -> 2021-06-12 | D12: ='Tipp-Formular'!D12 -> 21:00:00 | E12: ='Tipp-Formular'!E12 -> Belgien | F12: ='Tipp-Formular'!F12 -> Russland | G12: =IFERROR('Tipp-Formular'!G12,0) -> 0 | H12: : | I12: =IFERROR('Tipp-Formular'!I12,0) -> 0 | J12: ='Tipp-Formular'!J12 -> 0 | K12: ='Tipp-Formular'!K12 -> 0 | L12: ='Tipp-Formular'!L12 -> 0 | T12: 2 | U12: . | V12: ='Tipp-Formular'!V12 -> Tipps fehlen | W12: ='Tipp-Formular'!W12 -> 0 | X12: ='Tipp-Formular'!X12 -> 0 | Y12: : | Z12: ='Tipp-Formular'!Z12 -> 0 | AA12: ='Tipp-Formular'!AA12 -> 0 | AB12: ='Tipp-Formular'!AB12 -> 0 | AC12: ='Tipp-Formular'!AC12 ->  | AD12: ='Tipp-Formular'!AD12 -> Dritt- Platzierten | AI12: ='Tipp-Formular'!AI12 -> 2021-06-28 | AJ12: ='Tipp-Formular'!AJ12 -> 18:00:00 | AK12: ='Tipp-Formular'!AK12 -> 2D | AL12: ='Tipp-Formular'!AL12 ->  | AM12: ='Tipp-Formular'!AM12 -> 2E | AN12: ='Tipp-Formular'!AN12 ->  | AO12: =IFERROR('Tipp-Formular'!AO12,0) -> 0 | AP12: : | AQ12: =IFERROR('Tipp-Formular'!AQ12,0) -> 0 | AS12: ='Tipp-Formular'!AS12 -> 0 | AT12: ='Tipp-Formular'!AT12 -> 0 | AU12: ='Tipp-Formular'!AU12 -> 0 | AV12: ='Tipp-Formular'!AV12 -> 1AF5 | AW12: ='Tipp-Formular'!AW12 ->  | AX12: ='Tipp-Formular'!AX12:AX13 ->  | AY12: ='Tipp-Formular'!AY12:AY13 ->  | AZ12: ='Tipp-Formular'!AZ12 -> nein | BA12: ='Tipp-Formular'!BA12 ->  | BB12: ='Tipp-Formular'!BB12 -> 2AF5 | BC12: ='Tipp-Formular'!BC12 ->  | DA12: ='Tipp-Formular'!DA12 -> Finnland | DB12: ='Tipp-Formular'!DB12 -> 0 | DC12: ='Tipp-Formular'!DC12 -> 0 | DD12: ='Tipp-Formular'!DD12 -> 0
B13: ='Tipp-Formular'!B13 -> 15 | C13: ='Tipp-Formular'!C13 -> 2021-06-16 | D13: ='Tipp-Formular'!D13 -> 15:00:00 | E13: ='Tipp-Formular'!E13 -> Finnland | F13: ='Tipp-Formular'!F13 -> Russland | G13: =IFERROR('Tipp-Formular'!G13,0) -> 0 | H13: : | I13: =IFERROR('Tipp-Formular'!I13,0) -> 0 | J13: ='Tipp-Formular'!J13 -> 0 | K13: ='Tipp-Formular'!K13 -> 0 | L13: ='Tipp-Formular'!L13 -> 0 | T13: 3 | U13: . | V13: ='Tipp-Formular'!V13 -> Tipps fehlen | W13: ='Tipp-Formular'!W13 -> 0 | X13: ='Tipp-Formular'!X13 -> 0 | Y13: : | Z13: ='Tipp-Formular'!Z13 -> 0 | AA13: ='Tipp-Formular'!AA13 -> 0 | AB13: ='Tipp-Formular'!AB13 -> 0 | AC13: ='Tipp-Formular'!AC13 ->  | AD13: ='Tipp-Formular'!AD13 ->  | DA13: ='Tipp-Formular'!DA13 -> Belgien | DB13: ='Tipp-Formular'!DB13 -> 0 | DC13: ='Tipp-Formular'!DC13 -> 0 | DD13: ='Tipp-Formular'!DD13 -> 0
B14: ='Tipp-Formular'!B14 -> 16 | C14: ='Tipp-Formular'!C14 -> 2021-06-17 | D14: ='Tipp-Formular'!D14 -> 18:00:00 | E14: ='Tipp-Formular'!E14 -> Dänemark | F14: ='Tipp-Formular'!F14 -> Belgien | G14: =IFERROR('Tipp-Formular'!G14,0) -> 0 | H14: : | I14: =IFERROR('Tipp-Formular'!I14,0) -> 0 | J14: ='Tipp-Formular'!J14 -> 0 | K14: ='Tipp-Formular'!K14 -> 0 | L14: ='Tipp-Formular'!L14 -> 0 | T14: 4 | U14: . | V14: ='Tipp-Formular'!V14 -> Tipps fehlen | W14: ='Tipp-Formular'!W14 -> 0 | X14: ='Tipp-Formular'!X14 -> 0 | Y14: : | Z14: ='Tipp-Formular'!Z14 -> 0 | AA14: ='Tipp-Formular'!AA14 -> 0 | AB14: ='Tipp-Formular'!AB14 -> 0 | AC14: ='Tipp-Formular'!AC14 ->  | AI14: ='Tipp-Formular'!AI14 -> 2021-06-28 | AJ14: ='Tipp-Formular'!AJ14 -> 21:00:00 | AK14: ='Tipp-Formular'!AK14 -> 1F | AL14: ='Tipp-Formular'!AL14 ->  | AM14: ='Tipp-Formular'!AM14 -> 3C | AN14: ='Tipp-Formular'!AN14 ->  | AO14: =IFERROR('Tipp-Formular'!AO14,0) -> 0 | AP14: : | AQ14: =IFERROR('Tipp-Formular'!AQ14,0) -> 0 | AS14: ='Tipp-Formular'!AS14 -> 0 | AT14: ='Tipp-Formular'!AT14 -> 0 | AU14: ='Tipp-Formular'!AU14 -> 0 | AV14: ='Tipp-Formular'!AV14 -> 1AF6 | AW14: ='Tipp-Formular'!AW14 ->  | AX14: ='Tipp-Formular'!AX14:AX15 ->  | AY14: ='Tipp-Formular'!AY14:AY15 ->  | AZ14: ='Tipp-Formular'!AZ14 -> nein | BA14: ='Tipp-Formular'!BA14 ->  | BB14: ='Tipp-Formular'!BB14 -> 2AF6 | BC14: ='Tipp-Formular'!BC14 ->  | DA14: ='Tipp-Formular'!DA14 -> Russland | DB14: ='Tipp-Formular'!DB14 -> 0 | DC14: ='Tipp-Formular'!DC14 -> 0 | DD14: ='Tipp-Formular'!DD14 -> 0
B15: ='Tipp-Formular'!B15 -> 27 | C15: ='Tipp-Formular'!C15 -> 2021-06-21 | D15: ='Tipp-Formular'!D15 -> 21:00:00 | E15: ='Tipp-Formular'!E15 -> Russland | F15: ='Tipp-Formular'!F15 -> Dänemark | G15: =IFERROR('Tipp-Formular'!G15,0) -> 0 | H15: : | I15: =IFERROR('Tipp-Formular'!I15,0) -> 0 | J15: ='Tipp-Formular'!J15 -> 0 | K15: ='Tipp-Formular'!K15 -> 0 | L15: ='Tipp-Formular'!L15 -> 0 | P15: ='Tipp-Formular'!P15 -> nein | Q15: ='Tipp-Formular'!Q15 -> 0 | U15: ='Tipp-Formular'!U15 ->  | V15: ='Tipp-Formular'!V15 ->  | AE15: ='Tipp-Formular'!AE15 -> 0
B16: ='Tipp-Formular'!B16 -> 28 | C16: ='Tipp-Formular'!C16 -> 2021-06-21 | D16: ='Tipp-Formular'!D16 -> 21:00:00 | E16: ='Tipp-Formular'!E16 -> Finnland | F16: ='Tipp-Formular'!F16 -> Belgien | G16: =IFERROR('Tipp-Formular'!G16,0) -> 0 | H16: : | I16: =IFERROR('Tipp-Formular'!I16,0) -> 0 | J16: ='Tipp-Formular'!J16 -> 0 | K16: ='Tipp-Formular'!K16 -> 0 | L16: ='Tipp-Formular'!L16 -> 0 | P16: ='Tipp-Formular'!P16 -> nein | Q16: 0 | T16: ='Tipp-Formular'!T16 -> 0 | U16: ='Tipp-Formular'!U16 -> 0 | AE16: ='Tipp-Formular'!AE16 -> 0 | AI16: ='Tipp-Formular'!AI16 -> 2021-06-29 | AJ16: ='Tipp-Formular'!AJ16 -> 18:00:00 | AK16: ='Tipp-Formular'!AK16 -> 1D | AL16: ='Tipp-Formular'!AL16 ->  | AM16: ='Tipp-Formular'!AM16 -> 2F | AN16: ='Tipp-Formular'!AN16 ->  | AO16: =IFERROR('Tipp-Formular'!AO16,0) -> 0 | AP16: : | AQ16: =IFERROR('Tipp-Formular'!AQ16,0) -> 0 | AS16: ='Tipp-Formular'!AS16 -> 0 | AT16: ='Tipp-Formular'!AT16 -> 0 | AU16: ='Tipp-Formular'!AU16 -> 0 | AV16: ='Tipp-Formular'!AV16 -> 1AF7 | AW16: ='Tipp-Formular'!AW16 ->  | AX16: ='Tipp-Formular'!AX16:AX17 ->  | AY16: ='Tipp-Formular'!AY16:AY17 ->  | AZ16: ='Tipp-Formular'!AZ16 -> nein | BA16: ='Tipp-Formular'!BA16 ->  | BB16: ='Tipp-Formular'!BB16 -> 2AF7 | BC16: ='Tipp-Formular'!BC16 -> 
C18: Gruppe C | Q18: ='Tipp-Formular'!Q18:R22 ->  | T18: Gruppe C | AG18: ='Tipp-Formular'!AG18:AG22 -> . | AI18: ='Tipp-Formular'!AI18 -> 2021-06-29 | AJ18: ='Tipp-Formular'!AJ18 -> 21:00:00 | AK18: ='Tipp-Formular'!AK18 -> 1E | AL18: ='Tipp-Formular'!AL18 ->  | AM18: ='Tipp-Formular'!AM18 -> 3B | AN18: ='Tipp-Formular'!AN18 ->  | AO18: =IFERROR('Tipp-Formular'!AO18,0) -> 0 | AP18: : | AQ18: =IFERROR('Tipp-Formular'!AQ18,0) -> 0 | AS18: ='Tipp-Formular'!AS18 -> 0 | AT18: ='Tipp-Formular'!AT18 -> 0 | AU18: ='Tipp-Formular'!AU18 -> 0 | AV18: ='Tipp-Formular'!AV18 -> 1AF8 | AW18: ='Tipp-Formular'!AW18 ->  | AX18: ='Tipp-Formular'!AX18:AX19 ->  | AY18: ='Tipp-Formular'!AY18:AY19 ->  | AZ18: ='Tipp-Formular'!AZ18 -> nein | BA18: ='Tipp-Formular'!BA18 ->  | BB18: ='Tipp-Formular'!BB18 -> 2AF8 | BC18: ='Tipp-Formular'!BC18 ->  | DA18: ='Tipp-Formular'!DA18 -> Gruppe C | DB18: ='Tipp-Formular'!DB18 -> Gelb =1 Punkt | DC18: ='Tipp-Formular'!DC18 -> Rot =3 Punkte | DD18: ='Tipp-Formular'!DD18 -> Summe
B19: ='Tipp-Formular'!B19 -> 5 | C19: ='Tipp-Formular'!C19 -> 2021-06-13 | D19: ='Tipp-Formular'!D19 -> 18:00:00 | E19: ='Tipp-Formular'!E19 -> Österreich | F19: ='Tipp-Formular'!F19 -> Nordmazedonien | G19: =IFERROR('Tipp-Formular'!G19,0) -> 0 | H19: : | I19: =IFERROR('Tipp-Formular'!I19,0) -> 0 | J19: ='Tipp-Formular'!J19 -> 0 | K19: ='Tipp-Formular'!K19 -> 0 | L19: ='Tipp-Formular'!L19 -> 0 | T19: 1 | U19: . | V19: ='Tipp-Formular'!V19 -> Tipps fehlen | W19: ='Tipp-Formular'!W19 -> 0 | X19: ='Tipp-Formular'!X19 -> 0 | Y19: : | Z19: ='Tipp-Formular'!Z19 -> 0 | AA19: ='Tipp-Formular'!AA19 -> 0 | AB19: ='Tipp-Formular'!AB19 -> 0 | AC19: ='Tipp-Formular'!AC19 ->  | AD19: ='Tipp-Formular'!AD19 -> Reihung unter den | DA19: ='Tipp-Formular'!DA19 -> Niederlande | DB19: ='Tipp-Formular'!DB19 -> 0 | DC19: ='Tipp-Formular'!DC19 -> 0 | DD19: ='Tipp-Formular'!DD19 -> 0
B20: ='Tipp-Formular'!B20 -> 6 | C20: ='Tipp-Formular'!C20 -> 2021-06-13 | D20: ='Tipp-Formular'!D20 -> 21:00:00 | E20: ='Tipp-Formular'!E20 -> Niederlande | F20: ='Tipp-Formular'!F20 -> Ukraine | G20: =IFERROR('Tipp-Formular'!G20,0) -> 0 | H20: : | I20: =IFERROR('Tipp-Formular'!I20,0) -> 0 | J20: ='Tipp-Formular'!J20 -> 0 | K20: ='Tipp-Formular'!K20 -> 0 | L20: ='Tipp-Formular'!L20 -> 0 | T20: 2 | U20: . | V20: ='Tipp-Formular'!V20 -> Tipps fehlen | W20: ='Tipp-Formular'!W20 -> 0 | X20: ='Tipp-Formular'!X20 -> 0 | Y20: : | Z20: ='Tipp-Formular'!Z20 -> 0 | AA20: ='Tipp-Formular'!AA20 -> 0 | AB20: ='Tipp-Formular'!AB20 -> 0 | AC20: ='Tipp-Formular'!AC20 ->  | AD20: ='Tipp-Formular'!AD20 -> Dritt- Platzierten | AN20: ='Gruppen-Tabellen'!E102 -> BCDE | DA20: ='Tipp-Formular'!DA20 -> Ukraine | DB20: ='Tipp-Formular'!DB20 -> 0 | DC20: ='Tipp-Formular'!DC20 -> 0 | DD20: ='Tipp-Formular'!DD20 -> 0
B21: ='Tipp-Formular'!B21 -> 17 | C21: ='Tipp-Formular'!C21 -> 2021-06-17 | D21: ='Tipp-Formular'!D21 -> 15:00:00 | E21: ='Tipp-Formular'!E21 -> Ukraine | F21: ='Tipp-Formular'!F21 -> Nordmazedonien | G21: =IFERROR('Tipp-Formular'!G21,0) -> 0 | H21: : | I21: =IFERROR('Tipp-Formular'!I21,0) -> 0 | J21: ='Tipp-Formular'!J21 -> 0 | K21: ='Tipp-Formular'!K21 -> 0 | L21: ='Tipp-Formular'!L21 -> 0 | T21: 3 | U21: . | V21: ='Tipp-Formular'!V21 -> Tipps fehlen | W21: ='Tipp-Formular'!W21 -> 0 | X21: ='Tipp-Formular'!X21 -> 0 | Y21: : | Z21: ='Tipp-Formular'!Z21 -> 0 | AA21: ='Tipp-Formular'!AA21 -> 0 | AB21: ='Tipp-Formular'!AB21 -> 0 | AC21: ='Tipp-Formular'!AC21 ->  | AD21: ='Tipp-Formular'!AD21 ->  | DA21: ='Tipp-Formular'!DA21 -> Österreich | DB21: ='Tipp-Formular'!DB21 -> 0 | DC21: ='Tipp-Formular'!DC21 -> 0 | DD21: ='Tipp-Formular'!DD21 -> 0
B22: ='Tipp-Formular'!B22 -> 18 | C22: ='Tipp-Formular'!C22 -> 2021-06-17 | D22: ='Tipp-Formular'!D22 -> 21:00:00 | E22: ='Tipp-Formular'!E22 -> Niederlande | F22: ='Tipp-Formular'!F22 -> Österreich | G22: =IFERROR('Tipp-Formular'!G22,0) -> 0 | H22: : | I22: =IFERROR('Tipp-Formular'!I22,0) -> 0 | J22: ='Tipp-Formular'!J22 -> 0 | K22: ='Tipp-Formular'!K22 -> 0 | L22: ='Tipp-Formular'!L22 -> 0 | T22: 4 | U22: . | V22: ='Tipp-Formular'!V22 -> Tipps fehlen | W22: ='Tipp-Formular'!W22 -> 0 | X22: ='Tipp-Formular'!X22 -> 0 | Y22: : | Z22: ='Tipp-Formular'!Z22 -> 0 | AA22: ='Tipp-Formular'!AA22 -> 0 | AB22: ='Tipp-Formular'!AB22 -> 0 | AC22: ='Tipp-Formular'!AC22 ->  | AI22: Viertel-Finale | DA22: ='Tipp-Formular'!DA22 -> Nordmazedonien | DB22: ='Tipp-Formular'!DB22 -> 0 | DC22: ='Tipp-Formular'!DC22 -> 0 | DD22: ='Tipp-Formular'!DD22 -> 0
B23: ='Tipp-Formular'!B23 -> 29 | C23: ='Tipp-Formular'!C23 -> 2021-06-21 | D23: ='Tipp-Formular'!D23 -> 18:00:00 | E23: ='Tipp-Formular'!E23 -> Ukraine | F23: ='Tipp-Formular'!F23 -> Österreich | G23: =IFERROR('Tipp-Formular'!G23,0) -> 0 | H23: : | I23: =IFERROR('Tipp-Formular'!I23,0) -> 0 | J23: ='Tipp-Formular'!J23 -> 0 | K23: ='Tipp-Formular'!K23 -> 0 | L23: ='Tipp-Formular'!L23 -> 0 | P23: ='Tipp-Formular'!P23 -> nein | Q23: ='Tipp-Formular'!Q23 -> 0 | U23: ='Tipp-Formular'!U23 ->  | V23: ='Tipp-Formular'!V23 ->  | AE23: ='Tipp-Formular'!AE23 -> 0
B24: ='Tipp-Formular'!B24 -> 30 | C24: ='Tipp-Formular'!C24 -> 2021-06-21 | D24: ='Tipp-Formular'!D24 -> 18:00:00 | E24: ='Tipp-Formular'!E24 -> Nordmazedonien | F24: ='Tipp-Formular'!F24 -> Niederlande | G24: =IFERROR('Tipp-Formular'!G24,0) -> 0 | H24: : | I24: =IFERROR('Tipp-Formular'!I24,0) -> 0 | J24: ='Tipp-Formular'!J24 -> 0 | K24: ='Tipp-Formular'!K24 -> 0 | L24: ='Tipp-Formular'!L24 -> 0 | P24: ='Tipp-Formular'!P24 -> nein | Q24: 0 | T24: ='Tipp-Formular'!T24 -> 0 | U24: ='Tipp-Formular'!U24 -> 0 | AE24: ='Tipp-Formular'!AE24 -> 0
AI25: ='Tipp-Formular'!AI25:AI26 -> 2021-07-02 | AJ25: ='Tipp-Formular'!AJ25:AJ26 -> 18:00:00 | AK25: ='Tipp-Formular'!AK25:AK26 -> 1AF6 | AL25: ='Tipp-Formular'!AL25:AL26 ->  | AM25: ='Tipp-Formular'!AM25:AM26 -> 1AF5 | AN25: ='Tipp-Formular'!AN25:AN26 ->  | AO25: =IFERROR('Tipp-Formular'!AO25,0) -> 0 | AP25: : | AQ25: =IFERROR('Tipp-Formular'!AQ25,0) -> 0 | AS25: ='Tipp-Formular'!AS25:AS26 -> 0 | AT25: ='Tipp-Formular'!AT25:AT26 -> 0 | AU25: ='Tipp-Formular'!AU25:AU26 -> 0 | AV25: ='Tipp-Formular'!AV25:AV26 -> 1VF1 | AW25: ='Tipp-Formular'!AW25:AW26 ->  | AX25: ='Tipp-Formular'!AX25:AX26 ->  | AY25: ='Tipp-Formular'!AY25:AY26 ->  | AZ25: ='Tipp-Formular'!AZ25:AZ26 -> nein | BA25: ='Tipp-Formular'!BA25:BA26 ->  | BB25: ='Tipp-Formular'!BB25:BB26 -> 2VF1 | BC25: ='Tipp-Formular'!BC25:BC26 -> 
C26: Gruppe D | Q26: ='Tipp-Formular'!Q26:R30 ->  | T26: Gruppe D | AG26: ='Tipp-Formular'!AG26:AG30 -> . | DA26: ='Tipp-Formular'!DA26 -> Gruppe D | DB26: ='Tipp-Formular'!DB26 -> Gelb =1 Punkt | DC26: ='Tipp-Formular'!DC26 -> Rot =3 Punkte | DD26: ='Tipp-Formular'!DD26 -> Summe
B27: ='Tipp-Formular'!B27 -> 7 | C27: ='Tipp-Formular'!C27 -> 2021-06-13 | D27: ='Tipp-Formular'!D27 -> 15:00:00 | E27: ='Tipp-Formular'!E27 -> England | F27: ='Tipp-Formular'!F27 -> Kroatien | G27: =IFERROR('Tipp-Formular'!G27,0) -> 0 | H27: : | I27: =IFERROR('Tipp-Formular'!I27,0) -> 0 | J27: ='Tipp-Formular'!J27 -> 0 | K27: ='Tipp-Formular'!K27 -> 0 | L27: ='Tipp-Formular'!L27 -> 0 | T27: 1 | U27: . | V27: ='Tipp-Formular'!V27 -> Tipps fehlen | W27: ='Tipp-Formular'!W27 -> 0 | X27: ='Tipp-Formular'!X27 -> 0 | Y27: : | Z27: ='Tipp-Formular'!Z27 -> 0 | AA27: ='Tipp-Formular'!AA27 -> 0 | AB27: ='Tipp-Formular'!AB27 -> 0 | AC27: ='Tipp-Formular'!AC27 ->  | AD27: ='Tipp-Formular'!AD27 -> Reihung unter den | AI27: ='Tipp-Formular'!AI27:AI28 -> 2021-07-02 | AJ27: ='Tipp-Formular'!AJ27:AJ28 -> 21:00:00 | AK27: ='Tipp-Formular'!AK27:AK28 -> 1AF4 | AL27: ='Tipp-Formular'!AL27:AL28 ->  | AM27: ='Tipp-Formular'!AM27:AM28 -> 1AF2 | AN27: ='Tipp-Formular'!AN27:AN28 ->  | AO27: =IFERROR('Tipp-Formular'!AO27,0) -> 0 | AP27: : | AQ27: =IFERROR('Tipp-Formular'!AQ27,0) -> 0 | AS27: ='Tipp-Formular'!AS27:AS28 -> 0 | AT27: ='Tipp-Formular'!AT27:AT28 -> 0 | AU27: ='Tipp-Formular'!AU27:AU28 -> 0 | AV27: ='Tipp-Formular'!AV27:AV28 -> 1VF2 | AW27: ='Tipp-Formular'!AW27:AW28 ->  | AX27: ='Tipp-Formular'!AX27:AX28 ->  | AY27: ='Tipp-Formular'!AY27:AY28 ->  | AZ27: ='Tipp-Formular'!AZ27:AZ28 -> nein | BA27: ='Tipp-Formular'!BA27:BA28 ->  | BB27: ='Tipp-Formular'!BB27:BB28 -> 2VF2 | BC27: ='Tipp-Formular'!BC27:BC28 ->  | DA27: ='Tipp-Formular'!DA27 -> England | DB27: ='Tipp-Formular'!DB27 -> 0 | DC27: ='Tipp-Formular'!DC27 -> 0 | DD27: ='Tipp-Formular'!DD27 -> 0
B28: ='Tipp-Formular'!B28 -> 8 | C28: ='Tipp-Formular'!C28 -> 2021-06-14 | D28: ='Tipp-Formular'!D28 -> 15:00:00 | E28: ='Tipp-Formular'!E28 -> Schottland | F28: ='Tipp-Formular'!F28 -> Tschechien | G28: =IFERROR('Tipp-Formular'!G28,0) -> 0 | H28: : | I28: =IFERROR('Tipp-Formular'!I28,0) -> 0 | J28: ='Tipp-Formular'!J28 -> 0 | K28: ='Tipp-Formular'!K28 -> 0 | L28: ='Tipp-Formular'!L28 -> 0 | T28: 2 | U28: . | V28: ='Tipp-Formular'!V28 -> Tipps fehlen | W28: ='Tipp-Formular'!W28 -> 0 | X28: ='Tipp-Formular'!X28 -> 0 | Y28: : | Z28: ='Tipp-Formular'!Z28 -> 0 | AA28: ='Tipp-Formular'!AA28 -> 0 | AB28: ='Tipp-Formular'!AB28 -> 0 | AC28: ='Tipp-Formular'!AC28 ->  | AD28: ='Tipp-Formular'!AD28 -> Dritt- Platzierten | DA28: ='Tipp-Formular'!DA28 -> Kroatien | DB28: ='Tipp-Formular'!DB28 -> 0 | DC28: ='Tipp-Formular'!DC28 -> 0 | DD28: ='Tipp-Formular'!DD28 -> 0
B29: ='Tipp-Formular'!B29 -> 19 | C29: ='Tipp-Formular'!C29 -> 2021-06-18 | D29: ='Tipp-Formular'!D29 -> 18:00:00 | E29: ='Tipp-Formular'!E29 -> Kroatien | F29: ='Tipp-Formular'!F29 -> Tschechien | G29: =IFERROR('Tipp-Formular'!G29,0) -> 0 | H29: : | I29: =IFERROR('Tipp-Formular'!I29,0) -> 0 | J29: ='Tipp-Formular'!J29 -> 0 | K29: ='Tipp-Formular'!K29 -> 0 | L29: ='Tipp-Formular'!L29 -> 0 | T29: 3 | U29: . | V29: ='Tipp-Formular'!V29 -> Tipps fehlen | W29: ='Tipp-Formular'!W29 -> 0 | X29: ='Tipp-Formular'!X29 -> 0 | Y29: : | Z29: ='Tipp-Formular'!Z29 -> 0 | AA29: ='Tipp-Formular'!AA29 -> 0 | AB29: ='Tipp-Formular'!AB29 -> 0 | AC29: ='Tipp-Formular'!AC29 ->  | AD29: ='Tipp-Formular'!AD29 ->  | AI29: ='Tipp-Formular'!AI29:AI30 -> 2021-07-03 | AJ29: ='Tipp-Formular'!AJ29:AJ30 -> 18:00:00 | AK29: ='Tipp-Formular'!AK29:AK30 -> 1AF3 | AL29: ='Tipp-Formular'!AL29:AL30 ->  | AM29: ='Tipp-Formular'!AM29:AM30 -> 1AF1 | AN29: ='Tipp-Formular'!AN29:AN30 ->  | AO29: =IFERROR('Tipp-Formular'!AO29,0) -> 0 | AP29: : | AQ29: =IFERROR('Tipp-Formular'!AQ29,0) -> 0 | AS29: ='Tipp-Formular'!AS29:AS30 -> 0 | AT29: ='Tipp-Formular'!AT29:AT30 -> 0 | AU29: ='Tipp-Formular'!AU29:AU30 -> 0 | AV29: ='Tipp-Formular'!AV29:AV30 -> 1VF3 | AW29: ='Tipp-Formular'!AW29:AW30 ->  | AX29: ='Tipp-Formular'!AX29:AX30 ->  | AY29: ='Tipp-Formular'!AY29:AY30 ->  | AZ29: ='Tipp-Formular'!AZ29:AZ30 -> nein | BA29: ='Tipp-Formular'!BA29:BA30 ->  | BB29: ='Tipp-Formular'!BB29:BB30 -> 2VF3 | BC29: ='Tipp-Formular'!BC29:BC30 ->  | DA29: ='Tipp-Formular'!DA29 -> Schottland | DB29: ='Tipp-Formular'!DB29 -> 0 | DC29: ='Tipp-Formular'!DC29 -> 0 | DD29: ='Tipp-Formular'!DD29 -> 0
B30: ='Tipp-Formular'!B30 -> 20 | C30: ='Tipp-Formular'!C30 -> 2021-06-18 | D30: ='Tipp-Formular'!D30 -> 21:00:00 | E30: ='Tipp-Formular'!E30 -> England | F30: ='Tipp-Formular'!F30 -> Schottland | G30: =IFERROR('Tipp-Formular'!G30,0) -> 0 | H30: : | I30: =IFERROR('Tipp-Formular'!I30,0) -> 0 | J30: ='Tipp-Formular'!J30 -> 0 | K30: ='Tipp-Formular'!K30 -> 0 | L30: ='Tipp-Formular'!L30 -> 0 | T30: 4 | U30: . | V30: ='Tipp-Formular'!V30 -> Tipps fehlen | W30: ='Tipp-Formular'!W30 -> 0 | X30: ='Tipp-Formular'!X30 -> 0 | Y30: : | Z30: ='Tipp-Formular'!Z30 -> 0 | AA30: ='Tipp-Formular'!AA30 -> 0 | AB30: ='Tipp-Formular'!AB30 -> 0 | AC30: ='Tipp-Formular'!AC30 ->  | DA30: ='Tipp-Formular'!DA30 -> Tschechien | DB30: ='Tipp-Formular'!DB30 -> 0 | DC30: ='Tipp-Formular'!DC30 -> 0 | DD30: ='Tipp-Formular'!DD30 -> 0
B31: ='Tipp-Formular'!B31 -> 31 | C31: ='Tipp-Formular'!C31 -> 2021-06-22 | D31: ='Tipp-Formular'!D31 -> 21:00:00 | E31: ='Tipp-Formular'!E31 -> Kroatien | F31: ='Tipp-Formular'!F31 -> Schottland | G31: =IFERROR('Tipp-Formular'!G31,0) -> 0 | H31: : | I31: =IFERROR('Tipp-Formular'!I31,0) -> 0 | J31: ='Tipp-Formular'!J31 -> 0 | K31: ='Tipp-Formular'!K31 -> 0 | L31: ='Tipp-Formular'!L31 -> 0 | P31: ='Tipp-Formular'!P31 -> nein | Q31: ='Tipp-Formular'!Q31 -> 0 | U31: ='Tipp-Formular'!U31 ->  | V31: ='Tipp-Formular'!V31 ->  | AE31: ='Tipp-Formular'!AE31 -> 0 | AI31: ='Tipp-Formular'!AI31:AI32 -> 2021-07-03 | AJ31: ='Tipp-Formular'!AJ31:AJ32 -> 21:00:00 | AK31: ='Tipp-Formular'!AK31:AK32 -> 1AF8 | AL31: ='Tipp-Formular'!AL31:AL32 ->  | AM31: ='Tipp-Formular'!AM31:AM32 -> 1AF7 | AN31: ='Tipp-Formular'!AN31:AN32 ->  | AO31: =IFERROR('Tipp-Formular'!AO31,0) -> 0 | AP31: : | AQ31: =IFERROR('Tipp-Formular'!AQ31,0) -> 0 | AS31: ='Tipp-Formular'!AS31:AS32 -> 0 | AT31: ='Tipp-Formular'!AT31:AT32 -> 0 | AU31: ='Tipp-Formular'!AU31:AU32 -> 0 | AV31: ='Tipp-Formular'!AV31:AV32 -> 1VF4 | AW31: ='Tipp-Formular'!AW31:AW32 ->  | AX31: ='Tipp-Formular'!AX31:AX32 ->  | AY31: ='Tipp-Formular'!AY31:AY32 ->  | AZ31: ='Tipp-Formular'!AZ31:AZ32 -> nein | BA31: ='Tipp-Formular'!BA31:BA32 ->  | BB31: ='Tipp-Formular'!BB31:BB32 -> 2VF4 | BC31: ='Tipp-Formular'!BC31:BC32 -> 
B32: ='Tipp-Formular'!B32 -> 32 | C32: ='Tipp-Formular'!C32 -> 2021-06-22 | D32: ='Tipp-Formular'!D32 -> 21:00:00 | E32: ='Tipp-Formular'!E32 -> Tschechien | F32: ='Tipp-Formular'!F32 -> England | G32: =IFERROR('Tipp-Formular'!G32,0) -> 0 | H32: : | I32: =IFERROR('Tipp-Formular'!I32,0) -> 0 | J32: ='Tipp-Formular'!J32 -> 0 | K32: ='Tipp-Formular'!K32 -> 0 | L32: ='Tipp-Formular'!L32 -> 0 | P32: ='Tipp-Formular'!P32 -> nein | Q32: 0 | T32: ='Tipp-Formular'!T32 -> 0 | U32: ='Tipp-Formular'!U32 -> 0 | AE32: ='Tipp-Formular'!AE32 -> 0
C34: Gruppe E | Q34: ='Tipp-Formular'!Q34:R38 ->  | T34: Gruppe E | AG34: ='Tipp-Formular'!AG34:AG38 -> . | DA34: ='Tipp-Formular'!DA34 -> Gruppe E | DB34: ='Tipp-Formular'!DB34 -> Gelb =1 Punkt | DC34: ='Tipp-Formular'!DC34 -> Rot =3 Punkte | DD34: ='Tipp-Formular'!DD34 -> Summe
B35: ='Tipp-Formular'!B35 -> 9 | C35: ='Tipp-Formular'!C35 -> 2021-06-14 | D35: ='Tipp-Formular'!D35 -> 18:00:00 | E35: ='Tipp-Formular'!E35 -> Polen | F35: ='Tipp-Formular'!F35 -> Slowakei | G35: =IFERROR('Tipp-Formular'!G35,0) -> 0 | H35: : | I35: =IFERROR('Tipp-Formular'!I35,0) -> 0 | J35: ='Tipp-Formular'!J35 -> 0 | K35: ='Tipp-Formular'!K35 -> 0 | L35: ='Tipp-Formular'!L35 -> 0 | T35: 1 | U35: . | V35: ='Tipp-Formular'!V35 -> Tipps fehlen | W35: ='Tipp-Formular'!W35 -> 0 | X35: ='Tipp-Formular'!X35 -> 0 | Y35: : | Z35: ='Tipp-Formular'!Z35 -> 0 | AA35: ='Tipp-Formular'!AA35 -> 0 | AB35: ='Tipp-Formular'!AB35 -> 0 | AC35: ='Tipp-Formular'!AC35 ->  | AD35: ='Tipp-Formular'!AD35 -> Reihung unter den | AI35: Halb-Finale | DA35: ='Tipp-Formular'!DA35 -> Spanien | DB35: ='Tipp-Formular'!DB35 -> 0 | DC35: ='Tipp-Formular'!DC35 -> 0 | DD35: ='Tipp-Formular'!DD35 -> 0
B36: ='Tipp-Formular'!B36 -> 10 | C36: ='Tipp-Formular'!C36 -> 2021-06-14 | D36: ='Tipp-Formular'!D36 -> 21:00:00 | E36: ='Tipp-Formular'!E36 -> Spanien | F36: ='Tipp-Formular'!F36 -> Schweden | G36: =IFERROR('Tipp-Formular'!G36,0) -> 0 | H36: : | I36: =IFERROR('Tipp-Formular'!I36,0) -> 0 | J36: ='Tipp-Formular'!J36 -> 0 | K36: ='Tipp-Formular'!K36 -> 0 | L36: ='Tipp-Formular'!L36 -> 0 | T36: 2 | U36: . | V36: ='Tipp-Formular'!V36 -> Tipps fehlen | W36: ='Tipp-Formular'!W36 -> 0 | X36: ='Tipp-Formular'!X36 -> 0 | Y36: : | Z36: ='Tipp-Formular'!Z36 -> 0 | AA36: ='Tipp-Formular'!AA36 -> 0 | AB36: ='Tipp-Formular'!AB36 -> 0 | AC36: ='Tipp-Formular'!AC36 ->  | AD36: ='Tipp-Formular'!AD36 -> Dritt- Platzierten | DA36: ='Tipp-Formular'!DA36 -> Schweden | DB36: ='Tipp-Formular'!DB36 -> 0 | DC36: ='Tipp-Formular'!DC36 -> 0 | DD36: ='Tipp-Formular'!DD36 -> 0
B37: ='Tipp-Formular'!B37 -> 21 | C37: ='Tipp-Formular'!C37 -> 2021-06-18 | D37: ='Tipp-Formular'!D37 -> 15:00:00 | E37: ='Tipp-Formular'!E37 -> Schweden | F37: ='Tipp-Formular'!F37 -> Slowakei | G37: =IFERROR('Tipp-Formular'!G37,0) -> 0 | H37: : | I37: =IFERROR('Tipp-Formular'!I37,0) -> 0 | J37: ='Tipp-Formular'!J37 -> 0 | K37: ='Tipp-Formular'!K37 -> 0 | L37: ='Tipp-Formular'!L37 -> 0 | T37: 3 | U37: . | V37: ='Tipp-Formular'!V37 -> Tipps fehlen | W37: ='Tipp-Formular'!W37 -> 0 | X37: ='Tipp-Formular'!X37 -> 0 | Y37: : | Z37: ='Tipp-Formular'!Z37 -> 0 | AA37: ='Tipp-Formular'!AA37 -> 0 | AB37: ='Tipp-Formular'!AB37 -> 0 | AC37: ='Tipp-Formular'!AC37 ->  | AD37: ='Tipp-Formular'!AD37 ->  | DA37: ='Tipp-Formular'!DA37 -> Polen | DB37: ='Tipp-Formular'!DB37 -> 0 | DC37: ='Tipp-Formular'!DC37 -> 0 | DD37: ='Tipp-Formular'!DD37 -> 0
B38: ='Tipp-Formular'!B38 -> 22 | C38: ='Tipp-Formular'!C38 -> 2021-06-19 | D38: ='Tipp-Formular'!D38 -> 21:00:00 | E38: ='Tipp-Formular'!E38 -> Spanien | F38: ='Tipp-Formular'!F38 -> Polen | G38: =IFERROR('Tipp-Formular'!G38,0) -> 0 | H38: : | I38: =IFERROR('Tipp-Formular'!I38,0) -> 0 | J38: ='Tipp-Formular'!J38 -> 0 | K38: ='Tipp-Formular'!K38 -> 0 | L38: ='Tipp-Formular'!L38 -> 0 | T38: 4 | U38: . | V38: ='Tipp-Formular'!V38 -> Tipps fehlen | W38: ='Tipp-Formular'!W38 -> 0 | X38: ='Tipp-Formular'!X38 -> 0 | Y38: : | Z38: ='Tipp-Formular'!Z38 -> 0 | AA38: ='Tipp-Formular'!AA38 -> 0 | AB38: ='Tipp-Formular'!AB38 -> 0 | AC38: ='Tipp-Formular'!AC38 ->  | AI38: ='Tipp-Formular'!AI38:AI39 -> 2021-07-06 | AJ38: ='Tipp-Formular'!AJ38:AJ39 -> 21:00:00 | AK38: ='Tipp-Formular'!AK38:AK39 -> 1VF2 | AL38: ='Tipp-Formular'!AL38:AL39 ->  | AM38: ='Tipp-Formular'!AM38:AM39 -> 1VF1 | AN38: ='Tipp-Formular'!AN38:AN39 ->  | AO38: =IFERROR('Tipp-Formular'!AO38,0) -> 0 | AP38: : | AQ38: =IFERROR('Tipp-Formular'!AQ38,0) -> 0 | AS38: ='Tipp-Formular'!AS38:AS39 -> 0 | AT38: ='Tipp-Formular'!AT38:AT39 -> 0 | AU38: ='Tipp-Formular'!AU38:AU39 -> 0 | AV38: ='Tipp-Formular'!AV38:AV39 -> 1HF1 | AW38: ='Tipp-Formular'!AW38:AW39 ->  | AX38: ='Tipp-Formular'!AX38:AX39 ->  | AY38: ='Tipp-Formular'!AY38:AY39 ->  | AZ38: ='Tipp-Formular'!AZ38:AZ39 -> nein | BA38: ='Tipp-Formular'!BA38:BA39 ->  | BB38: ='Tipp-Formular'!BB38:BB39 -> 2HF1 | BC38: ='Tipp-Formular'!BC38:BC39 ->  | DA38: ='Tipp-Formular'!DA38 -> Slowakei | DB38: ='Tipp-Formular'!DB38 -> 0 | DC38: ='Tipp-Formular'!DC38 -> 0 | DD38: ='Tipp-Formular'!DD38 -> 0
B39: ='Tipp-Formular'!B39 -> 33 | C39: ='Tipp-Formular'!C39 -> 2021-06-23 | D39: ='Tipp-Formular'!D39 -> 18;00 | E39: ='Tipp-Formular'!E39 -> Slowakei | F39: ='Tipp-Formular'!F39 -> Spanien | G39: =IFERROR('Tipp-Formular'!G39,0) -> 0 | H39: : | I39: =IFERROR('Tipp-Formular'!I39,0) -> 0 | J39: ='Tipp-Formular'!J39 -> 0 | K39: ='Tipp-Formular'!K39 -> 0 | L39: ='Tipp-Formular'!L39 -> 0 | P39: ='Tipp-Formular'!P39 -> nein | Q39: ='Tipp-Formular'!Q39 -> 0 | U39: ='Tipp-Formular'!U39 ->  | V39: ='Tipp-Formular'!V39 ->  | AE39: ='Tipp-Formular'!AE39 -> 0
B40: ='Tipp-Formular'!B40 -> 34 | C40: ='Tipp-Formular'!C40 -> 2021-06-23 | D40: ='Tipp-Formular'!D40 -> 18:00:00 | E40: ='Tipp-Formular'!E40 -> Schweden | F40: ='Tipp-Formular'!F40 -> Polen | G40: =IFERROR('Tipp-Formular'!G40,0) -> 0 | H40: : | I40: =IFERROR('Tipp-Formular'!I40,0) -> 0 | J40: ='Tipp-Formular'!J40 -> 0 | K40: ='Tipp-Formular'!K40 -> 0 | L40: ='Tipp-Formular'!L40 -> 0 | P40: ='Tipp-Formular'!P40 -> nein | Q40: 0 | T40: ='Tipp-Formular'!T40 -> 0 | U40: ='Tipp-Formular'!U40 -> 0 | AE40: ='Tipp-Formular'!AE40 -> 0 | AI40: ='Tipp-Formular'!AI40:AI41 -> 2021-07-07 | AJ40: ='Tipp-Formular'!AJ40:AJ41 -> 21:00:00 | AK40: ='Tipp-Formular'!AK40:AK41 -> 1VF4 | AL40: ='Tipp-Formular'!AL40:AL41 ->  | AM40: ='Tipp-Formular'!AM40:AM41 -> 1VF3 | AN40: ='Tipp-Formular'!AN40:AN41 ->  | AO40: =IFERROR('Tipp-Formular'!AO40,0) -> 0 | AP40: : | AQ40: =IFERROR('Tipp-Formular'!AQ40,0) -> 0 | AS40: ='Tipp-Formular'!AS40:AS41 -> 0 | AT40: ='Tipp-Formular'!AT40:AT41 -> 0 | AU40: ='Tipp-Formular'!AU40:AU41 -> 0 | AV40: ='Tipp-Formular'!AV40:AV41 -> 1HF2 | AW40: ='Tipp-Formular'!AW40:AW41 ->  | AX40: ='Tipp-Formular'!AX40:AX41 ->  | AY40: ='Tipp-Formular'!AY40:AY41 ->  | AZ40: ='Tipp-Formular'!AZ40:AZ41 -> nein | BA40: ='Tipp-Formular'!BA40:BA41 ->  | BB40: ='Tipp-Formular'!BB40:BB41 -> 2HF2 | BC40: ='Tipp-Formular'!BC40:BC41 -> 
C42: Gruppe F | Q42: ='Tipp-Formular'!Q42:R46 ->  | T42: Gruppe F | AG42: ='Tipp-Formular'!AG42:AG46 -> . | DA42: ='Tipp-Formular'!DA42 -> Gruppe F | DB42: ='Tipp-Formular'!DB42 -> Gelb =1 Punkt | DC42: ='Tipp-Formular'!DC42 -> Rot =3 Punkte | DD42: ='Tipp-Formular'!DD42 -> Summe
B43: ='Tipp-Formular'!B43 -> 11 | C43: ='Tipp-Formular'!C43 -> 2021-06-15 | D43: ='Tipp-Formular'!D43 -> 18:00:00 | E43: ='Tipp-Formular'!E43 -> Ungarn | F43: ='Tipp-Formular'!F43 -> Portugal | G43: =IFERROR('Tipp-Formular'!G43,0) -> 0 | H43: : | I43: =IFERROR('Tipp-Formular'!I43,0) -> 0 | J43: ='Tipp-Formular'!J43 -> 0 | K43: ='Tipp-Formular'!K43 -> 0 | L43: ='Tipp-Formular'!L43 -> 0 | T43: 1 | U43: . | V43: ='Tipp-Formular'!V43 -> Tipps fehlen | W43: ='Tipp-Formular'!W43 -> 0 | X43: ='Tipp-Formular'!X43 -> 0 | Y43: : | Z43: ='Tipp-Formular'!Z43 -> 0 | AA43: ='Tipp-Formular'!AA43 -> 0 | AB43: ='Tipp-Formular'!AB43 -> 0 | AC43: ='Tipp-Formular'!AC43 ->  | AD43: ='Tipp-Formular'!AD43 -> Reihung unter den | DA43: ='Tipp-Formular'!DA43 -> Ungarn | DB43: ='Tipp-Formular'!DB43 -> 0 | DC43: ='Tipp-Formular'!DC43 -> 0 | DD43: ='Tipp-Formular'!DD43 -> 0
B44: ='Tipp-Formular'!B44 -> 12 | C44: ='Tipp-Formular'!C44 -> 2021-06-15 | D44: ='Tipp-Formular'!D44 -> 21:00:00 | E44: ='Tipp-Formular'!E44 -> Frankreich | F44: ='Tipp-Formular'!F44 -> Deutschland | G44: =IFERROR('Tipp-Formular'!G44,0) -> 0 | H44: : | I44: =IFERROR('Tipp-Formular'!I44,0) -> 0 | J44: ='Tipp-Formular'!J44 -> 0 | K44: ='Tipp-Formular'!K44 -> 0 | L44: ='Tipp-Formular'!L44 -> 0 | T44: 2 | U44: . | V44: ='Tipp-Formular'!V44 -> Tipps fehlen | W44: ='Tipp-Formular'!W44 -> 0 | X44: ='Tipp-Formular'!X44 -> 0 | Y44: : | Z44: ='Tipp-Formular'!Z44 -> 0 | AA44: ='Tipp-Formular'!AA44 -> 0 | AB44: ='Tipp-Formular'!AB44 -> 0 | AC44: ='Tipp-Formular'!AC44 ->  | AD44: ='Tipp-Formular'!AD44 -> Dritt- Platzierten | AI44: Finale | DA44: ='Tipp-Formular'!DA44 -> Portugal | DB44: ='Tipp-Formular'!DB44 -> 0 | DC44: ='Tipp-Formular'!DC44 -> 0 | DD44: ='Tipp-Formular'!DD44 -> 0
B45: ='Tipp-Formular'!B45 -> 23 | C45: ='Tipp-Formular'!C45 -> 2021-06-19 | D45: ='Tipp-Formular'!D45 -> 15:00:00 | E45: ='Tipp-Formular'!E45 -> Ungarn | F45: ='Tipp-Formular'!F45 -> Frankreich | G45: =IFERROR('Tipp-Formular'!G45,0) -> 0 | H45: : | I45: =IFERROR('Tipp-Formular'!I45,0) -> 0 | J45: ='Tipp-Formular'!J45 -> 0 | K45: ='Tipp-Formular'!K45 -> 0 | L45: ='Tipp-Formular'!L45 -> 0 | T45: 3 | U45: . | V45: ='Tipp-Formular'!V45 -> Tipps fehlen | W45: ='Tipp-Formular'!W45 -> 0 | X45: ='Tipp-Formular'!X45 -> 0 | Y45: : | Z45: ='Tipp-Formular'!Z45 -> 0 | AA45: ='Tipp-Formular'!AA45 -> 0 | AB45: ='Tipp-Formular'!AB45 -> 0 | AC45: ='Tipp-Formular'!AC45 ->  | AD45: ='Tipp-Formular'!AD45 ->  | DA45: ='Tipp-Formular'!DA45 -> Frankreich | DB45: ='Tipp-Formular'!DB45 -> 0 | DC45: ='Tipp-Formular'!DC45 -> 0 | DD45: ='Tipp-Formular'!DD45 -> 0
B46: ='Tipp-Formular'!B46 -> 24 | C46: ='Tipp-Formular'!C46 -> 2021-06-19 | D46: ='Tipp-Formular'!D46 -> 18;00 | E46: ='Tipp-Formular'!E46 -> Portugal | F46: ='Tipp-Formular'!F46 -> Deutschland | G46: =IFERROR('Tipp-Formular'!G46,0) -> 0 | H46: : | I46: =IFERROR('Tipp-Formular'!I46,0) -> 0 | J46: ='Tipp-Formular'!J46 -> 0 | K46: ='Tipp-Formular'!K46 -> 0 | L46: ='Tipp-Formular'!L46 -> 0 | T46: 4 | U46: . | V46: ='Tipp-Formular'!V46 -> Tipps fehlen | W46: ='Tipp-Formular'!W46 -> 0 | X46: ='Tipp-Formular'!X46 -> 0 | Y46: : | Z46: ='Tipp-Formular'!Z46 -> 0 | AA46: ='Tipp-Formular'!AA46 -> 0 | AB46: ='Tipp-Formular'!AB46 -> 0 | AC46: ='Tipp-Formular'!AC46 ->  | DA46: ='Tipp-Formular'!DA46 -> Deutschland | DB46: ='Tipp-Formular'!DB46 -> 0 | DC46: ='Tipp-Formular'!DC46 -> 0 | DD46: ='Tipp-Formular'!DD46 -> 0
B47: ='Tipp-Formular'!B47 -> 35 | C47: ='Tipp-Formular'!C47 -> 2021-06-23 | D47: ='Tipp-Formular'!D47 -> 21:00:00 | E47: ='Tipp-Formular'!E47 -> Portugal | F47: ='Tipp-Formular'!F47 -> Frankreich | G47: =IFERROR('Tipp-Formular'!G47,0) -> 0 | H47: : | I47: =IFERROR('Tipp-Formular'!I47,0) -> 0 | J47: ='Tipp-Formular'!J47 -> 0 | K47: ='Tipp-Formular'!K47 -> 0 | L47: ='Tipp-Formular'!L47 -> 0 | P47: ='Tipp-Formular'!P47 -> nein | Q47: ='Tipp-Formular'!Q47 -> 0 | U47: ='Tipp-Formular'!U47 ->  | V47: ='Tipp-Formular'!V47 ->  | AE47: ='Tipp-Formular'!AE47 -> 0 | AI47: ='Tipp-Formular'!AI47:AI48 -> 2021-07-11 | AJ47: ='Tipp-Formular'!AJ47:AJ48 -> 21:00:00 | AK47: ='Tipp-Formular'!AK47:AK48 -> 1HF1 | AL47: ='Tipp-Formular'!AL47:AL48 ->  | AM47: ='Tipp-Formular'!AM47:AM48 -> 1HF2 | AN47: ='Tipp-Formular'!AN47:AN48 ->  | AO47: =IFERROR('Tipp-Formular'!AO47,0) -> 0 | AP47: : | AQ47: =IFERROR('Tipp-Formular'!AQ47,0) -> 0 | AS47: ='Tipp-Formular'!AS47:AS48 -> 0 | AT47: ='Tipp-Formular'!AT47:AT48 -> 0 | AU47: ='Tipp-Formular'!AU47:AU48 -> 0 | AV47: ='Tipp-Formular'!AV47:AV48 -> 1F | AW47: ='Tipp-Formular'!AW47:AW48 ->  | AX47: ='Tipp-Formular'!AX47:AX48 ->  | AY47: ='Tipp-Formular'!AY47:AY48 ->  | AZ47: ='Tipp-Formular'!AZ47:AZ48 -> nein | BA47: ='Tipp-Formular'!BA47:BA48 ->  | BB47: ='Tipp-Formular'!BB47:BB48 -> 2F | BC47: ='Tipp-Formular'!BC47:BC48 -> 
B48: ='Tipp-Formular'!B48 -> 36 | C48: ='Tipp-Formular'!C48 -> 2021-06-23 | D48: ='Tipp-Formular'!D48 -> 21:00:00 | E48: ='Tipp-Formular'!E48 -> Deutschland | F48: ='Tipp-Formular'!F48 -> Ungarn | G48: =IFERROR('Tipp-Formular'!G48,0) -> 0 | H48: : | I48: =IFERROR('Tipp-Formular'!I48,0) -> 0 | J48: ='Tipp-Formular'!J48 -> 0 | K48: ='Tipp-Formular'!K48 -> 0 | L48: ='Tipp-Formular'!L48 -> 0 | P48: ='Tipp-Formular'!P48 -> nein | Q48: 0 | T48: ='Tipp-Formular'!T48 -> 0 | U48: ='Tipp-Formular'!U48 -> 0 | AE48: ='Tipp-Formular'!AE48 -> 0
DA49: ='1'!C10 -> 0
AY50: ='Tipp-Formular'!AY52 -> 
C51: Nachname | E51: ='Tipp-Formular'!E54 -> 0 | S51: Danke für Ihre Teilnahme. Viel Glück. Bitte speichern Sie jetzt Ihre Tipps und senden Sie diese an eine der nebenstehenden e-Mail-Adressen | X51: gerhard@wagner-cup.eu | AI51: Mein Europameister ist | AN51: ='Tipp-Formular'!AN52 ->  | BE51: ='1'!C8 -> 
X52: alexander@wagner-cup.eu
C53: Vorname | E53: ='Tipp-Formular'!E55 -> 0 | X53: clemens@wagner-cup.eu

Sheet Kontrolle2 (hidden)
A1: Kontrolle | C1: DRUCKVERSION Es gelten ausschließlich die hier stehenden Tipps. Nachträgliche Änderungen im Meine Tipps haben keine Gültigkeit! | AG1: DRUCKVERSION Es gelten ausschließlich die hier stehenden Tipps. Nachträgliche Änderungen im Meine Tipps haben keine Gültigkeit! | DA1: ='Meine Tipps'!DA1:DD1 -> Meine Faiplay-Wertung
C2: Gruppe A | Q2: ='Meine Tipps'!Q2:R6 ->  | T2: Gruppe A | AG2: ='Meine Tipps'!AG2:AG6 -> . | AI2: Achtel-Finale | DA2: ='Meine Tipps'!DA2 -> Gruppe A | DB2: ='Meine Tipps'!DB2 -> Gelb =1 Punkt | DC2: ='Meine Tipps'!DC2 -> Rot =3 Punkte | DD2: ='Meine Tipps'!DD2 -> Summe
B3: ='Meine Tipps'!B3 -> 1 | C3: ='Meine Tipps'!C3 -> 2021-06-11 | D3: ='Meine Tipps'!D3 -> 21:00:00 | E3: ='Meine Tipps'!E3 -> Türkei | F3: ='Meine Tipps'!F3 -> Italien | G3: =IF('Meine Tipps'!G3=Kontrolle!G3,0,1) -> 0 | H3: : | I3: =IF('Meine Tipps'!I3=Kontrolle!I3,0,1) -> 0 | J3: ='Meine Tipps'!J3 -> 0 | K3: =IF('Meine Tipps'!K3=Kontrolle!K3,0,1) -> 0 | L3: ='Meine Tipps'!L3 -> 0 | T3: =IF('Meine Tipps'!T3=Kontrolle!T3,0,1) -> 0 | U3: . | V3: =IF('Meine Tipps'!V3=Kontrolle!V3,0,1) -> 0 | W3: =IF('Meine Tipps'!W3=Kontrolle!W3,0,1) -> 0 | X3: =IF('Meine Tipps'!X3=Kontrolle!X3,0,1) -> 0 | Y3: : | Z3: =IF('Meine Tipps'!Z3=Kontrolle!Z3,0,1) -> 0 | AA3: =IF('Meine Tipps'!AA3=Kontrolle!AA3,0,1) -> 0 | AB3: =IF('Meine Tipps'!AB3=Kontrolle!AB3,0,1) -> 0 | AC3: =IF('Meine Tipps'!AC3=Kontrolle!AC3,0,1) -> 0 | AD3: =IF('Meine Tipps'!AD3=Kontrolle!AD3,0,1) -> 0 | DA3: ='Meine Tipps'!DA3 -> Türkei | DB3: =IF('Meine Tipps'!DB3=Kontrolle!DB3,0,1) -> 0 | DC3: =IF('Meine Tipps'!DC3=Kontrolle!DC3,0,1) -> 0 | DD3: =IF('Meine Tipps'!DD3=Kontrolle!DD3,0,1) -> 0
B4: ='Meine Tipps'!B4 -> 2 | C4: ='Meine Tipps'!C4 -> 2021-06-12 | D4: ='Meine Tipps'!D4 -> 15:00:00 | E4: ='Meine Tipps'!E4 -> Wales | F4: ='Meine Tipps'!F4 -> Schweiz | G4: =IF('Meine Tipps'!G4=Kontrolle!G4,0,1) -> 0 | H4: : | I4: =IF('Meine Tipps'!I4=Kontrolle!I4,0,1) -> 0 | J4: ='Meine Tipps'!J4 -> 0 | K4: =IF('Meine Tipps'!K4=Kontrolle!K4,0,1) -> 0 | L4: ='Meine Tipps'!L4 -> 0 | T4: =IF('Meine Tipps'!T4=Kontrolle!T4,0,1) -> 0 | U4: . | V4: =IF('Meine Tipps'!V4=Kontrolle!V4,0,1) -> 0 | W4: =IF('Meine Tipps'!W4=Kontrolle!W4,0,1) -> 0 | X4: =IF('Meine Tipps'!X4=Kontrolle!X4,0,1) -> 0 | Y4: : | Z4: =IF('Meine Tipps'!Z4=Kontrolle!Z4,0,1) -> 0 | AA4: =IF('Meine Tipps'!AA4=Kontrolle!AA4,0,1) -> 0 | AB4: =IF('Meine Tipps'!AB4=Kontrolle!AB4,0,1) -> 0 | AC4: =IF('Meine Tipps'!AC4=Kontrolle!AC4,0,1) -> 0 | AD4: =IF('Meine Tipps'!AD4=Kontrolle!AD4,0,1) -> 0 | AI4: ='Meine Tipps'!AI4 -> 2021-06-26 | AJ4: ='Meine Tipps'!AJ4 -> 18:00:00 | AK4: ='Meine Tipps'!AK4 -> 2A | AL4: =IF('Meine Tipps'!AL4=Kontrolle!AL4,0,1) -> 0 | AM4: =IF('Meine Tipps'!AM4=Kontrolle!AM4,0,1) -> 0 | AN4: =IF('Meine Tipps'!AN4=Kontrolle!AN4,0,1) -> 0 | AO4: =IF('Meine Tipps'!AO4=Kontrolle!AO4,0,1) -> 0 | AP4: : | AQ4: =IF('Meine Tipps'!AQ4=Kontrolle!AQ4,0,1) -> 0 | AS4: ='Meine Tipps'!AS4 -> 0 | AT4: =IF('Meine Tipps'!AT4=Kontrolle!AT4,0,1) -> 0 | AU4: =IF('Meine Tipps'!AU4=Kontrolle!AU4,0,1) -> 0 | AV4: ='Meine Tipps'!AV4 -> 1AF1 | AW4: ='Meine Tipps'!AW4 ->  | AX4: ='Meine Tipps'!AX4:AX5 ->  | AY4: ='Meine Tipps'!AY4:AY5 ->  | AZ4: ='Meine Tipps'!AZ4 -> nein | BA4: ='Meine Tipps'!BA4 ->  | BB4: ='Meine Tipps'!BB4 -> 2AF1 | BC4: ='Meine Tipps'!BC4 ->  | DA4: ='Meine Tipps'!DA4 -> Italien | DB4: =IF('Meine Tipps'!DB4=Kontrolle!DB4,0,1) -> 0 | DC4: =IF('Meine Tipps'!DC4=Kontrolle!DC4,0,1) -> 0 | DD4: =IF('Meine Tipps'!DD4=Kontrolle!DD4,0,1) -> 0
B5: ='Meine Tipps'!B5 -> 13 | C5: ='Meine Tipps'!C5 -> 2021-06-16 | D5: ='Meine Tipps'!D5 -> 18:00:00 | E5: ='Meine Tipps'!E5 -> Türkei | F5: ='Meine Tipps'!F5 -> Wales | G5: =IF('Meine Tipps'!G5=Kontrolle!G5,0,1) -> 0 | H5: : | I5: =IF('Meine Tipps'!I5=Kontrolle!I5,0,1) -> 0 | J5: ='Meine Tipps'!J5 -> 0 | K5: =IF('Meine Tipps'!K5=Kontrolle!K5,0,1) -> 0 | L5: ='Meine Tipps'!L5 -> 0 | T5: =IF('Meine Tipps'!T5=Kontrolle!T5,0,1) -> 0 | U5: . | V5: =IF('Meine Tipps'!V5=Kontrolle!V5,0,1) -> 0 | W5: =IF('Meine Tipps'!W5=Kontrolle!W5,0,1) -> 0 | X5: =IF('Meine Tipps'!X5=Kontrolle!X5,0,1) -> 0 | Y5: : | Z5: =IF('Meine Tipps'!Z5=Kontrolle!Z5,0,1) -> 0 | AA5: =IF('Meine Tipps'!AA5=Kontrolle!AA5,0,1) -> 0 | AB5: =IF('Meine Tipps'!AB5=Kontrolle!AB5,0,1) -> 0 | AC5: =IF('Meine Tipps'!AC5=Kontrolle!AC5,0,1) -> 0 | AD5: =IF('Meine Tipps'!AD5=Kontrolle!AD5,0,1) -> 0 | AL5: =IF('Tipp-Formular'!AL5=Kontrolle!AL5,0,1) -> 0 | AM5: =IF('Tipp-Formular'!AM5=Kontrolle!AM5,0,1) -> 0 | AN5: =IF('Tipp-Formular'!AN5=Kontrolle!AN5,0,1) -> 0 | AO5: =IF('Tipp-Formular'!AO5=Kontrolle!AO5,0,1) -> 0 | AQ5: =IF('Tipp-Formular'!AQ5=Kontrolle!AQ5,0,1) -> 0 | AT5: =IF('Tipp-Formular'!AT5=Kontrolle!AT5,0,1) -> 0 | AU5: =IF('Tipp-Formular'!AU5=Kontrolle!AU5,0,1) -> 0 | DA5: ='Meine Tipps'!DA5 -> Wales | DB5: =IF('Meine Tipps'!DB5=Kontrolle!DB5,0,1) -> 0 | DC5: =IF('Meine Tipps'!DC5=Kontrolle!DC5,0,1) -> 0 | DD5: =IF('Meine Tipps'!DD5=Kontrolle!DD5,0,1) -> 0
B6: ='Meine Tipps'!B6 -> 14 | C6: ='Meine Tipps'!C6 -> 2021-06-16 | D6: ='Meine Tipps'!D6 -> 21:00:00 | E6: ='Meine Tipps'!E6 -> Italien | F6: ='Meine Tipps'!F6 -> Schweiz | G6: =IF('Meine Tipps'!G6=Kontrolle!G6,0,1) -> 0 | H6: : | I6: =IF('Meine Tipps'!I6=Kontrolle!I6,0,1) -> 0 | J6: ='Meine Tipps'!J6 -> 0 | K6: =IF('Meine Tipps'!K6=Kontrolle!K6,0,1) -> 0 | L6: ='Meine Tipps'!L6 -> 0 | T6: =IF('Meine Tipps'!T6=Kontrolle!T6,0,1) -> 0 | U6: . | V6: =IF('Meine Tipps'!V6=Kontrolle!V6,0,1) -> 0 | W6: =IF('Meine Tipps'!W6=Kontrolle!W6,0,1) -> 0 | X6: =IF('Meine Tipps'!X6=Kontrolle!X6,0,1) -> 0 | Y6: : | Z6: =IF('Meine Tipps'!Z6=Kontrolle!Z6,0,1) -> 0 | AA6: =IF('Meine Tipps'!AA6=Kontrolle!AA6,0,1) -> 0 | AB6: =IF('Meine Tipps'!AB6=Kontrolle!AB6,0,1) -> 0 | AC6: =IF('Meine Tipps'!AC6=Kontrolle!AC6,0,1) -> 0 | AD6: =IF('Meine Tipps'!AD6=Kontrolle!AD6,0,1) -> 0 | AI6: ='Meine Tipps'!AI6 -> 2021-06-26 | AJ6: ='Meine Tipps'!AJ6 -> 21:00:00 | AK6: ='Meine Tipps'!AK6 -> 1A | AL6: =IF('Meine Tipps'!AL6=Kontrolle!AL6,0,1) -> 0 | AM6: =IF('Meine Tipps'!AM6=Kontrolle!AM6,0,1) -> 0 | AN6: =IF('Meine Tipps'!AN6=Kontrolle!AN6,0,1) -> 0 | AO6: =IF('Meine Tipps'!AO6=Kontrolle!AO6,0,1) -> 0 | AP6: : | AQ6: =IF('Meine Tipps'!AQ6=Kontrolle!AQ6,0,1) -> 0 | AS6: ='Meine Tipps'!AS6 -> 0 | AT6: =IF('Meine Tipps'!AT6=Kontrolle!AT6,0,1) -> 0 | AU6: =IF('Meine Tipps'!AU6=Kontrolle!AU6,0,1) -> 0 | AV6: ='Meine Tipps'!AV6 -> 1AF2 | AW6: ='Meine Tipps'!AW6 ->  | AX6: ='Meine Tipps'!AX6:AX7 ->  | AY6: ='Meine Tipps'!AY6:AY7 ->  | AZ6: ='Meine Tipps'!AZ6 -> nein | BA6: ='Meine Tipps'!BA6 ->  | BB6: ='Meine Tipps'!BB6 -> 2AF2 | BC6: ='Meine Tipps'!BC6 ->  | DA6: ='Meine Tipps'!DA6 -> Schweiz | DB6: =IF('Meine Tipps'!DB6=Kontrolle!DB6,0,1) -> 0 | DC6: =IF('Meine Tipps'!DC6=Kontrolle!DC6,0,1) -> 0 | DD6: =IF('Meine Tipps'!DD6=Kontrolle!DD6,0,1) -> 0
B7: ='Meine Tipps'!B7 -> 25 | C7: ='Meine Tipps'!C7 -> 2021-06-20 | D7: ='Meine Tipps'!D7 -> 18:00:00 | E7: ='Meine Tipps'!E7 -> Schweiz | F7: ='Meine Tipps'!F7 -> Türkei | G7: =IF('Meine Tipps'!G7=Kontrolle!G7,0,1) -> 0 | H7: : | I7: =IF('Meine Tipps'!I7=Kontrolle!I7,0,1) -> 0 | J7: ='Meine Tipps'!J7 -> 0 | K7: =IF('Meine Tipps'!K7=Kontrolle!K7,0,1) -> 0 | L7: ='Meine Tipps'!L7 -> 0 | P7: ='Meine Tipps'!P7 -> nein | Q7: =IF('Meine Tipps'!Q7=Kontrolle!Q7,0,1) -> 0 | T7: =IF('Meine Tipps'!T7=Kontrolle!T7,0,1) -> 0 | U7: =IF('Meine Tipps'!U7=Kontrolle!U7,0,1) -> 0 | V7: =IF('Meine Tipps'!V7=Kontrolle!V7,0,1) -> 0 | W7: =IF('Tipp-Formular'!W7=Kontrolle!W7,0,1) -> 0 | X7: =IF('Tipp-Formular'!X7=Kontrolle!X7,0,1) -> 0 | Y7: =IF('Tipp-Formular'!Y7=Kontrolle!Y7,0,1) -> 0 | Z7: =IF('Tipp-Formular'!Z7=Kontrolle!Z7,0,1) -> 0 | AA7: =IF('Tipp-Formular'!AA7=Kontrolle!AA7,0,1) -> 0 | AB7: =IF('Tipp-Formular'!AB7=Kontrolle!AB7,0,1) -> 0 | AC7: =IF('Tipp-Formular'!AC7=Kontrolle!AC7,0,1) -> 0 | AE7: ='Meine Tipps'!AE7 -> 0 | AL7: =IF('Tipp-Formular'!AL7=Kontrolle!AL7,0,1) -> 0 | AM7: =IF('Tipp-Formular'!AM7=Kontrolle!AM7,0,1) -> 0 | AN7: =IF('Tipp-Formular'!AN7=Kontrolle!AN7,0,1) -> 0 | AO7: =IF('Tipp-Formular'!AO7=Kontrolle!AO7,0,1) -> 0 | AQ7: =IF('Tipp-Formular'!AQ7=Kontrolle!AQ7,0,1) -> 0 | AT7: =IF('Tipp-Formular'!AT7=Kontrolle!AT7,0,1) -> 0 | AU7: =IF('Tipp-Formular'!AU7=Kontrolle!AU7,0,1) -> 0 | DD7: =SUM(DB3:DD6) -> 0
B8: ='Meine Tipps'!B8 -> 26 | C8: ='Meine Tipps'!C8 -> 2021-06-20 | D8: ='Meine Tipps'!D8 -> 18:00:00 | E8: ='Meine Tipps'!E8 -> Italien | F8: ='Meine Tipps'!F8 -> Wales | G8: =IF('Meine Tipps'!G8=Kontrolle!G8,0,1) -> 0 | H8: : | I8: =IF('Meine Tipps'!I8=Kontrolle!I8,0,1) -> 0 | J8: ='Meine Tipps'!J8 -> 0 | K8: =IF('Meine Tipps'!K8=Kontrolle!K8,0,1) -> 0 | L8: ='Meine Tipps'!L8 -> 0 | P8: ='Meine Tipps'!P8 -> nein | Q8: =IF('Meine Tipps'!Q8=Kontrolle!Q8,0,1) -> 0 | T8: =IF('Meine Tipps'!T8=Kontrolle!T8,0,1) -> 0 | U8: =IF('Meine Tipps'!U8=Kontrolle!U8,0,1) -> 0 | V8: =IF('Tipp-Formular'!V8=Kontrolle!V8,0,1) -> 0 | W8: =IF('Tipp-Formular'!W8=Kontrolle!W8,0,1) -> 0 | X8: =IF('Tipp-Formular'!X8=Kontrolle!X8,0,1) -> 0 | Y8: =IF('Tipp-Formular'!Y8=Kontrolle!Y8,0,1) -> 0 | Z8: =IF('Tipp-Formular'!Z8=Kontrolle!Z8,0,1) -> 0 | AA8: =IF('Tipp-Formular'!AA8=Kontrolle!AA8,0,1) -> 0 | AB8: =IF('Tipp-Formular'!AB8=Kontrolle!AB8,0,1) -> 0 | AC8: =IF('Tipp-Formular'!AC8=Kontrolle!AC8,0,1) -> 0 | AE8: ='Meine Tipps'!AE8 -> 0 | AI8: ='Meine Tipps'!AI8 -> 2021-06-27 | AJ8: ='Meine Tipps'!AJ8 -> 18:00:00 | AK8: ='Meine Tipps'!AK8 -> 1C | AL8: =IF('Meine Tipps'!AL8=Kontrolle!AL8,0,1) -> 0 | AM8: =IF('Meine Tipps'!AM8=Kontrolle!AM8,0,1) -> 0 | AN8: =IF('Meine Tipps'!AN8=Kontrolle!AN8,0,1) -> 0 | AO8: =IF('Meine Tipps'!AO8=Kontrolle!AO8,0,1) -> 0 | AP8: : | AQ8: =IF('Meine Tipps'!AQ8=Kontrolle!AQ8,0,1) -> 0 | AS8: ='Meine Tipps'!AS8 -> 0 | AT8: =IF('Meine Tipps'!AT8=Kontrolle!AT8,0,1) -> 0 | AU8: =IF('Meine Tipps'!AU8=Kontrolle!AU8,0,1) -> 0 | AV8: ='Meine Tipps'!AV8 -> 1AF3 | AW8: ='Meine Tipps'!AW8 ->  | AX8: ='Meine Tipps'!AX8:AX9 ->  | AY8: ='Meine Tipps'!AY8:AY9 ->  | AZ8: ='Meine Tipps'!AZ8 -> nein | BA8: ='Meine Tipps'!BA8 ->  | BB8: ='Meine Tipps'!BB8 -> 2AF3 | BC8: ='Meine Tipps'!BC8 -> 
G9: =SUM(G3:G8) -> 0 | I9: =SUM(I3:I8) -> 0 | K9: =SUM(K3:K8) -> 0 | Q9: =SUM(Q7:Q8) -> 0 | R9: =SUM(G9:Q9) -> 0 | AD9: =SUM(T3:AD8) -> 0 | AL9: =IF('Tipp-Formular'!AL9=Kontrolle!AL9,0,1) -> 0 | AM9: =IF('Tipp-Formular'!AM9=Kontrolle!AM9,0,1) -> 0 | AN9: =IF('Tipp-Formular'!AN9=Kontrolle!AN9,0,1) -> 0 | AO9: =IF('Tipp-Formular'!AO9=Kontrolle!AO9,0,1) -> 0 | AQ9: =IF('Tipp-Formular'!AQ9=Kontrolle!AQ9,0,1) -> 0 | AT9: =IF('Tipp-Formular'!AT9=Kontrolle!AT9,0,1) -> 0 | AU9: =IF('Tipp-Formular'!AU9=Kontrolle!AU9,0,1) -> 0
C10: Gruppe B | Q10: ='Meine Tipps'!Q10:R14 ->  | T10: Gruppe B | AG10: ='Meine Tipps'!AG10:AG14 -> . | AI10: ='Meine Tipps'!AI10 -> 2021-06-27 | AJ10: ='Meine Tipps'!AJ10 -> 21:00:00 | AK10: ='Meine Tipps'!AK10 -> 1B | AL10: =IF('Meine Tipps'!AL10=Kontrolle!AL10,0,1) -> 0 | AM10: =IF('Meine Tipps'!AM10=Kontrolle!AM10,0,1) -> 0 | AN10: =IF('Meine Tipps'!AN10=Kontrolle!AN10,0,1) -> 0 | AO10: =IF('Meine Tipps'!AO10=Kontrolle!AO10,0,1) -> 0 | AP10: : | AQ10: =IF('Meine Tipps'!AQ10=Kontrolle!AQ10,0,1) -> 0 | AS10: ='Meine Tipps'!AS10 -> 0 | AT10: =IF('Meine Tipps'!AT10=Kontrolle!AT10,0,1) -> 0 | AU10: =IF('Meine Tipps'!AU10=Kontrolle!AU10,0,1) -> 0 | AV10: ='Meine Tipps'!AV10 -> 1AF4 | AW10: ='Meine Tipps'!AW10 ->  | AX10: ='Meine Tipps'!AX10:AX11 ->  | AY10: ='Meine Tipps'!AY10:AY11 ->  | AZ10: ='Meine Tipps'!AZ10 -> nein | BA10: ='Meine Tipps'!BA10 ->  | BB10: ='Meine Tipps'!BB10 -> 2AF4 | BC10: ='Meine Tipps'!BC10 ->  | DA10: ='Meine Tipps'!DA10 -> Gruppe B | DB10: ='Meine Tipps'!DB10 -> Gelb =1 Punkt | DC10: ='Meine Tipps'!DC10 -> Rot =3 Punkte | DD10: ='Meine Tipps'!DD10 -> Summe
B11: ='Meine Tipps'!B11 -> 3 | C11: ='Meine Tipps'!C11 -> 2021-06-12 | D11: ='Meine Tipps'!D11 -> 18:00:00 | E11: ='Meine Tipps'!E11 -> Dänemark | F11: ='Meine Tipps'!F11 -> Finnland | G11: =IF('Meine Tipps'!G11=Kontrolle!G11,0,1) -> 0 | H11: : | I11: =IF('Meine Tipps'!I11=Kontrolle!I11,0,1) -> 0 | J11: ='Meine Tipps'!J11 -> 0 | K11: =IF('Meine Tipps'!K11=Kontrolle!K11,0,1) -> 0 | L11: ='Meine Tipps'!L11 -> 0 | T11: =IF('Meine Tipps'!T11=Kontrolle!T11,0,1) -> 0 | U11: . | V11: =IF('Meine Tipps'!V11=Kontrolle!V11,0,1) -> 0 | W11: =IF('Meine Tipps'!W11=Kontrolle!W11,0,1) -> 0 | X11: =IF('Meine Tipps'!X11=Kontrolle!X11,0,1) -> 0 | Y11: : | Z11: =IF('Meine Tipps'!Z11=Kontrolle!Z11,0,1) -> 0 | AA11: =IF('Meine Tipps'!AA11=Kontrolle!AA11,0,1) -> 0 | AB11: =IF('Meine Tipps'!AB11=Kontrolle!AB11,0,1) -> 0 | AC11: =IF('Meine Tipps'!AC11=Kontrolle!AC11,0,1) -> 0 | AD11: =IF('Meine Tipps'!AD11=Kontrolle!AD11,0,1) -> 0 | AL11: =IF('Tipp-Formular'!AL11=Kontrolle!AL11,0,1) -> 0 | AM11: =IF('Tipp-Formular'!AM11=Kontrolle!AM11,0,1) -> 0 | AN11: =IF('Tipp-Formular'!AN11=Kontrolle!AN11,0,1) -> 0 | AO11: =IF('Tipp-Formular'!AO11=Kontrolle!AO11,0,1) -> 0 | AQ11: =IF('Tipp-Formular'!AQ11=Kontrolle!AQ11,0,1) -> 0 | AT11: =IF('Tipp-Formular'!AT11=Kontrolle!AT11,0,1) -> 0 | AU11: =IF('Tipp-Formular'!AU11=Kontrolle!AU11,0,1) -> 0 | DA11: ='Meine Tipps'!DA11 -> Dänemark | DB11: =IF('Meine Tipps'!DB11=Kontrolle!DB11,0,1) -> 0 | DC11: =IF('Meine Tipps'!DC11=Kontrolle!DC11,0,1) -> 0 | DD11: =IF('Meine Tipps'!DD11=Kontrolle!DD11,0,1) -> 0
B12: ='Meine Tipps'!B12 -> 4 | C12: ='Meine Tipps'!C12 -> 2021-06-12 | D12: ='Meine Tipps'!D12 -> 21:00:00 | E12: ='Meine Tipps'!E12 -> Belgien | F12: ='Meine Tipps'!F12 -> Russland | G12: =IF('Meine Tipps'!G12=Kontrolle!G12,0,1) -> 0 | H12: : | I12: =IF('Meine Tipps'!I12=Kontrolle!I12,0,1) -> 0 | J12: ='Meine Tipps'!J12 -> 0 | K12: =IF('Meine Tipps'!K12=Kontrolle!K12,0,1) -> 0 | L12: ='Meine Tipps'!L12 -> 0 | T12: =IF('Meine Tipps'!T12=Kontrolle!T12,0,1) -> 0 | U12: . | V12: =IF('Meine Tipps'!V12=Kontrolle!V12,0,1) -> 0 | W12: =IF('Meine Tipps'!W12=Kontrolle!W12,0,1) -> 0 | X12: =IF('Meine Tipps'!X12=Kontrolle!X12,0,1) -> 0 | Y12: : | Z12: =IF('Meine Tipps'!Z12=Kontrolle!Z12,0,1) -> 0 | AA12: =IF('Meine Tipps'!AA12=Kontrolle!AA12,0,1) -> 0 | AB12: =IF('Meine Tipps'!AB12=Kontrolle!AB12,0,1) -> 0 | AC12: =IF('Meine Tipps'!AC12=Kontrolle!AC12,0,1) -> 0 | AD12: =IF('Meine Tipps'!AD12=Kontrolle!AD12,0,1) -> 0 | AI12: ='Meine Tipps'!AI12 -> 2021-06-28 | AJ12: ='Meine Tipps'!AJ12 -> 18:00:00 | AK12: ='Meine Tipps'!AK12 -> 2D | AL12: =IF('Meine Tipps'!AL12=Kontrolle!AL12,0,1) -> 0 | AM12: =IF('Meine Tipps'!AM12=Kontrolle!AM12,0,1) -> 0 | AN12: =IF('Meine Tipps'!AN12=Kontrolle!AN12,0,1) -> 0 | AO12: =IF('Meine Tipps'!AO12=Kontrolle!AO12,0,1) -> 0 | AP12: : | AQ12: =IF('Meine Tipps'!AQ12=Kontrolle!AQ12,0,1) -> 0 | AS12: ='Meine Tipps'!AS12 -> 0 | AT12: =IF('Meine Tipps'!AT12=Kontrolle!AT12,0,1) -> 0 | AU12: =IF('Meine Tipps'!AU12=Kontrolle!AU12,0,1) -> 0 | AV12: ='Meine Tipps'!AV12 -> 1AF5 | AW12: ='Meine Tipps'!AW12 ->  | AX12: ='Meine Tipps'!AX12:AX13 ->  | AY12: ='Meine Tipps'!AY12:AY13 ->  | AZ12: ='Meine Tipps'!AZ12 -> nein | BA12: ='Meine Tipps'!BA12 ->  | BB12: ='Meine Tipps'!BB12 -> 2AF5 | BC12: ='Meine Tipps'!BC12 ->  | DA12: ='Meine Tipps'!DA12 -> Finnland | DB12: =IF('Meine Tipps'!DB12=Kontrolle!DB12,0,1) -> 0 | DC12: =IF('Meine Tipps'!DC12=Kontrolle!DC12,0,1) -> 0 | DD12: =IF('Meine Tipps'!DD12=Kontrolle!DD12,0,1) -> 0
B13: ='Meine Tipps'!B13 -> 15 | C13: ='Meine Tipps'!C13 -> 2021-06-16 | D13: ='Meine Tipps'!D13 -> 15:00:00 | E13: ='Meine Tipps'!E13 -> Finnland | F13: ='Meine Tipps'!F13 -> Russland | G13: =IF('Meine Tipps'!G13=Kontrolle!G13,0,1) -> 0 | H13: : | I13: =IF('Meine Tipps'!I13=Kontrolle!I13,0,1) -> 0 | J13: ='Meine Tipps'!J13 -> 0 | K13: =IF('Meine Tipps'!K13=Kontrolle!K13,0,1) -> 0 | L13: ='Meine Tipps'!L13 -> 0 | T13: =IF('Meine Tipps'!T13=Kontrolle!T13,0,1) -> 0 | U13: . | V13: =IF('Meine Tipps'!V13=Kontrolle!V13,0,1) -> 0 | W13: =IF('Meine Tipps'!W13=Kontrolle!W13,0,1) -> 0 | X13: =IF('Meine Tipps'!X13=Kontrolle!X13,0,1) -> 0 | Y13: : | Z13: =IF('Meine Tipps'!Z13=Kontrolle!Z13,0,1) -> 0 | AA13: =IF('Meine Tipps'!AA13=Kontrolle!AA13,0,1) -> 0 | AB13: =IF('Meine Tipps'!AB13=Kontrolle!AB13,0,1) -> 0 | AC13: =IF('Meine Tipps'!AC13=Kontrolle!AC13,0,1) -> 0 | AD13: =IF('Meine Tipps'!AD13=Kontrolle!AD13,0,1) -> 0 | AL13: =IF('Tipp-Formular'!AL13=Kontrolle!AL13,0,1) -> 0 | AM13: =IF('Tipp-Formular'!AM13=Kontrolle!AM13,0,1) -> 0 | AN13: =IF('Tipp-Formular'!AN13=Kontrolle!AN13,0,1) -> 0 | AO13: =IF('Tipp-Formular'!AO13=Kontrolle!AO13,0,1) -> 0 | AQ13: =IF('Tipp-Formular'!AQ13=Kontrolle!AQ13,0,1) -> 0 | AT13: =IF('Tipp-Formular'!AT13=Kontrolle!AT13,0,1) -> 0 | AU13: =IF('Tipp-Formular'!AU13=Kontrolle!AU13,0,1) -> 0 | DA13: ='Meine Tipps'!DA13 -> Belgien | DB13: =IF('Meine Tipps'!DB13=Kontrolle!DB13,0,1) -> 0 | DC13: =IF('Meine Tipps'!DC13=Kontrolle!DC13,0,1) -> 0 | DD13: =IF('Meine Tipps'!DD13=Kontrolle!DD13,0,1) -> 0
B14: ='Meine Tipps'!B14 -> 16 | C14: ='Meine Tipps'!C14 -> 2021-06-17 | D14: ='Meine Tipps'!D14 -> 18:00:00 | E14: ='Meine Tipps'!E14 -> Dänemark | F14: ='Meine Tipps'!F14 -> Belgien | G14: =IF('Meine Tipps'!G14=Kontrolle!G14,0,1) -> 0 | H14: : | I14: =IF('Meine Tipps'!I14=Kontrolle!I14,0,1) -> 0 | J14: ='Meine Tipps'!J14 -> 0 | K14: =IF('Meine Tipps'!K14=Kontrolle!K14,0,1) -> 0 | L14: ='Meine Tipps'!L14 -> 0 | T14: =IF('Meine Tipps'!T14=Kontrolle!T14,0,1) -> 0 | U14: . | V14: =IF('Meine Tipps'!V14=Kontrolle!V14,0,1) -> 0 | W14: =IF('Meine Tipps'!W14=Kontrolle!W14,0,1) -> 0 | X14: =IF('Meine Tipps'!X14=Kontrolle!X14,0,1) -> 0 | Y14: : | Z14: =IF('Meine Tipps'!Z14=Kontrolle!Z14,0,1) -> 0 | AA14: =IF('Meine Tipps'!AA14=Kontrolle!AA14,0,1) -> 0 | AB14: =IF('Meine Tipps'!AB14=Kontrolle!AB14,0,1) -> 0 | AC14: =IF('Meine Tipps'!AC14=Kontrolle!AC14,0,1) -> 0 | AD14: =IF('Meine Tipps'!AD14=Kontrolle!AD14,0,1) -> 0 | AI14: ='Meine Tipps'!AI14 -> 2021-06-28 | AJ14: ='Meine Tipps'!AJ14 -> 21:00:00 | AK14: ='Meine Tipps'!AK14 -> 1F | AL14: =IF('Meine Tipps'!AL14=Kontrolle!AL14,0,1) -> 0 | AM14: =IF('Meine Tipps'!AM14=Kontrolle!AM14,0,1) -> 0 | AN14: =IF('Meine Tipps'!AN14=Kontrolle!AN14,0,1) -> 0 | AO14: =IF('Meine Tipps'!AO14=Kontrolle!AO14,0,1) -> 0 | AP14: : | AQ14: =IF('Meine Tipps'!AQ14=Kontrolle!AQ14,0,1) -> 0 | AS14: ='Meine Tipps'!AS14 -> 0 | AT14: =IF('Meine Tipps'!AT14=Kontrolle!AT14,0,1) -> 0 | AU14: =IF('Meine Tipps'!AU14=Kontrolle!AU14,0,1) -> 0 | AV14: ='Meine Tipps'!AV14 -> 1AF6 | AW14: ='Meine Tipps'!AW14 ->  | AX14: ='Meine Tipps'!AX14:AX15 ->  | AY14: ='Meine Tipps'!AY14:AY15 ->  | AZ14: ='Meine Tipps'!AZ14 -> nein | BA14: ='Meine Tipps'!BA14 ->  | BB14: ='Meine Tipps'!BB14 -> 2AF6 | BC14: ='Meine Tipps'!BC14 ->  | DA14: ='Meine Tipps'!DA14 -> Russland | DB14: =IF('Meine Tipps'!DB14=Kontrolle!DB14,0,1) -> 0 | DC14: =IF('Meine Tipps'!DC14=Kontrolle!DC14,0,1) -> 0 | DD14: =IF('Meine Tipps'!DD14=Kontrolle!DD14,0,1) -> 0
B15: ='Meine Tipps'!B15 -> 27 | C15: ='Meine Tipps'!C15 -> 2021-06-21 | D15: ='Meine Tipps'!D15 -> 21:00:00 | E15: ='Meine Tipps'!E15 -> Russland | F15: ='Meine Tipps'!F15 -> Dänemark | G15: =IF('Meine Tipps'!G15=Kontrolle!G15,0,1) -> 0 | H15: : | I15: =IF('Meine Tipps'!I15=Kontrolle!I15,0,1) -> 0 | J15: ='Meine Tipps'!J15 -> 0 | K15: =IF('Meine Tipps'!K15=Kontrolle!K15,0,1) -> 0 | L15: ='Meine Tipps'!L15 -> 0 | P15: ='Meine Tipps'!P15 -> nein | Q15: =IF('Meine Tipps'!Q15=Kontrolle!Q15,0,1) -> 0 | T15: =IF('Meine Tipps'!T15=Kontrolle!T15,0,1) -> 0 | U15: =IF('Meine Tipps'!U15=Kontrolle!U15,0,1) -> 0 | V15: =IF('Meine Tipps'!V15=Kontrolle!V15,0,1) -> 0 | W15: =IF('Tipp-Formular'!W15=Kontrolle!W15,0,1) -> 0 | X15: =IF('Tipp-Formular'!X15=Kontrolle!X15,0,1) -> 0 | Y15: =IF('Tipp-Formular'!Y15=Kontrolle!Y15,0,1) -> 0 | Z15: =IF('Tipp-Formular'!Z15=Kontrolle!Z15,0,1) -> 0 | AA15: =IF('Tipp-Formular'!AA15=Kontrolle!AA15,0,1) -> 0 | AB15: =IF('Tipp-Formular'!AB15=Kontrolle!AB15,0,1) -> 0 | AC15: =IF('Tipp-Formular'!AC15=Kontrolle!AC15,0,1) -> 0 | AE15: ='Meine Tipps'!AE15 -> 0 | AL15: =IF('Tipp-Formular'!AL15=Kontrolle!AL15,0,1) -> 0 | AM15: =IF('Tipp-Formular'!AM15=Kontrolle!AM15,0,1) -> 0 | AN15: =IF('Tipp-Formular'!AN15=Kontrolle!AN15,0,1) -> 0 | AO15: =IF('Tipp-Formular'!AO15=Kontrolle!AO15,0,1) -> 0 | AQ15: =IF('Tipp-Formular'!AQ15=Kontrolle!AQ15,0,1) -> 0 | AT15: =IF('Tipp-Formular'!AT15=Kontrolle!AT15,0,1) -> 0 | AU15: =IF('Tipp-Formular'!AU15=Kontrolle!AU15,0,1) -> 0 | DD15: =SUM(DB11:DD14) -> 0
B16: ='Meine Tipps'!B16 -> 28 | C16: ='Meine Tipps'!C16 -> 2021-06-21 | D16: ='Meine Tipps'!D16 -> 21:00:00 | E16: ='Meine Tipps'!E16 -> Finnland | F16: ='Meine Tipps'!F16 -> Belgien | G16: =IF('Meine Tipps'!G16=Kontrolle!G16,0,1) -> 0 | H16: : | I16: =IF('Meine Tipps'!I16=Kontrolle!I16,0,1) -> 0 | J16: ='Meine Tipps'!J16 -> 0 | K16: =IF('Meine Tipps'!K16=Kontrolle!K16,0,1) -> 0 | L16: ='Meine Tipps'!L16 -> 0 | P16: ='Meine Tipps'!P16 -> nein | Q16: =IF('Meine Tipps'!Q16=Kontrolle!Q16,0,1) -> 0 | T16: =IF('Meine Tipps'!T16=Kontrolle!T16,0,1) -> 0 | U16: =IF('Meine Tipps'!U16=Kontrolle!U16,0,1) -> 0 | V16: =IF('Tipp-Formular'!V16=Kontrolle!V16,0,1) -> 0 | W16: =IF('Tipp-Formular'!W16=Kontrolle!W16,0,1) -> 0 | X16: =IF('Tipp-Formular'!X16=Kontrolle!X16,0,1) -> 0 | Y16: =IF('Tipp-Formular'!Y16=Kontrolle!Y16,0,1) -> 0 | Z16: =IF('Tipp-Formular'!Z16=Kontrolle!Z16,0,1) -> 0 | AA16: =IF('Tipp-Formular'!AA16=Kontrolle!AA16,0,1) -> 0 | AB16: =IF('Tipp-Formular'!AB16=Kontrolle!AB16,0,1) -> 0 | AC16: =IF('Tipp-Formular'!AC16=Kontrolle!AC16,0,1) -> 0 | AE16: ='Meine Tipps'!AE16 -> 0 | AI16: ='Meine Tipps'!AI16 -> 2021-06-29 | AJ16: ='Meine Tipps'!AJ16 -> 18:00:00 | AK16: ='Meine Tipps'!AK16 -> 1D | AL16: =IF('Meine Tipps'!AL16=Kontrolle!AL16,0,1) -> 0 | AM16: =IF('Meine Tipps'!AM16=Kontrolle!AM16,0,1) -> 0 | AN16: =IF('Meine Tipps'!AN16=Kontrolle!AN16,0,1) -> 0 | AO16: =IF('Meine Tipps'!AO16=Kontrolle!AO16,0,1) -> 0 | AP16: : | AQ16: =IF('Meine Tipps'!AQ16=Kontrolle!AQ16,0,1) -> 0 | AS16: ='Meine Tipps'!AS16 -> 0 | AT16: =IF('Meine Tipps'!AT16=Kontrolle!AT16,0,1) -> 0 | AU16: =IF('Meine Tipps'!AU16=Kontrolle!AU16,0,1) -> 0 | AV16: ='Meine Tipps'!AV16 -> 1AF7 | AW16: ='Meine Tipps'!AW16 ->  | AX16: ='Meine Tipps'!AX16:AX17 ->  | AY16: ='Meine Tipps'!AY16:AY17 ->  | AZ16: ='Meine Tipps'!AZ16 -> nein | BA16: ='Meine Tipps'!BA16 ->  | BB16: ='Meine Tipps'!BB16 -> 2AF7 | BC16: ='Meine Tipps'!BC16 -> 
